Workbook

Sheet INPUTS
Z2: INPUT #4: Custom UD
N3: INPUT #3: Testing Results | P3: Select: | Q3: Expansion | S3: Pre-PHE | T3: 2020-02-01 | U3: Acuity Solving Approach | V3: Force Post-Unwinding to Equal 1.0 | Z3: 1 | AA3: 0.01939436778
S4: Post-Unw | T4: 2024-07-01 | Z4: =1+Z3 -> 2 | AA4: 0.03603407482
Z5: 3 | AA5: 0.06063036672
B6: INPUT #1: Scenario Selections | I6: INPUT #2: Enrollment Growth | Z6: 4 | AA6: 0.07412132744
B7: State | G7: * | I7: Period | K7: Input | L7: Sim +/- | Z7: 5 | AA7: 0.08413967902
B8: Month of First Terminations | G8: 2023-04-01 | I8: Unwinding | K8: 0 | L8: 0 | Z8: 6 | AA8: 0.0966026616
B9: Months to Process Terminations | G9: 15 | I9: Year After | K9: 0.01 | L9: 0 | Z9: 7 | AA9: 0.09605593362
B10: Unwinding Priority | G10: Time-Based | I10: 2 Years After | K10: 0.01 | L10: 0 | Z10: 8 | AA10: 0.09052196272
B11: Min. Mos. Enrollment to Disenroll (Future) | G11: 12 | I11: Thereafter | K11: 0.01 | L11: 0 | Z11: 9 | AA11: 0.07630858477
B12: Months Lag for Churn | G12: 6 | Z12: 10 | AA12: 0.07603140936
B13: Simulation +/- Months Lag for Churn | G13: 4 | H13: Expanded? | I13: =IF(ISBLANK(INDEX(Lookups!C:C,MATCH(G7,Lookups!A:A,0),1)),"No","Yes; on "&TEXT(INDEX(Lookups!C:C,MATCH(G7,Lookups!A:A,0),1),"m/d/yyyy")) -> Yes; on expn_dt | Z13: 11 | AA13: 0.07517208142
B14: Unwinding Distribution | G14: Custom | Z14: 12 | AA14: 0.07906006182
B15: Scenario Testing | G15: 1 | Z15: 13 | AA15: 0.0615264308
Z16: 14 | AA16: 0.04671141908
Z17: 15 | AA17: 0.02768963904
B19: INPUT #5: Population Selection | L19: INPUT #6: Unwinding and Churn Specifications
B20: # | C20: Default | G20: Override | H20: Used | I20: Agg. | L20: Population | O20: PHE Growth | P20: Priority | Q20: % Lost Cov. | R20: Sim +/- | S20: Terminations | T20: % Churn (UNW) | U20: % Churn (Post)
B21: Population 1 | C21: CHIP | H21: =IF($C$30="No", IF(C21="","",C21), IF($C$30="Yes", IF(G21="","",G21), "error")) -> CHIP | I21: 1 | L21: =H21 -> CHIP | O21: =(1+SUMIFS(MAIN!CZ$4:DJ$4,MAIN!CZ$13:DJ$13,K33))^(MAIN!CY$4/12)-1 -> 0.03060360317 | P21: 6 | Q21: 0.06375 | R21: 0 | S21: =SUMIFS(MAIN!$AG$9:$AO$9,MAIN!$AG$13:$AO$13,L21) -> 450016.2324 | T21: =U21+0.05 -> 0.5114624506 | U21: =467/1012 -> 0.4614624506
B22: Population 2 | C22: Children | H22: Children | I22: 1 | L22: Children | O22: =(1+SUMIFS(MAIN!CZ$4:DJ$4,MAIN!CZ$13:DJ$13,K34))^(MAIN!CY$4/12)-1 -> 0.3398280549 | P22: 5 | Q22: 0.235 | R22: 0.1 | S22: =SUMIFS(MAIN!$AG$9:$AO$9,MAIN!$AG$13:$AO$13,L22) -> 7915797.809 | T22: =U22+0.2 -> 0.6372469636 | U22: =2376/5434 -> 0.4372469636
B23: Population 3 | C23: Expansion | H23: Expansion | I23: 1 | L23: Expansion | O23: =(1+SUMIFS(MAIN!CZ$4:DJ$4,MAIN!CZ$13:DJ$13,K35))^(MAIN!CY$4/12)-1 -> 0.4211535642 | P23: 3 | Q23: 0.3 | R23: 0.1 | S23: =SUMIFS(MAIN!$AG$9:$AO$9,MAIN!$AG$13:$AO$13,L23) -> 5939025.899 | T23: =U23+0.2 -> 0.5244592346 | U23: =2340/7212 -> 0.3244592346
B24: Population 4 | C24: Adult | H24: Adult | I24: 1 | L24: Adult | O24: =(1+SUMIFS(MAIN!CZ$4:DJ$4,MAIN!CZ$13:DJ$13,K36))^(MAIN!CY$4/12)-1 -> 0.3966198777 | P24: 4 | Q24: 0.28875 | R24: 0.1 | S24: =SUMIFS(MAIN!$AG$9:$AO$9,MAIN!$AG$13:$AO$13,L24) -> 4286027.418 | T24: =U24+0.2 -> 0.5244592346 | U24: =2340/7212 -> 0.3244592346
B25: Population 5 | C25: Aged | H25: Aged | I25: 0 | L25: Aged | O25: =(1+SUMIFS(MAIN!CZ$4:DJ$4,MAIN!CZ$13:DJ$13,K37))^(MAIN!CY$4/12)-1 -> 0.2587897055 | P25: 7 | Q25: 0.06375 | R25: 0.05 | S25: =SUMIFS(MAIN!$AG$9:$AO$9,MAIN!$AG$13:$AO$13,L25) -> 518499.2136 | T25: =U25+0.05 -> 0.2592426187 | U25: =163/779 -> 0.2092426187
B26: Population 6 | C26: Disabled | H26: Disabled | I26: 0 | L26: Disabled | O26: =(1+SUMIFS(MAIN!CZ$4:DJ$4,MAIN!CZ$13:DJ$13,K38))^(MAIN!CY$4/12)-1 -> 0.2151618866 | P26: 8 | Q26: 0.06375 | R26: 0.05 | S26: =SUMIFS(MAIN!$AG$9:$AO$9,MAIN!$AG$13:$AO$13,L26) -> 630719.1036 | T26: =U26+0.05 -> 0.3964566929 | U26: =(180+40)/(543+92) -> 0.3464566929
B27: Population 7 | C27: COVID New | H27: COVID New | I27: 1 | L27: COVID New | O27: =(1+SUMIFS(MAIN!CZ$4:DJ$4,MAIN!CZ$13:DJ$13,K39))^(MAIN!CY$4/12)-1 -> 0 | P27: 1 | Q27: 1 | R27: 0 | S27: =SUMIFS(MAIN!$AG$9:$AO$9,MAIN!$AG$13:$AO$13,L27) -> 197663.9971 | T27: 0 | U27: 0
B28: Population 8 | C28: Unknown | H28: Unknown | I28: 1 | L28: Unknown | O28: =(1+SUMIFS(MAIN!CZ$4:DJ$4,MAIN!CZ$13:DJ$13,K40))^(MAIN!CY$4/12)-1 -> -0.619242718 | P28: 2 | Q28: 1 | R28: 0 | S28: =SUMIFS(MAIN!$AG$9:$AO$9,MAIN!$AG$13:$AO$13,L28) -> 2421.997071 | T28: 0 | U28: 0
B29: Population 9 | I29: 0 | O29: =(1+SUMIFS(MAIN!CZ$4:DJ$4,MAIN!CZ$13:DJ$13,K41))^(MAIN!CY$4/12)-1 -> 0 | P29: 9 | Q29: 0 | R29: 0 | S29: =SUMIFS(MAIN!$AG$9:$AO$9,MAIN!$AG$13:$AO$13,L29) -> 0 | T29: 0 | U29: 0
B30: Use Override? | C30: No | D30: Aggregate Group Name: | H30: Non-ABD
N31: INPUT #7: Churn Back Distribution
K32: Population | N32: =$H$21 -> CHIP | O32: =$H$22 -> Children | P32: =$H$23 -> Expansion | Q32: =$H$24 -> Adult | R32: =$H$25 -> Aged | S32: =$H$26 -> Disabled | T32: =$H$27 -> COVID New | U32: =$H$28 -> Unknown | V32: =$H$29 -> 
K33: =H21 -> CHIP | N33: 0.8348794063 | O33: 0.1391465677 | P33: 0.02599814299 | Q33: 0 | R33: 0 | S33: 0 | T33: 0 | U33: 0 | V33: 0
K34: Children | N34: 0.05 | O34: 0.894 | P34: 0.05555555556 | Q34: 0 | R34: 0 | S34: 0 | T34: 0 | U34: 0 | V34: 0
K35: Expansion | N35: 0 | O35: 0 | P35: 0.9746608696 | Q35: 0 | R35: 0.02173913043 | S35: 0.0036 | T35: 0 | U35: 0 | V35: 0
K36: Adult | N36: 0 | O36: 0 | P36: 0 | Q36: 0.9746608696 | R36: 0.02173913043 | S36: 0.0036 | T36: 0 | U36: 0 | V36: 0
K37: Aged | N37: 0 | O37: 0 | P37: 0 | Q37: 0 | R37: 1 | S37: 0 | T37: 0 | U37: 0 | V37: 0
K38: Disabled | N38: 0 | O38: 0 | P38: 0 | Q38: 0 | R38: 0.04347826087 | S38: 0.9565217391 | T38: 0 | U38: 0 | V38: 0
K39: COVID New | N39: 0 | O39: 0 | P39: 0 | Q39: 0 | R39: 0 | S39: 0 | T39: 1 | U39: 0 | V39: 0
K40: Unknown | N40: 0 | O40: 0 | P40: 0 | Q40: 0 | R40: 0 | S40: 0 | T40: 0 | U40: 1 | V40: 0
N41: 0 | O41: 0 | P41: 0 | Q41: 0 | R41: 0 | S41: 0 | T41: 0 | U41: 0 | V41: 1
K43: INPUT #8: Monthly Termination Rates as Percentage of Total Membership
K44: Pre-PHE | L44: Pre-UNW | N44: =$H$21 -> CHIP | O44: =$H$22 -> Children | P44: =$H$23 -> Expansion | Q44: =$H$24 -> Adult | R44: =$H$25 -> Aged | S44: =$H$26 -> Disabled | T44: =$H$27 -> COVID New | U44: =$H$28 -> Unknown | V44: =$H$29 -> 
K45: =966/(7317*8) -> 0.01650266503 | L45: =194/(8*8279) -> 0.002929097717 | N45: 0.0283 | O45: 0.015 | P45: 0.0233 | Q45: 0.0233 | R45: 0.004 | S45: 0.0067 | T45: 0 | U45: 0 | V45: 0
L47: INPUT #9: Acuity Pre-Unwinding
L48: Duration | N48: =$H$21 -> CHIP | O48: =$H$22 -> Children | P48: =$H$23 -> Expansion | Q48: =$H$24 -> Adult | R48: =$H$25 -> Aged | S48: =$H$26 -> Disabled | T48: =$H$27 -> COVID New | U48: =$H$28 -> Unknown | V48: =$H$29 -> 
L49: 1 | N49: 1.039 | O49: 1.089 | P49: 1.559 | Q49: 1.753 | R49: 1 | S49: 1 | T49: 1 | U49: 1 | V49: 1
L50: 2 | N50: 1.077 | O50: 1.076 | P50: 1.112 | Q50: 1.266 | R50: 1 | S50: 1 | T50: 1 | U50: 1 | V50: 1
L51: 3 | N51: 1.069 | O51: 1.068 | P51: 1.098 | Q51: 1.182 | R51: 1 | S51: 1 | T51: 1 | U51: 1 | V51: 1
L52: 4 | N52: 0.969 | O52: 0.968 | P52: 1.127 | Q52: 1.051 | R52: 1 | S52: 1 | T52: 1 | U52: 1 | V52: 1
L53: 5 | N53: 1.147 | O53: 1.145 | P53: 0.977 | Q53: 1.037 | R53: 1 | S53: 1 | T53: 1 | U53: 1 | V53: 1
L54: 6 | N54: 1.024 | O54: 1.023 | P54: 1.057 | Q54: 1.061 | R54: 1 | S54: 1 | T54: 1 | U54: 1 | V54: 1
L55: 7 | N55: 0.936 | O55: 0.935 | P55: 1.005 | Q55: 1.039 | R55: 1 | S55: 1 | T55: 1 | U55: 1 | V55: 1
L56: 8 | N56: 0.956 | O56: 0.955 | P56: 1.019 | Q56: 1.017 | R56: 1 | S56: 1 | T56: 1 | U56: 1 | V56: 1
L57: 9 | N57: 0.986 | O57: 0.984 | P57: 0.974 | Q57: 0.996 | R57: 1 | S57: 1 | T57: 1 | U57: 1 | V57: 1
L58: 10 | N58: 0.994 | O58: 0.992 | P58: 0.969 | Q58: 0.981 | R58: 1 | S58: 1 | T58: 1 | U58: 1 | V58: 1
L59: 11 | N59: 0.996 | O59: 0.994 | P59: 0.971 | Q59: 0.96 | R59: 1 | S59: 1 | T59: 1 | U59: 1 | V59: 1
L60: 12 | N60: 0.996 | O60: 0.994 | P60: 0.971 | Q60: 0.96 | R60: 1 | S60: 1 | T60: 1 | U60: 1 | V60: 1
L61: +1 Year | N61: 0.996 | O61: 0.994 | P61: 0.971 | Q61: 0.96 | R61: 1 | S61: 1 | T61: 1 | U61: 1 | V61: 1
L63: INPUT #10: Acuity Post-Unwinding
L64: Duration | N64: =$H$21 -> CHIP | O64: =$H$22 -> Children | P64: =$H$23 -> Expansion | Q64: =$H$24 -> Adult | R64: =$H$25 -> Aged | S64: =$H$26 -> Disabled | T64: =$H$27 -> COVID New | U64: =$H$28 -> Unknown | V64: =$H$29 -> 
L65: 1 | N65: 1.013294218 | O65: 1.013294218 | P65: 1.463791637 | Q65: 1.562852078 | R65: 1 | S65: 1 | T65: 1 | U65: 0 | V65: 8.568995395e-13
L66: 2 | N66: 1.049991519 | O66: 1.049991519 | P66: 1.043090504 | Q66: 1.128892474 | R66: 1 | S66: 1 | T66: 1 | U66: 0 | V66: 8.568995395e-13
L67: 3 | N67: 1.042579051 | O67: 1.042579051 | P67: 1.029890082 | Q67: 1.054149738 | R67: 1 | S67: 1 | T67: 1 | U67: 0 | V67: 8.568995395e-13
L68: 4 | N68: 0.9451411921 | O68: 0.9451411921 | P68: 1.05785015 | Q68: 0.9374903544 | R68: 1 | S68: 1 | T68: 1 | U68: 0 | V68: 8.568995395e-13
L69: 5 | N69: 1.117815904 | O69: 1.117815904 | P69: 0.9159981599 | Q69: 0.9249815897 | R69: 1 | S69: 1 | T69: 1 | U69: 0 | V69: 8.568995395e-13
L70: 6 | N70: 0.9979641611 | O70: 0.9979641611 | P70: 0.9922087885 | Q70: 0.9463159413 | R70: 1 | S70: 1 | T70: 1 | U70: 0 | V70: 8.568995395e-13
L71: 7 | N71: 0.9126601613 | O71: 0.9126601613 | P71: 0.9427901815 | Q71: 0.927392178 | R71: 1 | S71: 1 | T71: 1 | U71: 0 | V71: 8.568995395e-13
L72: 8 | N72: 0.9324058374 | O72: 0.9324058374 | P72: 0.9565029042 | Q72: 0.9071673024 | R72: 1 | S72: 1 | T72: 1 | U72: 0 | V72: 8.568995395e-13
L73: 9 | N73: 0.9613597004 | O73: 0.9613597004 | P73: 0.914750079 | Q73: 0.8887049107 | R73: 1 | S73: 1 | T73: 1 | U73: 0 | V73: 8.568995395e-13
L74: 10 | N74: 0.9692023994 | O74: 0.9692023994 | P74: 0.9094784022 | Q74: 0.8753220435 | R74: 1 | S74: 1 | T74: 1 | U74: 0 | V74: 8.568995395e-13
L75: 11 | N75: 0.9707239707 | O75: 0.9707239707 | P75: 0.9113542374 | Q75: 0.855841945 | R75: 1 | S75: 1 | T75: 1 | U75: 0 | V75: 8.568995395e-13
L76: 12 | N76: 0.9707239707 | O76: 0.9707239707 | P76: 0.9113542374 | Q76: 0.855841945 | R76: 1 | S76: 1 | T76: 1 | U76: 0 | V76: 8.568995395e-13
L77: +1 Year | N77: 0.9997016995 | O77: 0.9990691849 | P77: 0.9918790334 | Q77: 0.9964296042 | R77: 1 | S77: 1 | T77: 1 | U77: 0 | V77: 1
L78: Sim(1+/-) | N78: 0 | O78: 0 | P78: 0 | Q78: 0 | R78: 0 | S78: 0 | T78: 0 | U78: 0 | V78: 0
L80: Acuity to Solve for Zero: | N80: =MAIN!DK5 -> 0 | O80: =MAIN!DL5 -> 0 | P80: =MAIN!DM5 -> -0.0006528485426 | Q80: =MAIN!DN5 -> 0 | R80: =MAIN!DO5 -> 0 | S80: =MAIN!DP5 -> 0 | T80: =MAIN!DQ5 -> 0 | U80: =MAIN!DR5 -> 0 | V80: =MAIN!DS5 -> 0
N83: =N77 -> 0.9997016995 | O83: =O77 -> 0.9990691849 | P83: 0.9918790334 | Q83: 0.9964296042 | R83: =_xlfn.FORECAST.LINEAR(13,R65:R76,L65:L76) -> 1 | S83: 1 | T83: 1 | U83: 0 | V83: 1
N84: =1+N80 -> 1 | O84: 1 | P84: 0.9993471515 | Q84: 1 | R84: 1 | S84: 1 | T84: 1 | U84: 1 | V84: 1
N85: =N84^(($T$4-$T$3)/365.25) -> 1 | O85: 1 | P85: 0.9971219169 | Q85: 1 | R85: 1 | S85: 1 | T85: 1 | U85: 1 | V85: 1
N86: =IF(N83=0,1,N83)/N85 -> 0.9997016995 | O86: 0.9990691849 | P86: 0.9947419835 | Q86: 0.9964296042 | R86: 1 | S86: 1 | T86: 1 | U86: 1 | V86: 1
L88: Duration | N88: Population 1 | O88: Population 2 | P88: Population 3 | Q88: Population 4 | R88: Population 5 | S88: Population 6 | T88: Population 7 | U88: Population 8 | V88: Population 9
L89: 1 | N89: =OFFSET(INDIRECT("'"&N$88&"'!$CE$3"),0,ROW()-ROW(N$88)-1,1,1) -> 1.013294218 | O89: 1.013294218 | P89: 1.463791637 | Q89: 1.562852078 | R89: 1 | S89: 1 | T89: 1 | U89: 0 | V89: 8.568995395e-13
L90: 2 | N90: 1.049991519 | O90: 1.049991519 | P90: 1.043090504 | Q90: 1.128892474 | R90: 1 | S90: 1 | T90: 1 | U90: 0 | V90: 8.568995395e-13
L91: 3 | N91: 1.042579051 | O91: 1.042579051 | P91: 1.029890082 | Q91: 1.054149738 | R91: 1 | S91: 1 | T91: 1 | U91: 0 | V91: 8.568995395e-13
L92: 4 | N92: 0.9451411921 | O92: 0.9451411921 | P92: 1.05785015 | Q92: 0.9374903544 | R92: 1 | S92: 1 | T92: 1 | U92: 0 | V92: 8.568995395e-13
L93: 5 | N93: 1.117815904 | O93: 1.117815904 | P93: 0.9159981599 | Q93: 0.9249815897 | R93: 1 | S93: 1 | T93: 1 | U93: 0 | V93: 8.568995395e-13
L94: 6 | N94: 0.9979641611 | O94: 0.9979641611 | P94: 0.9922087885 | Q94: 0.9463159413 | R94: 1 | S94: 1 | T94: 1 | U94: 0 | V94: 8.568995395e-13
L95: 7 | N95: 0.9126601613 | O95: 0.9126601613 | P95: 0.9427901815 | Q95: 0.927392178 | R95: 1 | S95: 1 | T95: 1 | U95: 0 | V95: 8.568995395e-13
L96: 8 | N96: 0.9324058374 | O96: 0.9324058374 | P96: 0.9565029042 | Q96: 0.9071673024 | R96: 1 | S96: 1 | T96: 1 | U96: 0 | V96: 8.568995395e-13
L97: 9 | N97: 0.9613597004 | O97: 0.9613597004 | P97: 0.914750079 | Q97: 0.8887049107 | R97: 1 | S97: 1 | T97: 1 | U97: 0 | V97: 8.568995395e-13
L98: 10 | N98: 0.9692023994 | O98: 0.9692023994 | P98: 0.9094784022 | Q98: 0.8753220435 | R98: 1 | S98: 1 | T98: 1 | U98: 0 | V98: 8.568995395e-13
L99: 11 | N99: 0.9707239707 | O99: 0.9707239707 | P99: 0.9113542374 | Q99: 0.855841945 | R99: 1 | S99: 1 | T99: 1 | U99: 0 | V99: 8.568995395e-13
L100: 12 | N100: 0.9707239707 | O100: 0.9707239707 | P100: 0.9113542374 | Q100: 0.855841945 | R100: 1 | S100: 1 | T100: 1 | U100: 0 | V100: 8.568995395e-13
L101: +1 Year | N101: 0.9997016995 | O101: 0.9990691849 | P101: 0.9951747534 | Q101: 0.9964296042 | R101: 1 | S101: 1 | T101: 1 | U101: 0 | V101: 1

Sheet OVERRIDE
A1: State: | B1: =INPUTS!G7 -> *
A2: Unwinding: | B2: =INPUTS!G8 -> 2023-04-01
B4: 2019 PMPM
D6: Monthly Enrollment Override | N6: CMS Enrollment Data
B7: Duration | D7: =INPUTS!H21 -> CHIP | E7: =INPUTS!H22 -> Children | F7: =INPUTS!H23 -> Expansion | G7: =INPUTS!H24 -> Adult | H7: =INPUTS!H25 -> Aged | I7: =INPUTS!H26 -> Disabled | J7: =INPUTS!H27 -> COVID New | K7: =INPUTS!H28 -> Unknown | L7: =INPUTS!H29 ->  | N7: CHIP | O7: Children | P7: Adult expansion group | Q7: Adult | R7: Aged | S7: Persons with disabilities | T7: COVID newly-eligible | U7: Unknown
B8: 2023-12-01 | N8: =IF($B8<EDATE($B$2,-1),SUMIFS(CohortBreakout!M:M,CohortBreakout!$B:$B,$B8,CohortBreakout!$A:$A,$B$1),0) -> 0 | O8: =IF($B8<EDATE($B$2,-1),SUMIFS(CohortBreakout!N:N,CohortBreakout!$B:$B,$B8,CohortBreakout!$A:$A,$B$1),0) -> 0 | P8: =IF($B8<EDATE($B$2,-1),SUMIFS(CohortBreakout!O:O,CohortBreakout!$B:$B,$B8,CohortBreakout!$A:$A,$B$1),0) -> 0 | Q8: =IF($B8<EDATE($B$2,-1),SUMIFS(CohortBreakout!P:P,CohortBreakout!$B:$B,$B8,CohortBreakout!$A:$A,$B$1),0) -> 0 | R8: =IF($B8<EDATE($B$2,-1),SUMIFS(CohortBreakout!Q:Q,CohortBreakout!$B:$B,$B8,CohortBreakout!$A:$A,$B$1),0) -> 0 | S8: =IF($B8<EDATE($B$2,-1),SUMIFS(CohortBreakout!R:R,CohortBreakout!$B:$B,$B8,CohortBreakout!$A:$A,$B$1),0) -> 0 | T8: =IF($B8<EDATE($B$2,-1),SUMIFS(CohortBreakout!S:S,CohortBreakout!$B:$B,$B8,CohortBreakout!$A:$A,$B$1),0) -> 0 | U8: =IF($B8<EDATE($B$2,-1),SUMIFS(CohortBreakout!T:T,CohortBreakout!$B:$B,$B8,CohortBreakout!$A:$A,$B$1),0) -> 0 | V8: =IF($B8<EDATE($B$2,-1),SUMIFS(CohortBreakout!U:U,CohortBreakout!$B:$B,$B8,CohortBreakout!$A:$A,$B$1),0) -> 0
B9: =EDATE(B8,-1) -> 2023-11-01 | N9: =IF($B9<EDATE($B$2,-1),SUMIFS(CohortBreakout!M:M,CohortBreakout!$B:$B,$B9,CohortBreakout!$A:$A,$B$1),0) -> 0 | O9: =IF($B9<EDATE($B$2,-1),SUMIFS(CohortBreakout!N:N,CohortBreakout!$B:$B,$B9,CohortBreakout!$A:$A,$B$1),0) -> 0 | P9: =IF($B9<EDATE($B$2,-1),SUMIFS(CohortBreakout!O:O,CohortBreakout!$B:$B,$B9,CohortBreakout!$A:$A,$B$1),0) -> 0 | Q9: =IF($B9<EDATE($B$2,-1),SUMIFS(CohortBreakout!P:P,CohortBreakout!$B:$B,$B9,CohortBreakout!$A:$A,$B$1),0) -> 0 | R9: =IF($B9<EDATE($B$2,-1),SUMIFS(CohortBreakout!Q:Q,CohortBreakout!$B:$B,$B9,CohortBreakout!$A:$A,$B$1),0) -> 0 | S9: =IF($B9<EDATE($B$2,-1),SUMIFS(CohortBreakout!R:R,CohortBreakout!$B:$B,$B9,CohortBreakout!$A:$A,$B$1),0) -> 0 | T9: =IF($B9<EDATE($B$2,-1),SUMIFS(CohortBreakout!S:S,CohortBreakout!$B:$B,$B9,CohortBreakout!$A:$A,$B$1),0) -> 0 | U9: =IF($B9<EDATE($B$2,-1),SUMIFS(CohortBreakout!T:T,CohortBreakout!$B:$B,$B9,CohortBreakout!$A:$A,$B$1),0) -> 0 | V9: =IF($B9<EDATE($B$2,-1),SUMIFS(CohortBreakout!U:U,CohortBreakout!$B:$B,$B9,CohortBreakout!$A:$A,$B$1),0) -> 0
B10: =EDATE(B9,-1) -> 2023-10-01 | N10: =IF($B10<EDATE($B$2,-1),SUMIFS(CohortBreakout!M:M,CohortBreakout!$B:$B,$B10,CohortBreakout!$A:$A,$B$1),0) -> 0 | O10: =IF($B10<EDATE($B$2,-1),SUMIFS(CohortBreakout!N:N,CohortBreakout!$B:$B,$B10,CohortBreakout!$A:$A,$B$1),0) -> 0 | P10: =IF($B10<EDATE($B$2,-1),SUMIFS(CohortBreakout!O:O,CohortBreakout!$B:$B,$B10,CohortBreakout!$A:$A,$B$1),0) -> 0 | Q10: =IF($B10<EDATE($B$2,-1),SUMIFS(CohortBreakout!P:P,CohortBreakout!$B:$B,$B10,CohortBreakout!$A:$A,$B$1),0) -> 0 | R10: =IF($B10<EDATE($B$2,-1),SUMIFS(CohortBreakout!Q:Q,CohortBreakout!$B:$B,$B10,CohortBreakout!$A:$A,$B$1),0) -> 0 | S10: =IF($B10<EDATE($B$2,-1),SUMIFS(CohortBreakout!R:R,CohortBreakout!$B:$B,$B10,CohortBreakout!$A:$A,$B$1),0) -> 0 | T10: =IF($B10<EDATE($B$2,-1),SUMIFS(CohortBreakout!S:S,CohortBreakout!$B:$B,$B10,CohortBreakout!$A:$A,$B$1),0) -> 0 | U10: =IF($B10<EDATE($B$2,-1),SUMIFS(CohortBreakout!T:T,CohortBreakout!$B:$B,$B10,CohortBreakout!$A:$A,$B$1),0) -> 0 | V10: =IF($B10<EDATE($B$2,-1),SUMIFS(CohortBreakout!U:U,CohortBreakout!$B:$B,$B10,CohortBreakout!$A:$A,$B$1),0) -> 0
B11: 2023-09-01 | N11: =IF($B11<EDATE($B$2,-1),SUMIFS(CohortBreakout!M:M,CohortBreakout!$B:$B,$B11,CohortBreakout!$A:$A,$B$1),0) -> 0 | O11: =IF($B11<EDATE($B$2,-1),SUMIFS(CohortBreakout!N:N,CohortBreakout!$B:$B,$B11,CohortBreakout!$A:$A,$B$1),0) -> 0 | P11: =IF($B11<EDATE($B$2,-1),SUMIFS(CohortBreakout!O:O,CohortBreakout!$B:$B,$B11,CohortBreakout!$A:$A,$B$1),0) -> 0 | Q11: =IF($B11<EDATE($B$2,-1),SUMIFS(CohortBreakout!P:P,CohortBreakout!$B:$B,$B11,CohortBreakout!$A:$A,$B$1),0) -> 0 | R11: =IF($B11<EDATE($B$2,-1),SUMIFS(CohortBreakout!Q:Q,CohortBreakout!$B:$B,$B11,CohortBreakout!$A:$A,$B$1),0) -> 0 | S11: =IF($B11<EDATE($B$2,-1),SUMIFS(CohortBreakout!R:R,CohortBreakout!$B:$B,$B11,CohortBreakout!$A:$A,$B$1),0) -> 0 | T11: =IF($B11<EDATE($B$2,-1),SUMIFS(CohortBreakout!S:S,CohortBreakout!$B:$B,$B11,CohortBreakout!$A:$A,$B$1),0) -> 0 | U11: =IF($B11<EDATE($B$2,-1),SUMIFS(CohortBreakout!T:T,CohortBreakout!$B:$B,$B11,CohortBreakout!$A:$A,$B$1),0) -> 0 | V11: =IF($B11<EDATE($B$2,-1),SUMIFS(CohortBreakout!U:U,CohortBreakout!$B:$B,$B11,CohortBreakout!$A:$A,$B$1),0) -> 0
B12: 2023-08-01 | N12: =IF($B12<EDATE($B$2,-1),SUMIFS(CohortBreakout!M:M,CohortBreakout!$B:$B,$B12,CohortBreakout!$A:$A,$B$1),0) -> 0 | O12: =IF($B12<EDATE($B$2,-1),SUMIFS(CohortBreakout!N:N,CohortBreakout!$B:$B,$B12,CohortBreakout!$A:$A,$B$1),0) -> 0 | P12: =IF($B12<EDATE($B$2,-1),SUMIFS(CohortBreakout!O:O,CohortBreakout!$B:$B,$B12,CohortBreakout!$A:$A,$B$1),0) -> 0 | Q12: =IF($B12<EDATE($B$2,-1),SUMIFS(CohortBreakout!P:P,CohortBreakout!$B:$B,$B12,CohortBreakout!$A:$A,$B$1),0) -> 0 | R12: =IF($B12<EDATE($B$2,-1),SUMIFS(CohortBreakout!Q:Q,CohortBreakout!$B:$B,$B12,CohortBreakout!$A:$A,$B$1),0) -> 0 | S12: =IF($B12<EDATE($B$2,-1),SUMIFS(CohortBreakout!R:R,CohortBreakout!$B:$B,$B12,CohortBreakout!$A:$A,$B$1),0) -> 0 | T12: =IF($B12<EDATE($B$2,-1),SUMIFS(CohortBreakout!S:S,CohortBreakout!$B:$B,$B12,CohortBreakout!$A:$A,$B$1),0) -> 0 | U12: =IF($B12<EDATE($B$2,-1),SUMIFS(CohortBreakout!T:T,CohortBreakout!$B:$B,$B12,CohortBreakout!$A:$A,$B$1),0) -> 0 | V12: =IF($B12<EDATE($B$2,-1),SUMIFS(CohortBreakout!U:U,CohortBreakout!$B:$B,$B12,CohortBreakout!$A:$A,$B$1),0) -> 0
B13: 2023-07-01 | N13: =IF($B13<EDATE($B$2,-1),SUMIFS(CohortBreakout!M:M,CohortBreakout!$B:$B,$B13,CohortBreakout!$A:$A,$B$1),0) -> 0 | O13: =IF($B13<EDATE($B$2,-1),SUMIFS(CohortBreakout!N:N,CohortBreakout!$B:$B,$B13,CohortBreakout!$A:$A,$B$1),0) -> 0 | P13: =IF($B13<EDATE($B$2,-1),SUMIFS(CohortBreakout!O:O,CohortBreakout!$B:$B,$B13,CohortBreakout!$A:$A,$B$1),0) -> 0 | Q13: =IF($B13<EDATE($B$2,-1),SUMIFS(CohortBreakout!P:P,CohortBreakout!$B:$B,$B13,CohortBreakout!$A:$A,$B$1),0) -> 0 | R13: =IF($B13<EDATE($B$2,-1),SUMIFS(CohortBreakout!Q:Q,CohortBreakout!$B:$B,$B13,CohortBreakout!$A:$A,$B$1),0) -> 0 | S13: =IF($B13<EDATE($B$2,-1),SUMIFS(CohortBreakout!R:R,CohortBreakout!$B:$B,$B13,CohortBreakout!$A:$A,$B$1),0) -> 0 | T13: =IF($B13<EDATE($B$2,-1),SUMIFS(CohortBreakout!S:S,CohortBreakout!$B:$B,$B13,CohortBreakout!$A:$A,$B$1),0) -> 0 | U13: =IF($B13<EDATE($B$2,-1),SUMIFS(CohortBreakout!T:T,CohortBreakout!$B:$B,$B13,CohortBreakout!$A:$A,$B$1),0) -> 0 | V13: =IF($B13<EDATE($B$2,-1),SUMIFS(CohortBreakout!U:U,CohortBreakout!$B:$B,$B13,CohortBreakout!$A:$A,$B$1),0) -> 0
B14: 2023-06-01 | N14: =IF($B14<EDATE($B$2,-1),SUMIFS(CohortBreakout!M:M,CohortBreakout!$B:$B,$B14,CohortBreakout!$A:$A,$B$1),0) -> 0 | O14: =IF($B14<EDATE($B$2,-1),SUMIFS(CohortBreakout!N:N,CohortBreakout!$B:$B,$B14,CohortBreakout!$A:$A,$B$1),0) -> 0 | P14: =IF($B14<EDATE($B$2,-1),SUMIFS(CohortBreakout!O:O,CohortBreakout!$B:$B,$B14,CohortBreakout!$A:$A,$B$1),0) -> 0 | Q14: =IF($B14<EDATE($B$2,-1),SUMIFS(CohortBreakout!P:P,CohortBreakout!$B:$B,$B14,CohortBreakout!$A:$A,$B$1),0) -> 0 | R14: =IF($B14<EDATE($B$2,-1),SUMIFS(CohortBreakout!Q:Q,CohortBreakout!$B:$B,$B14,CohortBreakout!$A:$A,$B$1),0) -> 0 | S14: =IF($B14<EDATE($B$2,-1),SUMIFS(CohortBreakout!R:R,CohortBreakout!$B:$B,$B14,CohortBreakout!$A:$A,$B$1),0) -> 0 | T14: =IF($B14<EDATE($B$2,-1),SUMIFS(CohortBreakout!S:S,CohortBreakout!$B:$B,$B14,CohortBreakout!$A:$A,$B$1),0) -> 0 | U14: =IF($B14<EDATE($B$2,-1),SUMIFS(CohortBreakout!T:T,CohortBreakout!$B:$B,$B14,CohortBreakout!$A:$A,$B$1),0) -> 0 | V14: =IF($B14<EDATE($B$2,-1),SUMIFS(CohortBreakout!U:U,CohortBreakout!$B:$B,$B14,CohortBreakout!$A:$A,$B$1),0) -> 0
B15: 2023-05-01 | N15: =IF($B15<EDATE($B$2,-1),SUMIFS(CohortBreakout!M:M,CohortBreakout!$B:$B,$B15,CohortBreakout!$A:$A,$B$1),0) -> 0 | O15: =IF($B15<EDATE($B$2,-1),SUMIFS(CohortBreakout!N:N,CohortBreakout!$B:$B,$B15,CohortBreakout!$A:$A,$B$1),0) -> 0 | P15: =IF($B15<EDATE($B$2,-1),SUMIFS(CohortBreakout!O:O,CohortBreakout!$B:$B,$B15,CohortBreakout!$A:$A,$B$1),0) -> 0 | Q15: =IF($B15<EDATE($B$2,-1),SUMIFS(CohortBreakout!P:P,CohortBreakout!$B:$B,$B15,CohortBreakout!$A:$A,$B$1),0) -> 0 | R15: =IF($B15<EDATE($B$2,-1),SUMIFS(CohortBreakout!Q:Q,CohortBreakout!$B:$B,$B15,CohortBreakout!$A:$A,$B$1),0) -> 0 | S15: =IF($B15<EDATE($B$2,-1),SUMIFS(CohortBreakout!R:R,CohortBreakout!$B:$B,$B15,CohortBreakout!$A:$A,$B$1),0) -> 0 | T15: =IF($B15<EDATE($B$2,-1),SUMIFS(CohortBreakout!S:S,CohortBreakout!$B:$B,$B15,CohortBreakout!$A:$A,$B$1),0) -> 0 | U15: =IF($B15<EDATE($B$2,-1),SUMIFS(CohortBreakout!T:T,CohortBreakout!$B:$B,$B15,CohortBreakout!$A:$A,$B$1),0) -> 0 | V15: =IF($B15<EDATE($B$2,-1),SUMIFS(CohortBreakout!U:U,CohortBreakout!$B:$B,$B15,CohortBreakout!$A:$A,$B$1),0) -> 0
B16: 2023-04-01 | N16: =IF($B16<EDATE($B$2,-1),SUMIFS(CohortBreakout!M:M,CohortBreakout!$B:$B,$B16,CohortBreakout!$A:$A,$B$1),0) -> 0 | O16: =IF($B16<EDATE($B$2,-1),SUMIFS(CohortBreakout!N:N,CohortBreakout!$B:$B,$B16,CohortBreakout!$A:$A,$B$1),0) -> 0 | P16: =IF($B16<EDATE($B$2,-1),SUMIFS(CohortBreakout!O:O,CohortBreakout!$B:$B,$B16,CohortBreakout!$A:$A,$B$1),0) -> 0 | Q16: =IF($B16<EDATE($B$2,-1),SUMIFS(CohortBreakout!P:P,CohortBreakout!$B:$B,$B16,CohortBreakout!$A:$A,$B$1),0) -> 0 | R16: =IF($B16<EDATE($B$2,-1),SUMIFS(CohortBreakout!Q:Q,CohortBreakout!$B:$B,$B16,CohortBreakout!$A:$A,$B$1),0) -> 0 | S16: =IF($B16<EDATE($B$2,-1),SUMIFS(CohortBreakout!R:R,CohortBreakout!$B:$B,$B16,CohortBreakout!$A:$A,$B$1),0) -> 0 | T16: =IF($B16<EDATE($B$2,-1),SUMIFS(CohortBreakout!S:S,CohortBreakout!$B:$B,$B16,CohortBreakout!$A:$A,$B$1),0) -> 0 | U16: =IF($B16<EDATE($B$2,-1),SUMIFS(CohortBreakout!T:T,CohortBreakout!$B:$B,$B16,CohortBreakout!$A:$A,$B$1),0) -> 0 | V16: =IF($B16<EDATE($B$2,-1),SUMIFS(CohortBreakout!U:U,CohortBreakout!$B:$B,$B16,CohortBreakout!$A:$A,$B$1),0) -> 0
B17: 2023-03-01 | N17: =IF($B17<EDATE($B$2,-1),SUMIFS(CohortBreakout!M:M,CohortBreakout!$B:$B,$B17,CohortBreakout!$A:$A,$B$1),0) -> 0 | O17: =IF($B17<EDATE($B$2,-1),SUMIFS(CohortBreakout!N:N,CohortBreakout!$B:$B,$B17,CohortBreakout!$A:$A,$B$1),0) -> 0 | P17: =IF($B17<EDATE($B$2,-1),SUMIFS(CohortBreakout!O:O,CohortBreakout!$B:$B,$B17,CohortBreakout!$A:$A,$B$1),0) -> 0 | Q17: =IF($B17<EDATE($B$2,-1),SUMIFS(CohortBreakout!P:P,CohortBreakout!$B:$B,$B17,CohortBreakout!$A:$A,$B$1),0) -> 0 | R17: =IF($B17<EDATE($B$2,-1),SUMIFS(CohortBreakout!Q:Q,CohortBreakout!$B:$B,$B17,CohortBreakout!$A:$A,$B$1),0) -> 0 | S17: =IF($B17<EDATE($B$2,-1),SUMIFS(CohortBreakout!R:R,CohortBreakout!$B:$B,$B17,CohortBreakout!$A:$A,$B$1),0) -> 0 | T17: =IF($B17<EDATE($B$2,-1),SUMIFS(CohortBreakout!S:S,CohortBreakout!$B:$B,$B17,CohortBreakout!$A:$A,$B$1),0) -> 0 | U17: =IF($B17<EDATE($B$2,-1),SUMIFS(CohortBreakout!T:T,CohortBreakout!$B:$B,$B17,CohortBreakout!$A:$A,$B$1),0) -> 0 | V17: =IF($B17<EDATE($B$2,-1),SUMIFS(CohortBreakout!U:U,CohortBreakout!$B:$B,$B17,CohortBreakout!$A:$A,$B$1),0) -> 0
B18: 2023-02-01 | N18: =IF($B18<EDATE($B$2,-1),SUMIFS(CohortBreakout!M:M,CohortBreakout!$B:$B,$B18,CohortBreakout!$A:$A,$B$1),0) -> 7059078.159 | O18: =IF($B18<EDATE($B$2,-1),SUMIFS(CohortBreakout!N:N,CohortBreakout!$B:$B,$B18,CohortBreakout!$A:$A,$B$1),0) -> 33684246 | P18: =IF($B18<EDATE($B$2,-1),SUMIFS(CohortBreakout!O:O,CohortBreakout!$B:$B,$B18,CohortBreakout!$A:$A,$B$1),0) -> 19796753 | Q18: =IF($B18<EDATE($B$2,-1),SUMIFS(CohortBreakout!P:P,CohortBreakout!$B:$B,$B18,CohortBreakout!$A:$A,$B$1),0) -> 14843385 | R18: =IF($B18<EDATE($B$2,-1),SUMIFS(CohortBreakout!Q:Q,CohortBreakout!$B:$B,$B18,CohortBreakout!$A:$A,$B$1),0) -> 8133321 | S18: =IF($B18<EDATE($B$2,-1),SUMIFS(CohortBreakout!R:R,CohortBreakout!$B:$B,$B18,CohortBreakout!$A:$A,$B$1),0) -> 9893633 | T18: =IF($B18<EDATE($B$2,-1),SUMIFS(CohortBreakout!S:S,CohortBreakout!$B:$B,$B18,CohortBreakout!$A:$A,$B$1),0) -> 197664 | U18: =IF($B18<EDATE($B$2,-1),SUMIFS(CohortBreakout!T:T,CohortBreakout!$B:$B,$B18,CohortBreakout!$A:$A,$B$1),0) -> 2422 | V18: =IF($B18<EDATE($B$2,-1),SUMIFS(CohortBreakout!U:U,CohortBreakout!$B:$B,$B18,CohortBreakout!$A:$A,$B$1),0) -> 0
B19: 2023-01-01 | N19: =IF($B19<EDATE($B$2,-1),SUMIFS(CohortBreakout!M:M,CohortBreakout!$B:$B,$B19,CohortBreakout!$A:$A,$B$1),0) -> 7092451 | O19: =IF($B19<EDATE($B$2,-1),SUMIFS(CohortBreakout!N:N,CohortBreakout!$B:$B,$B19,CohortBreakout!$A:$A,$B$1),0) -> 33428863 | P19: =IF($B19<EDATE($B$2,-1),SUMIFS(CohortBreakout!O:O,CohortBreakout!$B:$B,$B19,CohortBreakout!$A:$A,$B$1),0) -> 19653500 | Q19: =IF($B19<EDATE($B$2,-1),SUMIFS(CohortBreakout!P:P,CohortBreakout!$B:$B,$B19,CohortBreakout!$A:$A,$B$1),0) -> 14739313 | R19: =IF($B19<EDATE($B$2,-1),SUMIFS(CohortBreakout!Q:Q,CohortBreakout!$B:$B,$B19,CohortBreakout!$A:$A,$B$1),0) -> 8074712 | S19: =IF($B19<EDATE($B$2,-1),SUMIFS(CohortBreakout!R:R,CohortBreakout!$B:$B,$B19,CohortBreakout!$A:$A,$B$1),0) -> 9821179 | T19: =IF($B19<EDATE($B$2,-1),SUMIFS(CohortBreakout!S:S,CohortBreakout!$B:$B,$B19,CohortBreakout!$A:$A,$B$1),0) -> 195843 | U19: =IF($B19<EDATE($B$2,-1),SUMIFS(CohortBreakout!T:T,CohortBreakout!$B:$B,$B19,CohortBreakout!$A:$A,$B$1),0) -> 2388 | V19: =IF($B19<EDATE($B$2,-1),SUMIFS(CohortBreakout!U:U,CohortBreakout!$B:$B,$B19,CohortBreakout!$A:$A,$B$1),0) -> 0
B20: 2022-12-01 | N20: =IF($B20<EDATE($B$2,-1),SUMIFS(CohortBreakout!M:M,CohortBreakout!$B:$B,$B20,CohortBreakout!$A:$A,$B$1),0) -> 7082619 | O20: =IF($B20<EDATE($B$2,-1),SUMIFS(CohortBreakout!N:N,CohortBreakout!$B:$B,$B20,CohortBreakout!$A:$A,$B$1),0) -> 33259982 | P20: =IF($B20<EDATE($B$2,-1),SUMIFS(CohortBreakout!O:O,CohortBreakout!$B:$B,$B20,CohortBreakout!$A:$A,$B$1),0) -> 19590169 | Q20: =IF($B20<EDATE($B$2,-1),SUMIFS(CohortBreakout!P:P,CohortBreakout!$B:$B,$B20,CohortBreakout!$A:$A,$B$1),0) -> 14663604 | R20: =IF($B20<EDATE($B$2,-1),SUMIFS(CohortBreakout!Q:Q,CohortBreakout!$B:$B,$B20,CohortBreakout!$A:$A,$B$1),0) -> 8035359 | S20: =IF($B20<EDATE($B$2,-1),SUMIFS(CohortBreakout!R:R,CohortBreakout!$B:$B,$B20,CohortBreakout!$A:$A,$B$1),0) -> 9774779 | T20: =IF($B20<EDATE($B$2,-1),SUMIFS(CohortBreakout!S:S,CohortBreakout!$B:$B,$B20,CohortBreakout!$A:$A,$B$1),0) -> 195127 | U20: =IF($B20<EDATE($B$2,-1),SUMIFS(CohortBreakout!T:T,CohortBreakout!$B:$B,$B20,CohortBreakout!$A:$A,$B$1),0) -> 2387 | V20: =IF($B20<EDATE($B$2,-1),SUMIFS(CohortBreakout!U:U,CohortBreakout!$B:$B,$B20,CohortBreakout!$A:$A,$B$1),0) -> 0
B21: 2022-11-01 | N21: =IF($B21<EDATE($B$2,-1),SUMIFS(CohortBreakout!M:M,CohortBreakout!$B:$B,$B21,CohortBreakout!$A:$A,$B$1),0) -> 7084330 | O21: =IF($B21<EDATE($B$2,-1),SUMIFS(CohortBreakout!N:N,CohortBreakout!$B:$B,$B21,CohortBreakout!$A:$A,$B$1),0) -> 33057025 | P21: =IF($B21<EDATE($B$2,-1),SUMIFS(CohortBreakout!O:O,CohortBreakout!$B:$B,$B21,CohortBreakout!$A:$A,$B$1),0) -> 19477962 | Q21: =IF($B21<EDATE($B$2,-1),SUMIFS(CohortBreakout!P:P,CohortBreakout!$B:$B,$B21,CohortBreakout!$A:$A,$B$1),0) -> 14582249 | R21: =IF($B21<EDATE($B$2,-1),SUMIFS(CohortBreakout!Q:Q,CohortBreakout!$B:$B,$B21,CohortBreakout!$A:$A,$B$1),0) -> 7987770 | S21: =IF($B21<EDATE($B$2,-1),SUMIFS(CohortBreakout!R:R,CohortBreakout!$B:$B,$B21,CohortBreakout!$A:$A,$B$1),0) -> 9717799 | T21: =IF($B21<EDATE($B$2,-1),SUMIFS(CohortBreakout!S:S,CohortBreakout!$B:$B,$B21,CohortBreakout!$A:$A,$B$1),0) -> 194205 | U21: =IF($B21<EDATE($B$2,-1),SUMIFS(CohortBreakout!T:T,CohortBreakout!$B:$B,$B21,CohortBreakout!$A:$A,$B$1),0) -> 2364 | V21: =IF($B21<EDATE($B$2,-1),SUMIFS(CohortBreakout!U:U,CohortBreakout!$B:$B,$B21,CohortBreakout!$A:$A,$B$1),0) -> 0
B22: 2022-10-01 | N22: =IF($B22<EDATE($B$2,-1),SUMIFS(CohortBreakout!M:M,CohortBreakout!$B:$B,$B22,CohortBreakout!$A:$A,$B$1),0) -> 6982472 | O22: =IF($B22<EDATE($B$2,-1),SUMIFS(CohortBreakout!N:N,CohortBreakout!$B:$B,$B22,CohortBreakout!$A:$A,$B$1),0) -> 32884220 | P22: =IF($B22<EDATE($B$2,-1),SUMIFS(CohortBreakout!O:O,CohortBreakout!$B:$B,$B22,CohortBreakout!$A:$A,$B$1),0) -> 19436572 | Q22: =IF($B22<EDATE($B$2,-1),SUMIFS(CohortBreakout!P:P,CohortBreakout!$B:$B,$B22,CohortBreakout!$A:$A,$B$1),0) -> 14504291 | R22: =IF($B22<EDATE($B$2,-1),SUMIFS(CohortBreakout!Q:Q,CohortBreakout!$B:$B,$B22,CohortBreakout!$A:$A,$B$1),0) -> 7951561 | S22: =IF($B22<EDATE($B$2,-1),SUMIFS(CohortBreakout!R:R,CohortBreakout!$B:$B,$B22,CohortBreakout!$A:$A,$B$1),0) -> 9668397 | T22: =IF($B22<EDATE($B$2,-1),SUMIFS(CohortBreakout!S:S,CohortBreakout!$B:$B,$B22,CohortBreakout!$A:$A,$B$1),0) -> 193768 | U22: =IF($B22<EDATE($B$2,-1),SUMIFS(CohortBreakout!T:T,CohortBreakout!$B:$B,$B22,CohortBreakout!$A:$A,$B$1),0) -> 2344 | V22: =IF($B22<EDATE($B$2,-1),SUMIFS(CohortBreakout!U:U,CohortBreakout!$B:$B,$B22,CohortBreakout!$A:$A,$B$1),0) -> 0
B23: 2022-09-01 | N23: =IF($B23<EDATE($B$2,-1),SUMIFS(CohortBreakout!M:M,CohortBreakout!$B:$B,$B23,CohortBreakout!$A:$A,$B$1),0) -> 7030152 | O23: =IF($B23<EDATE($B$2,-1),SUMIFS(CohortBreakout!N:N,CohortBreakout!$B:$B,$B23,CohortBreakout!$A:$A,$B$1),0) -> 32659308 | P23: =IF($B23<EDATE($B$2,-1),SUMIFS(CohortBreakout!O:O,CohortBreakout!$B:$B,$B23,CohortBreakout!$A:$A,$B$1),0) -> 19353168 | Q23: =IF($B23<EDATE($B$2,-1),SUMIFS(CohortBreakout!P:P,CohortBreakout!$B:$B,$B23,CohortBreakout!$A:$A,$B$1),0) -> 14415369 | R23: =IF($B23<EDATE($B$2,-1),SUMIFS(CohortBreakout!Q:Q,CohortBreakout!$B:$B,$B23,CohortBreakout!$A:$A,$B$1),0) -> 7902724 | S23: =IF($B23<EDATE($B$2,-1),SUMIFS(CohortBreakout!R:R,CohortBreakout!$B:$B,$B23,CohortBreakout!$A:$A,$B$1),0) -> 9607072 | T23: =IF($B23<EDATE($B$2,-1),SUMIFS(CohortBreakout!S:S,CohortBreakout!$B:$B,$B23,CohortBreakout!$A:$A,$B$1),0) -> 192679 | U23: =IF($B23<EDATE($B$2,-1),SUMIFS(CohortBreakout!T:T,CohortBreakout!$B:$B,$B23,CohortBreakout!$A:$A,$B$1),0) -> 2328 | V23: =IF($B23<EDATE($B$2,-1),SUMIFS(CohortBreakout!U:U,CohortBreakout!$B:$B,$B23,CohortBreakout!$A:$A,$B$1),0) -> 0
B24: 2022-08-01 | N24: =IF($B24<EDATE($B$2,-1),SUMIFS(CohortBreakout!M:M,CohortBreakout!$B:$B,$B24,CohortBreakout!$A:$A,$B$1),0) -> 7011002 | O24: =IF($B24<EDATE($B$2,-1),SUMIFS(CohortBreakout!N:N,CohortBreakout!$B:$B,$B24,CohortBreakout!$A:$A,$B$1),0) -> 32423144 | P24: =IF($B24<EDATE($B$2,-1),SUMIFS(CohortBreakout!O:O,CohortBreakout!$B:$B,$B24,CohortBreakout!$A:$A,$B$1),0) -> 19258236 | Q24: =IF($B24<EDATE($B$2,-1),SUMIFS(CohortBreakout!P:P,CohortBreakout!$B:$B,$B24,CohortBreakout!$A:$A,$B$1),0) -> 14322867 | R24: =IF($B24<EDATE($B$2,-1),SUMIFS(CohortBreakout!Q:Q,CohortBreakout!$B:$B,$B24,CohortBreakout!$A:$A,$B$1),0) -> 7850888 | S24: =IF($B24<EDATE($B$2,-1),SUMIFS(CohortBreakout!R:R,CohortBreakout!$B:$B,$B24,CohortBreakout!$A:$A,$B$1),0) -> 9546397 | T24: =IF($B24<EDATE($B$2,-1),SUMIFS(CohortBreakout!S:S,CohortBreakout!$B:$B,$B24,CohortBreakout!$A:$A,$B$1),0) -> 191606 | U24: =IF($B24<EDATE($B$2,-1),SUMIFS(CohortBreakout!T:T,CohortBreakout!$B:$B,$B24,CohortBreakout!$A:$A,$B$1),0) -> 2310 | V24: =IF($B24<EDATE($B$2,-1),SUMIFS(CohortBreakout!U:U,CohortBreakout!$B:$B,$B24,CohortBreakout!$A:$A,$B$1),0) -> 0
B25: 2022-07-01 | N25: =IF($B25<EDATE($B$2,-1),SUMIFS(CohortBreakout!M:M,CohortBreakout!$B:$B,$B25,CohortBreakout!$A:$A,$B$1),0) -> 7066833 | O25: =IF($B25<EDATE($B$2,-1),SUMIFS(CohortBreakout!N:N,CohortBreakout!$B:$B,$B25,CohortBreakout!$A:$A,$B$1),0) -> 32184134 | P25: =IF($B25<EDATE($B$2,-1),SUMIFS(CohortBreakout!O:O,CohortBreakout!$B:$B,$B25,CohortBreakout!$A:$A,$B$1),0) -> 19102446 | Q25: =IF($B25<EDATE($B$2,-1),SUMIFS(CohortBreakout!P:P,CohortBreakout!$B:$B,$B25,CohortBreakout!$A:$A,$B$1),0) -> 14226683 | R25: =IF($B25<EDATE($B$2,-1),SUMIFS(CohortBreakout!Q:Q,CohortBreakout!$B:$B,$B25,CohortBreakout!$A:$A,$B$1),0) -> 7792811 | S25: =IF($B25<EDATE($B$2,-1),SUMIFS(CohortBreakout!R:R,CohortBreakout!$B:$B,$B25,CohortBreakout!$A:$A,$B$1),0) -> 9477958 | T25: =IF($B25<EDATE($B$2,-1),SUMIFS(CohortBreakout!S:S,CohortBreakout!$B:$B,$B25,CohortBreakout!$A:$A,$B$1),0) -> 189980 | U25: =IF($B25<EDATE($B$2,-1),SUMIFS(CohortBreakout!T:T,CohortBreakout!$B:$B,$B25,CohortBreakout!$A:$A,$B$1),0) -> 2292 | V25: =IF($B25<EDATE($B$2,-1),SUMIFS(CohortBreakout!U:U,CohortBreakout!$B:$B,$B25,CohortBreakout!$A:$A,$B$1),0) -> 0
B26: 2022-06-01 | N26: =IF($B26<EDATE($B$2,-1),SUMIFS(CohortBreakout!M:M,CohortBreakout!$B:$B,$B26,CohortBreakout!$A:$A,$B$1),0) -> 7066669 | O26: =IF($B26<EDATE($B$2,-1),SUMIFS(CohortBreakout!N:N,CohortBreakout!$B:$B,$B26,CohortBreakout!$A:$A,$B$1),0) -> 31973182 | P26: =IF($B26<EDATE($B$2,-1),SUMIFS(CohortBreakout!O:O,CohortBreakout!$B:$B,$B26,CohortBreakout!$A:$A,$B$1),0) -> 19004200 | Q26: =IF($B26<EDATE($B$2,-1),SUMIFS(CohortBreakout!P:P,CohortBreakout!$B:$B,$B26,CohortBreakout!$A:$A,$B$1),0) -> 14133725 | R26: =IF($B26<EDATE($B$2,-1),SUMIFS(CohortBreakout!Q:Q,CohortBreakout!$B:$B,$B26,CohortBreakout!$A:$A,$B$1),0) -> 7744494 | S26: =IF($B26<EDATE($B$2,-1),SUMIFS(CohortBreakout!R:R,CohortBreakout!$B:$B,$B26,CohortBreakout!$A:$A,$B$1),0) -> 9419211 | T26: =IF($B26<EDATE($B$2,-1),SUMIFS(CohortBreakout!S:S,CohortBreakout!$B:$B,$B26,CohortBreakout!$A:$A,$B$1),0) -> 188847 | U26: =IF($B26<EDATE($B$2,-1),SUMIFS(CohortBreakout!T:T,CohortBreakout!$B:$B,$B26,CohortBreakout!$A:$A,$B$1),0) -> 2268 | V26: =IF($B26<EDATE($B$2,-1),SUMIFS(CohortBreakout!U:U,CohortBreakout!$B:$B,$B26,CohortBreakout!$A:$A,$B$1),0) -> 0
B27: 2022-05-01 | N27: =IF($B27<EDATE($B$2,-1),SUMIFS(CohortBreakout!M:M,CohortBreakout!$B:$B,$B27,CohortBreakout!$A:$A,$B$1),0) -> 7009148 | O27: =IF($B27<EDATE($B$2,-1),SUMIFS(CohortBreakout!N:N,CohortBreakout!$B:$B,$B27,CohortBreakout!$A:$A,$B$1),0) -> 31807848 | P27: =IF($B27<EDATE($B$2,-1),SUMIFS(CohortBreakout!O:O,CohortBreakout!$B:$B,$B27,CohortBreakout!$A:$A,$B$1),0) -> 18917194 | Q27: =IF($B27<EDATE($B$2,-1),SUMIFS(CohortBreakout!P:P,CohortBreakout!$B:$B,$B27,CohortBreakout!$A:$A,$B$1),0) -> 14060605 | R27: =IF($B27<EDATE($B$2,-1),SUMIFS(CohortBreakout!Q:Q,CohortBreakout!$B:$B,$B27,CohortBreakout!$A:$A,$B$1),0) -> 7704922 | S27: =IF($B27<EDATE($B$2,-1),SUMIFS(CohortBreakout!R:R,CohortBreakout!$B:$B,$B27,CohortBreakout!$A:$A,$B$1),0) -> 9370071 | T27: =IF($B27<EDATE($B$2,-1),SUMIFS(CohortBreakout!S:S,CohortBreakout!$B:$B,$B27,CohortBreakout!$A:$A,$B$1),0) -> 187859 | U27: =IF($B27<EDATE($B$2,-1),SUMIFS(CohortBreakout!T:T,CohortBreakout!$B:$B,$B27,CohortBreakout!$A:$A,$B$1),0) -> 2240 | V27: =IF($B27<EDATE($B$2,-1),SUMIFS(CohortBreakout!U:U,CohortBreakout!$B:$B,$B27,CohortBreakout!$A:$A,$B$1),0) -> 0
B28: 2022-04-01 | N28: =IF($B28<EDATE($B$2,-1),SUMIFS(CohortBreakout!M:M,CohortBreakout!$B:$B,$B28,CohortBreakout!$A:$A,$B$1),0) -> 7048047 | O28: =IF($B28<EDATE($B$2,-1),SUMIFS(CohortBreakout!N:N,CohortBreakout!$B:$B,$B28,CohortBreakout!$A:$A,$B$1),0) -> 31553059 | P28: =IF($B28<EDATE($B$2,-1),SUMIFS(CohortBreakout!O:O,CohortBreakout!$B:$B,$B28,CohortBreakout!$A:$A,$B$1),0) -> 18793362 | Q28: =IF($B28<EDATE($B$2,-1),SUMIFS(CohortBreakout!P:P,CohortBreakout!$B:$B,$B28,CohortBreakout!$A:$A,$B$1),0) -> 13958561 | R28: =IF($B28<EDATE($B$2,-1),SUMIFS(CohortBreakout!Q:Q,CohortBreakout!$B:$B,$B28,CohortBreakout!$A:$A,$B$1),0) -> 7648129 | S28: =IF($B28<EDATE($B$2,-1),SUMIFS(CohortBreakout!R:R,CohortBreakout!$B:$B,$B28,CohortBreakout!$A:$A,$B$1),0) -> 9300867 | T28: =IF($B28<EDATE($B$2,-1),SUMIFS(CohortBreakout!S:S,CohortBreakout!$B:$B,$B28,CohortBreakout!$A:$A,$B$1),0) -> 186723 | U28: =IF($B28<EDATE($B$2,-1),SUMIFS(CohortBreakout!T:T,CohortBreakout!$B:$B,$B28,CohortBreakout!$A:$A,$B$1),0) -> 2214 | V28: =IF($B28<EDATE($B$2,-1),SUMIFS(CohortBreakout!U:U,CohortBreakout!$B:$B,$B28,CohortBreakout!$A:$A,$B$1),0) -> 0
B29: 2022-03-01 | N29: =IF($B29<EDATE($B$2,-1),SUMIFS(CohortBreakout!M:M,CohortBreakout!$B:$B,$B29,CohortBreakout!$A:$A,$B$1),0) -> 7054292 | O29: =IF($B29<EDATE($B$2,-1),SUMIFS(CohortBreakout!N:N,CohortBreakout!$B:$B,$B29,CohortBreakout!$A:$A,$B$1),0) -> 31379754 | P29: =IF($B29<EDATE($B$2,-1),SUMIFS(CohortBreakout!O:O,CohortBreakout!$B:$B,$B29,CohortBreakout!$A:$A,$B$1),0) -> 18704773 | Q29: =IF($B29<EDATE($B$2,-1),SUMIFS(CohortBreakout!P:P,CohortBreakout!$B:$B,$B29,CohortBreakout!$A:$A,$B$1),0) -> 13882029 | R29: =IF($B29<EDATE($B$2,-1),SUMIFS(CohortBreakout!Q:Q,CohortBreakout!$B:$B,$B29,CohortBreakout!$A:$A,$B$1),0) -> 7607748 | S29: =IF($B29<EDATE($B$2,-1),SUMIFS(CohortBreakout!R:R,CohortBreakout!$B:$B,$B29,CohortBreakout!$A:$A,$B$1),0) -> 9248526 | T29: =IF($B29<EDATE($B$2,-1),SUMIFS(CohortBreakout!S:S,CohortBreakout!$B:$B,$B29,CohortBreakout!$A:$A,$B$1),0) -> 185104 | U29: =IF($B29<EDATE($B$2,-1),SUMIFS(CohortBreakout!T:T,CohortBreakout!$B:$B,$B29,CohortBreakout!$A:$A,$B$1),0) -> 2198 | V29: =IF($B29<EDATE($B$2,-1),SUMIFS(CohortBreakout!U:U,CohortBreakout!$B:$B,$B29,CohortBreakout!$A:$A,$B$1),0) -> 0
B30: 2022-02-01 | N30: =IF($B30<EDATE($B$2,-1),SUMIFS(CohortBreakout!M:M,CohortBreakout!$B:$B,$B30,CohortBreakout!$A:$A,$B$1),0) -> 7077968 | O30: =IF($B30<EDATE($B$2,-1),SUMIFS(CohortBreakout!N:N,CohortBreakout!$B:$B,$B30,CohortBreakout!$A:$A,$B$1),0) -> 31171396 | P30: =IF($B30<EDATE($B$2,-1),SUMIFS(CohortBreakout!O:O,CohortBreakout!$B:$B,$B30,CohortBreakout!$A:$A,$B$1),0) -> 18621359 | Q30: =IF($B30<EDATE($B$2,-1),SUMIFS(CohortBreakout!P:P,CohortBreakout!$B:$B,$B30,CohortBreakout!$A:$A,$B$1),0) -> 13794414 | R30: =IF($B30<EDATE($B$2,-1),SUMIFS(CohortBreakout!Q:Q,CohortBreakout!$B:$B,$B30,CohortBreakout!$A:$A,$B$1),0) -> 7561152 | S30: =IF($B30<EDATE($B$2,-1),SUMIFS(CohortBreakout!R:R,CohortBreakout!$B:$B,$B30,CohortBreakout!$A:$A,$B$1),0) -> 9190056 | T30: =IF($B30<EDATE($B$2,-1),SUMIFS(CohortBreakout!S:S,CohortBreakout!$B:$B,$B30,CohortBreakout!$A:$A,$B$1),0) -> 184109 | U30: =IF($B30<EDATE($B$2,-1),SUMIFS(CohortBreakout!T:T,CohortBreakout!$B:$B,$B30,CohortBreakout!$A:$A,$B$1),0) -> 2183 | V30: =IF($B30<EDATE($B$2,-1),SUMIFS(CohortBreakout!U:U,CohortBreakout!$B:$B,$B30,CohortBreakout!$A:$A,$B$1),0) -> 0
B31: 2022-01-01 | N31: =IF($B31<EDATE($B$2,-1),SUMIFS(CohortBreakout!M:M,CohortBreakout!$B:$B,$B31,CohortBreakout!$A:$A,$B$1),0) -> 7079218 | O31: =IF($B31<EDATE($B$2,-1),SUMIFS(CohortBreakout!N:N,CohortBreakout!$B:$B,$B31,CohortBreakout!$A:$A,$B$1),0) -> 30982961 | P31: =IF($B31<EDATE($B$2,-1),SUMIFS(CohortBreakout!O:O,CohortBreakout!$B:$B,$B31,CohortBreakout!$A:$A,$B$1),0) -> 18548020 | Q31: =IF($B31<EDATE($B$2,-1),SUMIFS(CohortBreakout!P:P,CohortBreakout!$B:$B,$B31,CohortBreakout!$A:$A,$B$1),0) -> 13715741 | R31: =IF($B31<EDATE($B$2,-1),SUMIFS(CohortBreakout!Q:Q,CohortBreakout!$B:$B,$B31,CohortBreakout!$A:$A,$B$1),0) -> 7519969 | S31: =IF($B31<EDATE($B$2,-1),SUMIFS(CohortBreakout!R:R,CohortBreakout!$B:$B,$B31,CohortBreakout!$A:$A,$B$1),0) -> 9136624 | T31: =IF($B31<EDATE($B$2,-1),SUMIFS(CohortBreakout!S:S,CohortBreakout!$B:$B,$B31,CohortBreakout!$A:$A,$B$1),0) -> 183340 | U31: =IF($B31<EDATE($B$2,-1),SUMIFS(CohortBreakout!T:T,CohortBreakout!$B:$B,$B31,CohortBreakout!$A:$A,$B$1),0) -> 2168 | V31: =IF($B31<EDATE($B$2,-1),SUMIFS(CohortBreakout!U:U,CohortBreakout!$B:$B,$B31,CohortBreakout!$A:$A,$B$1),0) -> 0
B32: 2021-12-01 | N32: =IF($B32<EDATE($B$2,-1),SUMIFS(CohortBreakout!M:M,CohortBreakout!$B:$B,$B32,CohortBreakout!$A:$A,$B$1),0) -> 7067649 | O32: =IF($B32<EDATE($B$2,-1),SUMIFS(CohortBreakout!N:N,CohortBreakout!$B:$B,$B32,CohortBreakout!$A:$A,$B$1),0) -> 30766375 | P32: =IF($B32<EDATE($B$2,-1),SUMIFS(CohortBreakout!O:O,CohortBreakout!$B:$B,$B32,CohortBreakout!$A:$A,$B$1),0) -> 18431375 | Q32: =IF($B32<EDATE($B$2,-1),SUMIFS(CohortBreakout!P:P,CohortBreakout!$B:$B,$B32,CohortBreakout!$A:$A,$B$1),0) -> 13622191 | R32: =IF($B32<EDATE($B$2,-1),SUMIFS(CohortBreakout!Q:Q,CohortBreakout!$B:$B,$B32,CohortBreakout!$A:$A,$B$1),0) -> 7468794 | S32: =IF($B32<EDATE($B$2,-1),SUMIFS(CohortBreakout!R:R,CohortBreakout!$B:$B,$B32,CohortBreakout!$A:$A,$B$1),0) -> 9074657 | T32: =IF($B32<EDATE($B$2,-1),SUMIFS(CohortBreakout!S:S,CohortBreakout!$B:$B,$B32,CohortBreakout!$A:$A,$B$1),0) -> 181983 | U32: =IF($B32<EDATE($B$2,-1),SUMIFS(CohortBreakout!T:T,CohortBreakout!$B:$B,$B32,CohortBreakout!$A:$A,$B$1),0) -> 2152 | V32: =IF($B32<EDATE($B$2,-1),SUMIFS(CohortBreakout!U:U,CohortBreakout!$B:$B,$B32,CohortBreakout!$A:$A,$B$1),0) -> 0
B33: 2021-11-01 | N33: =IF($B33<EDATE($B$2,-1),SUMIFS(CohortBreakout!M:M,CohortBreakout!$B:$B,$B33,CohortBreakout!$A:$A,$B$1),0) -> 7065375 | O33: =IF($B33<EDATE($B$2,-1),SUMIFS(CohortBreakout!N:N,CohortBreakout!$B:$B,$B33,CohortBreakout!$A:$A,$B$1),0) -> 30557879 | P33: =IF($B33<EDATE($B$2,-1),SUMIFS(CohortBreakout!O:O,CohortBreakout!$B:$B,$B33,CohortBreakout!$A:$A,$B$1),0) -> 18319765 | Q33: =IF($B33<EDATE($B$2,-1),SUMIFS(CohortBreakout!P:P,CohortBreakout!$B:$B,$B33,CohortBreakout!$A:$A,$B$1),0) -> 13529259 | R33: =IF($B33<EDATE($B$2,-1),SUMIFS(CohortBreakout!Q:Q,CohortBreakout!$B:$B,$B33,CohortBreakout!$A:$A,$B$1),0) -> 7420356 | S33: =IF($B33<EDATE($B$2,-1),SUMIFS(CohortBreakout!R:R,CohortBreakout!$B:$B,$B33,CohortBreakout!$A:$A,$B$1),0) -> 9014814 | T33: =IF($B33<EDATE($B$2,-1),SUMIFS(CohortBreakout!S:S,CohortBreakout!$B:$B,$B33,CohortBreakout!$A:$A,$B$1),0) -> 180757 | U33: =IF($B33<EDATE($B$2,-1),SUMIFS(CohortBreakout!T:T,CohortBreakout!$B:$B,$B33,CohortBreakout!$A:$A,$B$1),0) -> 2143 | V33: =IF($B33<EDATE($B$2,-1),SUMIFS(CohortBreakout!U:U,CohortBreakout!$B:$B,$B33,CohortBreakout!$A:$A,$B$1),0) -> 0
B34: 2021-10-01 | N34: =IF($B34<EDATE($B$2,-1),SUMIFS(CohortBreakout!M:M,CohortBreakout!$B:$B,$B34,CohortBreakout!$A:$A,$B$1),0) -> 7086131 | O34: =IF($B34<EDATE($B$2,-1),SUMIFS(CohortBreakout!N:N,CohortBreakout!$B:$B,$B34,CohortBreakout!$A:$A,$B$1),0) -> 30330365 | P34: =IF($B34<EDATE($B$2,-1),SUMIFS(CohortBreakout!O:O,CohortBreakout!$B:$B,$B34,CohortBreakout!$A:$A,$B$1),0) -> 18210293 | Q34: =IF($B34<EDATE($B$2,-1),SUMIFS(CohortBreakout!P:P,CohortBreakout!$B:$B,$B34,CohortBreakout!$A:$A,$B$1),0) -> 13436144 | R34: =IF($B34<EDATE($B$2,-1),SUMIFS(CohortBreakout!Q:Q,CohortBreakout!$B:$B,$B34,CohortBreakout!$A:$A,$B$1),0) -> 7369327 | S34: =IF($B34<EDATE($B$2,-1),SUMIFS(CohortBreakout!R:R,CohortBreakout!$B:$B,$B34,CohortBreakout!$A:$A,$B$1),0) -> 8948372 | T34: =IF($B34<EDATE($B$2,-1),SUMIFS(CohortBreakout!S:S,CohortBreakout!$B:$B,$B34,CohortBreakout!$A:$A,$B$1),0) -> 179590 | U34: =IF($B34<EDATE($B$2,-1),SUMIFS(CohortBreakout!T:T,CohortBreakout!$B:$B,$B34,CohortBreakout!$A:$A,$B$1),0) -> 2130 | V34: =IF($B34<EDATE($B$2,-1),SUMIFS(CohortBreakout!U:U,CohortBreakout!$B:$B,$B34,CohortBreakout!$A:$A,$B$1),0) -> 0
B35: 2021-09-01 | N35: =IF($B35<EDATE($B$2,-1),SUMIFS(CohortBreakout!M:M,CohortBreakout!$B:$B,$B35,CohortBreakout!$A:$A,$B$1),0) -> 7107123 | O35: =IF($B35<EDATE($B$2,-1),SUMIFS(CohortBreakout!N:N,CohortBreakout!$B:$B,$B35,CohortBreakout!$A:$A,$B$1),0) -> 30113087 | P35: =IF($B35<EDATE($B$2,-1),SUMIFS(CohortBreakout!O:O,CohortBreakout!$B:$B,$B35,CohortBreakout!$A:$A,$B$1),0) -> 18114186 | Q35: =IF($B35<EDATE($B$2,-1),SUMIFS(CohortBreakout!P:P,CohortBreakout!$B:$B,$B35,CohortBreakout!$A:$A,$B$1),0) -> 13344276 | R35: =IF($B35<EDATE($B$2,-1),SUMIFS(CohortBreakout!Q:Q,CohortBreakout!$B:$B,$B35,CohortBreakout!$A:$A,$B$1),0) -> 7320772 | S35: =IF($B35<EDATE($B$2,-1),SUMIFS(CohortBreakout!R:R,CohortBreakout!$B:$B,$B35,CohortBreakout!$A:$A,$B$1),0) -> 8885055 | T35: =IF($B35<EDATE($B$2,-1),SUMIFS(CohortBreakout!S:S,CohortBreakout!$B:$B,$B35,CohortBreakout!$A:$A,$B$1),0) -> 178748 | U35: =IF($B35<EDATE($B$2,-1),SUMIFS(CohortBreakout!T:T,CohortBreakout!$B:$B,$B35,CohortBreakout!$A:$A,$B$1),0) -> 2117 | V35: =IF($B35<EDATE($B$2,-1),SUMIFS(CohortBreakout!U:U,CohortBreakout!$B:$B,$B35,CohortBreakout!$A:$A,$B$1),0) -> 0
B36: 2021-08-01 | N36: =IF($B36<EDATE($B$2,-1),SUMIFS(CohortBreakout!M:M,CohortBreakout!$B:$B,$B36,CohortBreakout!$A:$A,$B$1),0) -> 7091315 | O36: =IF($B36<EDATE($B$2,-1),SUMIFS(CohortBreakout!N:N,CohortBreakout!$B:$B,$B36,CohortBreakout!$A:$A,$B$1),0) -> 29905745 | P36: =IF($B36<EDATE($B$2,-1),SUMIFS(CohortBreakout!O:O,CohortBreakout!$B:$B,$B36,CohortBreakout!$A:$A,$B$1),0) -> 18011453 | Q36: =IF($B36<EDATE($B$2,-1),SUMIFS(CohortBreakout!P:P,CohortBreakout!$B:$B,$B36,CohortBreakout!$A:$A,$B$1),0) -> 13255158 | R36: =IF($B36<EDATE($B$2,-1),SUMIFS(CohortBreakout!Q:Q,CohortBreakout!$B:$B,$B36,CohortBreakout!$A:$A,$B$1),0) -> 7272842 | S36: =IF($B36<EDATE($B$2,-1),SUMIFS(CohortBreakout!R:R,CohortBreakout!$B:$B,$B36,CohortBreakout!$A:$A,$B$1),0) -> 8824791 | T36: =IF($B36<EDATE($B$2,-1),SUMIFS(CohortBreakout!S:S,CohortBreakout!$B:$B,$B36,CohortBreakout!$A:$A,$B$1),0) -> 177671 | U36: =IF($B36<EDATE($B$2,-1),SUMIFS(CohortBreakout!T:T,CohortBreakout!$B:$B,$B36,CohortBreakout!$A:$A,$B$1),0) -> 2102 | V36: =IF($B36<EDATE($B$2,-1),SUMIFS(CohortBreakout!U:U,CohortBreakout!$B:$B,$B36,CohortBreakout!$A:$A,$B$1),0) -> 0
B37: 2021-07-01 | N37: =IF($B37<EDATE($B$2,-1),SUMIFS(CohortBreakout!M:M,CohortBreakout!$B:$B,$B37,CohortBreakout!$A:$A,$B$1),0) -> 7056174 | O37: =IF($B37<EDATE($B$2,-1),SUMIFS(CohortBreakout!N:N,CohortBreakout!$B:$B,$B37,CohortBreakout!$A:$A,$B$1),0) -> 29643705 | P37: =IF($B37<EDATE($B$2,-1),SUMIFS(CohortBreakout!O:O,CohortBreakout!$B:$B,$B37,CohortBreakout!$A:$A,$B$1),0) -> 17858982 | Q37: =IF($B37<EDATE($B$2,-1),SUMIFS(CohortBreakout!P:P,CohortBreakout!$B:$B,$B37,CohortBreakout!$A:$A,$B$1),0) -> 13148733 | R37: =IF($B37<EDATE($B$2,-1),SUMIFS(CohortBreakout!Q:Q,CohortBreakout!$B:$B,$B37,CohortBreakout!$A:$A,$B$1),0) -> 7210775 | S37: =IF($B37<EDATE($B$2,-1),SUMIFS(CohortBreakout!R:R,CohortBreakout!$B:$B,$B37,CohortBreakout!$A:$A,$B$1),0) -> 8750066 | T37: =IF($B37<EDATE($B$2,-1),SUMIFS(CohortBreakout!S:S,CohortBreakout!$B:$B,$B37,CohortBreakout!$A:$A,$B$1),0) -> 176129 | U37: =IF($B37<EDATE($B$2,-1),SUMIFS(CohortBreakout!T:T,CohortBreakout!$B:$B,$B37,CohortBreakout!$A:$A,$B$1),0) -> 2085 | V37: =IF($B37<EDATE($B$2,-1),SUMIFS(CohortBreakout!U:U,CohortBreakout!$B:$B,$B37,CohortBreakout!$A:$A,$B$1),0) -> 0
B38: 2021-06-01 | N38: =IF($B38<EDATE($B$2,-1),SUMIFS(CohortBreakout!M:M,CohortBreakout!$B:$B,$B38,CohortBreakout!$A:$A,$B$1),0) -> 7050903 | O38: =IF($B38<EDATE($B$2,-1),SUMIFS(CohortBreakout!N:N,CohortBreakout!$B:$B,$B38,CohortBreakout!$A:$A,$B$1),0) -> 29403927 | P38: =IF($B38<EDATE($B$2,-1),SUMIFS(CohortBreakout!O:O,CohortBreakout!$B:$B,$B38,CohortBreakout!$A:$A,$B$1),0) -> 17792061 | Q38: =IF($B38<EDATE($B$2,-1),SUMIFS(CohortBreakout!P:P,CohortBreakout!$B:$B,$B38,CohortBreakout!$A:$A,$B$1),0) -> 13042289 | R38: =IF($B38<EDATE($B$2,-1),SUMIFS(CohortBreakout!Q:Q,CohortBreakout!$B:$B,$B38,CohortBreakout!$A:$A,$B$1),0) -> 7159347 | S38: =IF($B38<EDATE($B$2,-1),SUMIFS(CohortBreakout!R:R,CohortBreakout!$B:$B,$B38,CohortBreakout!$A:$A,$B$1),0) -> 8688936 | T38: =IF($B38<EDATE($B$2,-1),SUMIFS(CohortBreakout!S:S,CohortBreakout!$B:$B,$B38,CohortBreakout!$A:$A,$B$1),0) -> 175004 | U38: =IF($B38<EDATE($B$2,-1),SUMIFS(CohortBreakout!T:T,CohortBreakout!$B:$B,$B38,CohortBreakout!$A:$A,$B$1),0) -> 2132 | V38: =IF($B38<EDATE($B$2,-1),SUMIFS(CohortBreakout!U:U,CohortBreakout!$B:$B,$B38,CohortBreakout!$A:$A,$B$1),0) -> 0
B39: 2021-05-01 | N39: =IF($B39<EDATE($B$2,-1),SUMIFS(CohortBreakout!M:M,CohortBreakout!$B:$B,$B39,CohortBreakout!$A:$A,$B$1),0) -> 7027881 | O39: =IF($B39<EDATE($B$2,-1),SUMIFS(CohortBreakout!N:N,CohortBreakout!$B:$B,$B39,CohortBreakout!$A:$A,$B$1),0) -> 29202426 | P39: =IF($B39<EDATE($B$2,-1),SUMIFS(CohortBreakout!O:O,CohortBreakout!$B:$B,$B39,CohortBreakout!$A:$A,$B$1),0) -> 17689675 | Q39: =IF($B39<EDATE($B$2,-1),SUMIFS(CohortBreakout!P:P,CohortBreakout!$B:$B,$B39,CohortBreakout!$A:$A,$B$1),0) -> 12953632 | R39: =IF($B39<EDATE($B$2,-1),SUMIFS(CohortBreakout!Q:Q,CohortBreakout!$B:$B,$B39,CohortBreakout!$A:$A,$B$1),0) -> 7111217 | S39: =IF($B39<EDATE($B$2,-1),SUMIFS(CohortBreakout!R:R,CohortBreakout!$B:$B,$B39,CohortBreakout!$A:$A,$B$1),0) -> 8630504 | T39: =IF($B39<EDATE($B$2,-1),SUMIFS(CohortBreakout!S:S,CohortBreakout!$B:$B,$B39,CohortBreakout!$A:$A,$B$1),0) -> 173871 | U39: =IF($B39<EDATE($B$2,-1),SUMIFS(CohortBreakout!T:T,CohortBreakout!$B:$B,$B39,CohortBreakout!$A:$A,$B$1),0) -> 2116 | V39: =IF($B39<EDATE($B$2,-1),SUMIFS(CohortBreakout!U:U,CohortBreakout!$B:$B,$B39,CohortBreakout!$A:$A,$B$1),0) -> 0
B40: 2021-04-01 | N40: =IF($B40<EDATE($B$2,-1),SUMIFS(CohortBreakout!M:M,CohortBreakout!$B:$B,$B40,CohortBreakout!$A:$A,$B$1),0) -> 7004798 | O40: =IF($B40<EDATE($B$2,-1),SUMIFS(CohortBreakout!N:N,CohortBreakout!$B:$B,$B40,CohortBreakout!$A:$A,$B$1),0) -> 29029422 | P40: =IF($B40<EDATE($B$2,-1),SUMIFS(CohortBreakout!O:O,CohortBreakout!$B:$B,$B40,CohortBreakout!$A:$A,$B$1),0) -> 17611997 | Q40: =IF($B40<EDATE($B$2,-1),SUMIFS(CohortBreakout!P:P,CohortBreakout!$B:$B,$B40,CohortBreakout!$A:$A,$B$1),0) -> 12876707 | R40: =IF($B40<EDATE($B$2,-1),SUMIFS(CohortBreakout!Q:Q,CohortBreakout!$B:$B,$B40,CohortBreakout!$A:$A,$B$1),0) -> 7072410 | S40: =IF($B40<EDATE($B$2,-1),SUMIFS(CohortBreakout!R:R,CohortBreakout!$B:$B,$B40,CohortBreakout!$A:$A,$B$1),0) -> 8581133 | T40: =IF($B40<EDATE($B$2,-1),SUMIFS(CohortBreakout!S:S,CohortBreakout!$B:$B,$B40,CohortBreakout!$A:$A,$B$1),0) -> 172980 | U40: =IF($B40<EDATE($B$2,-1),SUMIFS(CohortBreakout!T:T,CohortBreakout!$B:$B,$B40,CohortBreakout!$A:$A,$B$1),0) -> 2102 | V40: =IF($B40<EDATE($B$2,-1),SUMIFS(CohortBreakout!U:U,CohortBreakout!$B:$B,$B40,CohortBreakout!$A:$A,$B$1),0) -> 0
B41: 2021-03-01 | N41: =IF($B41<EDATE($B$2,-1),SUMIFS(CohortBreakout!M:M,CohortBreakout!$B:$B,$B41,CohortBreakout!$A:$A,$B$1),0) -> 6989736 | O41: =IF($B41<EDATE($B$2,-1),SUMIFS(CohortBreakout!N:N,CohortBreakout!$B:$B,$B41,CohortBreakout!$A:$A,$B$1),0) -> 28818094 | P41: =IF($B41<EDATE($B$2,-1),SUMIFS(CohortBreakout!O:O,CohortBreakout!$B:$B,$B41,CohortBreakout!$A:$A,$B$1),0) -> 17513529 | Q41: =IF($B41<EDATE($B$2,-1),SUMIFS(CohortBreakout!P:P,CohortBreakout!$B:$B,$B41,CohortBreakout!$A:$A,$B$1),0) -> 12786736 | R41: =IF($B41<EDATE($B$2,-1),SUMIFS(CohortBreakout!Q:Q,CohortBreakout!$B:$B,$B41,CohortBreakout!$A:$A,$B$1),0) -> 7024322 | S41: =IF($B41<EDATE($B$2,-1),SUMIFS(CohortBreakout!R:R,CohortBreakout!$B:$B,$B41,CohortBreakout!$A:$A,$B$1),0) -> 8522136 | T41: =IF($B41<EDATE($B$2,-1),SUMIFS(CohortBreakout!S:S,CohortBreakout!$B:$B,$B41,CohortBreakout!$A:$A,$B$1),0) -> 171925 | U41: =IF($B41<EDATE($B$2,-1),SUMIFS(CohortBreakout!T:T,CohortBreakout!$B:$B,$B41,CohortBreakout!$A:$A,$B$1),0) -> 2092 | V41: =IF($B41<EDATE($B$2,-1),SUMIFS(CohortBreakout!U:U,CohortBreakout!$B:$B,$B41,CohortBreakout!$A:$A,$B$1),0) -> 0
B42: 2021-02-01 | N42: =IF($B42<EDATE($B$2,-1),SUMIFS(CohortBreakout!M:M,CohortBreakout!$B:$B,$B42,CohortBreakout!$A:$A,$B$1),0) -> 6958555 | O42: =IF($B42<EDATE($B$2,-1),SUMIFS(CohortBreakout!N:N,CohortBreakout!$B:$B,$B42,CohortBreakout!$A:$A,$B$1),0) -> 28577100 | P42: =IF($B42<EDATE($B$2,-1),SUMIFS(CohortBreakout!O:O,CohortBreakout!$B:$B,$B42,CohortBreakout!$A:$A,$B$1),0) -> 17366914 | Q42: =IF($B42<EDATE($B$2,-1),SUMIFS(CohortBreakout!P:P,CohortBreakout!$B:$B,$B42,CohortBreakout!$A:$A,$B$1),0) -> 12680915 | R42: =IF($B42<EDATE($B$2,-1),SUMIFS(CohortBreakout!Q:Q,CohortBreakout!$B:$B,$B42,CohortBreakout!$A:$A,$B$1),0) -> 6964780 | S42: =IF($B42<EDATE($B$2,-1),SUMIFS(CohortBreakout!R:R,CohortBreakout!$B:$B,$B42,CohortBreakout!$A:$A,$B$1),0) -> 8451311 | T42: =IF($B42<EDATE($B$2,-1),SUMIFS(CohortBreakout!S:S,CohortBreakout!$B:$B,$B42,CohortBreakout!$A:$A,$B$1),0) -> 170513 | U42: =IF($B42<EDATE($B$2,-1),SUMIFS(CohortBreakout!T:T,CohortBreakout!$B:$B,$B42,CohortBreakout!$A:$A,$B$1),0) -> 2070 | V42: =IF($B42<EDATE($B$2,-1),SUMIFS(CohortBreakout!U:U,CohortBreakout!$B:$B,$B42,CohortBreakout!$A:$A,$B$1),0) -> 0
B43: 2021-01-01 | N43: =IF($B43<EDATE($B$2,-1),SUMIFS(CohortBreakout!M:M,CohortBreakout!$B:$B,$B43,CohortBreakout!$A:$A,$B$1),0) -> 6857258 | O43: =IF($B43<EDATE($B$2,-1),SUMIFS(CohortBreakout!N:N,CohortBreakout!$B:$B,$B43,CohortBreakout!$A:$A,$B$1),0) -> 28387076 | P43: =IF($B43<EDATE($B$2,-1),SUMIFS(CohortBreakout!O:O,CohortBreakout!$B:$B,$B43,CohortBreakout!$A:$A,$B$1),0) -> 17291812 | Q43: =IF($B43<EDATE($B$2,-1),SUMIFS(CohortBreakout!P:P,CohortBreakout!$B:$B,$B43,CohortBreakout!$A:$A,$B$1),0) -> 12596433 | R43: =IF($B43<EDATE($B$2,-1),SUMIFS(CohortBreakout!Q:Q,CohortBreakout!$B:$B,$B43,CohortBreakout!$A:$A,$B$1),0) -> 6924275 | S43: =IF($B43<EDATE($B$2,-1),SUMIFS(CohortBreakout!R:R,CohortBreakout!$B:$B,$B43,CohortBreakout!$A:$A,$B$1),0) -> 8397645 | T43: =IF($B43<EDATE($B$2,-1),SUMIFS(CohortBreakout!S:S,CohortBreakout!$B:$B,$B43,CohortBreakout!$A:$A,$B$1),0) -> 169798 | U43: =IF($B43<EDATE($B$2,-1),SUMIFS(CohortBreakout!T:T,CohortBreakout!$B:$B,$B43,CohortBreakout!$A:$A,$B$1),0) -> 2044 | V43: =IF($B43<EDATE($B$2,-1),SUMIFS(CohortBreakout!U:U,CohortBreakout!$B:$B,$B43,CohortBreakout!$A:$A,$B$1),0) -> 0
B44: 2020-12-01 | N44: =IF($B44<EDATE($B$2,-1),SUMIFS(CohortBreakout!M:M,CohortBreakout!$B:$B,$B44,CohortBreakout!$A:$A,$B$1),0) -> 6952304 | O44: =IF($B44<EDATE($B$2,-1),SUMIFS(CohortBreakout!N:N,CohortBreakout!$B:$B,$B44,CohortBreakout!$A:$A,$B$1),0) -> 28111366 | P44: =IF($B44<EDATE($B$2,-1),SUMIFS(CohortBreakout!O:O,CohortBreakout!$B:$B,$B44,CohortBreakout!$A:$A,$B$1),0) -> 17106922 | Q44: =IF($B44<EDATE($B$2,-1),SUMIFS(CohortBreakout!P:P,CohortBreakout!$B:$B,$B44,CohortBreakout!$A:$A,$B$1),0) -> 12478938 | R44: =IF($B44<EDATE($B$2,-1),SUMIFS(CohortBreakout!Q:Q,CohortBreakout!$B:$B,$B44,CohortBreakout!$A:$A,$B$1),0) -> 6856605 | S44: =IF($B44<EDATE($B$2,-1),SUMIFS(CohortBreakout!R:R,CohortBreakout!$B:$B,$B44,CohortBreakout!$A:$A,$B$1),0) -> 8316853 | T44: =IF($B44<EDATE($B$2,-1),SUMIFS(CohortBreakout!S:S,CohortBreakout!$B:$B,$B44,CohortBreakout!$A:$A,$B$1),0) -> 168242 | U44: =IF($B44<EDATE($B$2,-1),SUMIFS(CohortBreakout!T:T,CohortBreakout!$B:$B,$B44,CohortBreakout!$A:$A,$B$1),0) -> 2012 | V44: =IF($B44<EDATE($B$2,-1),SUMIFS(CohortBreakout!U:U,CohortBreakout!$B:$B,$B44,CohortBreakout!$A:$A,$B$1),0) -> 0
B45: 2020-11-01 | N45: =IF($B45<EDATE($B$2,-1),SUMIFS(CohortBreakout!M:M,CohortBreakout!$B:$B,$B45,CohortBreakout!$A:$A,$B$1),0) -> 6939380 | O45: =IF($B45<EDATE($B$2,-1),SUMIFS(CohortBreakout!N:N,CohortBreakout!$B:$B,$B45,CohortBreakout!$A:$A,$B$1),0) -> 27883514 | P45: =IF($B45<EDATE($B$2,-1),SUMIFS(CohortBreakout!O:O,CohortBreakout!$B:$B,$B45,CohortBreakout!$A:$A,$B$1),0) -> 16726289 | Q45: =IF($B45<EDATE($B$2,-1),SUMIFS(CohortBreakout!P:P,CohortBreakout!$B:$B,$B45,CohortBreakout!$A:$A,$B$1),0) -> 12292400 | R45: =IF($B45<EDATE($B$2,-1),SUMIFS(CohortBreakout!Q:Q,CohortBreakout!$B:$B,$B45,CohortBreakout!$A:$A,$B$1),0) -> 6822118 | S45: =IF($B45<EDATE($B$2,-1),SUMIFS(CohortBreakout!R:R,CohortBreakout!$B:$B,$B45,CohortBreakout!$A:$A,$B$1),0) -> 8319112 | T45: =IF($B45<EDATE($B$2,-1),SUMIFS(CohortBreakout!S:S,CohortBreakout!$B:$B,$B45,CohortBreakout!$A:$A,$B$1),0) -> 136313 | U45: =IF($B45<EDATE($B$2,-1),SUMIFS(CohortBreakout!T:T,CohortBreakout!$B:$B,$B45,CohortBreakout!$A:$A,$B$1),0) -> 2034 | V45: =IF($B45<EDATE($B$2,-1),SUMIFS(CohortBreakout!U:U,CohortBreakout!$B:$B,$B45,CohortBreakout!$A:$A,$B$1),0) -> 0
B46: 2020-10-01 | N46: =IF($B46<EDATE($B$2,-1),SUMIFS(CohortBreakout!M:M,CohortBreakout!$B:$B,$B46,CohortBreakout!$A:$A,$B$1),0) -> 6898094 | O46: =IF($B46<EDATE($B$2,-1),SUMIFS(CohortBreakout!N:N,CohortBreakout!$B:$B,$B46,CohortBreakout!$A:$A,$B$1),0) -> 27668198 | P46: =IF($B46<EDATE($B$2,-1),SUMIFS(CohortBreakout!O:O,CohortBreakout!$B:$B,$B46,CohortBreakout!$A:$A,$B$1),0) -> 16403149 | Q46: =IF($B46<EDATE($B$2,-1),SUMIFS(CohortBreakout!P:P,CohortBreakout!$B:$B,$B46,CohortBreakout!$A:$A,$B$1),0) -> 12139843 | R46: =IF($B46<EDATE($B$2,-1),SUMIFS(CohortBreakout!Q:Q,CohortBreakout!$B:$B,$B46,CohortBreakout!$A:$A,$B$1),0) -> 6786697 | S46: =IF($B46<EDATE($B$2,-1),SUMIFS(CohortBreakout!R:R,CohortBreakout!$B:$B,$B46,CohortBreakout!$A:$A,$B$1),0) -> 8312893 | T46: =IF($B46<EDATE($B$2,-1),SUMIFS(CohortBreakout!S:S,CohortBreakout!$B:$B,$B46,CohortBreakout!$A:$A,$B$1),0) -> 111269 | U46: =IF($B46<EDATE($B$2,-1),SUMIFS(CohortBreakout!T:T,CohortBreakout!$B:$B,$B46,CohortBreakout!$A:$A,$B$1),0) -> 2216 | V46: =IF($B46<EDATE($B$2,-1),SUMIFS(CohortBreakout!U:U,CohortBreakout!$B:$B,$B46,CohortBreakout!$A:$A,$B$1),0) -> 0
B47: 2020-09-01 | N47: =IF($B47<EDATE($B$2,-1),SUMIFS(CohortBreakout!M:M,CohortBreakout!$B:$B,$B47,CohortBreakout!$A:$A,$B$1),0) -> 6870492 | O47: =IF($B47<EDATE($B$2,-1),SUMIFS(CohortBreakout!N:N,CohortBreakout!$B:$B,$B47,CohortBreakout!$A:$A,$B$1),0) -> 27439177 | P47: =IF($B47<EDATE($B$2,-1),SUMIFS(CohortBreakout!O:O,CohortBreakout!$B:$B,$B47,CohortBreakout!$A:$A,$B$1),0) -> 16126681 | Q47: =IF($B47<EDATE($B$2,-1),SUMIFS(CohortBreakout!P:P,CohortBreakout!$B:$B,$B47,CohortBreakout!$A:$A,$B$1),0) -> 11989013 | R47: =IF($B47<EDATE($B$2,-1),SUMIFS(CohortBreakout!Q:Q,CohortBreakout!$B:$B,$B47,CohortBreakout!$A:$A,$B$1),0) -> 6744331 | S47: =IF($B47<EDATE($B$2,-1),SUMIFS(CohortBreakout!R:R,CohortBreakout!$B:$B,$B47,CohortBreakout!$A:$A,$B$1),0) -> 8303666 | T47: =IF($B47<EDATE($B$2,-1),SUMIFS(CohortBreakout!S:S,CohortBreakout!$B:$B,$B47,CohortBreakout!$A:$A,$B$1),0) -> 93995 | U47: =IF($B47<EDATE($B$2,-1),SUMIFS(CohortBreakout!T:T,CohortBreakout!$B:$B,$B47,CohortBreakout!$A:$A,$B$1),0) -> 2078 | V47: =IF($B47<EDATE($B$2,-1),SUMIFS(CohortBreakout!U:U,CohortBreakout!$B:$B,$B47,CohortBreakout!$A:$A,$B$1),0) -> 0
B48: 2020-08-01 | N48: =IF($B48<EDATE($B$2,-1),SUMIFS(CohortBreakout!M:M,CohortBreakout!$B:$B,$B48,CohortBreakout!$A:$A,$B$1),0) -> 6868344 | O48: =IF($B48<EDATE($B$2,-1),SUMIFS(CohortBreakout!N:N,CohortBreakout!$B:$B,$B48,CohortBreakout!$A:$A,$B$1),0) -> 27146523 | P48: =IF($B48<EDATE($B$2,-1),SUMIFS(CohortBreakout!O:O,CohortBreakout!$B:$B,$B48,CohortBreakout!$A:$A,$B$1),0) -> 15836209 | Q48: =IF($B48<EDATE($B$2,-1),SUMIFS(CohortBreakout!P:P,CohortBreakout!$B:$B,$B48,CohortBreakout!$A:$A,$B$1),0) -> 11818962 | R48: =IF($B48<EDATE($B$2,-1),SUMIFS(CohortBreakout!Q:Q,CohortBreakout!$B:$B,$B48,CohortBreakout!$A:$A,$B$1),0) -> 6706545 | S48: =IF($B48<EDATE($B$2,-1),SUMIFS(CohortBreakout!R:R,CohortBreakout!$B:$B,$B48,CohortBreakout!$A:$A,$B$1),0) -> 8295308 | T48: =IF($B48<EDATE($B$2,-1),SUMIFS(CohortBreakout!S:S,CohortBreakout!$B:$B,$B48,CohortBreakout!$A:$A,$B$1),0) -> 80101 | U48: =IF($B48<EDATE($B$2,-1),SUMIFS(CohortBreakout!T:T,CohortBreakout!$B:$B,$B48,CohortBreakout!$A:$A,$B$1),0) -> 3508 | V48: =IF($B48<EDATE($B$2,-1),SUMIFS(CohortBreakout!U:U,CohortBreakout!$B:$B,$B48,CohortBreakout!$A:$A,$B$1),0) -> 0
B49: 2020-07-01 | N49: =IF($B49<EDATE($B$2,-1),SUMIFS(CohortBreakout!M:M,CohortBreakout!$B:$B,$B49,CohortBreakout!$A:$A,$B$1),0) -> 6862779 | O49: =IF($B49<EDATE($B$2,-1),SUMIFS(CohortBreakout!N:N,CohortBreakout!$B:$B,$B49,CohortBreakout!$A:$A,$B$1),0) -> 26797791 | P49: =IF($B49<EDATE($B$2,-1),SUMIFS(CohortBreakout!O:O,CohortBreakout!$B:$B,$B49,CohortBreakout!$A:$A,$B$1),0) -> 15515116 | Q49: =IF($B49<EDATE($B$2,-1),SUMIFS(CohortBreakout!P:P,CohortBreakout!$B:$B,$B49,CohortBreakout!$A:$A,$B$1),0) -> 11621463 | R49: =IF($B49<EDATE($B$2,-1),SUMIFS(CohortBreakout!Q:Q,CohortBreakout!$B:$B,$B49,CohortBreakout!$A:$A,$B$1),0) -> 6662365 | S49: =IF($B49<EDATE($B$2,-1),SUMIFS(CohortBreakout!R:R,CohortBreakout!$B:$B,$B49,CohortBreakout!$A:$A,$B$1),0) -> 8284255 | T49: =IF($B49<EDATE($B$2,-1),SUMIFS(CohortBreakout!S:S,CohortBreakout!$B:$B,$B49,CohortBreakout!$A:$A,$B$1),0) -> 70601 | U49: =IF($B49<EDATE($B$2,-1),SUMIFS(CohortBreakout!T:T,CohortBreakout!$B:$B,$B49,CohortBreakout!$A:$A,$B$1),0) -> 4539 | V49: =IF($B49<EDATE($B$2,-1),SUMIFS(CohortBreakout!U:U,CohortBreakout!$B:$B,$B49,CohortBreakout!$A:$A,$B$1),0) -> 0
B50: 2020-06-01 | N50: =IF($B50<EDATE($B$2,-1),SUMIFS(CohortBreakout!M:M,CohortBreakout!$B:$B,$B50,CohortBreakout!$A:$A,$B$1),0) -> 6842111 | O50: =IF($B50<EDATE($B$2,-1),SUMIFS(CohortBreakout!N:N,CohortBreakout!$B:$B,$B50,CohortBreakout!$A:$A,$B$1),0) -> 26471512 | P50: =IF($B50<EDATE($B$2,-1),SUMIFS(CohortBreakout!O:O,CohortBreakout!$B:$B,$B50,CohortBreakout!$A:$A,$B$1),0) -> 15188509 | Q50: =IF($B50<EDATE($B$2,-1),SUMIFS(CohortBreakout!P:P,CohortBreakout!$B:$B,$B50,CohortBreakout!$A:$A,$B$1),0) -> 11419016 | R50: =IF($B50<EDATE($B$2,-1),SUMIFS(CohortBreakout!Q:Q,CohortBreakout!$B:$B,$B50,CohortBreakout!$A:$A,$B$1),0) -> 6611235 | S50: =IF($B50<EDATE($B$2,-1),SUMIFS(CohortBreakout!R:R,CohortBreakout!$B:$B,$B50,CohortBreakout!$A:$A,$B$1),0) -> 8269676 | T50: =IF($B50<EDATE($B$2,-1),SUMIFS(CohortBreakout!S:S,CohortBreakout!$B:$B,$B50,CohortBreakout!$A:$A,$B$1),0) -> 55401 | U50: =IF($B50<EDATE($B$2,-1),SUMIFS(CohortBreakout!T:T,CohortBreakout!$B:$B,$B50,CohortBreakout!$A:$A,$B$1),0) -> 5251 | V50: =IF($B50<EDATE($B$2,-1),SUMIFS(CohortBreakout!U:U,CohortBreakout!$B:$B,$B50,CohortBreakout!$A:$A,$B$1),0) -> 0
B51: 2020-05-01 | N51: =IF($B51<EDATE($B$2,-1),SUMIFS(CohortBreakout!M:M,CohortBreakout!$B:$B,$B51,CohortBreakout!$A:$A,$B$1),0) -> 6877058 | O51: =IF($B51<EDATE($B$2,-1),SUMIFS(CohortBreakout!N:N,CohortBreakout!$B:$B,$B51,CohortBreakout!$A:$A,$B$1),0) -> 26065215 | P51: =IF($B51<EDATE($B$2,-1),SUMIFS(CohortBreakout!O:O,CohortBreakout!$B:$B,$B51,CohortBreakout!$A:$A,$B$1),0) -> 14849368 | Q51: =IF($B51<EDATE($B$2,-1),SUMIFS(CohortBreakout!P:P,CohortBreakout!$B:$B,$B51,CohortBreakout!$A:$A,$B$1),0) -> 11217407 | R51: =IF($B51<EDATE($B$2,-1),SUMIFS(CohortBreakout!Q:Q,CohortBreakout!$B:$B,$B51,CohortBreakout!$A:$A,$B$1),0) -> 6574548 | S51: =IF($B51<EDATE($B$2,-1),SUMIFS(CohortBreakout!R:R,CohortBreakout!$B:$B,$B51,CohortBreakout!$A:$A,$B$1),0) -> 8244776 | T51: =IF($B51<EDATE($B$2,-1),SUMIFS(CohortBreakout!S:S,CohortBreakout!$B:$B,$B51,CohortBreakout!$A:$A,$B$1),0) -> 43161 | U51: =IF($B51<EDATE($B$2,-1),SUMIFS(CohortBreakout!T:T,CohortBreakout!$B:$B,$B51,CohortBreakout!$A:$A,$B$1),0) -> 5268 | V51: =IF($B51<EDATE($B$2,-1),SUMIFS(CohortBreakout!U:U,CohortBreakout!$B:$B,$B51,CohortBreakout!$A:$A,$B$1),0) -> 0
B52: 2020-04-01 | N52: =IF($B52<EDATE($B$2,-1),SUMIFS(CohortBreakout!M:M,CohortBreakout!$B:$B,$B52,CohortBreakout!$A:$A,$B$1),0) -> 6909449 | O52: =IF($B52<EDATE($B$2,-1),SUMIFS(CohortBreakout!N:N,CohortBreakout!$B:$B,$B52,CohortBreakout!$A:$A,$B$1),0) -> 25582892 | P52: =IF($B52<EDATE($B$2,-1),SUMIFS(CohortBreakout!O:O,CohortBreakout!$B:$B,$B52,CohortBreakout!$A:$A,$B$1),0) -> 14478032 | Q52: =IF($B52<EDATE($B$2,-1),SUMIFS(CohortBreakout!P:P,CohortBreakout!$B:$B,$B52,CohortBreakout!$A:$A,$B$1),0) -> 10952397 | R52: =IF($B52<EDATE($B$2,-1),SUMIFS(CohortBreakout!Q:Q,CohortBreakout!$B:$B,$B52,CohortBreakout!$A:$A,$B$1),0) -> 6533767 | S52: =IF($B52<EDATE($B$2,-1),SUMIFS(CohortBreakout!R:R,CohortBreakout!$B:$B,$B52,CohortBreakout!$A:$A,$B$1),0) -> 8197966 | T52: =IF($B52<EDATE($B$2,-1),SUMIFS(CohortBreakout!S:S,CohortBreakout!$B:$B,$B52,CohortBreakout!$A:$A,$B$1),0) -> 31104 | U52: =IF($B52<EDATE($B$2,-1),SUMIFS(CohortBreakout!T:T,CohortBreakout!$B:$B,$B52,CohortBreakout!$A:$A,$B$1),0) -> 5317 | V52: =IF($B52<EDATE($B$2,-1),SUMIFS(CohortBreakout!U:U,CohortBreakout!$B:$B,$B52,CohortBreakout!$A:$A,$B$1),0) -> 0
B53: 2020-03-01 | N53: =IF($B53<EDATE($B$2,-1),SUMIFS(CohortBreakout!M:M,CohortBreakout!$B:$B,$B53,CohortBreakout!$A:$A,$B$1),0) -> 6879950 | O53: =IF($B53<EDATE($B$2,-1),SUMIFS(CohortBreakout!N:N,CohortBreakout!$B:$B,$B53,CohortBreakout!$A:$A,$B$1),0) -> 25205998 | P53: =IF($B53<EDATE($B$2,-1),SUMIFS(CohortBreakout!O:O,CohortBreakout!$B:$B,$B53,CohortBreakout!$A:$A,$B$1),0) -> 14056491 | Q53: =IF($B53<EDATE($B$2,-1),SUMIFS(CohortBreakout!P:P,CohortBreakout!$B:$B,$B53,CohortBreakout!$A:$A,$B$1),0) -> 10679455 | R53: =IF($B53<EDATE($B$2,-1),SUMIFS(CohortBreakout!Q:Q,CohortBreakout!$B:$B,$B53,CohortBreakout!$A:$A,$B$1),0) -> 6493586 | S53: =IF($B53<EDATE($B$2,-1),SUMIFS(CohortBreakout!R:R,CohortBreakout!$B:$B,$B53,CohortBreakout!$A:$A,$B$1),0) -> 8159889 | T53: =IF($B53<EDATE($B$2,-1),SUMIFS(CohortBreakout!S:S,CohortBreakout!$B:$B,$B53,CohortBreakout!$A:$A,$B$1),0) -> 25695 | U53: =IF($B53<EDATE($B$2,-1),SUMIFS(CohortBreakout!T:T,CohortBreakout!$B:$B,$B53,CohortBreakout!$A:$A,$B$1),0) -> 5803 | V53: =IF($B53<EDATE($B$2,-1),SUMIFS(CohortBreakout!U:U,CohortBreakout!$B:$B,$B53,CohortBreakout!$A:$A,$B$1),0) -> 0
B54: 2020-02-01 | N54: =IF($B54<EDATE($B$2,-1),SUMIFS(CohortBreakout!M:M,CohortBreakout!$B:$B,$B54,CohortBreakout!$A:$A,$B$1),0) -> 6849460 | O54: =IF($B54<EDATE($B$2,-1),SUMIFS(CohortBreakout!N:N,CohortBreakout!$B:$B,$B54,CohortBreakout!$A:$A,$B$1),0) -> 25140723 | P54: =IF($B54<EDATE($B$2,-1),SUMIFS(CohortBreakout!O:O,CohortBreakout!$B:$B,$B54,CohortBreakout!$A:$A,$B$1),0) -> 13930059 | Q54: =IF($B54<EDATE($B$2,-1),SUMIFS(CohortBreakout!P:P,CohortBreakout!$B:$B,$B54,CohortBreakout!$A:$A,$B$1),0) -> 10628078 | R54: =IF($B54<EDATE($B$2,-1),SUMIFS(CohortBreakout!Q:Q,CohortBreakout!$B:$B,$B54,CohortBreakout!$A:$A,$B$1),0) -> 6461223 | S54: =IF($B54<EDATE($B$2,-1),SUMIFS(CohortBreakout!R:R,CohortBreakout!$B:$B,$B54,CohortBreakout!$A:$A,$B$1),0) -> 8141823 | T54: =IF($B54<EDATE($B$2,-1),SUMIFS(CohortBreakout!S:S,CohortBreakout!$B:$B,$B54,CohortBreakout!$A:$A,$B$1),0) -> 0 | U54: =IF($B54<EDATE($B$2,-1),SUMIFS(CohortBreakout!T:T,CohortBreakout!$B:$B,$B54,CohortBreakout!$A:$A,$B$1),0) -> 6361 | V54: =IF($B54<EDATE($B$2,-1),SUMIFS(CohortBreakout!U:U,CohortBreakout!$B:$B,$B54,CohortBreakout!$A:$A,$B$1),0) -> 0
B55: 2020-01-01 | N55: =IF($B55<EDATE($B$2,-1),SUMIFS(CohortBreakout!M:M,CohortBreakout!$B:$B,$B55,CohortBreakout!$A:$A,$B$1),0) -> 6845132 | O55: =IF($B55<EDATE($B$2,-1),SUMIFS(CohortBreakout!N:N,CohortBreakout!$B:$B,$B55,CohortBreakout!$A:$A,$B$1),0) -> 25312272 | P55: =IF($B55<EDATE($B$2,-1),SUMIFS(CohortBreakout!O:O,CohortBreakout!$B:$B,$B55,CohortBreakout!$A:$A,$B$1),0) -> 13964688 | Q55: =IF($B55<EDATE($B$2,-1),SUMIFS(CohortBreakout!P:P,CohortBreakout!$B:$B,$B55,CohortBreakout!$A:$A,$B$1),0) -> 10445344 | R55: =IF($B55<EDATE($B$2,-1),SUMIFS(CohortBreakout!Q:Q,CohortBreakout!$B:$B,$B55,CohortBreakout!$A:$A,$B$1),0) -> 6475449 | S55: =IF($B55<EDATE($B$2,-1),SUMIFS(CohortBreakout!R:R,CohortBreakout!$B:$B,$B55,CohortBreakout!$A:$A,$B$1),0) -> 8188755 | T55: =IF($B55<EDATE($B$2,-1),SUMIFS(CohortBreakout!S:S,CohortBreakout!$B:$B,$B55,CohortBreakout!$A:$A,$B$1),0) -> 0 | U55: =IF($B55<EDATE($B$2,-1),SUMIFS(CohortBreakout!T:T,CohortBreakout!$B:$B,$B55,CohortBreakout!$A:$A,$B$1),0) -> 5141 | V55: =IF($B55<EDATE($B$2,-1),SUMIFS(CohortBreakout!U:U,CohortBreakout!$B:$B,$B55,CohortBreakout!$A:$A,$B$1),0) -> 0
B56: 2019-12-01 | N56: =IF($B56<EDATE($B$2,-1),SUMIFS(CohortBreakout!M:M,CohortBreakout!$B:$B,$B56,CohortBreakout!$A:$A,$B$1),0) -> 6759028 | O56: =IF($B56<EDATE($B$2,-1),SUMIFS(CohortBreakout!N:N,CohortBreakout!$B:$B,$B56,CohortBreakout!$A:$A,$B$1),0) -> 25559296 | P56: =IF($B56<EDATE($B$2,-1),SUMIFS(CohortBreakout!O:O,CohortBreakout!$B:$B,$B56,CohortBreakout!$A:$A,$B$1),0) -> 14208931 | Q56: =IF($B56<EDATE($B$2,-1),SUMIFS(CohortBreakout!P:P,CohortBreakout!$B:$B,$B56,CohortBreakout!$A:$A,$B$1),0) -> 9936424 | R56: =IF($B56<EDATE($B$2,-1),SUMIFS(CohortBreakout!Q:Q,CohortBreakout!$B:$B,$B56,CohortBreakout!$A:$A,$B$1),0) -> 6431736 | S56: =IF($B56<EDATE($B$2,-1),SUMIFS(CohortBreakout!R:R,CohortBreakout!$B:$B,$B56,CohortBreakout!$A:$A,$B$1),0) -> 8178676 | T56: =IF($B56<EDATE($B$2,-1),SUMIFS(CohortBreakout!S:S,CohortBreakout!$B:$B,$B56,CohortBreakout!$A:$A,$B$1),0) -> 0 | U56: =IF($B56<EDATE($B$2,-1),SUMIFS(CohortBreakout!T:T,CohortBreakout!$B:$B,$B56,CohortBreakout!$A:$A,$B$1),0) -> 5459 | V56: =IF($B56<EDATE($B$2,-1),SUMIFS(CohortBreakout!U:U,CohortBreakout!$B:$B,$B56,CohortBreakout!$A:$A,$B$1),0) -> 0
B57: 2019-11-01 | N57: =IF($B57<EDATE($B$2,-1),SUMIFS(CohortBreakout!M:M,CohortBreakout!$B:$B,$B57,CohortBreakout!$A:$A,$B$1),0) -> 6756939 | O57: =IF($B57<EDATE($B$2,-1),SUMIFS(CohortBreakout!N:N,CohortBreakout!$B:$B,$B57,CohortBreakout!$A:$A,$B$1),0) -> 25619711 | P57: =IF($B57<EDATE($B$2,-1),SUMIFS(CohortBreakout!O:O,CohortBreakout!$B:$B,$B57,CohortBreakout!$A:$A,$B$1),0) -> 14187172 | Q57: =IF($B57<EDATE($B$2,-1),SUMIFS(CohortBreakout!P:P,CohortBreakout!$B:$B,$B57,CohortBreakout!$A:$A,$B$1),0) -> 9963445 | R57: =IF($B57<EDATE($B$2,-1),SUMIFS(CohortBreakout!Q:Q,CohortBreakout!$B:$B,$B57,CohortBreakout!$A:$A,$B$1),0) -> 6423969 | S57: =IF($B57<EDATE($B$2,-1),SUMIFS(CohortBreakout!R:R,CohortBreakout!$B:$B,$B57,CohortBreakout!$A:$A,$B$1),0) -> 8196317 | T57: =IF($B57<EDATE($B$2,-1),SUMIFS(CohortBreakout!S:S,CohortBreakout!$B:$B,$B57,CohortBreakout!$A:$A,$B$1),0) -> 0 | U57: =IF($B57<EDATE($B$2,-1),SUMIFS(CohortBreakout!T:T,CohortBreakout!$B:$B,$B57,CohortBreakout!$A:$A,$B$1),0) -> 6057 | V57: =IF($B57<EDATE($B$2,-1),SUMIFS(CohortBreakout!U:U,CohortBreakout!$B:$B,$B57,CohortBreakout!$A:$A,$B$1),0) -> 0
B58: 2019-10-01 | N58: =IF($B58<EDATE($B$2,-1),SUMIFS(CohortBreakout!M:M,CohortBreakout!$B:$B,$B58,CohortBreakout!$A:$A,$B$1),0) -> 6747933 | O58: =IF($B58<EDATE($B$2,-1),SUMIFS(CohortBreakout!N:N,CohortBreakout!$B:$B,$B58,CohortBreakout!$A:$A,$B$1),0) -> 25737052 | P58: =IF($B58<EDATE($B$2,-1),SUMIFS(CohortBreakout!O:O,CohortBreakout!$B:$B,$B58,CohortBreakout!$A:$A,$B$1),0) -> 14228287 | Q58: =IF($B58<EDATE($B$2,-1),SUMIFS(CohortBreakout!P:P,CohortBreakout!$B:$B,$B58,CohortBreakout!$A:$A,$B$1),0) -> 10033923 | R58: =IF($B58<EDATE($B$2,-1),SUMIFS(CohortBreakout!Q:Q,CohortBreakout!$B:$B,$B58,CohortBreakout!$A:$A,$B$1),0) -> 6427959 | S58: =IF($B58<EDATE($B$2,-1),SUMIFS(CohortBreakout!R:R,CohortBreakout!$B:$B,$B58,CohortBreakout!$A:$A,$B$1),0) -> 8231299 | T58: =IF($B58<EDATE($B$2,-1),SUMIFS(CohortBreakout!S:S,CohortBreakout!$B:$B,$B58,CohortBreakout!$A:$A,$B$1),0) -> 0 | U58: =IF($B58<EDATE($B$2,-1),SUMIFS(CohortBreakout!T:T,CohortBreakout!$B:$B,$B58,CohortBreakout!$A:$A,$B$1),0) -> 6479 | V58: =IF($B58<EDATE($B$2,-1),SUMIFS(CohortBreakout!U:U,CohortBreakout!$B:$B,$B58,CohortBreakout!$A:$A,$B$1),0) -> 0
B59: 2019-09-01 | N59: =IF($B59<EDATE($B$2,-1),SUMIFS(CohortBreakout!M:M,CohortBreakout!$B:$B,$B59,CohortBreakout!$A:$A,$B$1),0) -> 6663970 | O59: =IF($B59<EDATE($B$2,-1),SUMIFS(CohortBreakout!N:N,CohortBreakout!$B:$B,$B59,CohortBreakout!$A:$A,$B$1),0) -> 25559249 | P59: =IF($B59<EDATE($B$2,-1),SUMIFS(CohortBreakout!O:O,CohortBreakout!$B:$B,$B59,CohortBreakout!$A:$A,$B$1),0) -> 14008168 | Q59: =IF($B59<EDATE($B$2,-1),SUMIFS(CohortBreakout!P:P,CohortBreakout!$B:$B,$B59,CohortBreakout!$A:$A,$B$1),0) -> 9956865 | R59: =IF($B59<EDATE($B$2,-1),SUMIFS(CohortBreakout!Q:Q,CohortBreakout!$B:$B,$B59,CohortBreakout!$A:$A,$B$1),0) -> 6363420 | S59: =IF($B59<EDATE($B$2,-1),SUMIFS(CohortBreakout!R:R,CohortBreakout!$B:$B,$B59,CohortBreakout!$A:$A,$B$1),0) -> 8190421 | T59: =IF($B59<EDATE($B$2,-1),SUMIFS(CohortBreakout!S:S,CohortBreakout!$B:$B,$B59,CohortBreakout!$A:$A,$B$1),0) -> 0 | U59: =IF($B59<EDATE($B$2,-1),SUMIFS(CohortBreakout!T:T,CohortBreakout!$B:$B,$B59,CohortBreakout!$A:$A,$B$1),0) -> 7135 | V59: =IF($B59<EDATE($B$2,-1),SUMIFS(CohortBreakout!U:U,CohortBreakout!$B:$B,$B59,CohortBreakout!$A:$A,$B$1),0) -> 0
B60: 2019-08-01 | N60: =IF($B60<EDATE($B$2,-1),SUMIFS(CohortBreakout!M:M,CohortBreakout!$B:$B,$B60,CohortBreakout!$A:$A,$B$1),0) -> 6681985 | O60: =IF($B60<EDATE($B$2,-1),SUMIFS(CohortBreakout!N:N,CohortBreakout!$B:$B,$B60,CohortBreakout!$A:$A,$B$1),0) -> 25837027 | P60: =IF($B60<EDATE($B$2,-1),SUMIFS(CohortBreakout!O:O,CohortBreakout!$B:$B,$B60,CohortBreakout!$A:$A,$B$1),0) -> 14242204 | Q60: =IF($B60<EDATE($B$2,-1),SUMIFS(CohortBreakout!P:P,CohortBreakout!$B:$B,$B60,CohortBreakout!$A:$A,$B$1),0) -> 10080582 | R60: =IF($B60<EDATE($B$2,-1),SUMIFS(CohortBreakout!Q:Q,CohortBreakout!$B:$B,$B60,CohortBreakout!$A:$A,$B$1),0) -> 6383145 | S60: =IF($B60<EDATE($B$2,-1),SUMIFS(CohortBreakout!R:R,CohortBreakout!$B:$B,$B60,CohortBreakout!$A:$A,$B$1),0) -> 8244319 | T60: =IF($B60<EDATE($B$2,-1),SUMIFS(CohortBreakout!S:S,CohortBreakout!$B:$B,$B60,CohortBreakout!$A:$A,$B$1),0) -> 0 | U60: =IF($B60<EDATE($B$2,-1),SUMIFS(CohortBreakout!T:T,CohortBreakout!$B:$B,$B60,CohortBreakout!$A:$A,$B$1),0) -> 7556 | V60: =IF($B60<EDATE($B$2,-1),SUMIFS(CohortBreakout!U:U,CohortBreakout!$B:$B,$B60,CohortBreakout!$A:$A,$B$1),0) -> 0
B61: 2019-07-01 | N61: =IF($B61<EDATE($B$2,-1),SUMIFS(CohortBreakout!M:M,CohortBreakout!$B:$B,$B61,CohortBreakout!$A:$A,$B$1),0) -> 6655153 | O61: =IF($B61<EDATE($B$2,-1),SUMIFS(CohortBreakout!N:N,CohortBreakout!$B:$B,$B61,CohortBreakout!$A:$A,$B$1),0) -> 25836079 | P61: =IF($B61<EDATE($B$2,-1),SUMIFS(CohortBreakout!O:O,CohortBreakout!$B:$B,$B61,CohortBreakout!$A:$A,$B$1),0) -> 14255701 | Q61: =IF($B61<EDATE($B$2,-1),SUMIFS(CohortBreakout!P:P,CohortBreakout!$B:$B,$B61,CohortBreakout!$A:$A,$B$1),0) -> 10092495 | R61: =IF($B61<EDATE($B$2,-1),SUMIFS(CohortBreakout!Q:Q,CohortBreakout!$B:$B,$B61,CohortBreakout!$A:$A,$B$1),0) -> 6365302 | S61: =IF($B61<EDATE($B$2,-1),SUMIFS(CohortBreakout!R:R,CohortBreakout!$B:$B,$B61,CohortBreakout!$A:$A,$B$1),0) -> 8258030 | T61: =IF($B61<EDATE($B$2,-1),SUMIFS(CohortBreakout!S:S,CohortBreakout!$B:$B,$B61,CohortBreakout!$A:$A,$B$1),0) -> 0 | U61: =IF($B61<EDATE($B$2,-1),SUMIFS(CohortBreakout!T:T,CohortBreakout!$B:$B,$B61,CohortBreakout!$A:$A,$B$1),0) -> 7611 | V61: =IF($B61<EDATE($B$2,-1),SUMIFS(CohortBreakout!U:U,CohortBreakout!$B:$B,$B61,CohortBreakout!$A:$A,$B$1),0) -> 0
B62: 2019-06-01 | N62: =IF($B62<EDATE($B$2,-1),SUMIFS(CohortBreakout!M:M,CohortBreakout!$B:$B,$B62,CohortBreakout!$A:$A,$B$1),0) -> 6650525 | O62: =IF($B62<EDATE($B$2,-1),SUMIFS(CohortBreakout!N:N,CohortBreakout!$B:$B,$B62,CohortBreakout!$A:$A,$B$1),0) -> 25821061 | P62: =IF($B62<EDATE($B$2,-1),SUMIFS(CohortBreakout!O:O,CohortBreakout!$B:$B,$B62,CohortBreakout!$A:$A,$B$1),0) -> 14242771 | Q62: =IF($B62<EDATE($B$2,-1),SUMIFS(CohortBreakout!P:P,CohortBreakout!$B:$B,$B62,CohortBreakout!$A:$A,$B$1),0) -> 10077144 | R62: =IF($B62<EDATE($B$2,-1),SUMIFS(CohortBreakout!Q:Q,CohortBreakout!$B:$B,$B62,CohortBreakout!$A:$A,$B$1),0) -> 6338580 | S62: =IF($B62<EDATE($B$2,-1),SUMIFS(CohortBreakout!R:R,CohortBreakout!$B:$B,$B62,CohortBreakout!$A:$A,$B$1),0) -> 8267136 | T62: =IF($B62<EDATE($B$2,-1),SUMIFS(CohortBreakout!S:S,CohortBreakout!$B:$B,$B62,CohortBreakout!$A:$A,$B$1),0) -> 0 | U62: =IF($B62<EDATE($B$2,-1),SUMIFS(CohortBreakout!T:T,CohortBreakout!$B:$B,$B62,CohortBreakout!$A:$A,$B$1),0) -> 7789 | V62: =IF($B62<EDATE($B$2,-1),SUMIFS(CohortBreakout!U:U,CohortBreakout!$B:$B,$B62,CohortBreakout!$A:$A,$B$1),0) -> 0
B63: 2019-05-01 | N63: =IF($B63<EDATE($B$2,-1),SUMIFS(CohortBreakout!M:M,CohortBreakout!$B:$B,$B63,CohortBreakout!$A:$A,$B$1),0) -> 6673452 | O63: =IF($B63<EDATE($B$2,-1),SUMIFS(CohortBreakout!N:N,CohortBreakout!$B:$B,$B63,CohortBreakout!$A:$A,$B$1),0) -> 25840668 | P63: =IF($B63<EDATE($B$2,-1),SUMIFS(CohortBreakout!O:O,CohortBreakout!$B:$B,$B63,CohortBreakout!$A:$A,$B$1),0) -> 14289506 | Q63: =IF($B63<EDATE($B$2,-1),SUMIFS(CohortBreakout!P:P,CohortBreakout!$B:$B,$B63,CohortBreakout!$A:$A,$B$1),0) -> 10097244 | R63: =IF($B63<EDATE($B$2,-1),SUMIFS(CohortBreakout!Q:Q,CohortBreakout!$B:$B,$B63,CohortBreakout!$A:$A,$B$1),0) -> 6328128 | S63: =IF($B63<EDATE($B$2,-1),SUMIFS(CohortBreakout!R:R,CohortBreakout!$B:$B,$B63,CohortBreakout!$A:$A,$B$1),0) -> 8267404 | T63: =IF($B63<EDATE($B$2,-1),SUMIFS(CohortBreakout!S:S,CohortBreakout!$B:$B,$B63,CohortBreakout!$A:$A,$B$1),0) -> 0 | U63: =IF($B63<EDATE($B$2,-1),SUMIFS(CohortBreakout!T:T,CohortBreakout!$B:$B,$B63,CohortBreakout!$A:$A,$B$1),0) -> 8023 | V63: =IF($B63<EDATE($B$2,-1),SUMIFS(CohortBreakout!U:U,CohortBreakout!$B:$B,$B63,CohortBreakout!$A:$A,$B$1),0) -> 0
B64: 2019-04-01 | N64: =IF($B64<EDATE($B$2,-1),SUMIFS(CohortBreakout!M:M,CohortBreakout!$B:$B,$B64,CohortBreakout!$A:$A,$B$1),0) -> 6692330 | O64: =IF($B64<EDATE($B$2,-1),SUMIFS(CohortBreakout!N:N,CohortBreakout!$B:$B,$B64,CohortBreakout!$A:$A,$B$1),0) -> 25880081 | P64: =IF($B64<EDATE($B$2,-1),SUMIFS(CohortBreakout!O:O,CohortBreakout!$B:$B,$B64,CohortBreakout!$A:$A,$B$1),0) -> 14323308 | Q64: =IF($B64<EDATE($B$2,-1),SUMIFS(CohortBreakout!P:P,CohortBreakout!$B:$B,$B64,CohortBreakout!$A:$A,$B$1),0) -> 10102188 | R64: =IF($B64<EDATE($B$2,-1),SUMIFS(CohortBreakout!Q:Q,CohortBreakout!$B:$B,$B64,CohortBreakout!$A:$A,$B$1),0) -> 6313707 | S64: =IF($B64<EDATE($B$2,-1),SUMIFS(CohortBreakout!R:R,CohortBreakout!$B:$B,$B64,CohortBreakout!$A:$A,$B$1),0) -> 8284253 | T64: =IF($B64<EDATE($B$2,-1),SUMIFS(CohortBreakout!S:S,CohortBreakout!$B:$B,$B64,CohortBreakout!$A:$A,$B$1),0) -> 0 | U64: =IF($B64<EDATE($B$2,-1),SUMIFS(CohortBreakout!T:T,CohortBreakout!$B:$B,$B64,CohortBreakout!$A:$A,$B$1),0) -> 8293 | V64: =IF($B64<EDATE($B$2,-1),SUMIFS(CohortBreakout!U:U,CohortBreakout!$B:$B,$B64,CohortBreakout!$A:$A,$B$1),0) -> 0
B65: 2019-03-01 | N65: =IF($B65<EDATE($B$2,-1),SUMIFS(CohortBreakout!M:M,CohortBreakout!$B:$B,$B65,CohortBreakout!$A:$A,$B$1),0) -> 6716097 | O65: =IF($B65<EDATE($B$2,-1),SUMIFS(CohortBreakout!N:N,CohortBreakout!$B:$B,$B65,CohortBreakout!$A:$A,$B$1),0) -> 25933620 | P65: =IF($B65<EDATE($B$2,-1),SUMIFS(CohortBreakout!O:O,CohortBreakout!$B:$B,$B65,CohortBreakout!$A:$A,$B$1),0) -> 14380375 | Q65: =IF($B65<EDATE($B$2,-1),SUMIFS(CohortBreakout!P:P,CohortBreakout!$B:$B,$B65,CohortBreakout!$A:$A,$B$1),0) -> 10112579 | R65: =IF($B65<EDATE($B$2,-1),SUMIFS(CohortBreakout!Q:Q,CohortBreakout!$B:$B,$B65,CohortBreakout!$A:$A,$B$1),0) -> 6301578 | S65: =IF($B65<EDATE($B$2,-1),SUMIFS(CohortBreakout!R:R,CohortBreakout!$B:$B,$B65,CohortBreakout!$A:$A,$B$1),0) -> 8299830 | T65: =IF($B65<EDATE($B$2,-1),SUMIFS(CohortBreakout!S:S,CohortBreakout!$B:$B,$B65,CohortBreakout!$A:$A,$B$1),0) -> 0 | U65: =IF($B65<EDATE($B$2,-1),SUMIFS(CohortBreakout!T:T,CohortBreakout!$B:$B,$B65,CohortBreakout!$A:$A,$B$1),0) -> 8556 | V65: =IF($B65<EDATE($B$2,-1),SUMIFS(CohortBreakout!U:U,CohortBreakout!$B:$B,$B65,CohortBreakout!$A:$A,$B$1),0) -> 0
B66: 2019-02-01 | N66: =IF($B66<EDATE($B$2,-1),SUMIFS(CohortBreakout!M:M,CohortBreakout!$B:$B,$B66,CohortBreakout!$A:$A,$B$1),0) -> 6698800 | O66: =IF($B66<EDATE($B$2,-1),SUMIFS(CohortBreakout!N:N,CohortBreakout!$B:$B,$B66,CohortBreakout!$A:$A,$B$1),0) -> 25960906 | P66: =IF($B66<EDATE($B$2,-1),SUMIFS(CohortBreakout!O:O,CohortBreakout!$B:$B,$B66,CohortBreakout!$A:$A,$B$1),0) -> 14391102 | Q66: =IF($B66<EDATE($B$2,-1),SUMIFS(CohortBreakout!P:P,CohortBreakout!$B:$B,$B66,CohortBreakout!$A:$A,$B$1),0) -> 10111551 | R66: =IF($B66<EDATE($B$2,-1),SUMIFS(CohortBreakout!Q:Q,CohortBreakout!$B:$B,$B66,CohortBreakout!$A:$A,$B$1),0) -> 6288381 | S66: =IF($B66<EDATE($B$2,-1),SUMIFS(CohortBreakout!R:R,CohortBreakout!$B:$B,$B66,CohortBreakout!$A:$A,$B$1),0) -> 8323734 | T66: =IF($B66<EDATE($B$2,-1),SUMIFS(CohortBreakout!S:S,CohortBreakout!$B:$B,$B66,CohortBreakout!$A:$A,$B$1),0) -> 0 | U66: =IF($B66<EDATE($B$2,-1),SUMIFS(CohortBreakout!T:T,CohortBreakout!$B:$B,$B66,CohortBreakout!$A:$A,$B$1),0) -> 8763 | V66: =IF($B66<EDATE($B$2,-1),SUMIFS(CohortBreakout!U:U,CohortBreakout!$B:$B,$B66,CohortBreakout!$A:$A,$B$1),0) -> 0
B67: 2019-01-01 | N67: =IF($B67<EDATE($B$2,-1),SUMIFS(CohortBreakout!M:M,CohortBreakout!$B:$B,$B67,CohortBreakout!$A:$A,$B$1),0) -> 6668020 | O67: =IF($B67<EDATE($B$2,-1),SUMIFS(CohortBreakout!N:N,CohortBreakout!$B:$B,$B67,CohortBreakout!$A:$A,$B$1),0) -> 25705716 | P67: =IF($B67<EDATE($B$2,-1),SUMIFS(CohortBreakout!O:O,CohortBreakout!$B:$B,$B67,CohortBreakout!$A:$A,$B$1),0) -> 14200006 | Q67: =IF($B67<EDATE($B$2,-1),SUMIFS(CohortBreakout!P:P,CohortBreakout!$B:$B,$B67,CohortBreakout!$A:$A,$B$1),0) -> 10007506 | R67: =IF($B67<EDATE($B$2,-1),SUMIFS(CohortBreakout!Q:Q,CohortBreakout!$B:$B,$B67,CohortBreakout!$A:$A,$B$1),0) -> 6225834 | S67: =IF($B67<EDATE($B$2,-1),SUMIFS(CohortBreakout!R:R,CohortBreakout!$B:$B,$B67,CohortBreakout!$A:$A,$B$1),0) -> 8274501 | T67: =IF($B67<EDATE($B$2,-1),SUMIFS(CohortBreakout!S:S,CohortBreakout!$B:$B,$B67,CohortBreakout!$A:$A,$B$1),0) -> 0 | U67: =IF($B67<EDATE($B$2,-1),SUMIFS(CohortBreakout!T:T,CohortBreakout!$B:$B,$B67,CohortBreakout!$A:$A,$B$1),0) -> 8954 | V67: =IF($B67<EDATE($B$2,-1),SUMIFS(CohortBreakout!U:U,CohortBreakout!$B:$B,$B67,CohortBreakout!$A:$A,$B$1),0) -> 0

Sheet ADJUSTMENTS
A1: State: | B1: =INPUTS!G7 -> *
A2: Unwinding: | B2: =INPUTS!G8 -> 2023-04-01
D6: Monthly Enrollment Adjustments
B7: Duration | D7: =INPUTS!H21 -> CHIP | E7: =INPUTS!H22 -> Children | F7: =INPUTS!H23 -> Expansion | G7: =INPUTS!H24 -> Adult | H7: =INPUTS!H25 -> Aged | I7: =INPUTS!H26 -> Disabled | J7: =INPUTS!H27 -> COVID New | K7: =INPUTS!H28 -> Unknown | L7: =INPUTS!H29 -> 
B8: 2027-06-01
B9: =EDATE(B8,-1) -> 2027-05-01
B10: 2027-04-01
B11: 2027-03-01
B12: 2027-02-01
B13: 2027-01-01
B14: 2026-12-01
B15: 2026-11-01
B16: 2026-10-01
B17: 2026-09-01
B18: 2026-08-01
B19: 2026-07-01
B20: 2026-06-01
B21: 2026-05-01
B22: 2026-04-01
B23: 2026-03-01
B24: 2026-02-01
B25: 2026-01-01
B26: 2025-12-01
B27: 2025-11-01
B28: 2025-10-01
B29: 2025-09-01
B30: 2025-08-01
B31: 2025-07-01
B32: 2025-06-01
B33: 2025-05-01
B34: 2025-04-01
B35: 2025-03-01
B36: 2025-02-01
B37: 2025-01-01
B38: 2024-12-01
B39: 2024-11-01
B40: 2024-10-01
B41: 2024-09-01
B42: =EDATE(B41,-1) -> 2024-08-01
B43: 2024-07-01
B44: 2024-06-01
B45: 2024-05-01
B46: 2024-04-01
B47: 2024-03-01
B48: 2024-02-01
B49: 2024-01-01
B50: 2023-12-01
B51: 2023-11-01
B52: 2023-10-01
B53: 2023-09-01
B54: 2023-08-01
B55: 2023-07-01
B56: 2023-06-01
B57: 2023-05-01
B58: 2023-04-01
B59: 2023-03-01
B60: 2023-02-01
B61: 2023-01-01
B62: 2022-12-01
B63: 2022-11-01
B64: 2022-10-01
B65: 2022-09-01
B66: 2022-08-01
B67: 2022-07-01
B68: 2022-06-01
B69: 2022-05-01
B70: 2022-04-01
B71: 2022-03-01
B72: 2022-02-01
B73: 2022-01-01
B74: 2021-12-01
B75: 2021-11-01
B76: 2021-10-01
B77: 2021-09-01
B78: 2021-08-01
B79: 2021-07-01
B80: 2021-06-01
B81: 2021-05-01
B82: 2021-04-01
B83: 2021-03-01
B84: 2021-02-01
B85: 2021-01-01
B86: 2020-12-01
B87: 2020-11-01
B88: 2020-10-01
B89: 2020-09-01
B90: 2020-08-01
B91: 2020-07-01
B92: 2020-06-01
B93: 2020-05-01
B94: 2020-04-01
B95: 2020-03-01
B96: 2020-02-01
B97: 2020-01-01
B98: 2019-12-01
B99: 2019-11-01
B100: 2019-10-01
B101: 2019-09-01
B102: 2019-08-01
B103: 2019-07-01
B104: 2019-06-01
B105: =EDATE(B104,-1) -> 2019-05-01
B106: 2019-04-01
B107: 2019-03-01
B108: 2019-02-01
B109: 2019-01-01

Sheet MONTHLY OUTPUTS
C2: Enrollment | O2: Acuity Mix
A3: Month | C3: =MAIN!CZ13 -> CHIP | D3: =MAIN!DA13 -> Children | E3: =MAIN!DB13 -> Expansion | F3: =MAIN!DC13 -> Adult | G3: =MAIN!DD13 -> Aged | H3: =MAIN!DE13 -> Disabled | I3: =MAIN!DF13 -> COVID New | J3: =MAIN!DG13 -> Unknown | K3: =MAIN!DH13 ->  | L3: =MAIN!DI13 -> Non-ABD | M3: =MAIN!DJ13 -> All Populations | O3: =MAIN!DK13 -> CHIP | P3: =MAIN!DL13 -> Children | Q3: =MAIN!DM13 -> Expansion | R3: =MAIN!DN13 -> Adult | S3: =MAIN!DO13 -> Aged | T3: =MAIN!DP13 -> Disabled | U3: =MAIN!DQ13 -> COVID New | V3: =MAIN!DR13 -> Unknown | W3: =MAIN!DS13 ->  | X3: =MAIN!DT13 -> Non-ABD | Y3: =MAIN!DU13 -> All Populations
A4: =MAIN!B14 -> 2027-06-01 | C4: =MAIN!CZ14 -> 7183739.391 | D4: =MAIN!DA14 -> 30219062.34 | E4: =MAIN!DB14 -> 16098229.03 | F4: =MAIN!DC14 -> 11713891.87 | G4: =MAIN!DD14 -> 8019888.196 | H4: =MAIN!DE14 -> 9595558.888 | I4: =MAIN!DF14 -> 0 | J4: =MAIN!DG14 -> 0 | K4: =MAIN!DH14 -> 0 | L4: =MAIN!DI14 -> 65214922.63 | M4: =MAIN!DJ14 -> 82830369.71 | O4: =MAIN!DK14 -> 0.9963795712 | P4: =MAIN!DL14 -> 0.9973802837 | Q4: =MAIN!DM14 -> 0.9953971695 | R4: =MAIN!DN14 -> 0.994261112 | S4: =MAIN!DO14 -> 1 | T4: =MAIN!DP14 -> 1 | U4: =MAIN!DQ14 -> 1 | V4: =MAIN!DR14 -> 1 | W4: =MAIN!DS14 -> 1 | X4: =MAIN!DT14 -> 0.9959450713 | Y4: =MAIN!DU14 -> 0.9982060142
A5: =MAIN!B15 -> 2027-05-01 | C5: =MAIN!CZ15 -> 7165493.024 | D5: =MAIN!DA15 -> 30172006.3 | E5: =MAIN!DB15 -> 16090951.29 | F5: =MAIN!DC15 -> 11717858.89 | G5: =MAIN!DD15 -> 8012798.677 | H5: =MAIN!DE15 -> 9589218.182 | I5: =MAIN!DF15 -> 0 | J5: =MAIN!DG15 -> 0 | K5: =MAIN!DH15 -> 0 | L5: =MAIN!DI15 -> 65146309.51 | M5: =MAIN!DJ15 -> 82748326.37 | O5: =MAIN!DK15 -> 0.9963794938 | P5: =MAIN!DL15 -> 0.9973803122 | Q5: =MAIN!DM15 -> 0.9953969353 | R5: =MAIN!DN15 -> 0.9942611082 | S5: =MAIN!DO15 -> 1 | T5: =MAIN!DP15 -> 1 | U5: =MAIN!DQ15 -> 1 | V5: =MAIN!DR15 -> 1 | W5: =MAIN!DS15 -> 1 | X5: =MAIN!DT15 -> 0.9959439588 | Y5: =MAIN!DU15 -> 0.998205606
A6: =MAIN!B16 -> 2027-04-01 | C6: =MAIN!CZ16 -> 7147283.947 | D6: =MAIN!DA16 -> 30125035.79 | E6: =MAIN!DB16 -> 16083693.15 | F6: =MAIN!DC16 -> 11721827.26 | G6: =MAIN!DD16 -> 8005711.707 | H6: =MAIN!DE16 -> 9582881.258 | I6: =MAIN!DF16 -> 0 | J6: =MAIN!DG16 -> 0 | K6: =MAIN!DH16 -> 0 | L6: =MAIN!DI16 -> 65077840.15 | M6: =MAIN!DJ16 -> 82666433.12 | O6: =MAIN!DK16 -> 0.9963794072 | P6: =MAIN!DL16 -> 0.9973803399 | Q6: =MAIN!DM16 -> 0.9953966999 | R6: =MAIN!DN16 -> 0.9942611032 | S6: =MAIN!DO16 -> 1 | T6: =MAIN!DP16 -> 1 | U6: =MAIN!DQ16 -> 1 | V6: =MAIN!DR16 -> 1 | W6: =MAIN!DS16 -> 1 | X6: =MAIN!DT16 -> 0.9959428444 | Y6: =MAIN!DU16 -> 0.9982051956
A7: =MAIN!B17 -> 2027-03-01 | C7: =MAIN!CZ17 -> 7129112.09 | D7: =MAIN!DA17 -> 30078150.64 | E7: =MAIN!DB17 -> 16076454.58 | F7: =MAIN!DC17 -> 11725796.97 | G7: =MAIN!DD17 -> 7998627.283 | H7: =MAIN!DE17 -> 9576548.113 | I7: =MAIN!DF17 -> 0 | J7: =MAIN!DG17 -> 0 | K7: =MAIN!DH17 -> 0 | L7: =MAIN!DI17 -> 65009514.29 | M7: =MAIN!DJ17 -> 82584689.69 | O7: =MAIN!DK17 -> 0.9963793086 | P7: =MAIN!DL17 -> 0.9973803668 | Q7: =MAIN!DM17 -> 0.9953964634 | R7: =MAIN!DN17 -> 0.994261097 | S7: =MAIN!DO17 -> 1 | T7: =MAIN!DP17 -> 1 | U7: =MAIN!DQ17 -> 1 | V7: =MAIN!DR17 -> 1 | W7: =MAIN!DS17 -> 1 | X7: =MAIN!DT17 -> 0.9959417278 | Y7: =MAIN!DU17 -> 0.998204783
A8: =MAIN!B18 -> 2027-02-01 | C8: =MAIN!CZ18 -> 7110977.386 | D8: =MAIN!DA18 -> 30031350.71 | E8: =MAIN!DB18 -> 16069235.55 | F8: =MAIN!DC18 -> 11729768.03 | G8: =MAIN!DD18 -> 7991545.399 | H8: =MAIN!DE18 -> 9570218.743 | I8: =MAIN!DF18 -> 0 | J8: =MAIN!DG18 -> 0 | K8: =MAIN!DH18 -> 0 | L8: =MAIN!DI18 -> 64941331.67 | M8: =MAIN!DJ18 -> 82503095.81 | O8: =MAIN!DK18 -> 0.9963792356 | P8: =MAIN!DL18 -> 0.997380398 | Q8: =MAIN!DM18 -> 0.9953962502 | R8: =MAIN!DN18 -> 0.9942611222 | S8: =MAIN!DO18 -> 1 | T8: =MAIN!DP18 -> 1 | U8: =MAIN!DQ18 -> 1 | V8: =MAIN!DR18 -> 1 | W8: =MAIN!DS18 -> 1 | X8: =MAIN!DT18 -> 0.9959406293 | Y8: =MAIN!DU18 -> 0.998204377
A9: =MAIN!B19 -> 2027-01-01 | C9: =MAIN!CZ19 -> 7092879.771 | D9: =MAIN!DA19 -> 29984635.81 | E9: =MAIN!DB19 -> 16062036.01 | F9: =MAIN!DC19 -> 11733740.44 | G9: =MAIN!DD19 -> 7984466.052 | H9: =MAIN!DE19 -> 9563893.147 | I9: =MAIN!DF19 -> 0 | J9: =MAIN!DG19 -> 0 | K9: =MAIN!DH19 -> 0 | L9: =MAIN!DI19 -> 64873292.03 | M9: =MAIN!DJ19 -> 82421651.23 | O9: =MAIN!DK19 -> 0.9963792213 | P9: =MAIN!DL19 -> 0.9973804368 | Q9: =MAIN!DM19 -> 0.9953960724 | R9: =MAIN!DN19 -> 0.9942611945 | S9: =MAIN!DO19 -> 1 | T9: =MAIN!DP19 -> 1 | U9: =MAIN!DQ19 -> 1 | V9: =MAIN!DR19 -> 1 | W9: =MAIN!DS19 -> 1 | X9: =MAIN!DT19 -> 0.9959395601 | Y9: =MAIN!DU19 -> 0.9982039826
A10: =MAIN!B20 -> 2026-12-01 | C10: =MAIN!CZ20 -> 7074819.188 | D10: =MAIN!DA20 -> 29938005.81 | E10: =MAIN!DB20 -> 16054855.94 | F10: =MAIN!DC20 -> 11737714.19 | G10: =MAIN!DD20 -> 7977389.238 | H10: =MAIN!DE20 -> 9557571.321 | I10: =MAIN!DF20 -> 0 | J10: =MAIN!DG20 -> 0 | K10: =MAIN!DH20 -> 0 | L10: =MAIN!DI20 -> 64805395.13 | M10: =MAIN!DJ20 -> 82340355.69 | O10: =MAIN!DK20 -> 0.996379298 | P10: =MAIN!DL20 -> 0.9973804848 | Q10: =MAIN!DM20 -> 0.9953959331 | R10: =MAIN!DN20 -> 0.9942613123 | S10: =MAIN!DO20 -> 1 | T10: =MAIN!DP20 -> 1 | U10: =MAIN!DQ20 -> 1 | V10: =MAIN!DR20 -> 1 | W10: =MAIN!DS20 -> 1 | X10: =MAIN!DT20 -> 0.9959385237 | Y10: =MAIN!DU20 -> 0.9982036014
A11: =MAIN!B21 -> 2026-11-01 | C11: =MAIN!CZ21 -> 7056795.582 | D11: =MAIN!DA21 -> 29891460.55 | E11: =MAIN!DB21 -> 16047695.31 | F11: =MAIN!DC21 -> 11741689.29 | G11: =MAIN!DD21 -> 7970314.952 | H11: =MAIN!DE21 -> 9551253.262 | I11: =MAIN!DF21 -> 0 | J11: =MAIN!DG21 -> 0 | K11: =MAIN!DH21 -> 0 | L11: =MAIN!DI21 -> 64737640.73 | M11: =MAIN!DJ21 -> 82259208.95 | O11: =MAIN!DK21 -> 0.9963795059 | P11: =MAIN!DL21 -> 0.9973805434 | Q11: =MAIN!DM21 -> 0.995395822 | R11: =MAIN!DN21 -> 0.9942614579 | S11: =MAIN!DO21 -> 1 | T11: =MAIN!DP21 -> 1 | U11: =MAIN!DQ21 -> 1 | V11: =MAIN!DR21 -> 1 | W11: =MAIN!DS21 -> 1 | X11: =MAIN!DT21 -> 0.9959375163 | Y11: =MAIN!DU21 -> 0.9982032316
A12: =MAIN!B22 -> 2026-10-01 | C12: =MAIN!CZ22 -> 7038808.905 | D12: =MAIN!DA22 -> 29844999.87 | E12: =MAIN!DB22 -> 16040554.08 | F12: =MAIN!DC22 -> 11745665.74 | G12: =MAIN!DD22 -> 7963243.191 | H12: =MAIN!DE22 -> 9544938.969 | I12: =MAIN!DF22 -> 0 | J12: =MAIN!DG22 -> 0 | K12: =MAIN!DH22 -> 0 | L12: =MAIN!DI22 -> 64670028.6 | M12: =MAIN!DJ22 -> 82178210.76 | O12: =MAIN!DK22 -> 0.9963799246 | P12: =MAIN!DL22 -> 0.9973806188 | Q12: =MAIN!DM22 -> 0.9953957204 | R12: =MAIN!DN22 -> 0.9942616169 | S12: =MAIN!DO22 -> 1 | T12: =MAIN!DP22 -> 1 | U12: =MAIN!DQ22 -> 1 | V12: =MAIN!DR22 -> 1 | W12: =MAIN!DS22 -> 1 | X12: =MAIN!DT22 -> 0.9959365379 | Y12: =MAIN!DU22 -> 0.9982028733
A13: =MAIN!B23 -> 2026-09-01 | C13: =MAIN!CZ23 -> 7020859 | D13: =MAIN!DA23 -> 29798623.57 | E13: =MAIN!DB23 -> 16033432.19 | F13: =MAIN!DC23 -> 11749643.53 | G13: =MAIN!DD23 -> 7956173.948 | H13: =MAIN!DE23 -> 9538628.437 | I13: =MAIN!DF23 -> 0 | J13: =MAIN!DG23 -> 0 | K13: =MAIN!DH23 -> 0 | L13: =MAIN!DI23 -> 64602558.28 | M13: =MAIN!DJ23 -> 82097360.67 | O13: =MAIN!DK23 -> 0.9963806555 | P13: =MAIN!DL23 -> 0.9973807182 | Q13: =MAIN!DM23 -> 0.9953956195 | R13: =MAIN!DN23 -> 0.9942617756 | S13: =MAIN!DO23 -> 1 | T13: =MAIN!DP23 -> 1 | U13: =MAIN!DQ23 -> 1 | V13: =MAIN!DR23 -> 1 | W13: =MAIN!DS23 -> 1 | X13: =MAIN!DT23 -> 0.9959355931 | Y13: =MAIN!DU23 -> 0.9982025284
A14: =MAIN!B24 -> 2026-08-01 | C14: =MAIN!CZ24 -> 7002945.612 | D14: =MAIN!DA24 -> 29752331.4 | E14: =MAIN!DB24 -> 16026329.52 | F14: =MAIN!DC24 -> 11753622.61 | G14: =MAIN!DD24 -> 7949107.218 | H14: =MAIN!DE24 -> 9532321.664 | I14: =MAIN!DF24 -> 0 | J14: =MAIN!DG24 -> 0 | K14: =MAIN!DH24 -> 0 | L14: =MAIN!DI24 -> 64535229.15 | M14: =MAIN!DJ24 -> 82016658.03 | O14: =MAIN!DK24 -> 0.9963816795 | P14: =MAIN!DL24 -> 0.9973808323 | Q14: =MAIN!DM24 -> 0.9953955297 | R14: =MAIN!DN24 -> 0.9942619652 | S14: =MAIN!DO24 -> 1 | T14: =MAIN!DP24 -> 1 | U14: =MAIN!DQ24 -> 1 | V14: =MAIN!DR24 -> 1 | W14: =MAIN!DS24 -> 1 | X14: =MAIN!DT24 -> 0.9959346878 | Y14: =MAIN!DU24 -> 0.9982021996
A15: =MAIN!B25 -> 2026-07-01 | C15: =MAIN!CZ25 -> 6985068.398 | D15: =MAIN!DA25 -> 29706123.12 | E15: =MAIN!DB25 -> 16019245.99 | F15: =MAIN!DC25 -> 11757602.96 | G15: =MAIN!DD25 -> 7942042.993 | H15: =MAIN!DE25 -> 9526018.645 | I15: =MAIN!DF25 -> 0 | J15: =MAIN!DG25 -> 0 | K15: =MAIN!DH25 -> 0 | L15: =MAIN!DI25 -> 64468040.47 | M15: =MAIN!DJ25 -> 81936102.11 | O15: =MAIN!DK25 -> 0.9963793124 | P15: =MAIN!DL25 -> 0.9973802808 | Q15: =MAIN!DM25 -> 0.9953925148 | R15: =MAIN!DN25 -> 0.9942577937 | S15: =MAIN!DO25 -> 1 | T15: =MAIN!DP25 -> 1 | U15: =MAIN!DQ25 -> 1 | V15: =MAIN!DR25 -> 1 | W15: =MAIN!DS25 -> 1 | X15: =MAIN!DT25 -> 0.9959313078 | Y15: =MAIN!DU25 -> 0.9982007776
A16: =MAIN!B26 -> 2026-06-01 | C16: =MAIN!CZ26 -> 6967226.938 | D16: =MAIN!DA26 -> 29659998.44 | E16: =MAIN!DB26 -> 16012181.49 | F16: =MAIN!DC26 -> 11761584.55 | G16: =MAIN!DD26 -> 7934981.269 | H16: =MAIN!DE26 -> 9519719.378 | I16: =MAIN!DF26 -> 0 | J16: =MAIN!DG26 -> 0 | K16: =MAIN!DH26 -> 0 | L16: =MAIN!DI26 -> 64400991.42 | M16: =MAIN!DJ26 -> 81855692.06 | O16: =MAIN!DK26 -> 0.9963740028 | P16: =MAIN!DL26 -> 0.9973794218 | Q16: =MAIN!DM26 -> 0.9953881309 | R16: =MAIN!DN26 -> 0.9942515382 | S16: =MAIN!DO26 -> 1 | T16: =MAIN!DP26 -> 1 | U16: =MAIN!DQ26 -> 1 | V16: =MAIN!DR26 -> 1 | W16: =MAIN!DS26 -> 1 | X16: =MAIN!DT26 -> 0.9959266513 | Y16: =MAIN!DU26 -> 0.9981987913
A17: =MAIN!B27 -> 2026-05-01 | C17: =MAIN!CZ27 -> 6949420.721 | D17: =MAIN!DA27 -> 29613957.08 | E17: =MAIN!DB27 -> 16005135.93 | F17: =MAIN!DC27 -> 11765567.37 | G17: =MAIN!DD27 -> 7927922.038 | H17: =MAIN!DE27 -> 9513423.858 | I17: =MAIN!DF27 -> 0 | J17: =MAIN!DG27 -> 0 | K17: =MAIN!DH27 -> 0 | L17: =MAIN!DI27 -> 64334081.1 | M17: =MAIN!DJ27 -> 81775426.99 | O17: =MAIN!DK27 -> 0.9963658001 | P17: =MAIN!DL27 -> 0.9973784855 | Q17: =MAIN!DM27 -> 0.9953835323 | R17: =MAIN!DN27 -> 0.9942455385 | S17: =MAIN!DO27 -> 1 | T17: =MAIN!DP27 -> 1 | U17: =MAIN!DQ27 -> 1 | V17: =MAIN!DR27 -> 1 | W17: =MAIN!DS27 -> 1 | X17: =MAIN!DT27 -> 0.9959217522 | Y17: =MAIN!DU27 -> 0.9981966967
A18: =MAIN!B28 -> 2026-04-01 | C18: =MAIN!CZ28 -> 6931649.163 | D18: =MAIN!DA28 -> 29567998.75 | E18: =MAIN!DB28 -> 15998109.23 | F18: =MAIN!DC28 -> 11769551.39 | G18: =MAIN!DD28 -> 7920865.297 | H18: =MAIN!DE28 -> 9507132.083 | I18: =MAIN!DF28 -> 0 | J18: =MAIN!DG28 -> 0 | K18: =MAIN!DH28 -> 0 | L18: =MAIN!DI28 -> 64267308.54 | M18: =MAIN!DJ28 -> 81695305.92 | O18: =MAIN!DK28 -> 0.9963540616 | P18: =MAIN!DL28 -> 0.9973776311 | Q18: =MAIN!DM28 -> 0.9953803832 | R18: =MAIN!DN28 -> 0.9942419418 | S18: =MAIN!DO28 -> 1 | T18: =MAIN!DP28 -> 1 | U18: =MAIN!DQ28 -> 1 | V18: =MAIN!DR28 -> 1 | W18: =MAIN!DS28 -> 1 | X18: =MAIN!DT28 -> 0.9959176452 | Y18: =MAIN!DU28 -> 0.9981949504
A19: =MAIN!B29 -> 2026-03-01 | C19: =MAIN!CZ29 -> 6913911.958 | D19: =MAIN!DA29 -> 29522123.25 | E19: =MAIN!DB29 -> 15991101.45 | F19: =MAIN!DC29 -> 11773536.67 | G19: =MAIN!DD29 -> 7913811.043 | H19: =MAIN!DE29 -> 9500844.05 | I19: =MAIN!DF29 -> 0 | J19: =MAIN!DG29 -> 0 | K19: =MAIN!DH29 -> 0 | L19: =MAIN!DI29 -> 64200673.33 | M19: =MAIN!DJ29 -> 81615328.42 | O19: =MAIN!DK29 -> 0.9963352581 | P19: =MAIN!DL29 -> 0.9973762334 | Q19: =MAIN!DM29 -> 0.9953797049 | R19: =MAIN!DN29 -> 0.9942402712 | S19: =MAIN!DO29 -> 1 | T19: =MAIN!DP29 -> 1 | U19: =MAIN!DQ29 -> 1 | V19: =MAIN!DR29 -> 1 | W19: =MAIN!DS29 -> 1 | X19: =MAIN!DT29 -> 0.9959139514 | Y19: =MAIN!DU29 -> 0.9981933851
A20: =MAIN!B30 -> 2026-02-01 | C20: =MAIN!CZ30 -> 6896218.49 | D20: =MAIN!DA30 -> 29476335.99 | E20: =MAIN!DB30 -> 15984117.55 | F20: =MAIN!DC30 -> 11777526.02 | G20: =MAIN!DD30 -> 7906759.459 | H20: =MAIN!DE30 -> 9494559.866 | I20: =MAIN!DF30 -> 0 | J20: =MAIN!DG30 -> 0 | K20: =MAIN!DH30 -> 0 | L20: =MAIN!DI30 -> 64134198.06 | M20: =MAIN!DJ30 -> 81535517.38 | O20: =MAIN!DK30 -> 0.9963073715 | P20: =MAIN!DL30 -> 0.9973742956 | Q20: =MAIN!DM30 -> 0.9953802214 | R20: =MAIN!DN30 -> 0.9942405176 | S20: =MAIN!DO30 -> 1 | T20: =MAIN!DP30 -> 1 | U20: =MAIN!DQ30 -> 1 | V20: =MAIN!DR30 -> 1 | W20: =MAIN!DS30 -> 1 | X20: =MAIN!DT30 -> 0.9959101898 | Y20: =MAIN!DU30 -> 0.9981917883
A21: =MAIN!B31 -> 2026-01-01 | C21: =MAIN!CZ31 -> 6878577.214 | D21: =MAIN!DA31 -> 29430640.11 | E21: =MAIN!DB31 -> 15977160.06 | F21: =MAIN!DC31 -> 11781520.84 | G21: =MAIN!DD31 -> 7899710.633 | H21: =MAIN!DE31 -> 9488279.603 | I21: =MAIN!DF31 -> 0 | J21: =MAIN!DG31 -> 0 | K21: =MAIN!DH31 -> 0 | L21: =MAIN!DI31 -> 64067898.22 | M21: =MAIN!DJ31 -> 81455888.46 | O21: =MAIN!DK31 -> 0.9962781124 | P21: =MAIN!DL31 -> 0.9973731436 | Q21: =MAIN!DM31 -> 0.9953763958 | R21: =MAIN!DN31 -> 0.9942314718 | S21: =MAIN!DO31 -> 1 | T21: =MAIN!DP31 -> 1 | U21: =MAIN!DQ31 -> 1 | V21: =MAIN!DR31 -> 1 | W21: =MAIN!DS31 -> 1 | X21: =MAIN!DT31 -> 0.9959029468 | Y21: =MAIN!DU31 -> 0.9981886542
A22: =MAIN!B32 -> 2025-12-01 | C22: =MAIN!CZ32 -> 6860995.886 | D22: =MAIN!DA32 -> 29385036.95 | E22: =MAIN!DB32 -> 15970229.47 | F22: =MAIN!DC32 -> 11785521.44 | G22: =MAIN!DD32 -> 7892664.576 | H22: =MAIN!DE32 -> 9482003.299 | I22: =MAIN!DF32 -> 0 | J22: =MAIN!DG32 -> 0 | K22: =MAIN!DH32 -> 0 | L22: =MAIN!DI32 -> 64001783.74 | M22: =MAIN!DJ32 -> 81376451.61 | O22: =MAIN!DK32 -> 0.9965781106 | P22: =MAIN!DL32 -> 0.9974654238 | Q22: =MAIN!DM32 -> 0.99573097 | R22: =MAIN!DN32 -> 0.9948151573 | S22: =MAIN!DO32 -> 1 | T22: =MAIN!DP32 -> 1 | U22: =MAIN!DQ32 -> 1 | V22: =MAIN!DR32 -> 1 | W22: =MAIN!DS32 -> 1 | X22: =MAIN!DT32 -> 0.9962139242 | Y22: =MAIN!DU32 -> 0.9983259026
A23: =MAIN!B33 -> 2025-11-01 | C23: =MAIN!CZ33 -> 6843481.407 | D23: =MAIN!DA33 -> 29339525.74 | E23: =MAIN!DB33 -> 15963324 | F23: =MAIN!DC33 -> 11789526.79 | G23: =MAIN!DD33 -> 7885621.211 | H23: =MAIN!DE33 -> 9475730.96 | I23: =MAIN!DF33 -> 0 | J23: =MAIN!DG33 -> 0 | K23: =MAIN!DH33 -> 0 | L23: =MAIN!DI33 -> 63935857.93 | M23: =MAIN!DJ33 -> 81297210.1 | O23: =MAIN!DK33 -> 0.9968406686 | P23: =MAIN!DL33 -> 0.9974982 | Q23: =MAIN!DM33 -> 0.9958895371 | R23: =MAIN!DN33 -> 0.9950912592 | S23: =MAIN!DO33 -> 1 | T23: =MAIN!DP33 -> 1 | U23: =MAIN!DQ33 -> 1 | V23: =MAIN!DR33 -> 1 | W23: =MAIN!DS33 -> 1 | X23: =MAIN!DT33 -> 0.9963633952 | Y23: =MAIN!DU33 -> 0.9983919102
A24: =MAIN!B34 -> 2025-10-01 | C24: =MAIN!CZ34 -> 6826041.079 | D24: =MAIN!DA34 -> 29294106.19 | E24: =MAIN!DB34 -> 15956442.3 | F24: =MAIN!DC34 -> 11793536.16 | G24: =MAIN!DD34 -> 7878580.477 | H24: =MAIN!DE34 -> 9469462.596 | I24: =MAIN!DF34 -> 0 | J24: =MAIN!DG34 -> 0 | K24: =MAIN!DH34 -> 0 | L24: =MAIN!DI34 -> 63870125.72 | M24: =MAIN!DJ34 -> 81218168.8 | O24: =MAIN!DK34 -> 0.9970998739 | P24: =MAIN!DL34 -> 0.9974912275 | Q24: =MAIN!DM34 -> 0.9959041377 | R24: =MAIN!DN34 -> 0.9950534233 | S24: =MAIN!DO34 -> 1 | T24: =MAIN!DP34 -> 1 | U24: =MAIN!DQ34 -> 1 | V24: =MAIN!DR34 -> 1 | W24: =MAIN!DS34 -> 1 | X24: =MAIN!DT34 -> 0.9963729932 | Y24: =MAIN!DU34 -> 0.9983961943
A25: =MAIN!B35 -> 2025-09-01 | C25: =MAIN!CZ35 -> 6808681.862 | D25: =MAIN!DA35 -> 29248777.81 | E25: =MAIN!DB35 -> 15949582.81 | F25: =MAIN!DC35 -> 11797548.68 | G25: =MAIN!DD35 -> 7871542.31 | H25: =MAIN!DE35 -> 9463198.218 | I25: =MAIN!DF35 -> 0 | J25: =MAIN!DG35 -> 0 | K25: =MAIN!DH35 -> 0 | L25: =MAIN!DI35 -> 63804591.16 | M25: =MAIN!DJ35 -> 81139331.69 | O25: =MAIN!DK35 -> 0.997416313 | P25: =MAIN!DL35 -> 0.9974514514 | Q25: =MAIN!DM35 -> 0.9957124454 | R25: =MAIN!DN35 -> 0.9947268144 | S25: =MAIN!DO35 -> 1 | T25: =MAIN!DP35 -> 1 | U25: =MAIN!DQ35 -> 1 | V25: =MAIN!DR35 -> 1 | W25: =MAIN!DS35 -> 1 | X25: =MAIN!DT35 -> 0.9962405959 | Y25: =MAIN!DU35 -> 0.9983378222
A26: =MAIN!B36 -> 2025-08-01 | C26: =MAIN!CZ36 -> 6791387.143 | D26: =MAIN!DA36 -> 29203533.27 | E26: =MAIN!DB36 -> 15942736.19 | F26: =MAIN!DC36 -> 11801558.57 | G26: =MAIN!DD36 -> 7864506.521 | H26: =MAIN!DE36 -> 9456937.656 | I26: =MAIN!DF36 -> 0 | J26: =MAIN!DG36 -> 0 | K26: =MAIN!DH36 -> 0 | L26: =MAIN!DI36 -> 63739215.17 | M26: =MAIN!DJ36 -> 81060659.34 | O26: =MAIN!DK36 -> 0.9980422974 | P26: =MAIN!DL36 -> 0.9974959086 | Q26: =MAIN!DM36 -> 0.9953978695 | R26: =MAIN!DN36 -> 0.9944666659 | S26: =MAIN!DO36 -> 1 | T26: =MAIN!DP36 -> 1 | U26: =MAIN!DQ36 -> 1 | V26: =MAIN!DR36 -> 1 | W26: =MAIN!DS36 -> 1 | X26: =MAIN!DT36 -> 0.9961508203 | Y26: =MAIN!DU36 -> 0.998298263
A27: =MAIN!B37 -> 2025-07-01 | C27: =MAIN!CZ37 -> 6773296.332 | D27: =MAIN!DA37 -> 29157687.43 | E27: =MAIN!DB37 -> 15935307.46 | F27: =MAIN!DC37 -> 11805193.67 | G27: =MAIN!DD37 -> 7857445.72 | H27: =MAIN!DE37 -> 9450642.976 | I27: =MAIN!DF37 -> 0 | J27: =MAIN!DG37 -> 0 | K27: =MAIN!DH37 -> 0 | L27: =MAIN!DI37 -> 63671484.89 | M27: =MAIN!DJ37 -> 80979573.58 | O27: =MAIN!DK37 -> 0.9988559302 | P27: =MAIN!DL37 -> 0.9975274347 | Q27: =MAIN!DM37 -> 0.9952372778 | R27: =MAIN!DN37 -> 0.9941966958 | S27: =MAIN!DO37 -> 1 | T27: =MAIN!DP37 -> 1 | U27: =MAIN!DQ37 -> 1 | V27: =MAIN!DR37 -> 1 | W27: =MAIN!DS37 -> 1 | X27: =MAIN!DT37 -> 0.9961072655 | Y27: =MAIN!DU37 -> 0.998279129
A28: =MAIN!B38 -> 2025-06-01 | C28: =MAIN!CZ38 -> 6754490.15 | D28: =MAIN!DA38 -> 29111602.43 | E28: =MAIN!DB38 -> 15927612 | F28: =MAIN!DC38 -> 11808643.45 | G28: =MAIN!DD38 -> 7850374.1 | H28: =MAIN!DE38 -> 9444325.27 | I28: =MAIN!DF38 -> 0 | J28: =MAIN!DG38 -> 0 | K28: =MAIN!DH38 -> 0 | L28: =MAIN!DI38 -> 63602348.02 | M28: =MAIN!DJ38 -> 80897047.39 | O28: =MAIN!DK38 -> 0.9992513769 | P28: =MAIN!DL38 -> 0.9974772496 | Q28: =MAIN!DM38 -> 0.996144554 | R28: =MAIN!DN38 -> 0.9961319321 | S28: =MAIN!DO38 -> 1 | T28: =MAIN!DP38 -> 1 | U28: =MAIN!DQ38 -> 1 | V28: =MAIN!DR38 -> 1 | W28: =MAIN!DS38 -> 1 | X28: =MAIN!DT38 -> 0.996890976 | Y28: =MAIN!DU38 -> 0.9986250586
A29: =MAIN!B39 -> 2025-05-01 | C29: =MAIN!CZ39 -> 6735030.522 | D29: =MAIN!DA39 -> 29065563.91 | E29: =MAIN!DB39 -> 15919900.08 | F29: =MAIN!DC39 -> 11812058.12 | G29: =MAIN!DD39 -> 7843302.813 | H29: =MAIN!DE39 -> 9437993.219 | I29: =MAIN!DF39 -> 0 | J29: =MAIN!DG39 -> 0 | K29: =MAIN!DH39 -> 0 | L29: =MAIN!DI39 -> 63532552.64 | M29: =MAIN!DJ39 -> 80813848.67 | O29: =MAIN!DK39 -> 0.9982980773 | P29: =MAIN!DL39 -> 0.9969614688 | Q29: =MAIN!DM39 -> 0.9968661336 | R29: =MAIN!DN39 -> 0.9971278322 | S29: =MAIN!DO39 -> 1 | T29: =MAIN!DP39 -> 1 | U29: =MAIN!DQ39 -> 1 | V29: =MAIN!DR39 -> 1 | W29: =MAIN!DS39 -> 1 | X29: =MAIN!DT39 -> 0.9970846649 | Y29: =MAIN!DU39 -> 0.9987106531
A30: =MAIN!B40 -> 2025-04-01 | C30: =MAIN!CZ40 -> 6714991.792 | D30: =MAIN!DA40 -> 29019907.73 | E30: =MAIN!DB40 -> 15912465.46 | F30: =MAIN!DC40 -> 11815614.11 | G30: =MAIN!DD40 -> 7836244.99 | H30: =MAIN!DE40 -> 9431657.063 | I30: =MAIN!DF40 -> 0 | J30: =MAIN!DG40 -> 0 | K30: =MAIN!DH40 -> 0 | L30: =MAIN!DI40 -> 63462979.1 | M30: =MAIN!DJ40 -> 80730881.15 | O30: =MAIN!DK40 -> 0.999464863 | P30: =MAIN!DL40 -> 0.9973452571 | Q30: =MAIN!DM40 -> 0.9967372619 | R30: =MAIN!DN40 -> 0.9976508644 | S30: =MAIN!DO40 -> 1 | T30: =MAIN!DP40 -> 1 | U30: =MAIN!DQ40 -> 1 | V30: =MAIN!DR40 -> 1 | W30: =MAIN!DS40 -> 1 | X30: =MAIN!DT40 -> 0.997433604 | Y30: =MAIN!DU40 -> 0.9988648194
A31: =MAIN!B41 -> 2025-03-01 | C31: =MAIN!CZ41 -> 6694345.667 | D31: =MAIN!DA41 -> 28974563.91 | E31: =MAIN!DB41 -> 15905247.68 | F31: =MAIN!DC41 -> 11819274.13 | G31: =MAIN!DD41 -> 7829197.805 | H31: =MAIN!DE41 -> 9425314.539 | I31: =MAIN!DF41 -> 0 | J31: =MAIN!DG41 -> 0 | K31: =MAIN!DH41 -> 0 | L31: =MAIN!DI41 -> 63393431.39 | M31: =MAIN!DJ41 -> 80647943.73 | O31: =MAIN!DK41 -> 0.9997098362 | P31: =MAIN!DL41 -> 0.9974866102 | Q31: =MAIN!DM41 -> 0.9969596037 | R31: =MAIN!DN41 -> 0.9976442224 | S31: =MAIN!DO41 -> 1 | T31: =MAIN!DP41 -> 1 | U31: =MAIN!DQ41 -> 1 | V31: =MAIN!DR41 -> 1 | W31: =MAIN!DS41 -> 1 | X31: =MAIN!DT41 -> 0.9975620117 | Y31: =MAIN!DU41 -> 0.9989215993
A32: =MAIN!B42 -> 2025-02-01 | C32: =MAIN!CZ42 -> 6673106.474 | D32: =MAIN!DA42 -> 28929551.36 | E32: =MAIN!DB42 -> 15898264.82 | F32: =MAIN!DC42 -> 11823048.62 | G32: =MAIN!DD42 -> 7822161.85 | H32: =MAIN!DE42 -> 9418966.203 | I32: =MAIN!DF42 -> 0 | J32: =MAIN!DG42 -> 0 | K32: =MAIN!DH42 -> 0 | L32: =MAIN!DI42 -> 63323971.28 | M32: =MAIN!DJ42 -> 80565099.33 | O32: =MAIN!DK42 -> 1.000509401 | P32: =MAIN!DL42 -> 0.9980164802 | Q32: =MAIN!DM42 -> 0.996766353 | R32: =MAIN!DN42 -> 0.9977494075 | S32: =MAIN!DO42 -> 1 | T32: =MAIN!DP42 -> 1 | U32: =MAIN!DQ42 -> 1 | V32: =MAIN!DR42 -> 1 | W32: =MAIN!DS42 -> 1 | X32: =MAIN!DT42 -> 0.9978049382 | Y32: =MAIN!DU42 -> 0.9990289734
A33: =MAIN!B43 -> 2025-01-01 | C33: =MAIN!CZ43 -> 6652614.393 | D33: =MAIN!DA43 -> 28884982.16 | E33: =MAIN!DB43 -> 15891818.61 | F33: =MAIN!DC43 -> 11827173.01 | G33: =MAIN!DD43 -> 7815127.884 | H33: =MAIN!DE43 -> 9412643.927 | I33: =MAIN!DF43 -> 0 | J33: =MAIN!DG43 -> 0 | K33: =MAIN!DH43 -> 0 | L33: =MAIN!DI43 -> 63256588.17 | M33: =MAIN!DJ43 -> 80484359.98 | O33: =MAIN!DK43 -> 1.001968437 | P33: =MAIN!DL43 -> 0.9985303218 | Q33: =MAIN!DM43 -> 0.9957508381 | R33: =MAIN!DN43 -> 0.9964933928 | S33: =MAIN!DO43 -> 1 | T33: =MAIN!DP43 -> 1 | U33: =MAIN!DQ43 -> 1 | V33: =MAIN!DR43 -> 1 | W33: =MAIN!DS43 -> 1 | X33: =MAIN!DT43 -> 0.9974960259 | Y33: =MAIN!DU43 -> 0.9988925532
A34: =MAIN!B44 -> 2024-12-01 | C34: =MAIN!CZ44 -> 6707628.148 | D34: =MAIN!DA44 -> 28933680.45 | E34: =MAIN!DB44 -> 15957780.71 | F34: =MAIN!DC44 -> 11881631.71 | G34: =MAIN!DD44 -> 7814847.304 | H34: =MAIN!DE44 -> 9421889.465 | I34: =MAIN!DF44 -> 0 | J34: =MAIN!DG44 -> 0 | K34: =MAIN!DH44 -> 0 | L34: =MAIN!DI44 -> 63480721.02 | M34: =MAIN!DJ44 -> 80717457.79 | O34: =MAIN!DK44 -> 1.001957525 | P34: =MAIN!DL44 -> 0.9983518954 | Q34: =MAIN!DM44 -> 0.997154428 | R34: =MAIN!DN44 -> 0.9990986238 | S34: =MAIN!DO44 -> 1 | T34: =MAIN!DP44 -> 1 | U34: =MAIN!DQ44 -> 1 | V34: =MAIN!DR44 -> 1 | W34: =MAIN!DS44 -> 1 | X34: =MAIN!DT44 -> 0.9985238067 | Y34: =MAIN!DU44 -> 0.9993456214
A35: =MAIN!B45 -> 2024-11-01 | C35: =MAIN!CZ45 -> 6756467.913 | D35: =MAIN!DA45 -> 28922634.67 | E35: =MAIN!DB45 -> 15984193.19 | F35: =MAIN!DC45 -> 11910357.13 | G35: =MAIN!DD45 -> 7810943.761 | H35: =MAIN!DE45 -> 9426932.109 | I35: =MAIN!DF45 -> 0 | J35: =MAIN!DG45 -> 0 | K35: =MAIN!DH45 -> 0 | L35: =MAIN!DI45 -> 63573652.9 | M35: =MAIN!DJ45 -> 80811528.77 | O35: =MAIN!DK45 -> 0.9998248548 | P35: =MAIN!DL45 -> 0.9974412866 | Q35: =MAIN!DM45 -> 1.000260202 | R35: =MAIN!DN45 -> 1.002352128 | S35: =MAIN!DO45 -> 1 | T35: =MAIN!DP45 -> 1 | U35: =MAIN!DQ45 -> 1 | V35: =MAIN!DR45 -> 1 | W35: =MAIN!DS45 -> 1 | X35: =MAIN!DT45 -> 0.9997426671 | Y35: =MAIN!DU45 -> 0.999885761
A36: =MAIN!B46 -> 2024-10-01 | C36: =MAIN!CZ46 -> 6800536.212 | D36: =MAIN!DA46 -> 28864723.79 | E36: =MAIN!DB46 -> 15979501.33 | F36: =MAIN!DC46 -> 11918864.08 | G36: =MAIN!DD46 -> 7804214.466 | H36: =MAIN!DE46 -> 9428694.578 | I36: =MAIN!DF46 -> 0 | J36: =MAIN!DG46 -> 0 | K36: =MAIN!DH46 -> 0 | L36: =MAIN!DI46 -> 63563625.4 | M36: =MAIN!DJ46 -> 80796534.45 | O36: =MAIN!DK46 -> 1.001292139 | P36: =MAIN!DL46 -> 0.9991339282 | Q36: =MAIN!DM46 -> 1.000772834 | R36: =MAIN!DN46 -> 1.005472462 | S36: =MAIN!DO46 -> 1 | T36: =MAIN!DP46 -> 1 | U36: =MAIN!DQ46 -> 1 | V36: =MAIN!DR46 -> 1 | W36: =MAIN!DS46 -> 1 | X36: =MAIN!DT46 -> 1.001518216 | Y36: =MAIN!DU46 -> 1.000674689
A37: =MAIN!B47 -> 2024-09-01 | C37: =MAIN!CZ47 -> 6838913.67 | D37: =MAIN!DA47 -> 28751563.36 | E37: =MAIN!DB47 -> 15938158.59 | F37: =MAIN!DC47 -> 11903531.81 | G37: =MAIN!DD47 -> 7794146.415 | H37: =MAIN!DE47 -> 9426581.488 | I37: =MAIN!DF47 -> 0 | J37: =MAIN!DG47 -> 0 | K37: =MAIN!DH47 -> 0 | L37: =MAIN!DI47 -> 63432167.43 | M37: =MAIN!DJ47 -> 80652895.33 | O37: =MAIN!DK47 -> 1.000668667 | P37: =MAIN!DL47 -> 0.9991006371 | Q37: =MAIN!DM47 -> 1.00190538 | R37: =MAIN!DN47 -> 1.005867042 | S37: =MAIN!DO47 -> 1 | T37: =MAIN!DP47 -> 1 | U37: =MAIN!DQ47 -> 1 | V37: =MAIN!DR47 -> 1 | W37: =MAIN!DS47 -> 1 | X37: =MAIN!DT47 -> 1.001866807 | Y37: =MAIN!DU47 -> 1.000829097
A38: =MAIN!B48 -> 2024-08-01 | C38: =MAIN!CZ48 -> 6879016.638 | D38: =MAIN!DA48 -> 28650061.66 | E38: =MAIN!DB48 -> 15904613.39 | F38: =MAIN!DC48 -> 11893382.18 | G38: =MAIN!DD48 -> 7784811.338 | H38: =MAIN!DE48 -> 9425324.976 | I38: =MAIN!DF48 -> 0 | J38: =MAIN!DG48 -> 0 | K38: =MAIN!DH48 -> 0 | L38: =MAIN!DI48 -> 63327073.87 | M38: =MAIN!DJ48 -> 80537210.19 | O38: =MAIN!DK48 -> 1.000034773 | P38: =MAIN!DL48 -> 0.9994006685 | Q38: =MAIN!DM48 -> 1.002804951 | R38: =MAIN!DN48 -> 1.006100008 | S38: =MAIN!DO48 -> 1 | T38: =MAIN!DP48 -> 1 | U38: =MAIN!DQ48 -> 1 | V38: =MAIN!DR48 -> 1 | W38: =MAIN!DS48 -> 1 | X38: =MAIN!DT48 -> 1.002233751 | Y38: =MAIN!DU48 -> 1.000991655
A39: =MAIN!B49 -> 2024-07-01 | C39: =MAIN!CZ49 -> 6918643.768 | D39: =MAIN!DA49 -> 28545855.46 | E39: =MAIN!DB49 -> 15869365.18 | F39: =MAIN!DC49 -> 11882207.49 | G39: =MAIN!DD49 -> 7775320.542 | H39: =MAIN!DE49 -> 9423881.268 | I39: =MAIN!DF49 -> 0 | J39: =MAIN!DG49 -> 0 | K39: =MAIN!DH49 -> 0 | L39: =MAIN!DI49 -> 63216071.9 | M39: =MAIN!DJ49 -> 80415273.71 | O39: =MAIN!DK49 -> 1 | P39: =MAIN!DL49 -> 1 | Q39: =MAIN!DM49 -> 0.9971219169 | R39: =MAIN!DN49 -> 1 | S39: =MAIN!DO49 -> 1 | T39: =MAIN!DP49 -> 1 | U39: =MAIN!DQ49 -> 1 | V39: =MAIN!DR49 -> 1 | W39: =MAIN!DS49 -> 1 | X39: =MAIN!DT49 -> 0.9992534405 | Y39: =MAIN!DU49 -> 0.999669338
A40: =MAIN!B50 -> 2024-06-01 | C40: =MAIN!CZ50 -> 6904663.14 | D40: =MAIN!DA50 -> 28526611.29 | E40: =MAIN!DB50 -> 15875404.54 | F40: =MAIN!DC50 -> 11897457.12 | G40: =MAIN!DD50 -> 7775170.2 | H40: =MAIN!DE50 -> 9424484.544 | I40: =MAIN!DF50 -> 5473.2418 | J40: =MAIN!DG50 -> 67.06129554 | K40: =MAIN!DH50 -> 0 | L40: =MAIN!DI50 -> 63209676.39 | M40: =MAIN!DJ50 -> 80409331.14 | O40: =MAIN!DK50 -> 1.000102451 | P40: =MAIN!DL50 -> 1.000575865 | Q40: =MAIN!DM50 -> 1.001411449 | R40: =MAIN!DN50 -> 1.004741918 | S40: =MAIN!DO50 -> 1 | T40: =MAIN!DP50 -> 1 | U40: =MAIN!DQ50 -> 1 | V40: =MAIN!DR50 -> 0.06666666667 | W40: =MAIN!DS50 -> 1 | X40: =MAIN!DT50 -> 1.001937309 | Y40: =MAIN!DU50 -> 1.000859432
A41: =MAIN!B51 -> 2024-05-01 | C41: =MAIN!CZ51 -> 6885448.418 | D41: =MAIN!DA51 -> 28485069.18 | E41: =MAIN!DB51 -> 15852092.85 | F41: =MAIN!DC51 -> 11899340.04 | G41: =MAIN!DD51 -> 7775685.253 | H41: =MAIN!DE51 -> 9430547.633 | I41: =MAIN!DF51 -> 14706.4076 | J41: =MAIN!DG51 -> 180.1962157 | K41: =MAIN!DH51 -> 0 | L41: =MAIN!DI51 -> 63136837.09 | M41: =MAIN!DJ51 -> 80343069.97 | O41: =MAIN!DK51 -> 0.999989364 | P41: =MAIN!DL51 -> 1.000618157 | Q41: =MAIN!DM51 -> 1.001383401 | R41: =MAIN!DN51 -> 1.004642263 | S41: =MAIN!DO51 -> 1 | T41: =MAIN!DP51 -> 1 | U41: =MAIN!DQ51 -> 1 | V41: =MAIN!DR51 -> 0.1333333333 | W41: =MAIN!DS51 -> 1 | X41: =MAIN!DT51 -> 1.001909295 | Y41: =MAIN!DU51 -> 1.000846412
A42: =MAIN!B52 -> 2024-04-01 | C42: =MAIN!CZ52 -> 6870440.926 | D42: =MAIN!DA52 -> 28535655.26 | E42: =MAIN!DB52 -> 15898382.94 | F42: =MAIN!DC52 -> 11952596.2 | G42: =MAIN!DD52 -> 7782432.71 | H42: =MAIN!DE52 -> 9444524.376 | I42: =MAIN!DF52 -> 26867.96784 | J42: =MAIN!DG52 -> 329.2130509 | K42: =MAIN!DH52 -> 0 | L42: =MAIN!DI52 -> 63284272.51 | M42: =MAIN!DJ52 -> 80511229.6 | O42: =MAIN!DK52 -> 0.9996580892 | P42: =MAIN!DL52 -> 1.000137662 | Q42: =MAIN!DM52 -> 1.000463616 | R42: =MAIN!DN52 -> 1.003116307 | S42: =MAIN!DO52 -> 1 | T42: =MAIN!DP52 -> 1 | U42: =MAIN!DQ52 -> 1 | V42: =MAIN!DR52 -> 0.2 | W42: =MAIN!DS52 -> 1 | X42: =MAIN!DT52 -> 1.001029721 | Y42: =MAIN!DU52 -> 1.000456688
A43: =MAIN!B53 -> 2024-03-01 | C43: =MAIN!CZ53 -> 6863080.841 | D43: =MAIN!DA53 -> 28722549.88 | E43: =MAIN!DB53 -> 16046989.38 | F43: =MAIN!DC53 -> 12079804.17 | G43: =MAIN!DD53 -> 7798128.17 | H43: =MAIN!DE53 -> 9469418.594 | I43: =MAIN!DF53 -> 42495.29567 | J43: =MAIN!DG53 -> 520.6962891 | K43: =MAIN!DH53 -> 0 | L43: =MAIN!DI53 -> 63755440.26 | M43: =MAIN!DJ53 -> 81022987.03 | O43: =MAIN!DK53 -> 0.9991711199 | P43: =MAIN!DL53 -> 0.9995012877 | Q43: =MAIN!DM53 -> 0.9974507037 | R43: =MAIN!DN53 -> 0.9995641374 | S43: =MAIN!DO53 -> 1 | T43: =MAIN!DP53 -> 1 | U43: =MAIN!DQ53 -> 1 | V43: =MAIN!DR53 -> 0.2666666667 | W43: =MAIN!DS53 -> 1 | X43: =MAIN!DT53 -> 0.9989588463 | Y43: =MAIN!DU53 -> 0.9995372552
A44: =MAIN!B54 -> 2024-02-01 | C44: =MAIN!CZ54 -> 6859510.706 | D44: =MAIN!DA54 -> 28935295.49 | E44: =MAIN!DB54 -> 16213909.52 | F44: =MAIN!DC54 -> 12217653.14 | G44: =MAIN!DD54 -> 7815071.368 | H44: =MAIN!DE54 -> 9495082.099 | I44: =MAIN!DF54 -> 57354.10975 | J44: =MAIN!DG54 -> 702.7628501 | K44: =MAIN!DH54 -> 0 | L44: =MAIN!DI54 -> 64284425.73 | M44: =MAIN!DJ54 -> 81594579.19 | O44: =MAIN!DK54 -> 0.998661984 | P44: =MAIN!DL54 -> 0.9986009877 | Q44: =MAIN!DM54 -> 0.9945604654 | R44: =MAIN!DN54 -> 0.9955836395 | S44: =MAIN!DO54 -> 1 | T44: =MAIN!DP54 -> 1 | U44: =MAIN!DQ54 -> 1 | V44: =MAIN!DR54 -> 0.3333333333 | W44: =MAIN!DS54 -> 1 | X44: =MAIN!DT54 -> 0.9966950478 | Y44: =MAIN!DU54 -> 0.9985275426
A45: =MAIN!B55 -> 2024-01-01 | C45: =MAIN!CZ55 -> 6860780.285 | D45: =MAIN!DA55 -> 29200363.26 | E45: =MAIN!DB55 -> 16419216.19 | F45: =MAIN!DC55 -> 12381134.3 | G45: =MAIN!DD55 -> 7835083.611 | H45: =MAIN!DE55 -> 9523877.207 | I45: =MAIN!DF55 -> 72382.78203 | J45: =MAIN!DG55 -> 886.9107009 | K45: =MAIN!DH55 -> 0 | L45: =MAIN!DI55 -> 64934763.73 | M45: =MAIN!DJ55 -> 82293724.55 | O45: =MAIN!DK55 -> 0.9984941268 | P45: =MAIN!DL55 -> 0.9978536058 | Q45: =MAIN!DM55 -> 0.9903879032 | R45: =MAIN!DN55 -> 0.9899089502 | S45: =MAIN!DO55 -> 1 | T45: =MAIN!DP55 -> 1 | U45: =MAIN!DQ55 -> 1 | V45: =MAIN!DR55 -> 0.4 | W45: =MAIN!DS55 -> 1 | X45: =MAIN!DT55 -> 0.9937002534 | Y45: =MAIN!DU55 -> 0.9971853083
A46: =MAIN!B56 -> 2023-12-01 | C46: =MAIN!CZ56 -> 6868171.122 | D46: =MAIN!DA56 -> 29528923.32 | E46: =MAIN!DB56 -> 16670988.68 | F46: =MAIN!DC56 -> 12575360.64 | G46: =MAIN!DD56 -> 7858772.415 | H46: =MAIN!DE56 -> 9556334.364 | I46: =MAIN!DF56 -> 87466.2419 | J46: =MAIN!DG56 -> 1071.72987 | K46: =MAIN!DH56 -> 0 | L46: =MAIN!DI56 -> 65731981.73 | M46: =MAIN!DJ56 -> 83147088.51 | O46: =MAIN!DK56 -> 0.9982914646 | P46: =MAIN!DL56 -> 0.9969770926 | Q46: =MAIN!DM56 -> 0.9857384094 | R46: =MAIN!DN56 -> 0.9832981335 | S46: =MAIN!DO56 -> 1 | T46: =MAIN!DP56 -> 1 | U46: =MAIN!DQ56 -> 1 | V46: =MAIN!DR56 -> 0.4666666667 | W46: =MAIN!DS56 -> 1 | X46: =MAIN!DT56 -> 0.9902646025 | Y46: =MAIN!DU56 -> 0.9956348152
A47: =MAIN!B57 -> 2023-11-01 | C47: =MAIN!CZ57 -> 6892890.883 | D47: =MAIN!DA57 -> 30081750.59 | E47: =MAIN!DB57 -> 17088888.58 | F47: =MAIN!DC57 -> 12884393.62 | G47: =MAIN!DD57 -> 7896271.82 | H47: =MAIN!DE57 -> 9604113.977 | I47: =MAIN!DF57 -> 105359.1749 | J47: =MAIN!DG57 -> 1290.973798 | K47: =MAIN!DH57 -> 0 | L47: =MAIN!DI57 -> 67054573.82 | M47: =MAIN!DJ57 -> 84554959.62 | O47: =MAIN!DK57 -> 0.9975081023 | P47: =MAIN!DL57 -> 0.9962337218 | Q47: =MAIN!DM57 -> 0.9820423478 | R47: =MAIN!DN57 -> 0.9781011661 | S47: =MAIN!DO57 -> 1 | T47: =MAIN!DP57 -> 1 | U47: =MAIN!DQ57 -> 1 | V47: =MAIN!DR57 -> 0.5333333333 | W47: =MAIN!DS57 -> 1 | X47: =MAIN!DT57 -> 0.9874721923 | Y47: =MAIN!DU57 -> 0.9943410725
A48: =MAIN!B58 -> 2023-10-01 | C48: =MAIN!CZ58 -> 6927497.114 | D48: =MAIN!DA58 -> 30753988.69 | E48: =MAIN!DB58 -> 17594935.3 | F48: =MAIN!DC58 -> 13253601.1 | G48: =MAIN!DD58 -> 7940997.987 | H48: =MAIN!DE58 -> 9659685.11 | I48: =MAIN!DF58 -> 124345.9747 | J48: =MAIN!DG58 -> 1523.620988 | K48: =MAIN!DH58 -> 0 | L48: =MAIN!DI58 -> 68655891.79 | M48: =MAIN!DJ58 -> 86256574.89 | O48: =MAIN!DK58 -> 0.9972230256 | P48: =MAIN!DL58 -> 0.9956394676 | Q48: =MAIN!DM58 -> 0.9787132457 | R48: =MAIN!DN58 -> 0.9735223828 | S48: =MAIN!DO58 -> 1 | T48: =MAIN!DP58 -> 1 | U48: =MAIN!DQ58 -> 1 | V48: =MAIN!DR58 -> 0.6 | W48: =MAIN!DS58 -> 1 | X48: =MAIN!DT58 -> 0.9850335556 | Y48: =MAIN!DU58 -> 0.9931774119
A49: =MAIN!B59 -> 2023-09-01 | C49: =MAIN!CZ59 -> 6970969.879 | D49: =MAIN!DA59 -> 31518675.82 | E49: =MAIN!DB59 -> 18168661 | F49: =MAIN!DC59 -> 13667642.75 | G49: =MAIN!DD59 -> 7991086.391 | H49: =MAIN!DE59 -> 9720614.253 | I49: =MAIN!DF59 -> 143440.8429 | J49: =MAIN!DG59 -> 1757.592352 | K49: =MAIN!DH59 -> 0 | L49: =MAIN!DI59 -> 70471147.89 | M49: =MAIN!DJ59 -> 88182848.54 | O49: =MAIN!DK59 -> 0.9972590216 | P49: =MAIN!DL59 -> 0.9950113277 | Q49: =MAIN!DM59 -> 0.9776790084 | R49: =MAIN!DN59 -> 0.971410882 | S49: =MAIN!DO59 -> 1 | T49: =MAIN!DP59 -> 1 | U49: =MAIN!DQ59 -> 1 | V49: =MAIN!DR59 -> 0.6666666667 | W49: =MAIN!DS59 -> 1 | X49: =MAIN!DT59 -> 0.9838889645 | Y49: =MAIN!DU59 -> 0.9925755662
A50: =MAIN!B60 -> 2023-08-01 | C50: =MAIN!CZ60 -> 7008834.099 | D50: =MAIN!DA60 -> 32184708.51 | E50: =MAIN!DB60 -> 18668368.73 | F50: =MAIN!DC60 -> 14028267.72 | G50: =MAIN!DD60 -> 8034712.747 | H50: =MAIN!DE60 -> 9773682.754 | I50: =MAIN!DF60 -> 160072.2281 | J50: =MAIN!DG60 -> 1961.378408 | K50: =MAIN!DH60 -> 0 | L50: =MAIN!DI60 -> 72052212.67 | M50: =MAIN!DJ60 -> 89860608.17 | O50: =MAIN!DK60 -> 0.9972515782 | P50: =MAIN!DL60 -> 0.9943343784 | Q50: =MAIN!DM60 -> 0.9763913592 | R50: =MAIN!DN60 -> 0.969512668 | S50: =MAIN!DO60 -> 1 | T50: =MAIN!DP60 -> 1 | U50: =MAIN!DQ60 -> 1 | V50: =MAIN!DR60 -> 0.7333333333 | W50: =MAIN!DS60 -> 1 | X50: =MAIN!DT60 -> 0.9827211006 | Y50: =MAIN!DU60 -> 0.9919656717
A51: =MAIN!B61 -> 2023-07-01 | C51: =MAIN!CZ61 -> 7027939.724 | D51: =MAIN!DA61 -> 32769062.92 | E51: =MAIN!DB61 -> 19108133.47 | F51: =MAIN!DC61 -> 14345953.76 | G51: =MAIN!DD61 -> 8073144.596 | H51: =MAIN!DE61 -> 9820432.49 | I51: =MAIN!DF61 -> 174723.346 | J51: =MAIN!DG61 -> 2140.900046 | K51: =MAIN!DH61 -> 0 | L51: =MAIN!DI61 -> 73427954.12 | M51: =MAIN!DJ61 -> 91321531.2 | O51: =MAIN!DK61 -> 0.9963195531 | P51: =MAIN!DL61 -> 0.9943656551 | Q51: =MAIN!DM61 -> 0.9756199251 | R51: =MAIN!DN61 -> 0.9678409946 | S51: =MAIN!DO61 -> 1 | T51: =MAIN!DP61 -> 1 | U51: =MAIN!DQ61 -> 1 | V51: =MAIN!DR61 -> 0.8 | W51: =MAIN!DS61 -> 1 | X51: =MAIN!DT61 -> 0.9819590312 | Y51: =MAIN!DU61 -> 0.9915467338
A52: =MAIN!B62 -> 2023-06-01 | C52: =MAIN!CZ62 -> 7055224.371 | D52: =MAIN!DA62 -> 33249000.64 | E52: =MAIN!DB62 -> 19468218.78 | F52: =MAIN!DC62 -> 14605817.17 | G52: =MAIN!DD62 -> 8104581.393 | H52: =MAIN!DE62 -> 9858673.22 | I52: =MAIN!DF62 -> 186707.7866 | J52: =MAIN!DG62 -> 2287.746616 | K52: =MAIN!DH62 -> 0 | L52: =MAIN!DI62 -> 74567256.5 | M52: =MAIN!DJ62 -> 92530511.12 | O52: =MAIN!DK62 -> 0.9960843021 | P52: =MAIN!DL62 -> 0.995148338 | Q52: =MAIN!DM62 -> 0.9739701893 | R52: =MAIN!DN62 -> 0.9660869884 | S52: =MAIN!DO62 -> 1 | T52: =MAIN!DP62 -> 1 | U52: =MAIN!DQ62 -> 1 | V52: =MAIN!DR62 -> 0.8666666667 | W52: =MAIN!DS62 -> 1 | X52: =MAIN!DT62 -> 0.9812861315 | Y52: =MAIN!DU62 -> 0.991177545
A53: =MAIN!B63 -> 2023-05-01 | C53: =MAIN!CZ63 -> 7070709.694 | D53: =MAIN!DA63 -> 33534117.32 | E53: =MAIN!DB63 -> 19682203.33 | F53: =MAIN!DC63 -> 14760260.21 | G53: =MAIN!DD63 -> 8123265.031 | H53: =MAIN!DE63 -> 9881400.598 | I53: =MAIN!DF63 -> 193830.4259 | J53: =MAIN!DG63 -> 2375.02104 | K53: =MAIN!DH63 -> 0 | L53: =MAIN!DI63 -> 75243496 | M53: =MAIN!DJ63 -> 93248161.63 | O53: =MAIN!DK63 -> 0.995742767 | P53: =MAIN!DL63 -> 0.9943273134 | Q53: =MAIN!DM63 -> 0.9740670962 | R53: =MAIN!DN63 -> 0.9646301236 | S53: =MAIN!DO63 -> 1 | T53: =MAIN!DP63 -> 1 | U53: =MAIN!DQ63 -> 1 | V53: =MAIN!DR63 -> 0.9333333333 | W53: =MAIN!DS63 -> 1 | X53: =MAIN!DT63 -> 0.9805513757 | Y53: =MAIN!DU63 -> 0.9908000362
A54: =MAIN!B64 -> 2023-04-01 | C54: =MAIN!CZ64 -> 7079437.473 | D54: =MAIN!DA64 -> 33687639.22 | E54: =MAIN!DB64 -> 19797386.98 | F54: =MAIN!DC64 -> 14843385 | G54: =MAIN!DD64 -> 8133320.995 | H54: =MAIN!DE64 -> 9893632.995 | I54: =MAIN!DF64 -> 197663.9941 | J54: =MAIN!DG64 -> 2421.994142 | K54: =MAIN!DH64 -> 0 | L54: =MAIN!DI64 -> 75607934.66 | M54: =MAIN!DJ64 -> 93634888.65 | O54: =MAIN!DK64 -> 0.9963807764 | P54: =MAIN!DL64 -> 0.9947479134 | Q54: =MAIN!DM64 -> 0.9730377279 | R54: =MAIN!DN64 -> 0.9641664212 | S54: =MAIN!DO64 -> 1 | T54: =MAIN!DP64 -> 1 | U54: =MAIN!DQ64 -> 1 | V54: =MAIN!DR64 -> 1 | W54: =MAIN!DS64 -> 1 | X54: =MAIN!DT64 -> 0.9803473498 | Y54: =MAIN!DU64 -> 0.9906858499
A55: =MAIN!B65 -> 2023-03-01 | C55: =MAIN!CZ65 -> 7059078.156 | D55: =MAIN!DA65 -> 33684246 | E55: =MAIN!DB65 -> 19796753 | F55: =MAIN!DC65 -> 14843385 | G55: =MAIN!DD65 -> 8133320.997 | H55: =MAIN!DE65 -> 9893632.997 | I55: =MAIN!DF65 -> 197663.9971 | J55: =MAIN!DG65 -> 2421.997071 | K55: =MAIN!DH65 -> 0 | L55: =MAIN!DI65 -> 75583548.14 | M55: =MAIN!DJ65 -> 93610502.14 | O55: =MAIN!DK65 -> 0.998101211 | P55: =MAIN!DL65 -> 0.9950415097 | Q55: =MAIN!DM65 -> 0.9742325211 | R55: =MAIN!DN65 -> 0.9659765869 | S55: =MAIN!DO65 -> 1 | T55: =MAIN!DP65 -> 1 | U55: =MAIN!DQ65 -> 1 | V55: =MAIN!DR65 -> 1 | W55: =MAIN!DS65 -> 1 | X55: =MAIN!DT65 -> 0.9813986306 | Y55: =MAIN!DU65 -> 0.9911801451
A56: =MAIN!B66 -> 2023-02-01 | C56: =MAIN!CZ66 -> 7059078.159 | D56: =MAIN!DA66 -> 33684246 | E56: =MAIN!DB66 -> 19796753 | F56: =MAIN!DC66 -> 14843385 | G56: =MAIN!DD66 -> 8133321 | H56: =MAIN!DE66 -> 9893633 | I56: =MAIN!DF66 -> 197664 | J56: =MAIN!DG66 -> 2422 | K56: =MAIN!DH66 -> 0 | L56: =MAIN!DI66 -> 75583548.16 | M56: =MAIN!DJ66 -> 93610502.16 | O56: =MAIN!DK66 -> 0.9957167698 | P56: =MAIN!DL66 -> 0.9959283302 | Q56: =MAIN!DM66 -> 0.9776960559 | R56: =MAIN!DN66 -> 0.971096736 | S56: =MAIN!DO66 -> 1 | T56: =MAIN!DP66 -> 1 | U56: =MAIN!DQ66 -> 1 | V56: =MAIN!DR66 -> 1 | W56: =MAIN!DS66 -> 1 | X56: =MAIN!DT66 -> 0.9839382989 | Y56: =MAIN!DU66 -> 0.99237377
A57: =MAIN!B67 -> 2023-01-01 | C57: =MAIN!CZ67 -> 7092451 | D57: =MAIN!DA67 -> 33428863 | E57: =MAIN!DB67 -> 19653500 | F57: =MAIN!DC67 -> 14739313 | G57: =MAIN!DD67 -> 8074712 | H57: =MAIN!DE67 -> 9821179 | I57: =MAIN!DF67 -> 195843 | J57: =MAIN!DG67 -> 2388 | K57: =MAIN!DH67 -> 0 | L57: =MAIN!DI67 -> 75112358 | M57: =MAIN!DJ67 -> 93008249 | O57: =MAIN!DK67 -> 0.9971899103 | P57: =MAIN!DL67 -> 0.995807701 | Q57: =MAIN!DM67 -> 0.9757322805 | R57: =MAIN!DN67 -> 0.9697670744 | S57: =MAIN!DO67 -> 1 | T57: =MAIN!DP67 -> 1 | U57: =MAIN!DQ67 -> 1 | V57: =MAIN!DR67 -> 1 | W57: =MAIN!DS67 -> 1 | X57: =MAIN!DT67 -> 0.9831047524 | Y57: =MAIN!DU67 -> 0.9919784454
A58: =MAIN!B68 -> 2022-12-01 | C58: =MAIN!CZ68 -> 7082619 | D58: =MAIN!DA68 -> 33259982 | E58: =MAIN!DB68 -> 19590169 | F58: =MAIN!DC68 -> 14663604 | G58: =MAIN!DD68 -> 8035359 | H58: =MAIN!DE68 -> 9774779 | I58: =MAIN!DF68 -> 195127 | J58: =MAIN!DG68 -> 2387 | K58: =MAIN!DH68 -> 0 | L58: =MAIN!DI68 -> 74793888 | M58: =MAIN!DJ68 -> 92604026 | O58: =MAIN!DK68 -> 0.9966052535 | P58: =MAIN!DL68 -> 0.9959338863 | Q58: =MAIN!DM68 -> 0.9769009386 | R58: =MAIN!DN68 -> 0.970196062 | S58: =MAIN!DO68 -> 1 | T58: =MAIN!DP68 -> 1 | U58: =MAIN!DQ68 -> 1 | V58: =MAIN!DR68 -> 1 | W58: =MAIN!DS68 -> 1 | X58: =MAIN!DT68 -> 0.9835429521 | Y58: =MAIN!DU68 -> 0.9921827787
A59: =MAIN!B69 -> 2022-11-01 | C59: =MAIN!CZ69 -> 7084330 | D59: =MAIN!DA69 -> 33057025 | E59: =MAIN!DB69 -> 19477962 | F59: =MAIN!DC69 -> 14582249 | G59: =MAIN!DD69 -> 7987770 | H59: =MAIN!DE69 -> 9717799 | I59: =MAIN!DF69 -> 194205 | J59: =MAIN!DG69 -> 2364 | K59: =MAIN!DH69 -> 0 | L59: =MAIN!DI69 -> 74398135 | M59: =MAIN!DJ69 -> 92103704 | O59: =MAIN!DK69 -> 0.9970464217 | P59: =MAIN!DL69 -> 0.995770204 | Q59: =MAIN!DM69 -> 0.9755741442 | R59: =MAIN!DN69 -> 0.9702927867 | S59: =MAIN!DO69 -> 1 | T59: =MAIN!DP69 -> 1 | U59: =MAIN!DQ69 -> 1 | V59: =MAIN!DR69 -> 1 | W59: =MAIN!DS69 -> 1 | X59: =MAIN!DT69 -> 0.9831915575 | Y59: =MAIN!DU69 -> 0.9920154496
A60: =MAIN!B70 -> 2022-10-01 | C60: =MAIN!CZ70 -> 6982472 | D60: =MAIN!DA70 -> 32884220 | E60: =MAIN!DB70 -> 19436572 | F60: =MAIN!DC70 -> 14504291 | G60: =MAIN!DD70 -> 7951561 | H60: =MAIN!DE70 -> 9668397 | I60: =MAIN!DF70 -> 193768 | J60: =MAIN!DG70 -> 2344 | K60: =MAIN!DH70 -> 0 | L60: =MAIN!DI70 -> 74003667 | M60: =MAIN!DJ70 -> 91623625 | O60: =MAIN!DK70 -> 0.9974621262 | P60: =MAIN!DL70 -> 0.9959650736 | Q60: =MAIN!DM70 -> 0.9769533588 | R60: =MAIN!DN70 -> 0.971059233 | S60: =MAIN!DO70 -> 1 | T60: =MAIN!DP70 -> 1 | U60: =MAIN!DQ70 -> 1 | V60: =MAIN!DR70 -> 1 | W60: =MAIN!DS70 -> 1 | X60: =MAIN!DT70 -> 0.9838616826 | Y60: =MAIN!DU70 -> 0.9923316991
A61: =MAIN!B71 -> 2022-09-01 | C61: =MAIN!CZ71 -> 7030152 | D61: =MAIN!DA71 -> 32659308 | E61: =MAIN!DB71 -> 19353168 | F61: =MAIN!DC71 -> 14415369 | G61: =MAIN!DD71 -> 7902724 | H61: =MAIN!DE71 -> 9607072 | I61: =MAIN!DF71 -> 192679 | J61: =MAIN!DG71 -> 2328 | K61: =MAIN!DH71 -> 0 | L61: =MAIN!DI71 -> 73653004 | M61: =MAIN!DJ71 -> 91162800 | O61: =MAIN!DK71 -> 0.9958808158 | P61: =MAIN!DL71 -> 0.9962848068 | Q61: =MAIN!DM71 -> 0.9771323963 | R61: =MAIN!DN71 -> 0.9712650206 | S61: =MAIN!DO71 -> 1 | T61: =MAIN!DP71 -> 1 | U61: =MAIN!DQ71 -> 1 | V61: =MAIN!DR71 -> 1 | W61: =MAIN!DS71 -> 1 | X61: =MAIN!DT71 -> 0.9839841346 | Y61: =MAIN!DU71 -> 0.9923844456
A62: =MAIN!B72 -> 2022-08-01 | C62: =MAIN!CZ72 -> 7011002 | D62: =MAIN!DA72 -> 32423144 | E62: =MAIN!DB72 -> 19258236 | F62: =MAIN!DC72 -> 14322867 | G62: =MAIN!DD72 -> 7850888 | H62: =MAIN!DE72 -> 9546397 | I62: =MAIN!DF72 -> 191606 | J62: =MAIN!DG72 -> 2310 | K62: =MAIN!DH72 -> 0 | L62: =MAIN!DI72 -> 73209165 | M62: =MAIN!DJ72 -> 90606450 | O62: =MAIN!DK72 -> 0.996531567 | P62: =MAIN!DL72 -> 0.9957185609 | Q62: =MAIN!DM72 -> 0.9788791367 | R62: =MAIN!DN72 -> 0.9712985949 | S62: =MAIN!DO72 -> 1 | T62: =MAIN!DP72 -> 1 | U62: =MAIN!DQ72 -> 1 | V62: =MAIN!DR72 -> 1 | W62: =MAIN!DS72 -> 1 | X62: =MAIN!DT72 -> 0.9842863402 | Y62: =MAIN!DU72 -> 0.9925254899
A63: =MAIN!B73 -> 2022-07-01 | C63: =MAIN!CZ73 -> 7066833 | D63: =MAIN!DA73 -> 32184134 | E63: =MAIN!DB73 -> 19102446 | F63: =MAIN!DC73 -> 14226683 | G63: =MAIN!DD73 -> 7792811 | H63: =MAIN!DE73 -> 9477958 | I63: =MAIN!DF73 -> 189980 | J63: =MAIN!DG73 -> 2292 | K63: =MAIN!DH73 -> 0 | L63: =MAIN!DI73 -> 72772368 | M63: =MAIN!DJ73 -> 90043137 | O63: =MAIN!DK73 -> 0.9965492068 | P63: =MAIN!DL73 -> 0.9959032155 | Q63: =MAIN!DM73 -> 0.9770646734 | R63: =MAIN!DN73 -> 0.9711318899 | S63: =MAIN!DO73 -> 1 | T63: =MAIN!DP73 -> 1 | U63: =MAIN!DQ73 -> 1 | V63: =MAIN!DR73 -> 1 | W63: =MAIN!DS73 -> 1 | X63: =MAIN!DT73 -> 0.9838397722 | Y63: =MAIN!DU73 -> 0.992311208
A64: =MAIN!B74 -> 2022-06-01 | C64: =MAIN!CZ74 -> 7066669 | D64: =MAIN!DA74 -> 31973182 | E64: =MAIN!DB74 -> 19004200 | F64: =MAIN!DC74 -> 14133725 | G64: =MAIN!DD74 -> 7744494 | H64: =MAIN!DE74 -> 9419211 | I64: =MAIN!DF74 -> 188847 | J64: =MAIN!DG74 -> 2268 | K64: =MAIN!DH74 -> 0 | L64: =MAIN!DI74 -> 72368891 | M64: =MAIN!DJ74 -> 89532596 | O64: =MAIN!DK74 -> 0.9963720677 | P64: =MAIN!DL74 -> 0.9957195535 | Q64: =MAIN!DM74 -> 0.9769190592 | R64: =MAIN!DN74 -> 0.9704365253 | S64: =MAIN!DO74 -> 1 | T64: =MAIN!DP74 -> 1 | U64: =MAIN!DQ74 -> 1 | V64: =MAIN!DR74 -> 1 | W64: =MAIN!DS74 -> 1 | X64: =MAIN!DT74 -> 0.9835262366 | Y64: =MAIN!DU74 -> 0.9921613735
A65: =MAIN!B75 -> 2022-05-01 | C65: =MAIN!CZ75 -> 7009148 | D65: =MAIN!DA75 -> 31807848 | E65: =MAIN!DB75 -> 18917194 | F65: =MAIN!DC75 -> 14060605 | G65: =MAIN!DD75 -> 7704922 | H65: =MAIN!DE75 -> 9370071 | I65: =MAIN!DF75 -> 187859 | J65: =MAIN!DG75 -> 2240 | K65: =MAIN!DH75 -> 0 | L65: =MAIN!DI75 -> 71984894 | M65: =MAIN!DJ75 -> 89059887 | O65: =MAIN!DK75 -> 0.9962257378 | P65: =MAIN!DL75 -> 0.9959866591 | Q65: =MAIN!DM75 -> 0.9776593122 | R65: =MAIN!DN75 -> 0.9717757862 | S65: =MAIN!DO75 -> 1 | T65: =MAIN!DP75 -> 1 | U65: =MAIN!DQ75 -> 1 | V65: =MAIN!DR75 -> 1 | W65: =MAIN!DS75 -> 1 | X65: =MAIN!DT75 -> 0.9841877423 | Y65: =MAIN!DU75 -> 0.9924736169
A66: =MAIN!B76 -> 2022-04-01 | C66: =MAIN!CZ76 -> 7048047 | D66: =MAIN!DA76 -> 31553059 | E66: =MAIN!DB76 -> 18793362 | F66: =MAIN!DC76 -> 13958561 | G66: =MAIN!DD76 -> 7648129 | H66: =MAIN!DE76 -> 9300867 | I66: =MAIN!DF76 -> 186723 | J66: =MAIN!DG76 -> 2214 | K66: =MAIN!DH76 -> 0 | L66: =MAIN!DI76 -> 71541966 | M66: =MAIN!DJ76 -> 88490962 | O66: =MAIN!DK76 -> 0.9958633294 | P66: =MAIN!DL76 -> 0.9957728041 | Q66: =MAIN!DM76 -> 0.9768514824 | R66: =MAIN!DN76 -> 0.9706345366 | S66: =MAIN!DO76 -> 1 | T66: =MAIN!DP76 -> 1 | U66: =MAIN!DQ76 -> 1 | V66: =MAIN!DR76 -> 1 | W66: =MAIN!DS76 -> 1 | X66: =MAIN!DT76 -> 0.9835511048 | Y66: =MAIN!DU76 -> 0.9921694642
A67: =MAIN!B77 -> 2022-03-01 | C67: =MAIN!CZ77 -> 7054292 | D67: =MAIN!DA77 -> 31379754 | E67: =MAIN!DB77 -> 18704773 | F67: =MAIN!DC77 -> 13882029 | G67: =MAIN!DD77 -> 7607748 | H67: =MAIN!DE77 -> 9248526 | I67: =MAIN!DF77 -> 185104 | J67: =MAIN!DG77 -> 2198 | K67: =MAIN!DH77 -> 0 | L67: =MAIN!DI77 -> 71208150 | M67: =MAIN!DJ77 -> 88064424 | O67: =MAIN!DK77 -> 0.9957633022 | P67: =MAIN!DL77 -> 0.9959520327 | Q67: =MAIN!DM77 -> 0.9769526445 | R67: =MAIN!DN77 -> 0.9713835233 | S67: =MAIN!DO77 -> 1 | T67: =MAIN!DP77 -> 1 | U67: =MAIN!DQ77 -> 1 | V67: =MAIN!DR77 -> 1 | W67: =MAIN!DS77 -> 1 | X67: =MAIN!DT77 -> 0.983853355 | Y67: =MAIN!DU77 -> 0.9923095318
A68: =MAIN!B78 -> 2022-02-01 | C68: =MAIN!CZ78 -> 7077968 | D68: =MAIN!DA78 -> 31171396 | E68: =MAIN!DB78 -> 18621359 | F68: =MAIN!DC78 -> 13794414 | G68: =MAIN!DD78 -> 7561152 | H68: =MAIN!DE78 -> 9190056 | I68: =MAIN!DF78 -> 184109 | J68: =MAIN!DG78 -> 2183 | K68: =MAIN!DH78 -> 0 | L68: =MAIN!DI78 -> 70851429 | M68: =MAIN!DJ78 -> 87602637 | O68: =MAIN!DK78 -> 0.9958516565 | P68: =MAIN!DL78 -> 0.9958229499 | Q68: =MAIN!DM78 -> 0.9768417909 | R68: =MAIN!DN78 -> 0.9712708722 | S68: =MAIN!DO78 -> 1 | T68: =MAIN!DP78 -> 1 | U68: =MAIN!DQ78 -> 1 | V68: =MAIN!DR78 -> 1 | W68: =MAIN!DS78 -> 1 | X68: =MAIN!DT78 -> 0.9837535195 | Y68: =MAIN!DU78 -> 0.9922583615
A69: =MAIN!B79 -> 2022-01-01 | C69: =MAIN!CZ79 -> 7079218 | D69: =MAIN!DA79 -> 30982961 | E69: =MAIN!DB79 -> 18548020 | F69: =MAIN!DC79 -> 13715741 | G69: =MAIN!DD79 -> 7519969 | H69: =MAIN!DE79 -> 9136624 | I69: =MAIN!DF79 -> 183340 | J69: =MAIN!DG79 -> 2168 | K69: =MAIN!DH79 -> 0 | L69: =MAIN!DI79 -> 70511448 | M69: =MAIN!DJ79 -> 87168041 | O69: =MAIN!DK79 -> 0.9963608483 | P69: =MAIN!DL79 -> 0.9960530257 | Q69: =MAIN!DM79 -> 0.9782339125 | R69: =MAIN!DN79 -> 0.9722039409 | S69: =MAIN!DO79 -> 1 | T69: =MAIN!DP79 -> 1 | U69: =MAIN!DQ79 -> 1 | V69: =MAIN!DR79 -> 1 | W69: =MAIN!DS79 -> 1 | X69: =MAIN!DT79 -> 0.9845103334 | Y69: =MAIN!DU79 -> 0.9926131365
A70: =MAIN!B80 -> 2021-12-01 | C70: =MAIN!CZ80 -> 7067649 | D70: =MAIN!DA80 -> 30766375 | E70: =MAIN!DB80 -> 18431375 | F70: =MAIN!DC80 -> 13622191 | G70: =MAIN!DD80 -> 7468794 | H70: =MAIN!DE80 -> 9074657 | I70: =MAIN!DF80 -> 181983 | J70: =MAIN!DG80 -> 2152 | K70: =MAIN!DH80 -> 0 | L70: =MAIN!DI80 -> 70071725 | M70: =MAIN!DJ80 -> 86615176 | O70: =MAIN!DK80 -> 0.9963688954 | P70: =MAIN!DL80 -> 0.9964195755 | Q70: =MAIN!DM80 -> 0.9776829548 | R70: =MAIN!DN80 -> 0.9722218297 | S70: =MAIN!DO80 -> 1 | T70: =MAIN!DP80 -> 1 | U70: =MAIN!DQ80 -> 1 | V70: =MAIN!DR80 -> 1 | W70: =MAIN!DS80 -> 1 | X70: =MAIN!DT80 -> 0.984509205 | Y70: =MAIN!DU80 -> 0.9926109992
A71: =MAIN!B81 -> 2021-11-01 | C71: =MAIN!CZ81 -> 7065375 | D71: =MAIN!DA81 -> 30557879 | E71: =MAIN!DB81 -> 18319765 | F71: =MAIN!DC81 -> 13529259 | G71: =MAIN!DD81 -> 7420356 | H71: =MAIN!DE81 -> 9014814 | I71: =MAIN!DF81 -> 180757 | J71: =MAIN!DG81 -> 2143 | K71: =MAIN!DH81 -> 0 | L71: =MAIN!DI81 -> 69655178 | M71: =MAIN!DJ81 -> 86090348 | O71: =MAIN!DK81 -> 0.9958788246 | P71: =MAIN!DL81 -> 0.9962505451 | Q71: =MAIN!DM81 -> 0.9781844302 | R71: =MAIN!DN81 -> 0.9722224228 | S71: =MAIN!DO81 -> 1 | T71: =MAIN!DP81 -> 1 | U71: =MAIN!DQ81 -> 1 | V71: =MAIN!DR81 -> 1 | W71: =MAIN!DS81 -> 1 | X71: =MAIN!DT81 -> 0.9845480257 | Y71: =MAIN!DU81 -> 0.9926277385
A72: =MAIN!B82 -> 2021-10-01 | C72: =MAIN!CZ82 -> 7086131 | D72: =MAIN!DA82 -> 30330365 | E72: =MAIN!DB82 -> 18210293 | F72: =MAIN!DC82 -> 13436144 | G72: =MAIN!DD82 -> 7369327 | H72: =MAIN!DE82 -> 8948372 | I72: =MAIN!DF82 -> 179590 | J72: =MAIN!DG82 -> 2130 | K72: =MAIN!DH82 -> 0 | L72: =MAIN!DI82 -> 69244653 | M72: =MAIN!DJ82 -> 85562352 | O72: =MAIN!DK82 -> 0.9966579247 | P72: =MAIN!DL82 -> 0.9960416891 | Q72: =MAIN!DM82 -> 0.9774982671 | R72: =MAIN!DN82 -> 0.9724052301 | S72: =MAIN!DO82 -> 1 | T72: =MAIN!DP82 -> 1 | U72: =MAIN!DQ82 -> 1 | V72: =MAIN!DR82 -> 1 | W72: =MAIN!DS82 -> 1 | X72: =MAIN!DT82 -> 0.9844009604 | Y72: =MAIN!DU82 -> 0.9925541151
A73: =MAIN!B83 -> 2021-09-01 | C73: =MAIN!CZ83 -> 7107123 | D73: =MAIN!DA83 -> 30113087 | E73: =MAIN!DB83 -> 18114186 | F73: =MAIN!DC83 -> 13344276 | G73: =MAIN!DD83 -> 7320772 | H73: =MAIN!DE83 -> 8885055 | I73: =MAIN!DF83 -> 178748 | J73: =MAIN!DG83 -> 2117 | K73: =MAIN!DH83 -> 0 | L73: =MAIN!DI83 -> 68859537 | M73: =MAIN!DJ83 -> 85065364 | O73: =MAIN!DK83 -> 0.9961756035 | P73: =MAIN!DL83 -> 0.9960289865 | Q73: =MAIN!DM83 -> 0.9778285777 | R73: =MAIN!DN83 -> 0.9728345465 | S73: =MAIN!DO83 -> 1 | T73: =MAIN!DP83 -> 1 | U73: =MAIN!DQ83 -> 1 | V73: =MAIN!DR83 -> 1 | W73: =MAIN!DS83 -> 1 | X73: =MAIN!DT83 -> 0.9845735951 | Y73: =MAIN!DU83 -> 0.9926317149
A74: =MAIN!B84 -> 2021-08-01 | C74: =MAIN!CZ84 -> 7091315 | D74: =MAIN!DA84 -> 29905745 | E74: =MAIN!DB84 -> 18011453 | F74: =MAIN!DC84 -> 13255158 | G74: =MAIN!DD84 -> 7272842 | H74: =MAIN!DE84 -> 8824791 | I74: =MAIN!DF84 -> 177671 | J74: =MAIN!DG84 -> 2102 | K74: =MAIN!DH84 -> 0 | L74: =MAIN!DI84 -> 68443444 | M74: =MAIN!DJ84 -> 84541077 | O74: =MAIN!DK84 -> 0.9959792955 | P74: =MAIN!DL84 -> 0.9963137582 | Q74: =MAIN!DM84 -> 0.9792910084 | R74: =MAIN!DN84 -> 0.9739232568 | S74: =MAIN!DO84 -> 1 | T74: =MAIN!DP84 -> 1 | U74: =MAIN!DQ84 -> 1 | V74: =MAIN!DR84 -> 1 | W74: =MAIN!DS84 -> 1 | X74: =MAIN!DT84 -> 0.9853620064 | Y74: =MAIN!DU84 -> 0.9930033723
A75: =MAIN!B85 -> 2021-07-01 | C75: =MAIN!CZ85 -> 7056174 | D75: =MAIN!DA85 -> 29643705 | E75: =MAIN!DB85 -> 17858982 | F75: =MAIN!DC85 -> 13148733 | G75: =MAIN!DD85 -> 7210775 | H75: =MAIN!DE85 -> 8750066 | I75: =MAIN!DF85 -> 176129 | J75: =MAIN!DG85 -> 2085 | K75: =MAIN!DH85 -> 0 | L75: =MAIN!DI85 -> 67885808 | M75: =MAIN!DJ85 -> 83846649 | O75: =MAIN!DK85 -> 0.9974071994 | P75: =MAIN!DL85 -> 0.9960492118 | Q75: =MAIN!DM85 -> 0.9772334842 | R75: =MAIN!DN85 -> 0.9738461251 | S75: =MAIN!DO85 -> 1 | T75: =MAIN!DP85 -> 1 | U75: =MAIN!DQ85 -> 1 | V75: =MAIN!DR85 -> 1 | W75: =MAIN!DS85 -> 1 | X75: =MAIN!DT85 -> 0.9848020739 | Y75: =MAIN!DU85 -> 0.992736765
A76: =MAIN!B86 -> 2021-06-01 | C76: =MAIN!CZ86 -> 7050903 | D76: =MAIN!DA86 -> 29403927 | E76: =MAIN!DB86 -> 17792061 | F76: =MAIN!DC86 -> 13042289 | G76: =MAIN!DD86 -> 7159347 | H76: =MAIN!DE86 -> 8688936 | I76: =MAIN!DF86 -> 175004 | J76: =MAIN!DG86 -> 2132 | K76: =MAIN!DH86 -> 0 | L76: =MAIN!DI86 -> 67466316 | M76: =MAIN!DJ86 -> 83314599 | O76: =MAIN!DK86 -> 0.9982275104 | P76: =MAIN!DL86 -> 0.995859427 | Q76: =MAIN!DM86 -> 0.9795197999 | R76: =MAIN!DN86 -> 0.9733605873 | S76: =MAIN!DO86 -> 1 | T76: =MAIN!DP86 -> 1 | U76: =MAIN!DQ86 -> 1 | V76: =MAIN!DR86 -> 1 | W76: =MAIN!DS86 -> 1 | X76: =MAIN!DT86 -> 0.9852658641 | Y76: =MAIN!DU86 -> 0.9929541605
A77: =MAIN!B87 -> 2021-05-01 | C77: =MAIN!CZ87 -> 7027881 | D77: =MAIN!DA87 -> 29202426 | E77: =MAIN!DB87 -> 17689675 | F77: =MAIN!DC87 -> 12953632 | G77: =MAIN!DD87 -> 7111217 | H77: =MAIN!DE87 -> 8630504 | I77: =MAIN!DF87 -> 173871 | J77: =MAIN!DG87 -> 2116 | K77: =MAIN!DH87 -> 0 | L77: =MAIN!DI87 -> 67049601 | M77: =MAIN!DJ87 -> 82791322 | O77: =MAIN!DK87 -> 0.9957868216 | P77: =MAIN!DL87 -> 0.9963846532 | Q77: =MAIN!DM87 -> 0.9793791762 | R77: =MAIN!DN87 -> 0.9737813751 | S77: =MAIN!DO87 -> 1 | T77: =MAIN!DP87 -> 1 | U77: =MAIN!DQ87 -> 1 | V77: =MAIN!DR87 -> 1 | W77: =MAIN!DS87 -> 1 | X77: =MAIN!DT87 -> 0.9853573443 | Y77: =MAIN!DU87 -> 0.9929958981
A78: =MAIN!B88 -> 2021-04-01 | C78: =MAIN!CZ88 -> 7004798 | D78: =MAIN!DA88 -> 29029422 | E78: =MAIN!DB88 -> 17611997 | F78: =MAIN!DC88 -> 12876707 | G78: =MAIN!DD88 -> 7072410 | H78: =MAIN!DE88 -> 8581133 | I78: =MAIN!DF88 -> 172980 | J78: =MAIN!DG88 -> 2102 | K78: =MAIN!DH88 -> 0 | L78: =MAIN!DI88 -> 66698006 | M78: =MAIN!DJ88 -> 82351549 | O78: =MAIN!DK88 -> 0.9976897725 | P78: =MAIN!DL88 -> 0.9960088301 | Q78: =MAIN!DM88 -> 0.9806910741 | R78: =MAIN!DN88 -> 0.9752148212 | S78: =MAIN!DO88 -> 1 | T78: =MAIN!DP88 -> 1 | U78: =MAIN!DQ88 -> 1 | V78: =MAIN!DR88 -> 1 | W78: =MAIN!DS88 -> 1 | X78: =MAIN!DT88 -> 0.9861165749 | Y78: =MAIN!DU88 -> 0.9933553081
A79: =MAIN!B89 -> 2021-03-01 | C79: =MAIN!CZ89 -> 6989736 | D79: =MAIN!DA89 -> 28818094 | E79: =MAIN!DB89 -> 17513529 | F79: =MAIN!DC89 -> 12786736 | G79: =MAIN!DD89 -> 7024322 | H79: =MAIN!DE89 -> 8522136 | I79: =MAIN!DF89 -> 171925 | J79: =MAIN!DG89 -> 2092 | K79: =MAIN!DH89 -> 0 | L79: =MAIN!DI89 -> 66282112 | M79: =MAIN!DJ89 -> 81828570 | O79: =MAIN!DK89 -> 0.9982383928 | P79: =MAIN!DL89 -> 0.9959837049 | Q79: =MAIN!DM89 -> 0.9841877432 | R79: =MAIN!DN89 -> 0.9768941058 | S79: =MAIN!DO89 -> 1 | T79: =MAIN!DP89 -> 1 | U79: =MAIN!DQ89 -> 1 | V79: =MAIN!DR89 -> 1 | W79: =MAIN!DS89 -> 1 | X79: =MAIN!DT89 -> 0.9875618653 | Y79: =MAIN!DU89 -> 0.9940408883
A80: =MAIN!B90 -> 2021-02-01 | C80: =MAIN!CZ90 -> 6958555 | D80: =MAIN!DA90 -> 28577100 | E80: =MAIN!DB90 -> 17366914 | F80: =MAIN!DC90 -> 12680915 | G80: =MAIN!DD90 -> 6964780 | H80: =MAIN!DE90 -> 8451311 | I80: =MAIN!DF90 -> 170513 | J80: =MAIN!DG90 -> 2070 | K80: =MAIN!DH90 -> 0 | L80: =MAIN!DI90 -> 65756067 | M80: =MAIN!DJ90 -> 81172158 | O80: =MAIN!DK90 -> 0.99704216 | P80: =MAIN!DL90 -> 0.9959828739 | Q80: =MAIN!DM90 -> 0.9838110354 | R80: =MAIN!DN90 -> 0.9779005947 | S80: =MAIN!DO90 -> 1 | T80: =MAIN!DP90 -> 1 | U80: =MAIN!DQ90 -> 1 | V80: =MAIN!DR90 -> 1 | W80: =MAIN!DS90 -> 1 | X80: =MAIN!DT90 -> 0.9876548157 | Y80: =MAIN!DU90 -> 0.9940840832
A81: =MAIN!B91 -> 2021-01-01 | C81: =MAIN!CZ91 -> 6857258 | D81: =MAIN!DA91 -> 28387076 | E81: =MAIN!DB91 -> 17291812 | F81: =MAIN!DC91 -> 12596433 | G81: =MAIN!DD91 -> 6924275 | H81: =MAIN!DE91 -> 8397645 | I81: =MAIN!DF91 -> 169798 | J81: =MAIN!DG91 -> 2044 | K81: =MAIN!DH91 -> 0 | L81: =MAIN!DI91 -> 65304421 | M81: =MAIN!DJ91 -> 80626341 | O81: =MAIN!DK91 -> 0.9963640754 | P81: =MAIN!DL91 -> 0.9964125793 | Q81: =MAIN!DM91 -> 0.9885553335 | R81: =MAIN!DN91 -> 0.9817240743 | S81: =MAIN!DO91 -> 1 | T81: =MAIN!DP91 -> 1 | U81: =MAIN!DQ91 -> 1 | V81: =MAIN!DR91 -> 1 | W81: =MAIN!DS91 -> 1 | X81: =MAIN!DT91 -> 0.9901133075 | Y81: =MAIN!DU91 -> 0.9952571863
A82: =MAIN!B92 -> 2020-12-01 | C82: =MAIN!CZ92 -> 6952304 | D82: =MAIN!DA92 -> 28111366 | E82: =MAIN!DB92 -> 17106922 | F82: =MAIN!DC92 -> 12478938 | G82: =MAIN!DD92 -> 6856605 | H82: =MAIN!DE92 -> 8316853 | I82: =MAIN!DF92 -> 168242 | J82: =MAIN!DG92 -> 2012 | K82: =MAIN!DH92 -> 0 | L82: =MAIN!DI92 -> 64819784 | M82: =MAIN!DJ92 -> 79993242 | O82: =MAIN!DK92 -> 0.9969628423 | P82: =MAIN!DL92 -> 0.9962497653 | Q82: =MAIN!DM92 -> 0.9949505708 | R82: =MAIN!DN92 -> 0.9860260896 | S82: =MAIN!DO92 -> 1 | T82: =MAIN!DP92 -> 1 | U82: =MAIN!DQ92 -> 1 | V82: =MAIN!DR92 -> 1 | W82: =MAIN!DS92 -> 1 | X82: =MAIN!DT92 -> 0.9930586196 | Y82: =MAIN!DU92 -> 0.996662181
A83: =MAIN!B93 -> 2020-11-01 | C83: =MAIN!CZ93 -> 6939380 | D83: =MAIN!DA93 -> 27883514 | E83: =MAIN!DB93 -> 16726289 | F83: =MAIN!DC93 -> 12292400 | G83: =MAIN!DD93 -> 6822118 | H83: =MAIN!DE93 -> 8319112 | I83: =MAIN!DF93 -> 136313 | J83: =MAIN!DG93 -> 2034 | K83: =MAIN!DH93 -> 0 | L83: =MAIN!DI93 -> 63979930 | M83: =MAIN!DJ93 -> 79121160 | O83: =MAIN!DK93 -> 0.9966185827 | P83: =MAIN!DL93 -> 0.9963092202 | Q83: =MAIN!DM93 -> 0.9937561191 | R83: =MAIN!DN93 -> 0.9852697054 | S83: =MAIN!DO93 -> 1 | T83: =MAIN!DP93 -> 1 | U83: =MAIN!DQ93 -> 1 | V83: =MAIN!DR93 -> 1 | W83: =MAIN!DS93 -> 1 | X83: =MAIN!DT93 -> 0.9925199764 | Y83: =MAIN!DU93 -> 0.9964275844
A84: =MAIN!B94 -> 2020-10-01 | C84: =MAIN!CZ94 -> 6898094 | D84: =MAIN!DA94 -> 27668198 | E84: =MAIN!DB94 -> 16403149 | F84: =MAIN!DC94 -> 12139843 | G84: =MAIN!DD94 -> 6786697 | H84: =MAIN!DE94 -> 8312893 | I84: =MAIN!DF94 -> 111269 | J84: =MAIN!DG94 -> 2216 | K84: =MAIN!DH94 -> 0 | L84: =MAIN!DI94 -> 63222769 | M84: =MAIN!DJ94 -> 78322359 | O84: =MAIN!DK94 -> 0.9948620699 | P84: =MAIN!DL94 -> 0.9974152249 | Q84: =MAIN!DM94 -> 0.9930250802 | R84: =MAIN!DN94 -> 0.9877648348 | S84: =MAIN!DO94 -> 1 | T84: =MAIN!DP94 -> 1 | U84: =MAIN!DQ94 -> 1 | V84: =MAIN!DR94 -> 1 | W84: =MAIN!DS94 -> 1 | X84: =MAIN!DT94 -> 0.9933024866 | Y84: =MAIN!DU94 -> 0.9968171516
A85: =MAIN!B95 -> 2020-09-01 | C85: =MAIN!CZ95 -> 6870492 | D85: =MAIN!DA95 -> 27439177 | E85: =MAIN!DB95 -> 16126681 | F85: =MAIN!DC95 -> 11989013 | G85: =MAIN!DD95 -> 6744331 | H85: =MAIN!DE95 -> 8303666 | I85: =MAIN!DF95 -> 93995 | J85: =MAIN!DG95 -> 2078 | K85: =MAIN!DH95 -> 0 | L85: =MAIN!DI95 -> 62521436 | M85: =MAIN!DJ95 -> 77569433 | O85: =MAIN!DK95 -> 0.9941733321 | P85: =MAIN!DL95 -> 0.9981190741 | Q85: =MAIN!DM95 -> 0.9939521764 | R85: =MAIN!DN95 -> 0.9909433259 | S85: =MAIN!DO95 -> 1 | T85: =MAIN!DP95 -> 1 | U85: =MAIN!DQ95 -> 1 | V85: =MAIN!DR95 -> 1 | W85: =MAIN!DS95 -> 1 | X85: =MAIN!DT95 -> 0.9946617042 | Y85: =MAIN!DU95 -> 0.9974729682
A86: =MAIN!B96 -> 2020-08-01 | C86: =MAIN!CZ96 -> 6868344 | D86: =MAIN!DA96 -> 27146523 | E86: =MAIN!DB96 -> 15836209 | F86: =MAIN!DC96 -> 11818962 | G86: =MAIN!DD96 -> 6706545 | H86: =MAIN!DE96 -> 8295308 | I86: =MAIN!DF96 -> 80101 | J86: =MAIN!DG96 -> 3508 | K86: =MAIN!DH96 -> 0 | L86: =MAIN!DI96 -> 61753647 | M86: =MAIN!DJ96 -> 76755500 | O86: =MAIN!DK96 -> 0.9951573081 | P86: =MAIN!DL96 -> 0.9985141663 | Q86: =MAIN!DM96 -> 0.9947587943 | R86: =MAIN!DN96 -> 0.9941408941 | S86: =MAIN!DO96 -> 1 | T86: =MAIN!DP96 -> 1 | U86: =MAIN!DQ96 -> 1 | V86: =MAIN!DR96 -> 1 | W86: =MAIN!DS96 -> 1 | X86: =MAIN!DT96 -> 0.9960116007 | Y86: =MAIN!DU96 -> 0.9981209475
A87: =MAIN!B97 -> 2020-07-01 | C87: =MAIN!CZ97 -> 6862779 | D87: =MAIN!DA97 -> 26797791 | E87: =MAIN!DB97 -> 15515116 | F87: =MAIN!DC97 -> 11621463 | G87: =MAIN!DD97 -> 6662365 | H87: =MAIN!DE97 -> 8284255 | I87: =MAIN!DF97 -> 70601 | J87: =MAIN!DG97 -> 4539 | K87: =MAIN!DH97 -> 0 | L87: =MAIN!DI97 -> 60872289 | M87: =MAIN!DJ97 -> 75818909 | O87: =MAIN!DK97 -> 0.9970396473 | P87: =MAIN!DL97 -> 0.9992908064 | Q87: =MAIN!DM97 -> 0.9957482279 | R87: =MAIN!DN97 -> 0.9967622869 | S87: =MAIN!DO97 -> 1 | T87: =MAIN!DP97 -> 1 | U87: =MAIN!DQ97 -> 1 | V87: =MAIN!DR97 -> 1 | W87: =MAIN!DS97 -> 1 | X87: =MAIN!DT97 -> 0.9974596146 | Y87: =MAIN!DU97 -> 0.9988097271
A88: =MAIN!B98 -> 2020-06-01 | C88: =MAIN!CZ98 -> 6842111 | D88: =MAIN!DA98 -> 26471512 | E88: =MAIN!DB98 -> 15188509 | F88: =MAIN!DC98 -> 11419016 | G88: =MAIN!DD98 -> 6611235 | H88: =MAIN!DE98 -> 8269676 | I88: =MAIN!DF98 -> 55401 | J88: =MAIN!DG98 -> 5251 | K88: =MAIN!DH98 -> 0 | L88: =MAIN!DI98 -> 59981800 | M88: =MAIN!DJ98 -> 74862711 | O88: =MAIN!DK98 -> 0.9971313468 | P88: =MAIN!DL98 -> 0.9976666616 | Q88: =MAIN!DM98 -> 0.9960953004 | R88: =MAIN!DN98 -> 0.9986966618 | S88: =MAIN!DO98 -> 1 | T88: =MAIN!DP98 -> 1 | U88: =MAIN!DQ98 -> 1 | V88: =MAIN!DR98 -> 1 | W88: =MAIN!DS98 -> 1 | X88: =MAIN!DT98 -> 0.9975116294 | Y88: =MAIN!DU98 -> 0.998841297
A89: =MAIN!B99 -> 2020-05-01 | C89: =MAIN!CZ99 -> 6877058 | D89: =MAIN!DA99 -> 26065215 | E89: =MAIN!DB99 -> 14849368 | F89: =MAIN!DC99 -> 11217407 | G89: =MAIN!DD99 -> 6574548 | H89: =MAIN!DE99 -> 8244776 | I89: =MAIN!DF99 -> 43161 | J89: =MAIN!DG99 -> 5268 | K89: =MAIN!DH99 -> 0 | L89: =MAIN!DI99 -> 59057477 | M89: =MAIN!DJ99 -> 73876801 | O89: =MAIN!DK99 -> 0.9998973617 | P89: =MAIN!DL99 -> 0.9978298412 | Q89: =MAIN!DM99 -> 0.9981701824 | R89: =MAIN!DN99 -> 1.001529964 | S89: =MAIN!DO99 -> 1 | T89: =MAIN!DP99 -> 1 | U89: =MAIN!DQ99 -> 1 | V89: =MAIN!DR99 -> 1 | W89: =MAIN!DS99 -> 1 | X89: =MAIN!DT99 -> 0.9991507644 | Y89: =MAIN!DU99 -> 0.9996068777
A90: =MAIN!B100 -> 2020-04-01 | C90: =MAIN!CZ100 -> 6909449 | D90: =MAIN!DA100 -> 25582892 | E90: =MAIN!DB100 -> 14478032 | F90: =MAIN!DC100 -> 10952397 | G90: =MAIN!DD100 -> 6533767 | H90: =MAIN!DE100 -> 8197966 | I90: =MAIN!DF100 -> 31104 | J90: =MAIN!DG100 -> 5317 | K90: =MAIN!DH100 -> 0 | L90: =MAIN!DI100 -> 57959191 | M90: =MAIN!DJ100 -> 72690924 | O90: =MAIN!DK100 -> 0.9988639608 | P90: =MAIN!DL100 -> 0.9981876658 | Q90: =MAIN!DM100 -> 0.9956269906 | R90: =MAIN!DN100 -> 1.003175459 | S90: =MAIN!DO100 -> 1 | T90: =MAIN!DP100 -> 1 | U90: =MAIN!DQ100 -> 1 | V90: =MAIN!DR100 -> 1 | W90: =MAIN!DS100 -> 1 | X90: =MAIN!DT100 -> 0.9990098234 | Y90: =MAIN!DU100 -> 0.9995452106
A91: =MAIN!B101 -> 2020-03-01 | C91: =MAIN!CZ101 -> 6879950 | D91: =MAIN!DA101 -> 25205998 | E91: =MAIN!DB101 -> 14056491 | F91: =MAIN!DC101 -> 10679455 | G91: =MAIN!DD101 -> 6493586 | H91: =MAIN!DE101 -> 8159889 | I91: =MAIN!DF101 -> 25695 | J91: =MAIN!DG101 -> 5803 | K91: =MAIN!DH101 -> 0 | L91: =MAIN!DI101 -> 56853392 | M91: =MAIN!DJ101 -> 71506867 | O91: =MAIN!DK101 -> 1.001530879 | P91: =MAIN!DL101 -> 0.9980839754 | Q91: =MAIN!DM101 -> 0.9943159823 | R91: =MAIN!DN101 -> 1.006516484 | S91: =MAIN!DO101 -> 1 | T91: =MAIN!DP101 -> 1 | U91: =MAIN!DQ101 -> 1 | V91: =MAIN!DR101 -> 1 | W91: =MAIN!DS101 -> 1 | X91: =MAIN!DT101 -> 0.9998244489 | Y91: =MAIN!DU101 -> 0.999920012
A92: =MAIN!B102 -> 2020-02-01 | C92: =MAIN!CZ102 -> 6849460 | D92: =MAIN!DA102 -> 25140723 | E92: =MAIN!DB102 -> 13930059 | F92: =MAIN!DC102 -> 10628078 | G92: =MAIN!DD102 -> 6461223 | H92: =MAIN!DE102 -> 8141823 | I92: =MAIN!DF102 -> 0 | J92: =MAIN!DG102 -> 6361 | K92: =MAIN!DH102 -> 0 | L92: =MAIN!DI102 -> 56554681 | M92: =MAIN!DJ102 -> 71157727 | O92: =MAIN!DK102 -> 1 | P92: =MAIN!DL102 -> 1 | Q92: =MAIN!DM102 -> 1 | R92: =MAIN!DN102 -> 1 | S92: =MAIN!DO102 -> 1 | T92: =MAIN!DP102 -> 1 | U92: =MAIN!DQ102 -> 1 | V92: =MAIN!DR102 -> 1 | W92: =MAIN!DS102 -> 1 | X92: =MAIN!DT102 -> 1 | Y92: =MAIN!DU102 -> 1
A93: =MAIN!B103 -> 2020-01-01 | C93: =MAIN!CZ103 -> 6845132 | D93: =MAIN!DA103 -> 25312272 | E93: =MAIN!DB103 -> 13964688 | F93: =MAIN!DC103 -> 10445344 | G93: =MAIN!DD103 -> 6475449 | H93: =MAIN!DE103 -> 8188755 | I93: =MAIN!DF103 -> 0 | J93: =MAIN!DG103 -> 5141 | K93: =MAIN!DH103 -> 0 | L93: =MAIN!DI103 -> 56572577 | M93: =MAIN!DJ103 -> 71236781 | O93: =MAIN!DK103 -> 1 | P93: =MAIN!DL103 -> 1 | Q93: =MAIN!DM103 -> 1 | R93: =MAIN!DN103 -> 1 | S93: =MAIN!DO103 -> 1 | T93: =MAIN!DP103 -> 1 | U93: =MAIN!DQ103 -> 1 | V93: =MAIN!DR103 -> 1 | W93: =MAIN!DS103 -> 1 | X93: =MAIN!DT103 -> 1 | Y93: =MAIN!DU103 -> 1
A94: =MAIN!B104 -> 2019-12-01 | C94: =MAIN!CZ104 -> 6759028 | D94: =MAIN!DA104 -> 25559296 | E94: =MAIN!DB104 -> 14208931 | F94: =MAIN!DC104 -> 9936424 | G94: =MAIN!DD104 -> 6431736 | H94: =MAIN!DE104 -> 8178676 | I94: =MAIN!DF104 -> 0 | J94: =MAIN!DG104 -> 5459 | K94: =MAIN!DH104 -> 0 | L94: =MAIN!DI104 -> 56469138 | M94: =MAIN!DJ104 -> 71079550 | O94: =MAIN!DK104 -> 1 | P94: =MAIN!DL104 -> 1 | Q94: =MAIN!DM104 -> 1 | R94: =MAIN!DN104 -> 1 | S94: =MAIN!DO104 -> 1 | T94: =MAIN!DP104 -> 1 | U94: =MAIN!DQ104 -> 1 | V94: =MAIN!DR104 -> 1 | W94: =MAIN!DS104 -> 1 | X94: =MAIN!DT104 -> 1 | Y94: =MAIN!DU104 -> 1
A95: =MAIN!B105 -> 2019-11-01 | C95: =MAIN!CZ105 -> 6756939 | D95: =MAIN!DA105 -> 25619711 | E95: =MAIN!DB105 -> 14187172 | F95: =MAIN!DC105 -> 9963445 | G95: =MAIN!DD105 -> 6423969 | H95: =MAIN!DE105 -> 8196317 | I95: =MAIN!DF105 -> 0 | J95: =MAIN!DG105 -> 6057 | K95: =MAIN!DH105 -> 0 | L95: =MAIN!DI105 -> 56533324 | M95: =MAIN!DJ105 -> 71153610 | O95: =MAIN!DK105 -> 1 | P95: =MAIN!DL105 -> 1 | Q95: =MAIN!DM105 -> 1 | R95: =MAIN!DN105 -> 1 | S95: =MAIN!DO105 -> 1 | T95: =MAIN!DP105 -> 1 | U95: =MAIN!DQ105 -> 1 | V95: =MAIN!DR105 -> 1 | W95: =MAIN!DS105 -> 1 | X95: =MAIN!DT105 -> 1 | Y95: =MAIN!DU105 -> 1
A96: =MAIN!B106 -> 2019-10-01 | C96: =MAIN!CZ106 -> 6747933 | D96: =MAIN!DA106 -> 25737052 | E96: =MAIN!DB106 -> 14228287 | F96: =MAIN!DC106 -> 10033923 | G96: =MAIN!DD106 -> 6427959 | H96: =MAIN!DE106 -> 8231299 | I96: =MAIN!DF106 -> 0 | J96: =MAIN!DG106 -> 6479 | K96: =MAIN!DH106 -> 0 | L96: =MAIN!DI106 -> 56753674 | M96: =MAIN!DJ106 -> 71412932 | O96: =MAIN!DK106 -> 1 | P96: =MAIN!DL106 -> 1 | Q96: =MAIN!DM106 -> 1 | R96: =MAIN!DN106 -> 1 | S96: =MAIN!DO106 -> 1 | T96: =MAIN!DP106 -> 1 | U96: =MAIN!DQ106 -> 1 | V96: =MAIN!DR106 -> 1 | W96: =MAIN!DS106 -> 1 | X96: =MAIN!DT106 -> 1 | Y96: =MAIN!DU106 -> 1
A97: =MAIN!B107 -> 2019-09-01 | C97: =MAIN!CZ107 -> 6663970 | D97: =MAIN!DA107 -> 25559249 | E97: =MAIN!DB107 -> 14008168 | F97: =MAIN!DC107 -> 9956865 | G97: =MAIN!DD107 -> 6363420 | H97: =MAIN!DE107 -> 8190421 | I97: =MAIN!DF107 -> 0 | J97: =MAIN!DG107 -> 7135 | K97: =MAIN!DH107 -> 0 | L97: =MAIN!DI107 -> 56195387 | M97: =MAIN!DJ107 -> 70749228 | O97: =MAIN!DK107 -> 1 | P97: =MAIN!DL107 -> 1 | Q97: =MAIN!DM107 -> 1 | R97: =MAIN!DN107 -> 1 | S97: =MAIN!DO107 -> 1 | T97: =MAIN!DP107 -> 1 | U97: =MAIN!DQ107 -> 1 | V97: =MAIN!DR107 -> 1 | W97: =MAIN!DS107 -> 1 | X97: =MAIN!DT107 -> 1 | Y97: =MAIN!DU107 -> 1
A98: =MAIN!B108 -> 2019-08-01 | C98: =MAIN!CZ108 -> 6681985 | D98: =MAIN!DA108 -> 25837027 | E98: =MAIN!DB108 -> 14242204 | F98: =MAIN!DC108 -> 10080582 | G98: =MAIN!DD108 -> 6383145 | H98: =MAIN!DE108 -> 8244319 | I98: =MAIN!DF108 -> 0 | J98: =MAIN!DG108 -> 7556 | K98: =MAIN!DH108 -> 0 | L98: =MAIN!DI108 -> 56849354 | M98: =MAIN!DJ108 -> 71476818 | O98: =MAIN!DK108 -> 1 | P98: =MAIN!DL108 -> 1 | Q98: =MAIN!DM108 -> 1 | R98: =MAIN!DN108 -> 1 | S98: =MAIN!DO108 -> 1 | T98: =MAIN!DP108 -> 1 | U98: =MAIN!DQ108 -> 1 | V98: =MAIN!DR108 -> 1 | W98: =MAIN!DS108 -> 1 | X98: =MAIN!DT108 -> 1 | Y98: =MAIN!DU108 -> 1
A99: =MAIN!B109 -> 2019-07-01 | C99: =MAIN!CZ109 -> 6655153 | D99: =MAIN!DA109 -> 25836079 | E99: =MAIN!DB109 -> 14255701 | F99: =MAIN!DC109 -> 10092495 | G99: =MAIN!DD109 -> 6365302 | H99: =MAIN!DE109 -> 8258030 | I99: =MAIN!DF109 -> 0 | J99: =MAIN!DG109 -> 7611 | K99: =MAIN!DH109 -> 0 | L99: =MAIN!DI109 -> 56847039 | M99: =MAIN!DJ109 -> 71470371 | O99: =MAIN!DK109 -> 1 | P99: =MAIN!DL109 -> 1 | Q99: =MAIN!DM109 -> 1 | R99: =MAIN!DN109 -> 1 | S99: =MAIN!DO109 -> 1 | T99: =MAIN!DP109 -> 1 | U99: =MAIN!DQ109 -> 1 | V99: =MAIN!DR109 -> 1 | W99: =MAIN!DS109 -> 1 | X99: =MAIN!DT109 -> 1 | Y99: =MAIN!DU109 -> 1
A100: =MAIN!B110 -> 2019-06-01 | C100: =MAIN!CZ110 -> 6650525 | D100: =MAIN!DA110 -> 25821061 | E100: =MAIN!DB110 -> 14242771 | F100: =MAIN!DC110 -> 10077144 | G100: =MAIN!DD110 -> 6338580 | H100: =MAIN!DE110 -> 8267136 | I100: =MAIN!DF110 -> 0 | J100: =MAIN!DG110 -> 7789 | K100: =MAIN!DH110 -> 0 | L100: =MAIN!DI110 -> 56799290 | M100: =MAIN!DJ110 -> 71405006 | O100: =MAIN!DK110 -> 1 | P100: =MAIN!DL110 -> 1 | Q100: =MAIN!DM110 -> 1 | R100: =MAIN!DN110 -> 1 | S100: =MAIN!DO110 -> 1 | T100: =MAIN!DP110 -> 1 | U100: =MAIN!DQ110 -> 1 | V100: =MAIN!DR110 -> 1 | W100: =MAIN!DS110 -> 1 | X100: =MAIN!DT110 -> 1 | Y100: =MAIN!DU110 -> 1
A101: =MAIN!B111 -> 2019-05-01 | C101: =MAIN!CZ111 -> 6673452 | D101: =MAIN!DA111 -> 25840668 | E101: =MAIN!DB111 -> 14289506 | F101: =MAIN!DC111 -> 10097244 | G101: =MAIN!DD111 -> 6328128 | H101: =MAIN!DE111 -> 8267404 | I101: =MAIN!DF111 -> 0 | J101: =MAIN!DG111 -> 8023 | K101: =MAIN!DH111 -> 0 | L101: =MAIN!DI111 -> 56908893 | M101: =MAIN!DJ111 -> 71504425 | O101: =MAIN!DK111 -> 1 | P101: =MAIN!DL111 -> 1 | Q101: =MAIN!DM111 -> 1 | R101: =MAIN!DN111 -> 1 | S101: =MAIN!DO111 -> 1 | T101: =MAIN!DP111 -> 1 | U101: =MAIN!DQ111 -> 1 | V101: =MAIN!DR111 -> 1 | W101: =MAIN!DS111 -> 1 | X101: =MAIN!DT111 -> 1 | Y101: =MAIN!DU111 -> 1
A102: =MAIN!B112 -> 2019-04-01 | C102: =MAIN!CZ112 -> 6692330 | D102: =MAIN!DA112 -> 25880081 | E102: =MAIN!DB112 -> 14323308 | F102: =MAIN!DC112 -> 10102188 | G102: =MAIN!DD112 -> 6313707 | H102: =MAIN!DE112 -> 8284253 | I102: =MAIN!DF112 -> 0 | J102: =MAIN!DG112 -> 8293 | K102: =MAIN!DH112 -> 0 | L102: =MAIN!DI112 -> 57006200 | M102: =MAIN!DJ112 -> 71604160 | O102: =MAIN!DK112 -> 1 | P102: =MAIN!DL112 -> 1 | Q102: =MAIN!DM112 -> 1 | R102: =MAIN!DN112 -> 1 | S102: =MAIN!DO112 -> 1 | T102: =MAIN!DP112 -> 1 | U102: =MAIN!DQ112 -> 1 | V102: =MAIN!DR112 -> 1 | W102: =MAIN!DS112 -> 1 | X102: =MAIN!DT112 -> 1 | Y102: =MAIN!DU112 -> 1
A103: =MAIN!B113 -> 2019-03-01 | C103: =MAIN!CZ113 -> 6716097 | D103: =MAIN!DA113 -> 25933620 | E103: =MAIN!DB113 -> 14380375 | F103: =MAIN!DC113 -> 10112579 | G103: =MAIN!DD113 -> 6301578 | H103: =MAIN!DE113 -> 8299830 | I103: =MAIN!DF113 -> 0 | J103: =MAIN!DG113 -> 8556 | K103: =MAIN!DH113 -> 0 | L103: =MAIN!DI113 -> 57151227 | M103: =MAIN!DJ113 -> 71752635 | O103: =MAIN!DK113 -> 1 | P103: =MAIN!DL113 -> 1 | Q103: =MAIN!DM113 -> 1 | R103: =MAIN!DN113 -> 1 | S103: =MAIN!DO113 -> 1 | T103: =MAIN!DP113 -> 1 | U103: =MAIN!DQ113 -> 1 | V103: =MAIN!DR113 -> 1 | W103: =MAIN!DS113 -> 1 | X103: =MAIN!DT113 -> 1 | Y103: =MAIN!DU113 -> 1
A104: =MAIN!B114 -> 2019-02-01 | C104: =MAIN!CZ114 -> 6698800 | D104: =MAIN!DA114 -> 25960906 | E104: =MAIN!DB114 -> 14391102 | F104: =MAIN!DC114 -> 10111551 | G104: =MAIN!DD114 -> 6288381 | H104: =MAIN!DE114 -> 8323734 | I104: =MAIN!DF114 -> 0 | J104: =MAIN!DG114 -> 8763 | K104: =MAIN!DH114 -> 0 | L104: =MAIN!DI114 -> 57171122 | M104: =MAIN!DJ114 -> 71783237 | O104: =MAIN!DK114 -> 1 | P104: =MAIN!DL114 -> 1 | Q104: =MAIN!DM114 -> 1 | R104: =MAIN!DN114 -> 1 | S104: =MAIN!DO114 -> 1 | T104: =MAIN!DP114 -> 1 | U104: =MAIN!DQ114 -> 1 | V104: =MAIN!DR114 -> 1 | W104: =MAIN!DS114 -> 1 | X104: =MAIN!DT114 -> 1 | Y104: =MAIN!DU114 -> 1
A105: =MAIN!B115 -> 2019-01-01 | C105: =MAIN!CZ115 -> 6668020 | D105: =MAIN!DA115 -> 25705716 | E105: =MAIN!DB115 -> 14200006 | F105: =MAIN!DC115 -> 10007506 | G105: =MAIN!DD115 -> 6225834 | H105: =MAIN!DE115 -> 8274501 | I105: =MAIN!DF115 -> 0 | J105: =MAIN!DG115 -> 8954 | K105: =MAIN!DH115 -> 0 | L105: =MAIN!DI115 -> 56590202 | M105: =MAIN!DJ115 -> 71090537 | O105: =MAIN!DK115 -> 1 | P105: =MAIN!DL115 -> 1 | Q105: =MAIN!DM115 -> 1 | R105: =MAIN!DN115 -> 1 | S105: =MAIN!DO115 -> 1 | T105: =MAIN!DP115 -> 1 | U105: =MAIN!DQ115 -> 1 | V105: =MAIN!DR115 -> 1 | W105: =MAIN!DS115 -> 1 | X105: =MAIN!DT115 -> 1 | Y105: =MAIN!DU115 -> 1

Sheet MODEL RESULTS
B2: State: | D2: =MAIN!B5 -> * | V2: Base Inputs
B3: Graphs: | D3: All Populations | G3: =IF(D2="*","- NATIONAL -","- "&UPPER(D2)&" -") -> - NATIONAL - | V3: Month of First Terminations | AA3: =INPUTS!G8 -> 2023-04-01
V4: Months to Process Terminations | AA4: =INPUTS!G9 -> 15
D5: MonthBeg | E5: Months | V5: Unwinding Priority | AA5: =INPUTS!G10 -> Time-Based
B6: Period 1 | D6: 2023-03-01 | E6: 1 | V6: Min. Mos. Enrollment to Disenroll | AA6: =INPUTS!G11 -> 12
B7: Period 2 | D7: 2024-07-01 | E7: 1 | V7: Months Lag for Churn | AA7: =INPUTS!G12 -> 6
B8: Proj. Mos. | D8: =12*(D7+0.5*E7*(365.25/12)-(D6+0.5*E6*(365.25/12)))/365.25 -> 16.03285421 | V8: Unwinding Distribution | AA8: =INPUTS!G14 -> Custom
G10: ="Period 1: "&TEXT(D6,"Mmm Yy")&" to "&TEXT(EDATE(D6,E6-1),"Mmm Yy") -> Period 1: Mar 23 to Mar 23 | N10: ="Period 2: "&TEXT(D7,"Mmm Yy")&" to "&TEXT(EDATE(D7,E7-1),"Mmm Yy") -> Period 2: Jul 24 to Jul 24 | U10: Low Enrollment Scenario | X10: Mid Enrollment Scenario | AA10: High Enrollment Scen.
E11: Population | G11: Avg. Enrollment | H11: Lower | I11: Upper | J11: Acuity | K11: Lower | L11: Upper | N11: Avg. Enrollment | O11: Lower | P11: Upper | Q11: Acuity | R11: Lower | S11: Upper | U11: Enrollment | V11: Acuity | X11: Enrollment | Y11: Acuity | AA11: Enrollment | AB11: Acuity
E12: =INPUTS!H21 -> CHIP | G12: =AVERAGE(OFFSET(MAIN!$FN$14,MATCH($D$6,MAIN!$B$14:$B$115,0)-1,MATCH($E12,MAIN!$FN$13:$FX$13,0)-1,-$E$6,1)) -> 7059078.156 | H12: =AVERAGE(OFFSET(MAIN!$FY$14,MATCH($D$6,MAIN!$B$14:$B$115,0)-1,MATCH($E12,MAIN!$FY$13:$GI$13,0)-1,-$E$6,1)) -> 7059078.156 | I12: =AVERAGE(OFFSET(MAIN!$GJ$14,MATCH($D$6,MAIN!$B$14:$B$115,0)-1,MATCH($E12,MAIN!$GJ$13:$GT$13,0)-1,-$E$6,1)) -> 7059078.156 | J12: =IFERROR(SUMPRODUCT(OFFSET(MAIN!$EG$14,MATCH($D$6,MAIN!$B$14:$B$115,0)-1,MATCH($E12,MAIN!$EG$13:$EQ$13,0)-1,-$E$6,1),OFFSET(MAIN!$FN$14,MATCH($D$6,MAIN!$B$14:$B$115,0)-1,MATCH($E12,MAIN!$FN$13:$FX$13,0)-1,-$E$6,1))/($E$6*G12),0) -> 0.998101211 | K12: =IFERROR(SUMPRODUCT(OFFSET(MAIN!$ER$14,MATCH($D$6,MAIN!$B$14:$B$115,0)-1,MATCH($E12,MAIN!$ER$13:$FB$13,0)-1,-$E$6,1),OFFSET(MAIN!$FY$14,MATCH($D$6,MAIN!$B$14:$B$115,0)-1,MATCH($E12,MAIN!$FY$13:$GI$13,0)-1,-$E$6,1))/($E$6*H12),0) -> 0.998101211 | L12: =IFERROR(SUMPRODUCT(OFFSET(MAIN!$FC$14,MATCH($D$6,MAIN!$B$14:$B$115,0)-1,MATCH($E12,MAIN!$FC$13:$FM$13,0)-1,-$E$6,1),OFFSET(MAIN!$GJ$14,MATCH($D$6,MAIN!$B$14:$B$115,0)-1,MATCH($E12,MAIN!$GJ$13:$GT$13,0)-1,-$E$6,1))/($E$6*I12),0) -> 0.998101211 | N12: =AVERAGE(OFFSET(MAIN!$FN$14,MATCH($D$7,MAIN!$B$14:$B$115,0)-1,MATCH($E12,MAIN!$FN$13:$FX$13,0)-1,-$E$7,1)) -> 6918643.768 | O12: =AVERAGE(OFFSET(MAIN!$FY$14,MATCH($D$7,MAIN!$B$14:$B$115,0)-1,MATCH($E12,MAIN!$FY$13:$GI$13,0)-1,-$E$7,1)) -> 6993750.999 | P12: =AVERAGE(OFFSET(MAIN!$GJ$14,MATCH($D$7,MAIN!$B$14:$B$115,0)-1,MATCH($E12,MAIN!$GJ$13:$GT$13,0)-1,-$E$7,1)) -> 6767040.45 | Q12: =IFERROR(SUMPRODUCT(OFFSET(MAIN!$EG$14,MATCH($D$7,MAIN!$B$14:$B$115,0)-1,MATCH($E12,MAIN!$EG$13:$EQ$13,0)-1,-$E$7,1),OFFSET(MAIN!$FN$14,MATCH($D$7,MAIN!$B$14:$B$115,0)-1,MATCH($E12,MAIN!$FN$13:$FX$13,0)-1,-$E$7,1))/($E$7*N12),0) -> 1 | R12: =IFERROR(SUMPRODUCT(OFFSET(MAIN!$ER$14,MATCH($D$7,MAIN!$B$14:$B$115,0)-1,MATCH($E12,MAIN!$ER$13:$FB$13,0)-1,-$E$7,1),OFFSET(MAIN!$FY$14,MATCH($D$7,MAIN!$B$14:$B$115,0)-1,MATCH($E12,MAIN!$FY$13:$GI$13,0)-1,-$E$7,1))/($E$7*O12),0) -> 0.9991108498 | S12: =IFERROR(SUMPRODUCT(OFFSET(MAIN!$FC$14,MATCH($D$7,MAIN!$B$14:$B$115,0)-1,MATCH($E12,MAIN!$FC$13:$FM$13,0)-1,-$E$7,1),OFFSET(MAIN!$GJ$14,MATCH($D$7,MAIN!$B$14:$B$115,0)-1,MATCH($E12,MAIN!$GJ$13:$GT$13,0)-1,-$E$7,1))/($E$7*P12),0) -> 0.9999076315 | U12: =IFERROR((O12/H12)-1,0) -> -0.009254346773 | V12: =IFERROR((R12/K12)-1,0) -> 0.001011559551 | X12: =IFERROR((N12/G12)-1,0) -> -0.01989415399 | Y12: =IFERROR((Q12/J12)-1,0) -> 0.001902401291 | AA12: =IFERROR((P12/I12)-1,0) -> -0.04137051594 | AB12: =IFERROR((S12/L12)-1,0) -> 0.001809857055
E13: =INPUTS!H22 -> Children | G13: =AVERAGE(OFFSET(MAIN!$FN$14,MATCH($D$6,MAIN!$B$14:$B$115,0)-1,MATCH($E13,MAIN!$FN$13:$FX$13,0)-1,-$E$6,1)) -> 33684246 | H13: =AVERAGE(OFFSET(MAIN!$FY$14,MATCH($D$6,MAIN!$B$14:$B$115,0)-1,MATCH($E13,MAIN!$FY$13:$GI$13,0)-1,-$E$6,1)) -> 33684246 | I13: =AVERAGE(OFFSET(MAIN!$GJ$14,MATCH($D$6,MAIN!$B$14:$B$115,0)-1,MATCH($E13,MAIN!$GJ$13:$GT$13,0)-1,-$E$6,1)) -> 33684246 | J13: =IFERROR(SUMPRODUCT(OFFSET(MAIN!$EG$14,MATCH($D$6,MAIN!$B$14:$B$115,0)-1,MATCH($E13,MAIN!$EG$13:$EQ$13,0)-1,-$E$6,1),OFFSET(MAIN!$FN$14,MATCH($D$6,MAIN!$B$14:$B$115,0)-1,MATCH($E13,MAIN!$FN$13:$FX$13,0)-1,-$E$6,1))/($E$6*G13),0) -> 0.9950415097 | K13: =IFERROR(SUMPRODUCT(OFFSET(MAIN!$ER$14,MATCH($D$6,MAIN!$B$14:$B$115,0)-1,MATCH($E13,MAIN!$ER$13:$FB$13,0)-1,-$E$6,1),OFFSET(MAIN!$FY$14,MATCH($D$6,MAIN!$B$14:$B$115,0)-1,MATCH($E13,MAIN!$FY$13:$GI$13,0)-1,-$E$6,1))/($E$6*H13),0) -> 0.9950415097 | L13: =IFERROR(SUMPRODUCT(OFFSET(MAIN!$FC$14,MATCH($D$6,MAIN!$B$14:$B$115,0)-1,MATCH($E13,MAIN!$FC$13:$FM$13,0)-1,-$E$6,1),OFFSET(MAIN!$GJ$14,MATCH($D$6,MAIN!$B$14:$B$115,0)-1,MATCH($E13,MAIN!$GJ$13:$GT$13,0)-1,-$E$6,1))/($E$6*I13),0) -> 0.9950415097 | N13: =AVERAGE(OFFSET(MAIN!$FN$14,MATCH($D$7,MAIN!$B$14:$B$115,0)-1,MATCH($E13,MAIN!$FN$13:$FX$13,0)-1,-$E$7,1)) -> 28545855.46 | O13: =AVERAGE(OFFSET(MAIN!$FY$14,MATCH($D$7,MAIN!$B$14:$B$115,0)-1,MATCH($E13,MAIN!$FY$13:$GI$13,0)-1,-$E$7,1)) -> 25895826.97 | P13: =AVERAGE(OFFSET(MAIN!$GJ$14,MATCH($D$7,MAIN!$B$14:$B$115,0)-1,MATCH($E13,MAIN!$GJ$13:$GT$13,0)-1,-$E$7,1)) -> 30007541.39 | Q13: =IFERROR(SUMPRODUCT(OFFSET(MAIN!$EG$14,MATCH($D$7,MAIN!$B$14:$B$115,0)-1,MATCH($E13,MAIN!$EG$13:$EQ$13,0)-1,-$E$7,1),OFFSET(MAIN!$FN$14,MATCH($D$7,MAIN!$B$14:$B$115,0)-1,MATCH($E13,MAIN!$FN$13:$FX$13,0)-1,-$E$7,1))/($E$7*N13),0) -> 1 | R13: =IFERROR(SUMPRODUCT(OFFSET(MAIN!$ER$14,MATCH($D$7,MAIN!$B$14:$B$115,0)-1,MATCH($E13,MAIN!$ER$13:$FB$13,0)-1,-$E$7,1),OFFSET(MAIN!$FY$14,MATCH($D$7,MAIN!$B$14:$B$115,0)-1,MATCH($E13,MAIN!$FY$13:$GI$13,0)-1,-$E$7,1))/($E$7*O13),0) -> 0.9976781975 | S13: =IFERROR(SUMPRODUCT(OFFSET(MAIN!$FC$14,MATCH($D$7,MAIN!$B$14:$B$115,0)-1,MATCH($E13,MAIN!$FC$13:$FM$13,0)-1,-$E$7,1),OFFSET(MAIN!$GJ$14,MATCH($D$7,MAIN!$B$14:$B$115,0)-1,MATCH($E13,MAIN!$GJ$13:$GT$13,0)-1,-$E$7,1))/($E$7*P13),0) -> 0.9999737228 | U13: =IFERROR((O13/H13)-1,0) -> -0.2312184464 | V13: 0.002649826998 | X13: -0.1525458085 | Y13: 0.004983199487 | AA13: -0.1091520531 | AB13: 0.004956791332
E14: =INPUTS!H23 -> Expansion | G14: =AVERAGE(OFFSET(MAIN!$FN$14,MATCH($D$6,MAIN!$B$14:$B$115,0)-1,MATCH($E14,MAIN!$FN$13:$FX$13,0)-1,-$E$6,1)) -> 19796753 | H14: =AVERAGE(OFFSET(MAIN!$FY$14,MATCH($D$6,MAIN!$B$14:$B$115,0)-1,MATCH($E14,MAIN!$FY$13:$GI$13,0)-1,-$E$6,1)) -> 19796753 | I14: =AVERAGE(OFFSET(MAIN!$GJ$14,MATCH($D$6,MAIN!$B$14:$B$115,0)-1,MATCH($E14,MAIN!$GJ$13:$GT$13,0)-1,-$E$6,1)) -> 19796753 | J14: =IFERROR(SUMPRODUCT(OFFSET(MAIN!$EG$14,MATCH($D$6,MAIN!$B$14:$B$115,0)-1,MATCH($E14,MAIN!$EG$13:$EQ$13,0)-1,-$E$6,1),OFFSET(MAIN!$FN$14,MATCH($D$6,MAIN!$B$14:$B$115,0)-1,MATCH($E14,MAIN!$FN$13:$FX$13,0)-1,-$E$6,1))/($E$6*G14),0) -> 0.9742325211 | K14: =IFERROR(SUMPRODUCT(OFFSET(MAIN!$ER$14,MATCH($D$6,MAIN!$B$14:$B$115,0)-1,MATCH($E14,MAIN!$ER$13:$FB$13,0)-1,-$E$6,1),OFFSET(MAIN!$FY$14,MATCH($D$6,MAIN!$B$14:$B$115,0)-1,MATCH($E14,MAIN!$FY$13:$GI$13,0)-1,-$E$6,1))/($E$6*H14),0) -> 0.9742325211 | L14: =IFERROR(SUMPRODUCT(OFFSET(MAIN!$FC$14,MATCH($D$6,MAIN!$B$14:$B$115,0)-1,MATCH($E14,MAIN!$FC$13:$FM$13,0)-1,-$E$6,1),OFFSET(MAIN!$GJ$14,MATCH($D$6,MAIN!$B$14:$B$115,0)-1,MATCH($E14,MAIN!$GJ$13:$GT$13,0)-1,-$E$6,1))/($E$6*I14),0) -> 0.9742325211 | N14: =AVERAGE(OFFSET(MAIN!$FN$14,MATCH($D$7,MAIN!$B$14:$B$115,0)-1,MATCH($E14,MAIN!$FN$13:$FX$13,0)-1,-$E$7,1)) -> 16521365.18 | O14: =AVERAGE(OFFSET(MAIN!$FY$14,MATCH($D$7,MAIN!$B$14:$B$115,0)-1,MATCH($E14,MAIN!$FY$13:$GI$13,0)-1,-$E$7,1)) -> 15237062.39 | P14: =AVERAGE(OFFSET(MAIN!$GJ$14,MATCH($D$7,MAIN!$B$14:$B$115,0)-1,MATCH($E14,MAIN!$GJ$13:$GT$13,0)-1,-$E$7,1)) -> 17164359.3 | Q14: =IFERROR(SUMPRODUCT(OFFSET(MAIN!$EG$14,MATCH($D$7,MAIN!$B$14:$B$115,0)-1,MATCH($E14,MAIN!$EG$13:$EQ$13,0)-1,-$E$7,1),OFFSET(MAIN!$FN$14,MATCH($D$7,MAIN!$B$14:$B$115,0)-1,MATCH($E14,MAIN!$FN$13:$FX$13,0)-1,-$E$7,1))/($E$7*N14),0) -> 1 | R14: =IFERROR(SUMPRODUCT(OFFSET(MAIN!$ER$14,MATCH($D$7,MAIN!$B$14:$B$115,0)-1,MATCH($E14,MAIN!$ER$13:$FB$13,0)-1,-$E$7,1),OFFSET(MAIN!$FY$14,MATCH($D$7,MAIN!$B$14:$B$115,0)-1,MATCH($E14,MAIN!$FY$13:$GI$13,0)-1,-$E$7,1))/($E$7*O14),0) -> 0.9962245249 | S14: =IFERROR(SUMPRODUCT(OFFSET(MAIN!$FC$14,MATCH($D$7,MAIN!$B$14:$B$115,0)-1,MATCH($E14,MAIN!$FC$13:$FM$13,0)-1,-$E$7,1),OFFSET(MAIN!$GJ$14,MATCH($D$7,MAIN!$B$14:$B$115,0)-1,MATCH($E14,MAIN!$GJ$13:$GT$13,0)-1,-$E$7,1))/($E$7*P14),0) -> 0.9992067145 | U14: -0.2303251755 | V14: 0.02257367042 | X14: -0.1654507593 | Y14: 0.02644900303 | AA14: -0.1329709828 | AB14: 0.02563473596
E15: =INPUTS!H24 -> Adult | G15: =AVERAGE(OFFSET(MAIN!$FN$14,MATCH($D$6,MAIN!$B$14:$B$115,0)-1,MATCH($E15,MAIN!$FN$13:$FX$13,0)-1,-$E$6,1)) -> 14843385 | H15: =AVERAGE(OFFSET(MAIN!$FY$14,MATCH($D$6,MAIN!$B$14:$B$115,0)-1,MATCH($E15,MAIN!$FY$13:$GI$13,0)-1,-$E$6,1)) -> 14843385 | I15: =AVERAGE(OFFSET(MAIN!$GJ$14,MATCH($D$6,MAIN!$B$14:$B$115,0)-1,MATCH($E15,MAIN!$GJ$13:$GT$13,0)-1,-$E$6,1)) -> 14843385 | J15: =IFERROR(SUMPRODUCT(OFFSET(MAIN!$EG$14,MATCH($D$6,MAIN!$B$14:$B$115,0)-1,MATCH($E15,MAIN!$EG$13:$EQ$13,0)-1,-$E$6,1),OFFSET(MAIN!$FN$14,MATCH($D$6,MAIN!$B$14:$B$115,0)-1,MATCH($E15,MAIN!$FN$13:$FX$13,0)-1,-$E$6,1))/($E$6*G15),0) -> 0.9659765869 | K15: =IFERROR(SUMPRODUCT(OFFSET(MAIN!$ER$14,MATCH($D$6,MAIN!$B$14:$B$115,0)-1,MATCH($E15,MAIN!$ER$13:$FB$13,0)-1,-$E$6,1),OFFSET(MAIN!$FY$14,MATCH($D$6,MAIN!$B$14:$B$115,0)-1,MATCH($E15,MAIN!$FY$13:$GI$13,0)-1,-$E$6,1))/($E$6*H15),0) -> 0.9659765869 | L15: =IFERROR(SUMPRODUCT(OFFSET(MAIN!$FC$14,MATCH($D$6,MAIN!$B$14:$B$115,0)-1,MATCH($E15,MAIN!$FC$13:$FM$13,0)-1,-$E$6,1),OFFSET(MAIN!$GJ$14,MATCH($D$6,MAIN!$B$14:$B$115,0)-1,MATCH($E15,MAIN!$GJ$13:$GT$13,0)-1,-$E$6,1))/($E$6*I15),0) -> 0.9659765869 | N15: =AVERAGE(OFFSET(MAIN!$FN$14,MATCH($D$7,MAIN!$B$14:$B$115,0)-1,MATCH($E15,MAIN!$FN$13:$FX$13,0)-1,-$E$7,1)) -> 11882207.49 | O15: =AVERAGE(OFFSET(MAIN!$FY$14,MATCH($D$7,MAIN!$B$14:$B$115,0)-1,MATCH($E15,MAIN!$FY$13:$GI$13,0)-1,-$E$7,1)) -> 10851326.65 | P15: =AVERAGE(OFFSET(MAIN!$GJ$14,MATCH($D$7,MAIN!$B$14:$B$115,0)-1,MATCH($E15,MAIN!$GJ$13:$GT$13,0)-1,-$E$7,1)) -> 12482933.56 | Q15: =IFERROR(SUMPRODUCT(OFFSET(MAIN!$EG$14,MATCH($D$7,MAIN!$B$14:$B$115,0)-1,MATCH($E15,MAIN!$EG$13:$EQ$13,0)-1,-$E$7,1),OFFSET(MAIN!$FN$14,MATCH($D$7,MAIN!$B$14:$B$115,0)-1,MATCH($E15,MAIN!$FN$13:$FX$13,0)-1,-$E$7,1))/($E$7*N15),0) -> 1 | R15: =IFERROR(SUMPRODUCT(OFFSET(MAIN!$ER$14,MATCH($D$7,MAIN!$B$14:$B$115,0)-1,MATCH($E15,MAIN!$ER$13:$FB$13,0)-1,-$E$7,1),OFFSET(MAIN!$FY$14,MATCH($D$7,MAIN!$B$14:$B$115,0)-1,MATCH($E15,MAIN!$FY$13:$GI$13,0)-1,-$E$7,1))/($E$7*O15),0) -> 0.9940201196 | S15: =IFERROR(SUMPRODUCT(OFFSET(MAIN!$FC$14,MATCH($D$7,MAIN!$B$14:$B$115,0)-1,MATCH($E15,MAIN!$FC$13:$FM$13,0)-1,-$E$7,1),OFFSET(MAIN!$GJ$14,MATCH($D$7,MAIN!$B$14:$B$115,0)-1,MATCH($E15,MAIN!$GJ$13:$GT$13,0)-1,-$E$7,1))/($E$7*P15),0) -> 1.001327273 | U15: -0.268945281 | V15: 0.02903127577 | X15: -0.1994947585 | Y15: 0.03522177824 | AA15: -0.1590237968 | AB15: 0.03659580006
E16: =INPUTS!H25 -> Aged | G16: =AVERAGE(OFFSET(MAIN!$FN$14,MATCH($D$6,MAIN!$B$14:$B$115,0)-1,MATCH($E16,MAIN!$FN$13:$FX$13,0)-1,-$E$6,1)) -> 8133320.997 | H16: =AVERAGE(OFFSET(MAIN!$FY$14,MATCH($D$6,MAIN!$B$14:$B$115,0)-1,MATCH($E16,MAIN!$FY$13:$GI$13,0)-1,-$E$6,1)) -> 8133320.997 | I16: =AVERAGE(OFFSET(MAIN!$GJ$14,MATCH($D$6,MAIN!$B$14:$B$115,0)-1,MATCH($E16,MAIN!$GJ$13:$GT$13,0)-1,-$E$6,1)) -> 8133320.997 | J16: =IFERROR(SUMPRODUCT(OFFSET(MAIN!$EG$14,MATCH($D$6,MAIN!$B$14:$B$115,0)-1,MATCH($E16,MAIN!$EG$13:$EQ$13,0)-1,-$E$6,1),OFFSET(MAIN!$FN$14,MATCH($D$6,MAIN!$B$14:$B$115,0)-1,MATCH($E16,MAIN!$FN$13:$FX$13,0)-1,-$E$6,1))/($E$6*G16),0) -> 1 | K16: =IFERROR(SUMPRODUCT(OFFSET(MAIN!$ER$14,MATCH($D$6,MAIN!$B$14:$B$115,0)-1,MATCH($E16,MAIN!$ER$13:$FB$13,0)-1,-$E$6,1),OFFSET(MAIN!$FY$14,MATCH($D$6,MAIN!$B$14:$B$115,0)-1,MATCH($E16,MAIN!$FY$13:$GI$13,0)-1,-$E$6,1))/($E$6*H16),0) -> 1 | L16: =IFERROR(SUMPRODUCT(OFFSET(MAIN!$FC$14,MATCH($D$6,MAIN!$B$14:$B$115,0)-1,MATCH($E16,MAIN!$FC$13:$FM$13,0)-1,-$E$6,1),OFFSET(MAIN!$GJ$14,MATCH($D$6,MAIN!$B$14:$B$115,0)-1,MATCH($E16,MAIN!$GJ$13:$GT$13,0)-1,-$E$6,1))/($E$6*I16),0) -> 1 | N16: =AVERAGE(OFFSET(MAIN!$FN$14,MATCH($D$7,MAIN!$B$14:$B$115,0)-1,MATCH($E16,MAIN!$FN$13:$FX$13,0)-1,-$E$7,1)) -> 7775320.542 | O16: =AVERAGE(OFFSET(MAIN!$FY$14,MATCH($D$7,MAIN!$B$14:$B$115,0)-1,MATCH($E16,MAIN!$FY$13:$GI$13,0)-1,-$E$7,1)) -> 7364531.689 | P16: =AVERAGE(OFFSET(MAIN!$GJ$14,MATCH($D$7,MAIN!$B$14:$B$115,0)-1,MATCH($E16,MAIN!$GJ$13:$GT$13,0)-1,-$E$7,1)) -> 8057901.04 | Q16: =IFERROR(SUMPRODUCT(OFFSET(MAIN!$EG$14,MATCH($D$7,MAIN!$B$14:$B$115,0)-1,MATCH($E16,MAIN!$EG$13:$EQ$13,0)-1,-$E$7,1),OFFSET(MAIN!$FN$14,MATCH($D$7,MAIN!$B$14:$B$115,0)-1,MATCH($E16,MAIN!$FN$13:$FX$13,0)-1,-$E$7,1))/($E$7*N16),0) -> 1 | R16: =IFERROR(SUMPRODUCT(OFFSET(MAIN!$ER$14,MATCH($D$7,MAIN!$B$14:$B$115,0)-1,MATCH($E16,MAIN!$ER$13:$FB$13,0)-1,-$E$7,1),OFFSET(MAIN!$FY$14,MATCH($D$7,MAIN!$B$14:$B$115,0)-1,MATCH($E16,MAIN!$FY$13:$GI$13,0)-1,-$E$7,1))/($E$7*O16),0) -> 1 | S16: =IFERROR(SUMPRODUCT(OFFSET(MAIN!$FC$14,MATCH($D$7,MAIN!$B$14:$B$115,0)-1,MATCH($E16,MAIN!$FC$13:$FM$13,0)-1,-$E$7,1),OFFSET(MAIN!$GJ$14,MATCH($D$7,MAIN!$B$14:$B$115,0)-1,MATCH($E16,MAIN!$GJ$13:$GT$13,0)-1,-$E$7,1))/($E$7*P16),0) -> 1 | U16: -0.09452341895 | V16: 0 | X16: -0.04401651615 | Y16: 0 | AA16: -0.00927295961 | AB16: 0
E17: =INPUTS!H26 -> Disabled | G17: =AVERAGE(OFFSET(MAIN!$FN$14,MATCH($D$6,MAIN!$B$14:$B$115,0)-1,MATCH($E17,MAIN!$FN$13:$FX$13,0)-1,-$E$6,1)) -> 9893632.997 | H17: =AVERAGE(OFFSET(MAIN!$FY$14,MATCH($D$6,MAIN!$B$14:$B$115,0)-1,MATCH($E17,MAIN!$FY$13:$GI$13,0)-1,-$E$6,1)) -> 9893632.997 | I17: =AVERAGE(OFFSET(MAIN!$GJ$14,MATCH($D$6,MAIN!$B$14:$B$115,0)-1,MATCH($E17,MAIN!$GJ$13:$GT$13,0)-1,-$E$6,1)) -> 9893632.997 | J17: =IFERROR(SUMPRODUCT(OFFSET(MAIN!$EG$14,MATCH($D$6,MAIN!$B$14:$B$115,0)-1,MATCH($E17,MAIN!$EG$13:$EQ$13,0)-1,-$E$6,1),OFFSET(MAIN!$FN$14,MATCH($D$6,MAIN!$B$14:$B$115,0)-1,MATCH($E17,MAIN!$FN$13:$FX$13,0)-1,-$E$6,1))/($E$6*G17),0) -> 1 | K17: =IFERROR(SUMPRODUCT(OFFSET(MAIN!$ER$14,MATCH($D$6,MAIN!$B$14:$B$115,0)-1,MATCH($E17,MAIN!$ER$13:$FB$13,0)-1,-$E$6,1),OFFSET(MAIN!$FY$14,MATCH($D$6,MAIN!$B$14:$B$115,0)-1,MATCH($E17,MAIN!$FY$13:$GI$13,0)-1,-$E$6,1))/($E$6*H17),0) -> 1 | L17: =IFERROR(SUMPRODUCT(OFFSET(MAIN!$FC$14,MATCH($D$6,MAIN!$B$14:$B$115,0)-1,MATCH($E17,MAIN!$FC$13:$FM$13,0)-1,-$E$6,1),OFFSET(MAIN!$GJ$14,MATCH($D$6,MAIN!$B$14:$B$115,0)-1,MATCH($E17,MAIN!$GJ$13:$GT$13,0)-1,-$E$6,1))/($E$6*I17),0) -> 1 | N17: =AVERAGE(OFFSET(MAIN!$FN$14,MATCH($D$7,MAIN!$B$14:$B$115,0)-1,MATCH($E17,MAIN!$FN$13:$FX$13,0)-1,-$E$7,1)) -> 9423881.268 | O17: =AVERAGE(OFFSET(MAIN!$FY$14,MATCH($D$7,MAIN!$B$14:$B$115,0)-1,MATCH($E17,MAIN!$FY$13:$GI$13,0)-1,-$E$7,1)) -> 8886465.669 | P17: =AVERAGE(OFFSET(MAIN!$GJ$14,MATCH($D$7,MAIN!$B$14:$B$115,0)-1,MATCH($E17,MAIN!$GJ$13:$GT$13,0)-1,-$E$7,1)) -> 9782809.136 | Q17: =IFERROR(SUMPRODUCT(OFFSET(MAIN!$EG$14,MATCH($D$7,MAIN!$B$14:$B$115,0)-1,MATCH($E17,MAIN!$EG$13:$EQ$13,0)-1,-$E$7,1),OFFSET(MAIN!$FN$14,MATCH($D$7,MAIN!$B$14:$B$115,0)-1,MATCH($E17,MAIN!$FN$13:$FX$13,0)-1,-$E$7,1))/($E$7*N17),0) -> 1 | R17: =IFERROR(SUMPRODUCT(OFFSET(MAIN!$ER$14,MATCH($D$7,MAIN!$B$14:$B$115,0)-1,MATCH($E17,MAIN!$ER$13:$FB$13,0)-1,-$E$7,1),OFFSET(MAIN!$FY$14,MATCH($D$7,MAIN!$B$14:$B$115,0)-1,MATCH($E17,MAIN!$FY$13:$GI$13,0)-1,-$E$7,1))/($E$7*O17),0) -> 1 | S17: =IFERROR(SUMPRODUCT(OFFSET(MAIN!$FC$14,MATCH($D$7,MAIN!$B$14:$B$115,0)-1,MATCH($E17,MAIN!$FC$13:$FM$13,0)-1,-$E$7,1),OFFSET(MAIN!$GJ$14,MATCH($D$7,MAIN!$B$14:$B$115,0)-1,MATCH($E17,MAIN!$GJ$13:$GT$13,0)-1,-$E$7,1))/($E$7*P17),0) -> 1 | U17: -0.101799544 | V17: 0 | X17: -0.04748020558 | Y17: 0 | AA17: -0.0112015335 | AB17: 0
E18: =INPUTS!H27 -> COVID New | G18: =AVERAGE(OFFSET(MAIN!$FN$14,MATCH($D$6,MAIN!$B$14:$B$115,0)-1,MATCH($E18,MAIN!$FN$13:$FX$13,0)-1,-$E$6,1)) -> 197663.9971 | H18: =AVERAGE(OFFSET(MAIN!$FY$14,MATCH($D$6,MAIN!$B$14:$B$115,0)-1,MATCH($E18,MAIN!$FY$13:$GI$13,0)-1,-$E$6,1)) -> 197663.9971 | I18: =AVERAGE(OFFSET(MAIN!$GJ$14,MATCH($D$6,MAIN!$B$14:$B$115,0)-1,MATCH($E18,MAIN!$GJ$13:$GT$13,0)-1,-$E$6,1)) -> 197663.9971 | J18: =IFERROR(SUMPRODUCT(OFFSET(MAIN!$EG$14,MATCH($D$6,MAIN!$B$14:$B$115,0)-1,MATCH($E18,MAIN!$EG$13:$EQ$13,0)-1,-$E$6,1),OFFSET(MAIN!$FN$14,MATCH($D$6,MAIN!$B$14:$B$115,0)-1,MATCH($E18,MAIN!$FN$13:$FX$13,0)-1,-$E$6,1))/($E$6*G18),0) -> 1 | K18: =IFERROR(SUMPRODUCT(OFFSET(MAIN!$ER$14,MATCH($D$6,MAIN!$B$14:$B$115,0)-1,MATCH($E18,MAIN!$ER$13:$FB$13,0)-1,-$E$6,1),OFFSET(MAIN!$FY$14,MATCH($D$6,MAIN!$B$14:$B$115,0)-1,MATCH($E18,MAIN!$FY$13:$GI$13,0)-1,-$E$6,1))/($E$6*H18),0) -> 1 | L18: =IFERROR(SUMPRODUCT(OFFSET(MAIN!$FC$14,MATCH($D$6,MAIN!$B$14:$B$115,0)-1,MATCH($E18,MAIN!$FC$13:$FM$13,0)-1,-$E$6,1),OFFSET(MAIN!$GJ$14,MATCH($D$6,MAIN!$B$14:$B$115,0)-1,MATCH($E18,MAIN!$GJ$13:$GT$13,0)-1,-$E$6,1))/($E$6*I18),0) -> 1 | N18: =AVERAGE(OFFSET(MAIN!$FN$14,MATCH($D$7,MAIN!$B$14:$B$115,0)-1,MATCH($E18,MAIN!$FN$13:$FX$13,0)-1,-$E$7,1)) -> 0 | O18: =AVERAGE(OFFSET(MAIN!$FY$14,MATCH($D$7,MAIN!$B$14:$B$115,0)-1,MATCH($E18,MAIN!$FY$13:$GI$13,0)-1,-$E$7,1)) -> 0 | P18: =AVERAGE(OFFSET(MAIN!$GJ$14,MATCH($D$7,MAIN!$B$14:$B$115,0)-1,MATCH($E18,MAIN!$GJ$13:$GT$13,0)-1,-$E$7,1)) -> 0 | Q18: =IFERROR(SUMPRODUCT(OFFSET(MAIN!$EG$14,MATCH($D$7,MAIN!$B$14:$B$115,0)-1,MATCH($E18,MAIN!$EG$13:$EQ$13,0)-1,-$E$7,1),OFFSET(MAIN!$FN$14,MATCH($D$7,MAIN!$B$14:$B$115,0)-1,MATCH($E18,MAIN!$FN$13:$FX$13,0)-1,-$E$7,1))/($E$7*N18),0) -> 0 | R18: =IFERROR(SUMPRODUCT(OFFSET(MAIN!$ER$14,MATCH($D$7,MAIN!$B$14:$B$115,0)-1,MATCH($E18,MAIN!$ER$13:$FB$13,0)-1,-$E$7,1),OFFSET(MAIN!$FY$14,MATCH($D$7,MAIN!$B$14:$B$115,0)-1,MATCH($E18,MAIN!$FY$13:$GI$13,0)-1,-$E$7,1))/($E$7*O18),0) -> 0 | S18: =IFERROR(SUMPRODUCT(OFFSET(MAIN!$FC$14,MATCH($D$7,MAIN!$B$14:$B$115,0)-1,MATCH($E18,MAIN!$FC$13:$FM$13,0)-1,-$E$7,1),OFFSET(MAIN!$GJ$14,MATCH($D$7,MAIN!$B$14:$B$115,0)-1,MATCH($E18,MAIN!$GJ$13:$GT$13,0)-1,-$E$7,1))/($E$7*P18),0) -> 0 | U18: -1 | V18: -1 | X18: -1 | Y18: -1 | AA18: -1 | AB18: -1
E19: =INPUTS!H28 -> Unknown | G19: =AVERAGE(OFFSET(MAIN!$FN$14,MATCH($D$6,MAIN!$B$14:$B$115,0)-1,MATCH($E19,MAIN!$FN$13:$FX$13,0)-1,-$E$6,1)) -> 2421.997071 | H19: =AVERAGE(OFFSET(MAIN!$FY$14,MATCH($D$6,MAIN!$B$14:$B$115,0)-1,MATCH($E19,MAIN!$FY$13:$GI$13,0)-1,-$E$6,1)) -> 2421.997071 | I19: =AVERAGE(OFFSET(MAIN!$GJ$14,MATCH($D$6,MAIN!$B$14:$B$115,0)-1,MATCH($E19,MAIN!$GJ$13:$GT$13,0)-1,-$E$6,1)) -> 2421.997071 | J19: =IFERROR(SUMPRODUCT(OFFSET(MAIN!$EG$14,MATCH($D$6,MAIN!$B$14:$B$115,0)-1,MATCH($E19,MAIN!$EG$13:$EQ$13,0)-1,-$E$6,1),OFFSET(MAIN!$FN$14,MATCH($D$6,MAIN!$B$14:$B$115,0)-1,MATCH($E19,MAIN!$FN$13:$FX$13,0)-1,-$E$6,1))/($E$6*G19),0) -> 1 | K19: =IFERROR(SUMPRODUCT(OFFSET(MAIN!$ER$14,MATCH($D$6,MAIN!$B$14:$B$115,0)-1,MATCH($E19,MAIN!$ER$13:$FB$13,0)-1,-$E$6,1),OFFSET(MAIN!$FY$14,MATCH($D$6,MAIN!$B$14:$B$115,0)-1,MATCH($E19,MAIN!$FY$13:$GI$13,0)-1,-$E$6,1))/($E$6*H19),0) -> 1 | L19: =IFERROR(SUMPRODUCT(OFFSET(MAIN!$FC$14,MATCH($D$6,MAIN!$B$14:$B$115,0)-1,MATCH($E19,MAIN!$FC$13:$FM$13,0)-1,-$E$6,1),OFFSET(MAIN!$GJ$14,MATCH($D$6,MAIN!$B$14:$B$115,0)-1,MATCH($E19,MAIN!$GJ$13:$GT$13,0)-1,-$E$6,1))/($E$6*I19),0) -> 1 | N19: =AVERAGE(OFFSET(MAIN!$FN$14,MATCH($D$7,MAIN!$B$14:$B$115,0)-1,MATCH($E19,MAIN!$FN$13:$FX$13,0)-1,-$E$7,1)) -> 0 | O19: =AVERAGE(OFFSET(MAIN!$FY$14,MATCH($D$7,MAIN!$B$14:$B$115,0)-1,MATCH($E19,MAIN!$FY$13:$GI$13,0)-1,-$E$7,1)) -> 0 | P19: =AVERAGE(OFFSET(MAIN!$GJ$14,MATCH($D$7,MAIN!$B$14:$B$115,0)-1,MATCH($E19,MAIN!$GJ$13:$GT$13,0)-1,-$E$7,1)) -> 0 | Q19: =IFERROR(SUMPRODUCT(OFFSET(MAIN!$EG$14,MATCH($D$7,MAIN!$B$14:$B$115,0)-1,MATCH($E19,MAIN!$EG$13:$EQ$13,0)-1,-$E$7,1),OFFSET(MAIN!$FN$14,MATCH($D$7,MAIN!$B$14:$B$115,0)-1,MATCH($E19,MAIN!$FN$13:$FX$13,0)-1,-$E$7,1))/($E$7*N19),0) -> 0 | R19: =IFERROR(SUMPRODUCT(OFFSET(MAIN!$ER$14,MATCH($D$7,MAIN!$B$14:$B$115,0)-1,MATCH($E19,MAIN!$ER$13:$FB$13,0)-1,-$E$7,1),OFFSET(MAIN!$FY$14,MATCH($D$7,MAIN!$B$14:$B$115,0)-1,MATCH($E19,MAIN!$FY$13:$GI$13,0)-1,-$E$7,1))/($E$7*O19),0) -> 0 | S19: =IFERROR(SUMPRODUCT(OFFSET(MAIN!$FC$14,MATCH($D$7,MAIN!$B$14:$B$115,0)-1,MATCH($E19,MAIN!$FC$13:$FM$13,0)-1,-$E$7,1),OFFSET(MAIN!$GJ$14,MATCH($D$7,MAIN!$B$14:$B$115,0)-1,MATCH($E19,MAIN!$GJ$13:$GT$13,0)-1,-$E$7,1))/($E$7*P19),0) -> 0 | U19: -1 | V19: -1 | X19: -1 | Y19: -1 | AA19: -1 | AB19: -1
E20: =INPUTS!H29 ->  | G20: =AVERAGE(OFFSET(MAIN!$FN$14,MATCH($D$6,MAIN!$B$14:$B$115,0)-1,MATCH($E20,MAIN!$FN$13:$FX$13,0)-1,-$E$6,1)) -> 0 | H20: =AVERAGE(OFFSET(MAIN!$FY$14,MATCH($D$6,MAIN!$B$14:$B$115,0)-1,MATCH($E20,MAIN!$FY$13:$GI$13,0)-1,-$E$6,1)) -> 0 | I20: =AVERAGE(OFFSET(MAIN!$GJ$14,MATCH($D$6,MAIN!$B$14:$B$115,0)-1,MATCH($E20,MAIN!$GJ$13:$GT$13,0)-1,-$E$6,1)) -> 0 | J20: =IFERROR(SUMPRODUCT(OFFSET(MAIN!$EG$14,MATCH($D$6,MAIN!$B$14:$B$115,0)-1,MATCH($E20,MAIN!$EG$13:$EQ$13,0)-1,-$E$6,1),OFFSET(MAIN!$FN$14,MATCH($D$6,MAIN!$B$14:$B$115,0)-1,MATCH($E20,MAIN!$FN$13:$FX$13,0)-1,-$E$6,1))/($E$6*G20),0) -> 0 | K20: =IFERROR(SUMPRODUCT(OFFSET(MAIN!$ER$14,MATCH($D$6,MAIN!$B$14:$B$115,0)-1,MATCH($E20,MAIN!$ER$13:$FB$13,0)-1,-$E$6,1),OFFSET(MAIN!$FY$14,MATCH($D$6,MAIN!$B$14:$B$115,0)-1,MATCH($E20,MAIN!$FY$13:$GI$13,0)-1,-$E$6,1))/($E$6*H20),0) -> 0 | L20: =IFERROR(SUMPRODUCT(OFFSET(MAIN!$FC$14,MATCH($D$6,MAIN!$B$14:$B$115,0)-1,MATCH($E20,MAIN!$FC$13:$FM$13,0)-1,-$E$6,1),OFFSET(MAIN!$GJ$14,MATCH($D$6,MAIN!$B$14:$B$115,0)-1,MATCH($E20,MAIN!$GJ$13:$GT$13,0)-1,-$E$6,1))/($E$6*I20),0) -> 0 | N20: =AVERAGE(OFFSET(MAIN!$FN$14,MATCH($D$7,MAIN!$B$14:$B$115,0)-1,MATCH($E20,MAIN!$FN$13:$FX$13,0)-1,-$E$7,1)) -> 0 | O20: =AVERAGE(OFFSET(MAIN!$FY$14,MATCH($D$7,MAIN!$B$14:$B$115,0)-1,MATCH($E20,MAIN!$FY$13:$GI$13,0)-1,-$E$7,1)) -> 0 | P20: =AVERAGE(OFFSET(MAIN!$GJ$14,MATCH($D$7,MAIN!$B$14:$B$115,0)-1,MATCH($E20,MAIN!$GJ$13:$GT$13,0)-1,-$E$7,1)) -> 0 | Q20: =IFERROR(SUMPRODUCT(OFFSET(MAIN!$EG$14,MATCH($D$7,MAIN!$B$14:$B$115,0)-1,MATCH($E20,MAIN!$EG$13:$EQ$13,0)-1,-$E$7,1),OFFSET(MAIN!$FN$14,MATCH($D$7,MAIN!$B$14:$B$115,0)-1,MATCH($E20,MAIN!$FN$13:$FX$13,0)-1,-$E$7,1))/($E$7*N20),0) -> 0 | R20: =IFERROR(SUMPRODUCT(OFFSET(MAIN!$ER$14,MATCH($D$7,MAIN!$B$14:$B$115,0)-1,MATCH($E20,MAIN!$ER$13:$FB$13,0)-1,-$E$7,1),OFFSET(MAIN!$FY$14,MATCH($D$7,MAIN!$B$14:$B$115,0)-1,MATCH($E20,MAIN!$FY$13:$GI$13,0)-1,-$E$7,1))/($E$7*O20),0) -> 0 | S20: =IFERROR(SUMPRODUCT(OFFSET(MAIN!$FC$14,MATCH($D$7,MAIN!$B$14:$B$115,0)-1,MATCH($E20,MAIN!$FC$13:$FM$13,0)-1,-$E$7,1),OFFSET(MAIN!$GJ$14,MATCH($D$7,MAIN!$B$14:$B$115,0)-1,MATCH($E20,MAIN!$GJ$13:$GT$13,0)-1,-$E$7,1))/($E$7*P20),0) -> 0 | U20: 0 | V20: 0 | X20: 0 | Y20: 0 | AA20: 0 | AB20: 0
E21: =INPUTS!H30 -> Non-ABD | G21: =AVERAGE(OFFSET(MAIN!$FN$14,MATCH($D$6,MAIN!$B$14:$B$115,0)-1,MATCH($E21,MAIN!$FN$13:$FX$13,0)-1,-$E$6,1)) -> 75583548.14 | H21: =AVERAGE(OFFSET(MAIN!$FY$14,MATCH($D$6,MAIN!$B$14:$B$115,0)-1,MATCH($E21,MAIN!$FY$13:$GI$13,0)-1,-$E$6,1)) -> 75583548.14 | I21: =AVERAGE(OFFSET(MAIN!$GJ$14,MATCH($D$6,MAIN!$B$14:$B$115,0)-1,MATCH($E21,MAIN!$GJ$13:$GT$13,0)-1,-$E$6,1)) -> 75583548.14 | J21: =IFERROR(SUMPRODUCT(OFFSET(MAIN!$EG$14,MATCH($D$6,MAIN!$B$14:$B$115,0)-1,MATCH($E21,MAIN!$EG$13:$EQ$13,0)-1,-$E$6,1),OFFSET(MAIN!$FN$14,MATCH($D$6,MAIN!$B$14:$B$115,0)-1,MATCH($E21,MAIN!$FN$13:$FX$13,0)-1,-$E$6,1))/($E$6*G21),0) -> 0.9813986306 | K21: =IFERROR(SUMPRODUCT(OFFSET(MAIN!$ER$14,MATCH($D$6,MAIN!$B$14:$B$115,0)-1,MATCH($E21,MAIN!$ER$13:$FB$13,0)-1,-$E$6,1),OFFSET(MAIN!$FY$14,MATCH($D$6,MAIN!$B$14:$B$115,0)-1,MATCH($E21,MAIN!$FY$13:$GI$13,0)-1,-$E$6,1))/($E$6*H21),0) -> 0.9813986306 | L21: =IFERROR(SUMPRODUCT(OFFSET(MAIN!$FC$14,MATCH($D$6,MAIN!$B$14:$B$115,0)-1,MATCH($E21,MAIN!$FC$13:$FM$13,0)-1,-$E$6,1),OFFSET(MAIN!$GJ$14,MATCH($D$6,MAIN!$B$14:$B$115,0)-1,MATCH($E21,MAIN!$GJ$13:$GT$13,0)-1,-$E$6,1))/($E$6*I21),0) -> 0.9813986306 | N21: =AVERAGE(OFFSET(MAIN!$FN$14,MATCH($D$7,MAIN!$B$14:$B$115,0)-1,MATCH($E21,MAIN!$FN$13:$FX$13,0)-1,-$E$7,1)) -> 63868071.9 | O21: =AVERAGE(OFFSET(MAIN!$FY$14,MATCH($D$7,MAIN!$B$14:$B$115,0)-1,MATCH($E21,MAIN!$FY$13:$GI$13,0)-1,-$E$7,1)) -> 58977967 | P21: =AVERAGE(OFFSET(MAIN!$GJ$14,MATCH($D$7,MAIN!$B$14:$B$115,0)-1,MATCH($E21,MAIN!$GJ$13:$GT$13,0)-1,-$E$7,1)) -> 66421874.69 | Q21: =IFERROR(SUMPRODUCT(OFFSET(MAIN!$EG$14,MATCH($D$7,MAIN!$B$14:$B$115,0)-1,MATCH($E21,MAIN!$EG$13:$EQ$13,0)-1,-$E$7,1),OFFSET(MAIN!$FN$14,MATCH($D$7,MAIN!$B$14:$B$115,0)-1,MATCH($E21,MAIN!$FN$13:$FX$13,0)-1,-$E$7,1))/($E$7*N21),0) -> 1 | R21: =IFERROR(SUMPRODUCT(OFFSET(MAIN!$ER$14,MATCH($D$7,MAIN!$B$14:$B$115,0)-1,MATCH($E21,MAIN!$ER$13:$FB$13,0)-1,-$E$7,1),OFFSET(MAIN!$FY$14,MATCH($D$7,MAIN!$B$14:$B$115,0)-1,MATCH($E21,MAIN!$FY$13:$GI$13,0)-1,-$E$7,1))/($E$7*O21),0) -> 0.9963989295 | S21: =IFERROR(SUMPRODUCT(OFFSET(MAIN!$FC$14,MATCH($D$7,MAIN!$B$14:$B$115,0)-1,MATCH($E21,MAIN!$FC$13:$FM$13,0)-1,-$E$7,1),OFFSET(MAIN!$GJ$14,MATCH($D$7,MAIN!$B$14:$B$115,0)-1,MATCH($E21,MAIN!$GJ$13:$GT$13,0)-1,-$E$7,1))/($E$7*P21),0) -> 1.000146201 | U21: -0.2196983543 | V21: 0.01528461358 | X21: -0.1550003477 | Y21: 0.01895393859 | AA21: -0.1212125347 | AB21: 0.01910291019
E22: All Populations | G22: =AVERAGE(OFFSET(MAIN!$FN$14,MATCH($D$6,MAIN!$B$14:$B$115,0)-1,MATCH($E22,MAIN!$FN$13:$FX$13,0)-1,-$E$6,1)) -> 93610502.14 | H22: =AVERAGE(OFFSET(MAIN!$FY$14,MATCH($D$6,MAIN!$B$14:$B$115,0)-1,MATCH($E22,MAIN!$FY$13:$GI$13,0)-1,-$E$6,1)) -> 93610502.14 | I22: =AVERAGE(OFFSET(MAIN!$GJ$14,MATCH($D$6,MAIN!$B$14:$B$115,0)-1,MATCH($E22,MAIN!$GJ$13:$GT$13,0)-1,-$E$6,1)) -> 93610502.14 | J22: =IFERROR(SUMPRODUCT(OFFSET(MAIN!$EG$14,MATCH($D$6,MAIN!$B$14:$B$115,0)-1,MATCH($E22,MAIN!$EG$13:$EQ$13,0)-1,-$E$6,1),OFFSET(MAIN!$FN$14,MATCH($D$6,MAIN!$B$14:$B$115,0)-1,MATCH($E22,MAIN!$FN$13:$FX$13,0)-1,-$E$6,1))/($E$6*G22),0) -> 0.9911801451 | K22: =IFERROR(SUMPRODUCT(OFFSET(MAIN!$ER$14,MATCH($D$6,MAIN!$B$14:$B$115,0)-1,MATCH($E22,MAIN!$ER$13:$FB$13,0)-1,-$E$6,1),OFFSET(MAIN!$FY$14,MATCH($D$6,MAIN!$B$14:$B$115,0)-1,MATCH($E22,MAIN!$FY$13:$GI$13,0)-1,-$E$6,1))/($E$6*H22),0) -> 0.9911801451 | L22: =IFERROR(SUMPRODUCT(OFFSET(MAIN!$FC$14,MATCH($D$6,MAIN!$B$14:$B$115,0)-1,MATCH($E22,MAIN!$FC$13:$FM$13,0)-1,-$E$6,1),OFFSET(MAIN!$GJ$14,MATCH($D$6,MAIN!$B$14:$B$115,0)-1,MATCH($E22,MAIN!$GJ$13:$GT$13,0)-1,-$E$6,1))/($E$6*I22),0) -> 0.9911801451 | N22: =AVERAGE(OFFSET(MAIN!$FN$14,MATCH($D$7,MAIN!$B$14:$B$115,0)-1,MATCH($E22,MAIN!$FN$13:$FX$13,0)-1,-$E$7,1)) -> 81067273.71 | O22: =AVERAGE(OFFSET(MAIN!$FY$14,MATCH($D$7,MAIN!$B$14:$B$115,0)-1,MATCH($E22,MAIN!$FY$13:$GI$13,0)-1,-$E$7,1)) -> 75228964.36 | P22: =AVERAGE(OFFSET(MAIN!$GJ$14,MATCH($D$7,MAIN!$B$14:$B$115,0)-1,MATCH($E22,MAIN!$GJ$13:$GT$13,0)-1,-$E$7,1)) -> 84262584.87 | Q22: =IFERROR(SUMPRODUCT(OFFSET(MAIN!$EG$14,MATCH($D$7,MAIN!$B$14:$B$115,0)-1,MATCH($E22,MAIN!$EG$13:$EQ$13,0)-1,-$E$7,1),OFFSET(MAIN!$FN$14,MATCH($D$7,MAIN!$B$14:$B$115,0)-1,MATCH($E22,MAIN!$FN$13:$FX$13,0)-1,-$E$7,1))/($E$7*N22),0) -> 1 | R22: =IFERROR(SUMPRODUCT(OFFSET(MAIN!$ER$14,MATCH($D$7,MAIN!$B$14:$B$115,0)-1,MATCH($E22,MAIN!$ER$13:$FB$13,0)-1,-$E$7,1),OFFSET(MAIN!$FY$14,MATCH($D$7,MAIN!$B$14:$B$115,0)-1,MATCH($E22,MAIN!$FY$13:$GI$13,0)-1,-$E$7,1))/($E$7*O22),0) -> 0.9984207575 | S22: =IFERROR(SUMPRODUCT(OFFSET(MAIN!$FC$14,MATCH($D$7,MAIN!$B$14:$B$115,0)-1,MATCH($E22,MAIN!$FC$13:$FM$13,0)-1,-$E$7,1),OFFSET(MAIN!$GJ$14,MATCH($D$7,MAIN!$B$14:$B$115,0)-1,MATCH($E22,MAIN!$GJ$13:$GT$13,0)-1,-$E$7,1))/($E$7*P22),0) -> 1.000065334 | U22: -0.1963619183 | V22: 0.007305041806 | X22: -0.1339938163 | Y22: 0.008898336972 | AA22: -0.0998597065 | AB22: 0.008964251922
AJ63: Month | AK63: Enrollment | AL63: Acuity
AJ65: 2019-01-01 | AK65: =INDEX(MAIN!$CZ$14:$DJ$115,MATCH($AJ65,MAIN!$B$14:$B$115,0),MATCH($D$3,MAIN!$CZ$13:$DJ$13,0)) -> 71090537 | AL65: =INDEX(MAIN!$DK$14:$DU$115,MATCH($AJ65,MAIN!$B$14:$B$115,0),MATCH($D$3,MAIN!$DK$13:$DU$13,0)) -> 1
AJ66: =EDATE(AJ65,1) -> 2019-02-01 | AK66: =INDEX(MAIN!$CZ$14:$DJ$115,MATCH($AJ66,MAIN!$B$14:$B$115,0),MATCH($D$3,MAIN!$CZ$13:$DJ$13,0)) -> 71783237 | AL66: =INDEX(MAIN!$DK$14:$DU$115,MATCH($AJ66,MAIN!$B$14:$B$115,0),MATCH($D$3,MAIN!$DK$13:$DU$13,0)) -> 1
AJ67: =EDATE(AJ66,1) -> 2019-03-01 | AK67: =INDEX(MAIN!$CZ$14:$DJ$115,MATCH($AJ67,MAIN!$B$14:$B$115,0),MATCH($D$3,MAIN!$CZ$13:$DJ$13,0)) -> 71752635 | AL67: =INDEX(MAIN!$DK$14:$DU$115,MATCH($AJ67,MAIN!$B$14:$B$115,0),MATCH($D$3,MAIN!$DK$13:$DU$13,0)) -> 1
AJ68: 2019-04-01 | AK68: =INDEX(MAIN!$CZ$14:$DJ$115,MATCH($AJ68,MAIN!$B$14:$B$115,0),MATCH($D$3,MAIN!$CZ$13:$DJ$13,0)) -> 71604160 | AL68: =INDEX(MAIN!$DK$14:$DU$115,MATCH($AJ68,MAIN!$B$14:$B$115,0),MATCH($D$3,MAIN!$DK$13:$DU$13,0)) -> 1
AJ69: 2019-05-01 | AK69: =INDEX(MAIN!$CZ$14:$DJ$115,MATCH($AJ69,MAIN!$B$14:$B$115,0),MATCH($D$3,MAIN!$CZ$13:$DJ$13,0)) -> 71504425 | AL69: =INDEX(MAIN!$DK$14:$DU$115,MATCH($AJ69,MAIN!$B$14:$B$115,0),MATCH($D$3,MAIN!$DK$13:$DU$13,0)) -> 1
AJ70: 2019-06-01 | AK70: =INDEX(MAIN!$CZ$14:$DJ$115,MATCH($AJ70,MAIN!$B$14:$B$115,0),MATCH($D$3,MAIN!$CZ$13:$DJ$13,0)) -> 71405006 | AL70: =INDEX(MAIN!$DK$14:$DU$115,MATCH($AJ70,MAIN!$B$14:$B$115,0),MATCH($D$3,MAIN!$DK$13:$DU$13,0)) -> 1
AJ71: 2019-07-01 | AK71: =INDEX(MAIN!$CZ$14:$DJ$115,MATCH($AJ71,MAIN!$B$14:$B$115,0),MATCH($D$3,MAIN!$CZ$13:$DJ$13,0)) -> 71470371 | AL71: =INDEX(MAIN!$DK$14:$DU$115,MATCH($AJ71,MAIN!$B$14:$B$115,0),MATCH($D$3,MAIN!$DK$13:$DU$13,0)) -> 1
AJ72: 2019-08-01 | AK72: =INDEX(MAIN!$CZ$14:$DJ$115,MATCH($AJ72,MAIN!$B$14:$B$115,0),MATCH($D$3,MAIN!$CZ$13:$DJ$13,0)) -> 71476818 | AL72: =INDEX(MAIN!$DK$14:$DU$115,MATCH($AJ72,MAIN!$B$14:$B$115,0),MATCH($D$3,MAIN!$DK$13:$DU$13,0)) -> 1
AJ73: 2019-09-01 | AK73: =INDEX(MAIN!$CZ$14:$DJ$115,MATCH($AJ73,MAIN!$B$14:$B$115,0),MATCH($D$3,MAIN!$CZ$13:$DJ$13,0)) -> 70749228 | AL73: =INDEX(MAIN!$DK$14:$DU$115,MATCH($AJ73,MAIN!$B$14:$B$115,0),MATCH($D$3,MAIN!$DK$13:$DU$13,0)) -> 1
AJ74: 2019-10-01 | AK74: =INDEX(MAIN!$CZ$14:$DJ$115,MATCH($AJ74,MAIN!$B$14:$B$115,0),MATCH($D$3,MAIN!$CZ$13:$DJ$13,0)) -> 71412932 | AL74: =INDEX(MAIN!$DK$14:$DU$115,MATCH($AJ74,MAIN!$B$14:$B$115,0),MATCH($D$3,MAIN!$DK$13:$DU$13,0)) -> 1
AJ75: 2019-11-01 | AK75: =INDEX(MAIN!$CZ$14:$DJ$115,MATCH($AJ75,MAIN!$B$14:$B$115,0),MATCH($D$3,MAIN!$CZ$13:$DJ$13,0)) -> 71153610 | AL75: =INDEX(MAIN!$DK$14:$DU$115,MATCH($AJ75,MAIN!$B$14:$B$115,0),MATCH($D$3,MAIN!$DK$13:$DU$13,0)) -> 1
AJ76: 2019-12-01 | AK76: =INDEX(MAIN!$CZ$14:$DJ$115,MATCH($AJ76,MAIN!$B$14:$B$115,0),MATCH($D$3,MAIN!$CZ$13:$DJ$13,0)) -> 71079550 | AL76: =INDEX(MAIN!$DK$14:$DU$115,MATCH($AJ76,MAIN!$B$14:$B$115,0),MATCH($D$3,MAIN!$DK$13:$DU$13,0)) -> 1
AJ77: 2020-01-01 | AK77: =INDEX(MAIN!$CZ$14:$DJ$115,MATCH($AJ77,MAIN!$B$14:$B$115,0),MATCH($D$3,MAIN!$CZ$13:$DJ$13,0)) -> 71236781 | AL77: =INDEX(MAIN!$DK$14:$DU$115,MATCH($AJ77,MAIN!$B$14:$B$115,0),MATCH($D$3,MAIN!$DK$13:$DU$13,0)) -> 1
AJ78: 2020-02-01 | AK78: =INDEX(MAIN!$CZ$14:$DJ$115,MATCH($AJ78,MAIN!$B$14:$B$115,0),MATCH($D$3,MAIN!$CZ$13:$DJ$13,0)) -> 71157727 | AL78: =INDEX(MAIN!$DK$14:$DU$115,MATCH($AJ78,MAIN!$B$14:$B$115,0),MATCH($D$3,MAIN!$DK$13:$DU$13,0)) -> 1
AJ79: 2020-03-01 | AK79: =INDEX(MAIN!$CZ$14:$DJ$115,MATCH($AJ79,MAIN!$B$14:$B$115,0),MATCH($D$3,MAIN!$CZ$13:$DJ$13,0)) -> 71506867 | AL79: =INDEX(MAIN!$DK$14:$DU$115,MATCH($AJ79,MAIN!$B$14:$B$115,0),MATCH($D$3,MAIN!$DK$13:$DU$13,0)) -> 0.999920012
AJ80: 2020-04-01 | AK80: =INDEX(MAIN!$CZ$14:$DJ$115,MATCH($AJ80,MAIN!$B$14:$B$115,0),MATCH($D$3,MAIN!$CZ$13:$DJ$13,0)) -> 72690924 | AL80: =INDEX(MAIN!$DK$14:$DU$115,MATCH($AJ80,MAIN!$B$14:$B$115,0),MATCH($D$3,MAIN!$DK$13:$DU$13,0)) -> 0.9995452106
AJ81: 2020-05-01 | AK81: =INDEX(MAIN!$CZ$14:$DJ$115,MATCH($AJ81,MAIN!$B$14:$B$115,0),MATCH($D$3,MAIN!$CZ$13:$DJ$13,0)) -> 73876801 | AL81: =INDEX(MAIN!$DK$14:$DU$115,MATCH($AJ81,MAIN!$B$14:$B$115,0),MATCH($D$3,MAIN!$DK$13:$DU$13,0)) -> 0.9996068777
AJ82: 2020-06-01 | AK82: =INDEX(MAIN!$CZ$14:$DJ$115,MATCH($AJ82,MAIN!$B$14:$B$115,0),MATCH($D$3,MAIN!$CZ$13:$DJ$13,0)) -> 74862711 | AL82: =INDEX(MAIN!$DK$14:$DU$115,MATCH($AJ82,MAIN!$B$14:$B$115,0),MATCH($D$3,MAIN!$DK$13:$DU$13,0)) -> 0.998841297
AJ83: 2020-07-01 | AK83: =INDEX(MAIN!$CZ$14:$DJ$115,MATCH($AJ83,MAIN!$B$14:$B$115,0),MATCH($D$3,MAIN!$CZ$13:$DJ$13,0)) -> 75818909 | AL83: =INDEX(MAIN!$DK$14:$DU$115,MATCH($AJ83,MAIN!$B$14:$B$115,0),MATCH($D$3,MAIN!$DK$13:$DU$13,0)) -> 0.9988097271
AJ84: 2020-08-01 | AK84: =INDEX(MAIN!$CZ$14:$DJ$115,MATCH($AJ84,MAIN!$B$14:$B$115,0),MATCH($D$3,MAIN!$CZ$13:$DJ$13,0)) -> 76755500 | AL84: =INDEX(MAIN!$DK$14:$DU$115,MATCH($AJ84,MAIN!$B$14:$B$115,0),MATCH($D$3,MAIN!$DK$13:$DU$13,0)) -> 0.9981209475
AJ85: 2020-09-01 | AK85: =INDEX(MAIN!$CZ$14:$DJ$115,MATCH($AJ85,MAIN!$B$14:$B$115,0),MATCH($D$3,MAIN!$CZ$13:$DJ$13,0)) -> 77569433 | AL85: =INDEX(MAIN!$DK$14:$DU$115,MATCH($AJ85,MAIN!$B$14:$B$115,0),MATCH($D$3,MAIN!$DK$13:$DU$13,0)) -> 0.9974729682
AJ86: 2020-10-01 | AK86: =INDEX(MAIN!$CZ$14:$DJ$115,MATCH($AJ86,MAIN!$B$14:$B$115,0),MATCH($D$3,MAIN!$CZ$13:$DJ$13,0)) -> 78322359 | AL86: =INDEX(MAIN!$DK$14:$DU$115,MATCH($AJ86,MAIN!$B$14:$B$115,0),MATCH($D$3,MAIN!$DK$13:$DU$13,0)) -> 0.9968171516
AJ87: 2020-11-01 | AK87: =INDEX(MAIN!$CZ$14:$DJ$115,MATCH($AJ87,MAIN!$B$14:$B$115,0),MATCH($D$3,MAIN!$CZ$13:$DJ$13,0)) -> 79121160 | AL87: =INDEX(MAIN!$DK$14:$DU$115,MATCH($AJ87,MAIN!$B$14:$B$115,0),MATCH($D$3,MAIN!$DK$13:$DU$13,0)) -> 0.9964275844
AJ88: 2020-12-01 | AK88: =INDEX(MAIN!$CZ$14:$DJ$115,MATCH($AJ88,MAIN!$B$14:$B$115,0),MATCH($D$3,MAIN!$CZ$13:$DJ$13,0)) -> 79993242 | AL88: =INDEX(MAIN!$DK$14:$DU$115,MATCH($AJ88,MAIN!$B$14:$B$115,0),MATCH($D$3,MAIN!$DK$13:$DU$13,0)) -> 0.996662181
AJ89: 2021-01-01 | AK89: =INDEX(MAIN!$CZ$14:$DJ$115,MATCH($AJ89,MAIN!$B$14:$B$115,0),MATCH($D$3,MAIN!$CZ$13:$DJ$13,0)) -> 80626341 | AL89: =INDEX(MAIN!$DK$14:$DU$115,MATCH($AJ89,MAIN!$B$14:$B$115,0),MATCH($D$3,MAIN!$DK$13:$DU$13,0)) -> 0.9952571863
AJ90: 2021-02-01 | AK90: =INDEX(MAIN!$CZ$14:$DJ$115,MATCH($AJ90,MAIN!$B$14:$B$115,0),MATCH($D$3,MAIN!$CZ$13:$DJ$13,0)) -> 81172158 | AL90: =INDEX(MAIN!$DK$14:$DU$115,MATCH($AJ90,MAIN!$B$14:$B$115,0),MATCH($D$3,MAIN!$DK$13:$DU$13,0)) -> 0.9940840832
AJ91: 2021-03-01 | AK91: =INDEX(MAIN!$CZ$14:$DJ$115,MATCH($AJ91,MAIN!$B$14:$B$115,0),MATCH($D$3,MAIN!$CZ$13:$DJ$13,0)) -> 81828570 | AL91: =INDEX(MAIN!$DK$14:$DU$115,MATCH($AJ91,MAIN!$B$14:$B$115,0),MATCH($D$3,MAIN!$DK$13:$DU$13,0)) -> 0.9940408883
AJ92: 2021-04-01 | AK92: =INDEX(MAIN!$CZ$14:$DJ$115,MATCH($AJ92,MAIN!$B$14:$B$115,0),MATCH($D$3,MAIN!$CZ$13:$DJ$13,0)) -> 82351549 | AL92: =INDEX(MAIN!$DK$14:$DU$115,MATCH($AJ92,MAIN!$B$14:$B$115,0),MATCH($D$3,MAIN!$DK$13:$DU$13,0)) -> 0.9933553081
AJ93: 2021-05-01 | AK93: =INDEX(MAIN!$CZ$14:$DJ$115,MATCH($AJ93,MAIN!$B$14:$B$115,0),MATCH($D$3,MAIN!$CZ$13:$DJ$13,0)) -> 82791322 | AL93: =INDEX(MAIN!$DK$14:$DU$115,MATCH($AJ93,MAIN!$B$14:$B$115,0),MATCH($D$3,MAIN!$DK$13:$DU$13,0)) -> 0.9929958981
AJ94: 2021-06-01 | AK94: =INDEX(MAIN!$CZ$14:$DJ$115,MATCH($AJ94,MAIN!$B$14:$B$115,0),MATCH($D$3,MAIN!$CZ$13:$DJ$13,0)) -> 83314599 | AL94: =INDEX(MAIN!$DK$14:$DU$115,MATCH($AJ94,MAIN!$B$14:$B$115,0),MATCH($D$3,MAIN!$DK$13:$DU$13,0)) -> 0.9929541605
AJ95: 2021-07-01 | AK95: =INDEX(MAIN!$CZ$14:$DJ$115,MATCH($AJ95,MAIN!$B$14:$B$115,0),MATCH($D$3,MAIN!$CZ$13:$DJ$13,0)) -> 83846649 | AL95: =INDEX(MAIN!$DK$14:$DU$115,MATCH($AJ95,MAIN!$B$14:$B$115,0),MATCH($D$3,MAIN!$DK$13:$DU$13,0)) -> 0.992736765
AJ96: 2021-08-01 | AK96: =INDEX(MAIN!$CZ$14:$DJ$115,MATCH($AJ96,MAIN!$B$14:$B$115,0),MATCH($D$3,MAIN!$CZ$13:$DJ$13,0)) -> 84541077 | AL96: =INDEX(MAIN!$DK$14:$DU$115,MATCH($AJ96,MAIN!$B$14:$B$115,0),MATCH($D$3,MAIN!$DK$13:$DU$13,0)) -> 0.9930033723
AJ97: 2021-09-01 | AK97: =INDEX(MAIN!$CZ$14:$DJ$115,MATCH($AJ97,MAIN!$B$14:$B$115,0),MATCH($D$3,MAIN!$CZ$13:$DJ$13,0)) -> 85065364 | AL97: =INDEX(MAIN!$DK$14:$DU$115,MATCH($AJ97,MAIN!$B$14:$B$115,0),MATCH($D$3,MAIN!$DK$13:$DU$13,0)) -> 0.9926317149
AJ98: 2021-10-01 | AK98: =INDEX(MAIN!$CZ$14:$DJ$115,MATCH($AJ98,MAIN!$B$14:$B$115,0),MATCH($D$3,MAIN!$CZ$13:$DJ$13,0)) -> 85562352 | AL98: =INDEX(MAIN!$DK$14:$DU$115,MATCH($AJ98,MAIN!$B$14:$B$115,0),MATCH($D$3,MAIN!$DK$13:$DU$13,0)) -> 0.9925541151
AJ99: 2021-11-01 | AK99: =INDEX(MAIN!$CZ$14:$DJ$115,MATCH($AJ99,MAIN!$B$14:$B$115,0),MATCH($D$3,MAIN!$CZ$13:$DJ$13,0)) -> 86090348 | AL99: =INDEX(MAIN!$DK$14:$DU$115,MATCH($AJ99,MAIN!$B$14:$B$115,0),MATCH($D$3,MAIN!$DK$13:$DU$13,0)) -> 0.9926277385
AJ100: 2021-12-01 | AK100: =INDEX(MAIN!$CZ$14:$DJ$115,MATCH($AJ100,MAIN!$B$14:$B$115,0),MATCH($D$3,MAIN!$CZ$13:$DJ$13,0)) -> 86615176 | AL100: =INDEX(MAIN!$DK$14:$DU$115,MATCH($AJ100,MAIN!$B$14:$B$115,0),MATCH($D$3,MAIN!$DK$13:$DU$13,0)) -> 0.9926109992
AJ101: 2022-01-01 | AK101: =INDEX(MAIN!$CZ$14:$DJ$115,MATCH($AJ101,MAIN!$B$14:$B$115,0),MATCH($D$3,MAIN!$CZ$13:$DJ$13,0)) -> 87168041 | AL101: =INDEX(MAIN!$DK$14:$DU$115,MATCH($AJ101,MAIN!$B$14:$B$115,0),MATCH($D$3,MAIN!$DK$13:$DU$13,0)) -> 0.9926131365
AJ102: 2022-02-01 | AK102: =INDEX(MAIN!$CZ$14:$DJ$115,MATCH($AJ102,MAIN!$B$14:$B$115,0),MATCH($D$3,MAIN!$CZ$13:$DJ$13,0)) -> 87602637 | AL102: =INDEX(MAIN!$DK$14:$DU$115,MATCH($AJ102,MAIN!$B$14:$B$115,0),MATCH($D$3,MAIN!$DK$13:$DU$13,0)) -> 0.9922583615
AJ103: 2022-03-01 | AK103: =INDEX(MAIN!$CZ$14:$DJ$115,MATCH($AJ103,MAIN!$B$14:$B$115,0),MATCH($D$3,MAIN!$CZ$13:$DJ$13,0)) -> 88064424 | AL103: =INDEX(MAIN!$DK$14:$DU$115,MATCH($AJ103,MAIN!$B$14:$B$115,0),MATCH($D$3,MAIN!$DK$13:$DU$13,0)) -> 0.9923095318
AJ104: 2022-04-01 | AK104: =INDEX(MAIN!$CZ$14:$DJ$115,MATCH($AJ104,MAIN!$B$14:$B$115,0),MATCH($D$3,MAIN!$CZ$13:$DJ$13,0)) -> 88490962 | AL104: =INDEX(MAIN!$DK$14:$DU$115,MATCH($AJ104,MAIN!$B$14:$B$115,0),MATCH($D$3,MAIN!$DK$13:$DU$13,0)) -> 0.9921694642
AJ105: 2022-05-01 | AK105: =INDEX(MAIN!$CZ$14:$DJ$115,MATCH($AJ105,MAIN!$B$14:$B$115,0),MATCH($D$3,MAIN!$CZ$13:$DJ$13,0)) -> 89059887 | AL105: =INDEX(MAIN!$DK$14:$DU$115,MATCH($AJ105,MAIN!$B$14:$B$115,0),MATCH($D$3,MAIN!$DK$13:$DU$13,0)) -> 0.9924736169
AJ106: 2022-06-01 | AK106: =INDEX(MAIN!$CZ$14:$DJ$115,MATCH($AJ106,MAIN!$B$14:$B$115,0),MATCH($D$3,MAIN!$CZ$13:$DJ$13,0)) -> 89532596 | AL106: =INDEX(MAIN!$DK$14:$DU$115,MATCH($AJ106,MAIN!$B$14:$B$115,0),MATCH($D$3,MAIN!$DK$13:$DU$13,0)) -> 0.9921613735
AJ107: 2022-07-01 | AK107: =INDEX(MAIN!$CZ$14:$DJ$115,MATCH($AJ107,MAIN!$B$14:$B$115,0),MATCH($D$3,MAIN!$CZ$13:$DJ$13,0)) -> 90043137 | AL107: =INDEX(MAIN!$DK$14:$DU$115,MATCH($AJ107,MAIN!$B$14:$B$115,0),MATCH($D$3,MAIN!$DK$13:$DU$13,0)) -> 0.992311208
AJ108: 2022-08-01 | AK108: =INDEX(MAIN!$CZ$14:$DJ$115,MATCH($AJ108,MAIN!$B$14:$B$115,0),MATCH($D$3,MAIN!$CZ$13:$DJ$13,0)) -> 90606450 | AL108: =INDEX(MAIN!$DK$14:$DU$115,MATCH($AJ108,MAIN!$B$14:$B$115,0),MATCH($D$3,MAIN!$DK$13:$DU$13,0)) -> 0.9925254899
AJ109: 2022-09-01 | AK109: =INDEX(MAIN!$CZ$14:$DJ$115,MATCH($AJ109,MAIN!$B$14:$B$115,0),MATCH($D$3,MAIN!$CZ$13:$DJ$13,0)) -> 91162800 | AL109: =INDEX(MAIN!$DK$14:$DU$115,MATCH($AJ109,MAIN!$B$14:$B$115,0),MATCH($D$3,MAIN!$DK$13:$DU$13,0)) -> 0.9923844456
AJ110: 2022-10-01 | AK110: =INDEX(MAIN!$CZ$14:$DJ$115,MATCH($AJ110,MAIN!$B$14:$B$115,0),MATCH($D$3,MAIN!$CZ$13:$DJ$13,0)) -> 91623625 | AL110: =INDEX(MAIN!$DK$14:$DU$115,MATCH($AJ110,MAIN!$B$14:$B$115,0),MATCH($D$3,MAIN!$DK$13:$DU$13,0)) -> 0.9923316991
AJ111: 2022-11-01 | AK111: =INDEX(MAIN!$CZ$14:$DJ$115,MATCH($AJ111,MAIN!$B$14:$B$115,0),MATCH($D$3,MAIN!$CZ$13:$DJ$13,0)) -> 92103704 | AL111: =INDEX(MAIN!$DK$14:$DU$115,MATCH($AJ111,MAIN!$B$14:$B$115,0),MATCH($D$3,MAIN!$DK$13:$DU$13,0)) -> 0.9920154496
AJ112: 2022-12-01 | AK112: =INDEX(MAIN!$CZ$14:$DJ$115,MATCH($AJ112,MAIN!$B$14:$B$115,0),MATCH($D$3,MAIN!$CZ$13:$DJ$13,0)) -> 92604026 | AL112: =INDEX(MAIN!$DK$14:$DU$115,MATCH($AJ112,MAIN!$B$14:$B$115,0),MATCH($D$3,MAIN!$DK$13:$DU$13,0)) -> 0.9921827787
AJ113: 2023-01-01 | AK113: =INDEX(MAIN!$CZ$14:$DJ$115,MATCH($AJ113,MAIN!$B$14:$B$115,0),MATCH($D$3,MAIN!$CZ$13:$DJ$13,0)) -> 93008249 | AL113: =INDEX(MAIN!$DK$14:$DU$115,MATCH($AJ113,MAIN!$B$14:$B$115,0),MATCH($D$3,MAIN!$DK$13:$DU$13,0)) -> 0.9919784454
AJ114: 2023-02-01 | AK114: =INDEX(MAIN!$CZ$14:$DJ$115,MATCH($AJ114,MAIN!$B$14:$B$115,0),MATCH($D$3,MAIN!$CZ$13:$DJ$13,0)) -> 93610502.16 | AL114: =INDEX(MAIN!$DK$14:$DU$115,MATCH($AJ114,MAIN!$B$14:$B$115,0),MATCH($D$3,MAIN!$DK$13:$DU$13,0)) -> 0.99237377
AJ115: 2023-03-01 | AK115: =INDEX(MAIN!$CZ$14:$DJ$115,MATCH($AJ115,MAIN!$B$14:$B$115,0),MATCH($D$3,MAIN!$CZ$13:$DJ$13,0)) -> 93610502.14 | AL115: =INDEX(MAIN!$DK$14:$DU$115,MATCH($AJ115,MAIN!$B$14:$B$115,0),MATCH($D$3,MAIN!$DK$13:$DU$13,0)) -> 0.9911801451
AJ116: 2023-04-01 | AK116: =INDEX(MAIN!$CZ$14:$DJ$115,MATCH($AJ116,MAIN!$B$14:$B$115,0),MATCH($D$3,MAIN!$CZ$13:$DJ$13,0)) -> 93634888.65 | AL116: =INDEX(MAIN!$DK$14:$DU$115,MATCH($AJ116,MAIN!$B$14:$B$115,0),MATCH($D$3,MAIN!$DK$13:$DU$13,0)) -> 0.9906858499
AJ117: 2023-05-01 | AK117: =INDEX(MAIN!$CZ$14:$DJ$115,MATCH($AJ117,MAIN!$B$14:$B$115,0),MATCH($D$3,MAIN!$CZ$13:$DJ$13,0)) -> 93248161.63 | AL117: =INDEX(MAIN!$DK$14:$DU$115,MATCH($AJ117,MAIN!$B$14:$B$115,0),MATCH($D$3,MAIN!$DK$13:$DU$13,0)) -> 0.9908000362
AJ118: 2023-06-01 | AK118: =INDEX(MAIN!$CZ$14:$DJ$115,MATCH($AJ118,MAIN!$B$14:$B$115,0),MATCH($D$3,MAIN!$CZ$13:$DJ$13,0)) -> 92530511.12 | AL118: =INDEX(MAIN!$DK$14:$DU$115,MATCH($AJ118,MAIN!$B$14:$B$115,0),MATCH($D$3,MAIN!$DK$13:$DU$13,0)) -> 0.991177545
AJ119: 2023-07-01 | AK119: =INDEX(MAIN!$CZ$14:$DJ$115,MATCH($AJ119,MAIN!$B$14:$B$115,0),MATCH($D$3,MAIN!$CZ$13:$DJ$13,0)) -> 91321531.2 | AL119: =INDEX(MAIN!$DK$14:$DU$115,MATCH($AJ119,MAIN!$B$14:$B$115,0),MATCH($D$3,MAIN!$DK$13:$DU$13,0)) -> 0.9915467338
AJ120: 2023-08-01 | AK120: =INDEX(MAIN!$CZ$14:$DJ$115,MATCH($AJ120,MAIN!$B$14:$B$115,0),MATCH($D$3,MAIN!$CZ$13:$DJ$13,0)) -> 89860608.17 | AL120: =INDEX(MAIN!$DK$14:$DU$115,MATCH($AJ120,MAIN!$B$14:$B$115,0),MATCH($D$3,MAIN!$DK$13:$DU$13,0)) -> 0.9919656717
AJ121: 2023-09-01 | AK121: =INDEX(MAIN!$CZ$14:$DJ$115,MATCH($AJ121,MAIN!$B$14:$B$115,0),MATCH($D$3,MAIN!$CZ$13:$DJ$13,0)) -> 88182848.54 | AL121: =INDEX(MAIN!$DK$14:$DU$115,MATCH($AJ121,MAIN!$B$14:$B$115,0),MATCH($D$3,MAIN!$DK$13:$DU$13,0)) -> 0.9925755662
AJ122: 2023-10-01 | AK122: =INDEX(MAIN!$CZ$14:$DJ$115,MATCH($AJ122,MAIN!$B$14:$B$115,0),MATCH($D$3,MAIN!$CZ$13:$DJ$13,0)) -> 86256574.89 | AL122: =INDEX(MAIN!$DK$14:$DU$115,MATCH($AJ122,MAIN!$B$14:$B$115,0),MATCH($D$3,MAIN!$DK$13:$DU$13,0)) -> 0.9931774119
AJ123: 2023-11-01 | AK123: =INDEX(MAIN!$CZ$14:$DJ$115,MATCH($AJ123,MAIN!$B$14:$B$115,0),MATCH($D$3,MAIN!$CZ$13:$DJ$13,0)) -> 84554959.62 | AL123: =INDEX(MAIN!$DK$14:$DU$115,MATCH($AJ123,MAIN!$B$14:$B$115,0),MATCH($D$3,MAIN!$DK$13:$DU$13,0)) -> 0.9943410725
AJ124: 2023-12-01 | AK124: =INDEX(MAIN!$CZ$14:$DJ$115,MATCH($AJ124,MAIN!$B$14:$B$115,0),MATCH($D$3,MAIN!$CZ$13:$DJ$13,0)) -> 83147088.51 | AL124: =INDEX(MAIN!$DK$14:$DU$115,MATCH($AJ124,MAIN!$B$14:$B$115,0),MATCH($D$3,MAIN!$DK$13:$DU$13,0)) -> 0.9956348152
AJ125: 2024-01-01 | AK125: =INDEX(MAIN!$CZ$14:$DJ$115,MATCH($AJ125,MAIN!$B$14:$B$115,0),MATCH($D$3,MAIN!$CZ$13:$DJ$13,0)) -> 82293724.55 | AL125: =INDEX(MAIN!$DK$14:$DU$115,MATCH($AJ125,MAIN!$B$14:$B$115,0),MATCH($D$3,MAIN!$DK$13:$DU$13,0)) -> 0.9971853083
AJ126: 2024-02-01 | AK126: =INDEX(MAIN!$CZ$14:$DJ$115,MATCH($AJ126,MAIN!$B$14:$B$115,0),MATCH($D$3,MAIN!$CZ$13:$DJ$13,0)) -> 81594579.19 | AL126: =INDEX(MAIN!$DK$14:$DU$115,MATCH($AJ126,MAIN!$B$14:$B$115,0),MATCH($D$3,MAIN!$DK$13:$DU$13,0)) -> 0.9985275426
AJ127: 2024-03-01 | AK127: =INDEX(MAIN!$CZ$14:$DJ$115,MATCH($AJ127,MAIN!$B$14:$B$115,0),MATCH($D$3,MAIN!$CZ$13:$DJ$13,0)) -> 81022987.03 | AL127: =INDEX(MAIN!$DK$14:$DU$115,MATCH($AJ127,MAIN!$B$14:$B$115,0),MATCH($D$3,MAIN!$DK$13:$DU$13,0)) -> 0.9995372552
AJ128: 2024-04-01 | AK128: =INDEX(MAIN!$CZ$14:$DJ$115,MATCH($AJ128,MAIN!$B$14:$B$115,0),MATCH($D$3,MAIN!$CZ$13:$DJ$13,0)) -> 80511229.6 | AL128: =INDEX(MAIN!$DK$14:$DU$115,MATCH($AJ128,MAIN!$B$14:$B$115,0),MATCH($D$3,MAIN!$DK$13:$DU$13,0)) -> 1.000456688
AJ129: 2024-05-01 | AK129: =INDEX(MAIN!$CZ$14:$DJ$115,MATCH($AJ129,MAIN!$B$14:$B$115,0),MATCH($D$3,MAIN!$CZ$13:$DJ$13,0)) -> 80343069.97 | AL129: =INDEX(MAIN!$DK$14:$DU$115,MATCH($AJ129,MAIN!$B$14:$B$115,0),MATCH($D$3,MAIN!$DK$13:$DU$13,0)) -> 1.000846412
AJ130: 2024-06-01 | AK130: =INDEX(MAIN!$CZ$14:$DJ$115,MATCH($AJ130,MAIN!$B$14:$B$115,0),MATCH($D$3,MAIN!$CZ$13:$DJ$13,0)) -> 80409331.14 | AL130: =INDEX(MAIN!$DK$14:$DU$115,MATCH($AJ130,MAIN!$B$14:$B$115,0),MATCH($D$3,MAIN!$DK$13:$DU$13,0)) -> 1.000859432
AJ131: =EDATE(AJ130,1) -> 2024-07-01 | AK131: =INDEX(MAIN!$CZ$14:$DJ$115,MATCH($AJ131,MAIN!$B$14:$B$115,0),MATCH($D$3,MAIN!$CZ$13:$DJ$13,0)) -> 80415273.71 | AL131: =INDEX(MAIN!$DK$14:$DU$115,MATCH($AJ131,MAIN!$B$14:$B$115,0),MATCH($D$3,MAIN!$DK$13:$DU$13,0)) -> 0.999669338
AJ132: 2024-08-01 | AK132: =INDEX(MAIN!$CZ$14:$DJ$115,MATCH($AJ132,MAIN!$B$14:$B$115,0),MATCH($D$3,MAIN!$CZ$13:$DJ$13,0)) -> 80537210.19 | AL132: =INDEX(MAIN!$DK$14:$DU$115,MATCH($AJ132,MAIN!$B$14:$B$115,0),MATCH($D$3,MAIN!$DK$13:$DU$13,0)) -> 1.000991655
AJ133: 2024-09-01 | AK133: =INDEX(MAIN!$CZ$14:$DJ$115,MATCH($AJ133,MAIN!$B$14:$B$115,0),MATCH($D$3,MAIN!$CZ$13:$DJ$13,0)) -> 80652895.33 | AL133: =INDEX(MAIN!$DK$14:$DU$115,MATCH($AJ133,MAIN!$B$14:$B$115,0),MATCH($D$3,MAIN!$DK$13:$DU$13,0)) -> 1.000829097
AJ134: 2024-10-01 | AK134: =INDEX(MAIN!$CZ$14:$DJ$115,MATCH($AJ134,MAIN!$B$14:$B$115,0),MATCH($D$3,MAIN!$CZ$13:$DJ$13,0)) -> 80796534.45 | AL134: =INDEX(MAIN!$DK$14:$DU$115,MATCH($AJ134,MAIN!$B$14:$B$115,0),MATCH($D$3,MAIN!$DK$13:$DU$13,0)) -> 1.000674689
AJ135: 2024-11-01 | AK135: =INDEX(MAIN!$CZ$14:$DJ$115,MATCH($AJ135,MAIN!$B$14:$B$115,0),MATCH($D$3,MAIN!$CZ$13:$DJ$13,0)) -> 80811528.77 | AL135: =INDEX(MAIN!$DK$14:$DU$115,MATCH($AJ135,MAIN!$B$14:$B$115,0),MATCH($D$3,MAIN!$DK$13:$DU$13,0)) -> 0.999885761
AJ136: 2024-12-01 | AK136: =INDEX(MAIN!$CZ$14:$DJ$115,MATCH($AJ136,MAIN!$B$14:$B$115,0),MATCH($D$3,MAIN!$CZ$13:$DJ$13,0)) -> 80717457.79 | AL136: =INDEX(MAIN!$DK$14:$DU$115,MATCH($AJ136,MAIN!$B$14:$B$115,0),MATCH($D$3,MAIN!$DK$13:$DU$13,0)) -> 0.9993456214
AJ137: 2025-01-01 | AK137: =INDEX(MAIN!$CZ$14:$DJ$115,MATCH($AJ137,MAIN!$B$14:$B$115,0),MATCH($D$3,MAIN!$CZ$13:$DJ$13,0)) -> 80484359.98 | AL137: =INDEX(MAIN!$DK$14:$DU$115,MATCH($AJ137,MAIN!$B$14:$B$115,0),MATCH($D$3,MAIN!$DK$13:$DU$13,0)) -> 0.9988925532
AJ138: 2025-02-01 | AK138: =INDEX(MAIN!$CZ$14:$DJ$115,MATCH($AJ138,MAIN!$B$14:$B$115,0),MATCH($D$3,MAIN!$CZ$13:$DJ$13,0)) -> 80565099.33 | AL138: =INDEX(MAIN!$DK$14:$DU$115,MATCH($AJ138,MAIN!$B$14:$B$115,0),MATCH($D$3,MAIN!$DK$13:$DU$13,0)) -> 0.9990289734
AJ139: 2025-03-01 | AK139: =INDEX(MAIN!$CZ$14:$DJ$115,MATCH($AJ139,MAIN!$B$14:$B$115,0),MATCH($D$3,MAIN!$CZ$13:$DJ$13,0)) -> 80647943.73 | AL139: =INDEX(MAIN!$DK$14:$DU$115,MATCH($AJ139,MAIN!$B$14:$B$115,0),MATCH($D$3,MAIN!$DK$13:$DU$13,0)) -> 0.9989215993
AJ140: 2025-04-01 | AK140: =INDEX(MAIN!$CZ$14:$DJ$115,MATCH($AJ140,MAIN!$B$14:$B$115,0),MATCH($D$3,MAIN!$CZ$13:$DJ$13,0)) -> 80730881.15 | AL140: =INDEX(MAIN!$DK$14:$DU$115,MATCH($AJ140,MAIN!$B$14:$B$115,0),MATCH($D$3,MAIN!$DK$13:$DU$13,0)) -> 0.9988648194
AJ141: 2025-05-01 | AK141: =INDEX(MAIN!$CZ$14:$DJ$115,MATCH($AJ141,MAIN!$B$14:$B$115,0),MATCH($D$3,MAIN!$CZ$13:$DJ$13,0)) -> 80813848.67 | AL141: =INDEX(MAIN!$DK$14:$DU$115,MATCH($AJ141,MAIN!$B$14:$B$115,0),MATCH($D$3,MAIN!$DK$13:$DU$13,0)) -> 0.9987106531
AJ142: 2025-06-01 | AK142: =INDEX(MAIN!$CZ$14:$DJ$115,MATCH($AJ142,MAIN!$B$14:$B$115,0),MATCH($D$3,MAIN!$CZ$13:$DJ$13,0)) -> 80897047.39 | AL142: =INDEX(MAIN!$DK$14:$DU$115,MATCH($AJ142,MAIN!$B$14:$B$115,0),MATCH($D$3,MAIN!$DK$13:$DU$13,0)) -> 0.9986250586
AJ143: 2025-07-01 | AK143: =INDEX(MAIN!$CZ$14:$DJ$115,MATCH($AJ143,MAIN!$B$14:$B$115,0),MATCH($D$3,MAIN!$CZ$13:$DJ$13,0)) -> 80979573.58 | AL143: =INDEX(MAIN!$DK$14:$DU$115,MATCH($AJ143,MAIN!$B$14:$B$115,0),MATCH($D$3,MAIN!$DK$13:$DU$13,0)) -> 0.998279129
AJ144: 2025-08-01 | AK144: =INDEX(MAIN!$CZ$14:$DJ$115,MATCH($AJ144,MAIN!$B$14:$B$115,0),MATCH($D$3,MAIN!$CZ$13:$DJ$13,0)) -> 81060659.34 | AL144: =INDEX(MAIN!$DK$14:$DU$115,MATCH($AJ144,MAIN!$B$14:$B$115,0),MATCH($D$3,MAIN!$DK$13:$DU$13,0)) -> 0.998298263
AJ145: 2025-09-01 | AK145: =INDEX(MAIN!$CZ$14:$DJ$115,MATCH($AJ145,MAIN!$B$14:$B$115,0),MATCH($D$3,MAIN!$CZ$13:$DJ$13,0)) -> 81139331.69 | AL145: =INDEX(MAIN!$DK$14:$DU$115,MATCH($AJ145,MAIN!$B$14:$B$115,0),MATCH($D$3,MAIN!$DK$13:$DU$13,0)) -> 0.9983378222
AJ146: 2025-10-01 | AK146: =INDEX(MAIN!$CZ$14:$DJ$115,MATCH($AJ146,MAIN!$B$14:$B$115,0),MATCH($D$3,MAIN!$CZ$13:$DJ$13,0)) -> 81218168.8 | AL146: =INDEX(MAIN!$DK$14:$DU$115,MATCH($AJ146,MAIN!$B$14:$B$115,0),MATCH($D$3,MAIN!$DK$13:$DU$13,0)) -> 0.9983961943
AJ147: 2025-11-01 | AK147: =INDEX(MAIN!$CZ$14:$DJ$115,MATCH($AJ147,MAIN!$B$14:$B$115,0),MATCH($D$3,MAIN!$CZ$13:$DJ$13,0)) -> 81297210.1 | AL147: =INDEX(MAIN!$DK$14:$DU$115,MATCH($AJ147,MAIN!$B$14:$B$115,0),MATCH($D$3,MAIN!$DK$13:$DU$13,0)) -> 0.9983919102
AJ148: 2025-12-01 | AK148: =INDEX(MAIN!$CZ$14:$DJ$115,MATCH($AJ148,MAIN!$B$14:$B$115,0),MATCH($D$3,MAIN!$CZ$13:$DJ$13,0)) -> 81376451.61 | AL148: =INDEX(MAIN!$DK$14:$DU$115,MATCH($AJ148,MAIN!$B$14:$B$115,0),MATCH($D$3,MAIN!$DK$13:$DU$13,0)) -> 0.9983259026
AJ149: 2026-01-01 | AK149: =INDEX(MAIN!$CZ$14:$DJ$115,MATCH($AJ149,MAIN!$B$14:$B$115,0),MATCH($D$3,MAIN!$CZ$13:$DJ$13,0)) -> 81455888.46 | AL149: =INDEX(MAIN!$DK$14:$DU$115,MATCH($AJ149,MAIN!$B$14:$B$115,0),MATCH($D$3,MAIN!$DK$13:$DU$13,0)) -> 0.9981886542
AJ150: 2026-02-01 | AK150: =INDEX(MAIN!$CZ$14:$DJ$115,MATCH($AJ150,MAIN!$B$14:$B$115,0),MATCH($D$3,MAIN!$CZ$13:$DJ$13,0)) -> 81535517.38 | AL150: =INDEX(MAIN!$DK$14:$DU$115,MATCH($AJ150,MAIN!$B$14:$B$115,0),MATCH($D$3,MAIN!$DK$13:$DU$13,0)) -> 0.9981917883
AJ151: 2026-03-01 | AK151: =INDEX(MAIN!$CZ$14:$DJ$115,MATCH($AJ151,MAIN!$B$14:$B$115,0),MATCH($D$3,MAIN!$CZ$13:$DJ$13,0)) -> 81615328.42 | AL151: =INDEX(MAIN!$DK$14:$DU$115,MATCH($AJ151,MAIN!$B$14:$B$115,0),MATCH($D$3,MAIN!$DK$13:$DU$13,0)) -> 0.9981933851
AJ152: 2026-04-01 | AK152: =INDEX(MAIN!$CZ$14:$DJ$115,MATCH($AJ152,MAIN!$B$14:$B$115,0),MATCH($D$3,MAIN!$CZ$13:$DJ$13,0)) -> 81695305.92 | AL152: =INDEX(MAIN!$DK$14:$DU$115,MATCH($AJ152,MAIN!$B$14:$B$115,0),MATCH($D$3,MAIN!$DK$13:$DU$13,0)) -> 0.9981949504
AJ153: 2026-05-01 | AK153: =INDEX(MAIN!$CZ$14:$DJ$115,MATCH($AJ153,MAIN!$B$14:$B$115,0),MATCH($D$3,MAIN!$CZ$13:$DJ$13,0)) -> 81775426.99 | AL153: =INDEX(MAIN!$DK$14:$DU$115,MATCH($AJ153,MAIN!$B$14:$B$115,0),MATCH($D$3,MAIN!$DK$13:$DU$13,0)) -> 0.9981966967
AJ154: 2026-06-01 | AK154: =INDEX(MAIN!$CZ$14:$DJ$115,MATCH($AJ154,MAIN!$B$14:$B$115,0),MATCH($D$3,MAIN!$CZ$13:$DJ$13,0)) -> 81855692.06 | AL154: =INDEX(MAIN!$DK$14:$DU$115,MATCH($AJ154,MAIN!$B$14:$B$115,0),MATCH($D$3,MAIN!$DK$13:$DU$13,0)) -> 0.9981987913
AJ155: 2026-07-01 | AK155: =INDEX(MAIN!$CZ$14:$DJ$115,MATCH($AJ155,MAIN!$B$14:$B$115,0),MATCH($D$3,MAIN!$CZ$13:$DJ$13,0)) -> 81936102.11 | AL155: =INDEX(MAIN!$DK$14:$DU$115,MATCH($AJ155,MAIN!$B$14:$B$115,0),MATCH($D$3,MAIN!$DK$13:$DU$13,0)) -> 0.9982007776
AJ156: 2026-08-01 | AK156: =INDEX(MAIN!$CZ$14:$DJ$115,MATCH($AJ156,MAIN!$B$14:$B$115,0),MATCH($D$3,MAIN!$CZ$13:$DJ$13,0)) -> 82016658.03 | AL156: =INDEX(MAIN!$DK$14:$DU$115,MATCH($AJ156,MAIN!$B$14:$B$115,0),MATCH($D$3,MAIN!$DK$13:$DU$13,0)) -> 0.9982021996
AJ157: 2026-09-01 | AK157: =INDEX(MAIN!$CZ$14:$DJ$115,MATCH($AJ157,MAIN!$B$14:$B$115,0),MATCH($D$3,MAIN!$CZ$13:$DJ$13,0)) -> 82097360.67 | AL157: =INDEX(MAIN!$DK$14:$DU$115,MATCH($AJ157,MAIN!$B$14:$B$115,0),MATCH($D$3,MAIN!$DK$13:$DU$13,0)) -> 0.9982025284
AJ158: 2026-10-01 | AK158: =INDEX(MAIN!$CZ$14:$DJ$115,MATCH($AJ158,MAIN!$B$14:$B$115,0),MATCH($D$3,MAIN!$CZ$13:$DJ$13,0)) -> 82178210.76 | AL158: =INDEX(MAIN!$DK$14:$DU$115,MATCH($AJ158,MAIN!$B$14:$B$115,0),MATCH($D$3,MAIN!$DK$13:$DU$13,0)) -> 0.9982028733
AJ159: 2026-11-01 | AK159: =INDEX(MAIN!$CZ$14:$DJ$115,MATCH($AJ159,MAIN!$B$14:$B$115,0),MATCH($D$3,MAIN!$CZ$13:$DJ$13,0)) -> 82259208.95 | AL159: =INDEX(MAIN!$DK$14:$DU$115,MATCH($AJ159,MAIN!$B$14:$B$115,0),MATCH($D$3,MAIN!$DK$13:$DU$13,0)) -> 0.9982032316
AJ160: 2026-12-01 | AK160: =INDEX(MAIN!$CZ$14:$DJ$115,MATCH($AJ160,MAIN!$B$14:$B$115,0),MATCH($D$3,MAIN!$CZ$13:$DJ$13,0)) -> 82340355.69 | AL160: =INDEX(MAIN!$DK$14:$DU$115,MATCH($AJ160,MAIN!$B$14:$B$115,0),MATCH($D$3,MAIN!$DK$13:$DU$13,0)) -> 0.9982036014
AJ161: 2027-01-01 | AK161: =INDEX(MAIN!$CZ$14:$DJ$115,MATCH($AJ161,MAIN!$B$14:$B$115,0),MATCH($D$3,MAIN!$CZ$13:$DJ$13,0)) -> 82421651.23 | AL161: =INDEX(MAIN!$DK$14:$DU$115,MATCH($AJ161,MAIN!$B$14:$B$115,0),MATCH($D$3,MAIN!$DK$13:$DU$13,0)) -> 0.9982039826
AJ162: 2027-02-01 | AK162: =INDEX(MAIN!$CZ$14:$DJ$115,MATCH($AJ162,MAIN!$B$14:$B$115,0),MATCH($D$3,MAIN!$CZ$13:$DJ$13,0)) -> 82503095.81 | AL162: =INDEX(MAIN!$DK$14:$DU$115,MATCH($AJ162,MAIN!$B$14:$B$115,0),MATCH($D$3,MAIN!$DK$13:$DU$13,0)) -> 0.998204377
AJ163: 2027-03-01 | AK163: =INDEX(MAIN!$CZ$14:$DJ$115,MATCH($AJ163,MAIN!$B$14:$B$115,0),MATCH($D$3,MAIN!$CZ$13:$DJ$13,0)) -> 82584689.69 | AL163: =INDEX(MAIN!$DK$14:$DU$115,MATCH($AJ163,MAIN!$B$14:$B$115,0),MATCH($D$3,MAIN!$DK$13:$DU$13,0)) -> 0.998204783
AJ164: 2027-04-01 | AK164: =INDEX(MAIN!$CZ$14:$DJ$115,MATCH($AJ164,MAIN!$B$14:$B$115,0),MATCH($D$3,MAIN!$CZ$13:$DJ$13,0)) -> 82666433.12 | AL164: =INDEX(MAIN!$DK$14:$DU$115,MATCH($AJ164,MAIN!$B$14:$B$115,0),MATCH($D$3,MAIN!$DK$13:$DU$13,0)) -> 0.9982051956
AJ165: 2027-05-01 | AK165: =INDEX(MAIN!$CZ$14:$DJ$115,MATCH($AJ165,MAIN!$B$14:$B$115,0),MATCH($D$3,MAIN!$CZ$13:$DJ$13,0)) -> 82748326.37 | AL165: =INDEX(MAIN!$DK$14:$DU$115,MATCH($AJ165,MAIN!$B$14:$B$115,0),MATCH($D$3,MAIN!$DK$13:$DU$13,0)) -> 0.998205606
AJ166: 2027-06-01 | AK166: =INDEX(MAIN!$CZ$14:$DJ$115,MATCH($AJ166,MAIN!$B$14:$B$115,0),MATCH($D$3,MAIN!$CZ$13:$DJ$13,0)) -> 82830369.71 | AL166: =INDEX(MAIN!$DK$14:$DU$115,MATCH($AJ166,MAIN!$B$14:$B$115,0),MATCH($D$3,MAIN!$DK$13:$DU$13,0)) -> 0.9982060142

Sheet MAIN
M1: Disenroll | P1: Uniform | Q1: renewal cnt | R1: Renewals Report | S1: custom lookup | T1: Custom | BT1: =I22 -> CHIP | BU1: =L35 -> 0.4269991692 | BV1: =M35 -> 0.07116652819 | BW1: =N35 -> 0.01329675325 | BX1: =O35 -> 0 | BY1: =P35 -> 0 | BZ1: =Q35 -> 0 | CA1: =R35 -> 0 | CB1: =S35 -> 0 | CC1: =T35 -> 0 | CZ1: =INDEX(INPUTS!$B$21:$B$29,MATCH(CZ$13,INPUTS!$H$21:$H$29,0)) -> Population 1 | DA1: =INDEX(INPUTS!$B$21:$B$29,MATCH(DA$13,INPUTS!$H$21:$H$29,0)) -> Population 2 | DB1: =INDEX(INPUTS!$B$21:$B$29,MATCH(DB$13,INPUTS!$H$21:$H$29,0)) -> Population 3 | DC1: =INDEX(INPUTS!$B$21:$B$29,MATCH(DC$13,INPUTS!$H$21:$H$29,0)) -> Population 4 | DD1: =INDEX(INPUTS!$B$21:$B$29,MATCH(DD$13,INPUTS!$H$21:$H$29,0)) -> Population 5 | DE1: =INDEX(INPUTS!$B$21:$B$29,MATCH(DE$13,INPUTS!$H$21:$H$29,0)) -> Population 6 | DF1: =INDEX(INPUTS!$B$21:$B$29,MATCH(DF$13,INPUTS!$H$21:$H$29,0)) -> Population 7 | DG1: =INDEX(INPUTS!$B$21:$B$29,MATCH(DG$13,INPUTS!$H$21:$H$29,0)) -> Population 8 | DH1: =INDEX(INPUTS!$B$21:$B$29,MATCH(DH$13,INPUTS!$H$21:$H$29,0)) -> Population 9 | DK1: =INDEX(INPUTS!$B$21:$B$29,MATCH(DK$13,INPUTS!$H$21:$H$29,0)) -> Population 1 | DL1: =INDEX(INPUTS!$B$21:$B$29,MATCH(DL$13,INPUTS!$H$21:$H$29,0)) -> Population 2 | DM1: =INDEX(INPUTS!$B$21:$B$29,MATCH(DM$13,INPUTS!$H$21:$H$29,0)) -> Population 3 | DN1: =INDEX(INPUTS!$B$21:$B$29,MATCH(DN$13,INPUTS!$H$21:$H$29,0)) -> Population 4 | DO1: =INDEX(INPUTS!$B$21:$B$29,MATCH(DO$13,INPUTS!$H$21:$H$29,0)) -> Population 5 | DP1: =INDEX(INPUTS!$B$21:$B$29,MATCH(DP$13,INPUTS!$H$21:$H$29,0)) -> Population 6 | DQ1: =INDEX(INPUTS!$B$21:$B$29,MATCH(DQ$13,INPUTS!$H$21:$H$29,0)) -> Population 7 | DR1: =INDEX(INPUTS!$B$21:$B$29,MATCH(DR$13,INPUTS!$H$21:$H$29,0)) -> Population 8 | DS1: =INDEX(INPUTS!$B$21:$B$29,MATCH(DS$13,INPUTS!$H$21:$H$29,0)) -> Population 9
M2: 1 | P2: =IF($M2>$G$5,0,1/$G$5) -> 0.06666666667 | Q2: =IFERROR(INDEX(Renewals!$C$3:$N$29,MATCH($B$6,Renewals!$B$3:$B$29,0),M2),0) -> 70063 | R2: =IFERROR(Q2/SUMIFS(Q$2:Q$16,M$2:M$16,"<="&$G$5),P2) -> 0.1358773859 | S2: =SUMIFS(INPUTS!AA$3:AA$17,INPUTS!Z$3:Z$17,M2) -> 0.01939436778 | T2: =IF($M2>$G$5,0,IFERROR(S2/SUMIFS(S$2:S$16,M$2:M$16,"<="&$G$5),P2)) -> 0.01939436778 | BT2: Children | BU2: 0.03187651552 | BV2: 0.5699520975 | BW2: 0.03541835058 | BX2: 0 | BY2: 0 | BZ2: 0 | CA2: 0 | CB2: 0 | CC2: 0
M3: =1+M2 -> 2 | P3: =IF($M3>$G$5,0,1/$G$5) -> 0.06666666667 | Q3: =IFERROR(INDEX(Renewals!$C$3:$N$29,MATCH($B$6,Renewals!$B$3:$B$29,0),M3),0) -> 72605 | R3: =IFERROR(Q3/SUMIFS(Q$2:Q$16,M$2:M$16,"<="&$G$5),P3) -> 0.1408072392 | S3: =SUMIFS(INPUTS!AA$3:AA$17,INPUTS!Z$3:Z$17,M3) -> 0.03603407482 | T3: =IF($M3>$G$5,0,IFERROR(S3/SUMIFS(S$2:S$16,M$2:M$16,"<="&$G$5),P3)) -> 0.03603407482 | BT3: Expansion | BU3: 0 | BV3: 0 | BW3: 0.5111698937 | BX3: 0 | BY3: 0.01140128771 | BZ3: 0.001888053245 | CA3: 0 | CB3: 0 | CC3: 0 | CW3: Per Annum % Change from… | CY3: Proj Mos.
B4: State | F4: Disenroll | G4: Unwinding Mos. | H4: Approach | I4: Break Mos. | J4: ApproachCode | K4: Expansion? | M4: =1+M3 -> 3 | P4: 0.06666666667 | Q4: =IFERROR(INDEX(Renewals!$C$3:$N$29,MATCH($B$6,Renewals!$B$3:$B$29,0),M4),0) -> 72466 | R4: 0.1405376682 | S4: =SUMIFS(INPUTS!AA$3:AA$17,INPUTS!Z$3:Z$17,M4) -> 0.06063036672 | T4: 0.06063036672 | BT4: Adult | BU4: 0 | BV4: 0 | BW4: 0 | BX4: 0.5111698937 | BY4: 0.01140128771 | BZ4: 0.001888053245 | CA4: 0 | CB4: 0 | CC4: 0 | CW4: 2020-02-01 | CX4: =EDATE(F5,-1) -> 2023-03-01 | CY4: =(CX4-CW4)*12/365.25 -> 36.92813142 | CZ4: =IFERROR((SUMIFS(CZ$14:CZ$115,$AB$14:$AB$115,$CX4)/SUMIFS(CZ$14:CZ$115,$AB$14:$AB$115,EDATE($CW4,0)))^(365.25/($CX4-$CW4))-1,"n/a") -> 0.009843805931 | DA4: 0.09972803175 | DB4: 0.120989482 | DC4: 0.1146639806 | DD4: 0.07765646341 | DE4: 0.06537458056 | DF4: n/a | DG4: -0.2693164581 | DH4: n/a | DI4: 0.09883119513 | DJ4: =IFERROR((SUMIFS(DJ$14:DJ$115,$AB$14:$AB$115,$CX4)/SUMIFS(DJ$14:DJ$115,$AB$14:$AB$115,EDATE($CW4,0)))^(365.25/($CX4-$CW4))-1,"n/a") -> 0.09320854312 | DK4: =IFERROR((SUMIFS(DK$14:DK$115,$AB$14:$AB$115,$CX4)/SUMIFS(DK$14:DK$115,$AB$14:$AB$115,EDATE($CW4,0)))^(365.25/($CX4-$CW4))-1,"n/a") -> -0.0006174178287 | DL4: -0.001613992932 | DM4: -0.0084471738 | DN4: -0.01118552842 | DO4: 0 | DP4: 0 | DQ4: 0 | DR4: 0 | DS4: =IFERROR((SUMIFS(DS$14:DS$115,$AB$14:$AB$115,$CX4)/SUMIFS(DS$14:DS$115,$AB$14:$AB$115,EDATE($CW4,0)))^(365.25/($CX4-$CW4))-1,"n/a") -> 0 | DT4: -0.00608296709 | DU4: -0.002874634743 | DV4: -0.0006174178287 | DW4: -0.001613992932 | DX4: -0.0084471738 | DY4: -0.01118552842 | DZ4: 0 | EA4: 0 | EB4: 0 | EC4: 0 | ED4: n/a | EE4: =IFERROR((SUMIFS(EE$14:EE$115,$AB$14:$AB$115,$CX4)/SUMIFS(EE$14:EE$115,$AB$14:$AB$115,EDATE($CW4,0)))^(365.25/($CX4-$CW4))-1,"n/a") -> -0.001337210301 | EF4: =IFERROR((SUMIFS(EF$14:EF$115,$AB$14:$AB$115,$CX4)/SUMIFS(EF$14:EF$115,$AB$14:$AB$115,EDATE($CW4,0)))^(365.25/($CX4-$CW4))-1,"n/a") -> -0.009521809461
B5: =INPUTS!G7 -> * | F5: =INPUTS!G8 -> 2023-04-01 | G5: =INPUTS!G9 -> 15 | H5: =INPUTS!G10 -> Time-Based | I5: =ROUND(MAX(0,INPUTS!G12+CHOOSE(STscen,0,-1,1)*INPUTS!G13),0) -> 6 | J5: =MATCH(H5,Lookups!N3:N5,0) -> 2 | K5: =INDEX('CMS monthly enrollment'!$D:$D,MATCH(1,($B$5='CMS monthly enrollment'!$B:$B)*(DATE(2022,10,1)='CMS monthly enrollment'!$C:$C)*("Y"='CMS monthly enrollment'!$F:$F),0),0) ->  | M5: 4 | P5: 0.06666666667 | Q5: =IFERROR(INDEX(Renewals!$C$3:$N$29,MATCH($B$6,Renewals!$B$3:$B$29,0),M5),0) -> 79072 | R5: 0.1533490809 | S5: =SUMIFS(INPUTS!AA$3:AA$17,INPUTS!Z$3:Z$17,M5) -> 0.07412132744 | T5: 0.07412132744 | AP5: Composite | AQ5: =SUMIFS(INPUTS!$I$21:$I$29,INPUTS!$H$21:$H$29,AQ13) -> 1 | AR5: =SUMIFS(INPUTS!$I$21:$I$29,INPUTS!$H$21:$H$29,AR13) -> 1 | AS5: =SUMIFS(INPUTS!$I$21:$I$29,INPUTS!$H$21:$H$29,AS13) -> 1 | AT5: =SUMIFS(INPUTS!$I$21:$I$29,INPUTS!$H$21:$H$29,AT13) -> 1 | AU5: =SUMIFS(INPUTS!$I$21:$I$29,INPUTS!$H$21:$H$29,AU13) -> 0 | AV5: =SUMIFS(INPUTS!$I$21:$I$29,INPUTS!$H$21:$H$29,AV13) -> 0 | AW5: =SUMIFS(INPUTS!$I$21:$I$29,INPUTS!$H$21:$H$29,AW13) -> 1 | AX5: =SUMIFS(INPUTS!$I$21:$I$29,INPUTS!$H$21:$H$29,AX13) -> 1 | AY5: =SUMIFS(INPUTS!$I$21:$I$29,INPUTS!$H$21:$H$29,AY13) -> 0 | BT5: Aged | BU5: 0 | BV5: 0 | BW5: 0 | BX5: 0 | BY5: 0.2592426187 | BZ5: 0 | CA5: 0 | CB5: 0 | CC5: 0 | CW5: =INPUTS!T3 -> 2020-02-01 | CX5: =INPUTS!T4 -> 2024-07-01 | CY5: =(CX5-CW5)*12/365.25 -> 52.96098563 | CZ5: 0.002279730378 | DA5: 0.02919924173 | DB5: 0.02997344979 | DC5: 0.02559564986 | DD5: 0.04284074908 | DE5: 0.03368876537 | DF5: n/a | DG5: -1 | DH5: n/a | DI5: 0.02555099878 | DJ5: 0.0280996982 | DK5: =IFERROR((SUMIFS(DK$14:DK$115,$AB$14:$AB$115,$CX5)/SUMIFS(DK$14:DK$115,$AB$14:$AB$115,EDATE($CW5,0)))^(365.25/($CX5-$CW5))-1,"n/a") -> 0 | DL5: 0 | DM5: -0.0006528485426 | DN5: 0 | DO5: 0 | DP5: 0 | DQ5: 0 | DR5: 0 | DS5: 0 | DT5: -0.000169205725 | DU5: -7.493160887e-05 | DV5: 0 | DW5: 0 | DX5: -0.0006528485426 | DY5: 0 | DZ5: 0 | EA5: 0 | EB5: 0 | EC5: 0 | ED5: n/a | EE5: =IFERROR((SUMIFS(EE$14:EE$115,$AB$14:$AB$115,$CX5)/SUMIFS(EE$14:EE$115,$AB$14:$AB$115,EDATE($CW5,0)))^(365.25/($CX5-$CW5))-1,"n/a") -> 0.0003508383295 | EF5: =IFERROR((SUMIFS(EF$14:EF$115,$AB$14:$AB$115,$CX5)/SUMIFS(EF$14:EF$115,$AB$14:$AB$115,EDATE($CW5,0)))^(365.25/($CX5-$CW5))-1,"n/a") -> 0.004002814293
B6: =IF(B5="*","*",INDEX(Lookups!B$2:B$52,MATCH(B5,Lookups!A$2:A$52,0),1)) -> * | M6: 5 | P6: 0.06666666667 | Q6: =IFERROR(INDEX(Renewals!$C$3:$N$29,MATCH($B$6,Renewals!$B$3:$B$29,0),M6),0) -> 74705 | R6: 0.1448798954 | S6: =SUMIFS(INPUTS!AA$3:AA$17,INPUTS!Z$3:Z$17,M6) -> 0.08413967902 | T6: 0.08413967902 | BT6: Disabled | BU6: 0 | BV6: 0 | BW6: 0 | BX6: 0 | BY6: 0.01723724752 | BZ6: 0.3792194454 | CA6: 0 | CB6: 0 | CC6: 0 | CW6: 2019-01-01 | CX6: 2025-06-01 | CY6: 76.97741273 | CZ6: 0.002010585924 | DA6: 0.0195856846 | DB6: 0.01805913043 | DC6: 0.02613488659 | DD6: 0.03680478177 | DE6: 0.0208281075 | DF6: n/a | DG6: -1 | DH6: n/a | DI6: 0.01837702004 | DJ6: 0.02034884428 | DK6: -0.0001167396551 | DL6: -0.0003936906473 | DM6: -0.000602005349 | DN6: -0.0006039794181 | DO6: 0 | DP6: 0 | DQ6: 0 | DR6: 0 | DS6: 0 | DT6: -0.0004853025765 | DU6: -0.0002144639473 | DV6: -0.0001167396551 | DW6: -0.0003936906473 | DX6: -0.000602005349 | DY6: -0.0006039794181 | DZ6: 0 | EA6: 0 | EB6: 0 | EC6: 0 | ED6: n/a | EE6: =IFERROR((SUMIFS(EE$14:EE$115,$AB$14:$AB$115,$CX6)/SUMIFS(EE$14:EE$115,$AB$14:$AB$115,EDATE($CW6,0)))^(365.25/($CX$6-$CW$6))-1,"n/a") -> 0.0006174996045 | EF6: =IFERROR((SUMIFS(EF$14:EF$115,$AB$14:$AB$115,$CX6)/SUMIFS(EF$14:EF$115,$AB$14:$AB$115,EDATE($CW6,0)))^(365.25/($CX$6-$CW$6))-1,"n/a") -> 0.003089176635
M7: 6 | P7: 0.06666666667 | Q7: =IFERROR(INDEX(Renewals!$C$3:$N$29,MATCH($B$6,Renewals!$B$3:$B$29,0),M7),0) -> 73697 | R7: 0.1429250205 | S7: =SUMIFS(INPUTS!AA$3:AA$17,INPUTS!Z$3:Z$17,M7) -> 0.0966026616 | T7: 0.0966026616 | AF7: Months | AG7: =COUNTIFS(AG14:AG115,">0")+IF(AF7=$AF7,0,AF7) -> 15 | AH7: =COUNTIFS(AH14:AH115,">0") -> 15 | AI7: =COUNTIFS(AI14:AI115,">0") -> 15 | AJ7: 15 | AK7: 15 | AL7: 15 | AM7: 15 | AN7: 15 | AO7: 0 | BT7: COVID New | BU7: 0 | BV7: 0 | BW7: 0 | BX7: 0 | BY7: 0 | BZ7: 0 | CA7: 0 | CB7: 0 | CC7: 0 | CW7: 2022-10-01 | CX7: 2024-10-01 | CY7: 24.0164271 | CZ7: -0.01310511354 | DA7: -0.06306536306 | DB7: -0.09322223059 | DC7: -0.09343626815 | DD7: -0.009302245907 | DE7: -0.01246550358 | DF7: -1 | DG7: -1 | DH7: n/a | DI7: -0.07316954336 | DJ7: -0.06090114807 | DK7: 0.001916726179 | DL7: 0.001588494737 | DM7: 0.01210893992 | DN7: 0.01755304149 | DO7: 0 | DP7: 0 | DQ7: 0 | DR7: 0 | DS7: 0 | DT7: 0.00892703905 | DU7: 0.004192056528 | DV7: 0.001916726179 | DW7: 0.001588494737 | DX7: 0.01210893992 | DY7: 0.01755304149 | DZ7: 0 | EA7: 0 | EB7: 0 | EC7: 0 | ED7: n/a | EE7: =IFERROR(SUMIFS(EE$14:EE$91,$AB$14:$AB$91,$CW7)/SUMIFS(EE$14:EE$91,$AB$14:$AB$91,EDATE($CW7,-12))-1,"n/a") -> 0.001678536852 | EF7: 0.004264644208
M8: 7 | P8: 0.06666666667 | Q8: =IFERROR(INDEX(Renewals!$C$3:$N$29,MATCH($B$6,Renewals!$B$3:$B$29,0),M8),0) -> 36601 | R8: 0.07098251861 | S8: =SUMIFS(INPUTS!AA$3:AA$17,INPUTS!Z$3:Z$17,M8) -> 0.09605593362 | T8: 0.09605593362 | AF8: Start Date | AG8: =F5 -> 2023-04-01 | AH8: =EDATE(AG8,IF(AG7=$AF7,0,AG7-COUNTIFS(AH14:AH115,">0",AG14:AG115,">0"))) -> 2023-04-01 | AI8: =EDATE(AH8,IF(AH7=$AF7,0,AH7-COUNTIFS(AI14:AI115,">0",AH14:AH115,">0"))) -> 2023-04-01 | AJ8: =EDATE(AI8,IF(AI7=$AF7,0,AI7-COUNTIFS(AJ14:AJ115,">0",AI14:AI115,">0"))) -> 2023-04-01 | AK8: 2023-04-01 | AL8: 2023-04-01 | AM8: 2023-04-01 | AN8: 2023-04-01 | AO8: 2024-07-01 | BT8: Unknown | BU8: 0 | BV8: 0 | BW8: 0 | BX8: 0 | BY8: 0 | BZ8: 0 | CA8: 0 | CB8: 0 | CC8: 0 | CW8: 2021-10-01 | CX8: 2022-10-01 | CY8: 11.99178645 | CZ8: -0.01463837983 | DA8: 0.08426129805 | DB8: 0.06738752651 | DC8: 0.07955459295 | DD8: 0.07906395736 | DE8: 0.08052163129 | DF8: 0.07900264401 | DG8: 0.1005416473 | DH8: n/a | DI8: 0.06877618704 | DJ8: 0.07089062199 | DK8: 0.0008074511624 | DL8: -7.697265543e-05 | DM8: -0.0005578336469 | DN8: -0.001385141004 | DO8: 0 | DP8: 0 | DQ8: 0 | DR8: 0 | DS8: 0 | DT8: -0.0005481984234 | DU8: -0.0002242379752 | DV8: 0.0008074511624 | DW8: -7.697265543e-05 | DX8: -0.0005578336469 | DY8: -0.001385141004 | DZ8: 0 | EA8: 0 | EB8: 0 | EC8: 0 | ED8: n/a | EE8: n/a | EF8: n/a
M9: 8 | P9: 0.06666666667 | Q9: =IFERROR(INDEX(Renewals!$C$3:$N$29,MATCH($B$6,Renewals!$B$3:$B$29,0),M9),0) -> 36425 | R9: 0.07064119123 | S9: =SUMIFS(INPUTS!AA$3:AA$17,INPUTS!Z$3:Z$17,M9) -> 0.09052196272 | T9: 0.09052196272 | AF9: Disenrolled | AG9: =SUMIFS($V$22:$V$30,$I$22:$I$30,AG$13) -> 197663.9971 | AH9: 2421.997071 | AI9: 5939025.899 | AJ9: 7915797.809 | AK9: 4286027.418 | AL9: 630719.1036 | AM9: 518499.2136 | AN9: 450016.2324 | AO9: 0 | BU9: 0 | BV9: 0 | BW9: 0 | BX9: 0 | BY9: 0 | BZ9: 0 | CA9: 0 | CB9: 0 | CC9: 0 | CW9: 2022-10-01 | CX9: 2023-10-01 | CY9: 11.99178645 | CZ9: -0.007878641136 | DA9: -0.06482264224 | DB9: -0.09481282586 | DC9: -0.08628539455 | DD9: -0.001329329255 | DE9: -0.0009016856444 | DF9: -0.3584688896 | DG9: -0.3501828012 | DH9: n/a | DI9: -0.07231131295 | DJ9: -0.05861606401 | DK9: -0.0002398731449 | DL9: -0.0003271490378 | DM9: 0.001802638139 | DN9: 0.002538299321 | DO9: 0 | DP9: 0 | DQ9: 0 | DR9: -0.4002098916 | DS9: 0 | DT9: 0.001191911513 | DU9: 0.0008528320785 | DV9: -0.0002398731449 | DW9: -0.0003271490378 | DX9: 0.001802638139 | DY9: 0.002538299321 | DZ9: 0 | EA9: 0 | EB9: 0 | EC9: -0.4002098916 | ED9: n/a | EE9: 0.001678536852 | EF9: 0.004264644208 | EG9: Acuity | EH9: Acuity | EI9: Acuity | EJ9: Acuity | EK9: Acuity | EL9: Acuity | EM9: Acuity | EN9: Acuity | EO9: Acuity | EP9: Acuity | EQ9: Acuity | ER9: Acuity | ES9: Acuity | ET9: Acuity | EU9: Acuity | EV9: Acuity | EW9: Acuity | EX9: Acuity | EY9: Acuity | EZ9: Acuity | FA9: Acuity | FB9: Acuity | FC9: Acuity | FD9: Acuity | FE9: Acuity | FF9: Acuity | FG9: Acuity | FH9: Acuity | FI9: Acuity | FJ9: Acuity | FK9: Acuity | FL9: Acuity | FM9: Acuity | FN9: Members | FO9: Members | FP9: Members | FQ9: Members | FR9: Members | FS9: Members | FT9: Members | FU9: Members | FV9: Members | FW9: Members | FX9: Members | FY9: Members | FZ9: Members | GA9: Members | GB9: Members | GC9: Members | GD9: Members | GE9: Members | GF9: Members | GG9: Members | GH9: Members | GI9: Members | GJ9: Members | GK9: Members | GL9: Members | GM9: Members | GN9: Members | GO9: Members | GP9: Members | GQ9: Members | GR9: Members | GS9: Members | GT9: Members
M10: 9 | P10: 0.06666666667 | Q10: =IFERROR(INDEX(Renewals!$C$3:$N$29,MATCH($B$6,Renewals!$B$3:$B$29,0),M10),0) -> 0 | R10: 0 | S10: =SUMIFS(INPUTS!AA$3:AA$17,INPUTS!Z$3:Z$17,M10) -> 0.07630858477 | T10: 0.07630858477 | CW10: 2020-10-01 | CX10: 2021-10-01 | CY10: 11.99178645 | CZ10: 0.02727819211 | DA10: 0.09628655608 | DB10: 0.1102500273 | DC10: 0.1068576185 | DD10: 0.08591008744 | DE10: 0.07649930045 | DF10: 0.6145457963 | DG10: -0.03883472259 | DH10: n/a | DI10: 0.09531691324 | DJ10: 0.09250454905 | DK10: 0.001806366904 | DL10: -0.001378037881 | DM10: -0.01564649737 | DN10: -0.0155604271 | DO10: 0 | DP10: 0 | DQ10: 0 | DR10: 0 | DS10: 0 | DT10: -0.008967656691 | DU10: -0.004279571342 | DV10: 0.001806366904 | DW10: -0.001378037881 | DX10: -0.01564649737 | DY10: -0.0155604271 | DZ10: 0 | EA10: 0 | EB10: 0 | EC10: 0 | ED10: n/a | EE10: n/a | EF10: n/a | EG10: Midpoint | EH10: Midpoint | EI10: Midpoint | EJ10: Midpoint | EK10: Midpoint | EL10: Midpoint | EM10: Midpoint | EN10: Midpoint | EO10: Midpoint | EP10: Midpoint | EQ10: Midpoint | ER10: Lower | ES10: Lower | ET10: Lower | EU10: Lower | EV10: Lower | EW10: Lower | EX10: Lower | EY10: Lower | EZ10: Lower | FA10: Lower | FB10: Lower | FC10: Upper | FD10: Upper | FE10: Upper | FF10: Upper | FG10: Upper | FH10: Upper | FI10: Upper | FJ10: Upper | FK10: Upper | FL10: Upper | FM10: Upper | FN10: Midpoint | FO10: Midpoint | FP10: Midpoint | FQ10: Midpoint | FR10: Midpoint | FS10: Midpoint | FT10: Midpoint | FU10: Midpoint | FV10: Midpoint | FW10: Midpoint | FX10: Midpoint | FY10: Lower | FZ10: Lower | GA10: Lower | GB10: Lower | GC10: Lower | GD10: Lower | GE10: Lower | GF10: Lower | GG10: Lower | GH10: Lower | GI10: Lower | GJ10: Upper | GK10: Upper | GL10: Upper | GM10: Upper | GN10: Upper | GO10: Upper | GP10: Upper | GQ10: Upper | GR10: Upper | GS10: Upper | GT10: Upper
D11: PHE-Unwinding | E11: =MAX(G5,INPUTS!G11) -> 15 | M11: 10 | P11: 0.06666666667 | Q11: =IFERROR(INDEX(Renewals!$C$3:$N$29,MATCH($B$6,Renewals!$B$3:$B$29,0),M11),0) -> 0 | R11: 0 | S11: =SUMIFS(INPUTS!AA$3:AA$17,INPUTS!Z$3:Z$17,M11) -> 0.07603140936 | T11: 0.07603140936 | BU11: =INDEX(INPUTS!$B$21:$B$29,MATCH(BU$13,INPUTS!$H$21:$H$29,0)) -> Population 1 | BV11: =INDEX(INPUTS!$B$21:$B$29,MATCH(BV$13,INPUTS!$H$21:$H$29,0)) -> Population 2 | BW11: =INDEX(INPUTS!$B$21:$B$29,MATCH(BW$13,INPUTS!$H$21:$H$29,0)) -> Population 3 | BX11: =INDEX(INPUTS!$B$21:$B$29,MATCH(BX$13,INPUTS!$H$21:$H$29,0)) -> Population 4 | BY11: =INDEX(INPUTS!$B$21:$B$29,MATCH(BY$13,INPUTS!$H$21:$H$29,0)) -> Population 5 | BZ11: =INDEX(INPUTS!$B$21:$B$29,MATCH(BZ$13,INPUTS!$H$21:$H$29,0)) -> Population 6 | CA11: =INDEX(INPUTS!$B$21:$B$29,MATCH(CA$13,INPUTS!$H$21:$H$29,0)) -> Population 7 | CB11: =INDEX(INPUTS!$B$21:$B$29,MATCH(CB$13,INPUTS!$H$21:$H$29,0)) -> Population 8 | CC11: =INDEX(INPUTS!$B$21:$B$29,MATCH(CC$13,INPUTS!$H$21:$H$29,0)) -> Population 9 | CF11: =INDEX(INPUTS!$B$21:$B$29,MATCH(CF$13,INPUTS!$H$21:$H$29,0)) -> Population 1 | CG11: =INDEX(INPUTS!$B$21:$B$29,MATCH(CG$13,INPUTS!$H$21:$H$29,0)) -> Population 2 | CH11: =INDEX(INPUTS!$B$21:$B$29,MATCH(CH$13,INPUTS!$H$21:$H$29,0)) -> Population 3 | CI11: =INDEX(INPUTS!$B$21:$B$29,MATCH(CI$13,INPUTS!$H$21:$H$29,0)) -> Population 4 | CJ11: =INDEX(INPUTS!$B$21:$B$29,MATCH(CJ$13,INPUTS!$H$21:$H$29,0)) -> Population 5 | CK11: =INDEX(INPUTS!$B$21:$B$29,MATCH(CK$13,INPUTS!$H$21:$H$29,0)) -> Population 6 | CL11: =INDEX(INPUTS!$B$21:$B$29,MATCH(CL$13,INPUTS!$H$21:$H$29,0)) -> Population 7 | CM11: =INDEX(INPUTS!$B$21:$B$29,MATCH(CM$13,INPUTS!$H$21:$H$29,0)) -> Population 8 | CN11: =INDEX(INPUTS!$B$21:$B$29,MATCH(CN$13,INPUTS!$H$21:$H$29,0)) -> Population 9 | EG11: 1 | EH11: =1+EG11 -> 2 | EI11: 3 | EJ11: 4 | EK11: 5 | EL11: 6 | EM11: 7 | EN11: 8 | EO11: 9 | EP11: 10 | EQ11: 11 | ER11: =EG11 -> 1 | ES11: =EH11 -> 2 | ET11: 3 | EU11: 4 | EV11: 5 | EW11: 6 | EX11: 7 | EY11: 8 | EZ11: 9 | FA11: 10 | FB11: 11 | FC11: =ER11 -> 1 | FD11: =ES11 -> 2 | FE11: =ET11 -> 3 | FF11: =EU11 -> 4 | FG11: =EV11 -> 5 | FH11: =EW11 -> 6 | FI11: =EX11 -> 7 | FJ11: =EY11 -> 8 | FK11: =EZ11 -> 9 | FL11: =FA11 -> 10 | FM11: =FB11 -> 11 | FN11: =EG11 -> 1 | FO11: 2 | FP11: 3 | FQ11: 4 | FR11: 5 | FS11: 6 | FT11: 7 | FU11: 8 | FV11: 9 | FW11: 10 | FX11: 11 | FY11: 1 | FZ11: 2 | GA11: 3 | GB11: 4 | GC11: 5 | GD11: 6 | GE11: 7 | GF11: 8 | GG11: 9 | GH11: 10 | GI11: 11 | GJ11: =FY11 -> 1 | GK11: =FZ11 -> 2 | GL11: 3 | GM11: 4 | GN11: 5 | GO11: 6 | GP11: 7 | GQ11: 8 | GR11: 9 | GS11: 10 | GT11: 11 | GV11: For Sensitivity Testing
M12: 11 | P12: 0.06666666667 | Q12: =IFERROR(INDEX(Renewals!$C$3:$N$29,MATCH($B$6,Renewals!$B$3:$B$29,0),M12),0) -> 0 | R12: 0 | S12: =SUMIFS(INPUTS!AA$3:AA$17,INPUTS!Z$3:Z$17,M12) -> 0.07517208142 | T12: 0.07517208142 | AC12: Unwinding Criteria | AG12: Disenrollment Distribution (Cascading Setup) | AQ12: Unwinding Disenrollment Distribution | BA12: Stayers Member Count | BK12: Pending Leavers Member Count | BU12: Joiners Member Count | CF12: Leavers Member Count | CQ12: Historical Member Count | CZ12: Total Member Count | DK12: Acuity Mix | DV12: Total Average PMPM | EG12: Acuity (Midpoint) | ER12: Acuity (Lower Bound) | FC12: Acuity (Upper Bound) | FN12: Membership (Midpoint) | FY12: Membership (Lower Bound) | GJ12: Membership (Upper Bound) | GW12: =INPUTS!$Q$3 -> Expansion | HF12: Acuity 2-Year Change
B13: Month | M13: 12 | P13: 0.06666666667 | Q13: =IFERROR(INDEX(Renewals!$C$3:$N$29,MATCH($B$6,Renewals!$B$3:$B$29,0),M13),0) -> 0 | R13: 0 | S13: =SUMIFS(INPUTS!AA$3:AA$17,INPUTS!Z$3:Z$17,M13) -> 0.07906006182 | T13: 0.07906006182 | AB13: Month | AC13: Cont Cov? | AD13: Window | AE13: Phase | AF13: Disenrolled | AG13: =INDEX($I$22:$I$30,MATCH(COLUMN()-COLUMN($AG11)+1,$Y$22:$Y$30,0),1) -> COVID New | AH13: =INDEX($I$22:$I$30,MATCH(COLUMN()-COLUMN($AG11)+1,$Y$22:$Y$30,0),1) -> Unknown | AI13: Expansion | AJ13: Children | AK13: Adult | AL13: Disabled | AM13: Aged | AN13: CHIP | AP13: All Populations | AQ13: =OFFSET($I$21,COLUMN(AQ11)-COLUMN($AQ11)+1,0,1,1) -> CHIP | AR13: =OFFSET($I$21,COLUMN(AR11)-COLUMN($AQ11)+1,0,1,1) -> Children | AS13: Expansion | AT13: Adult | AU13: Aged | AV13: Disabled | AW13: COVID New | AX13: Unknown | AZ13: All Populations | BA13: =AQ13 -> CHIP | BB13: =AR13 -> Children | BC13: Expansion | BD13: Adult | BE13: Aged | BF13: Disabled | BG13: COVID New | BH13: Unknown | BJ13: All Populations | BK13: =BA13 -> CHIP | BL13: Children | BM13: Expansion | BN13: Adult | BO13: Aged | BP13: Disabled | BQ13: COVID New | BR13: Unknown | BT13: All Populations | BU13: =BK13 -> CHIP | BV13: Children | BW13: Expansion | BX13: Adult | BY13: Aged | BZ13: Disabled | CA13: COVID New | CB13: Unknown | CD13: =INPUTS!$H$30 -> Non-ABD | CE13: All Populations | CF13: =BU13 -> CHIP | CG13: =BV13 -> Children | CH13: Expansion | CI13: Adult | CJ13: Aged | CK13: Disabled | CL13: COVID New | CM13: =CB13 -> Unknown | CO13: =INPUTS!H30 -> Non-ABD | CP13: All Populations | CQ13: =BU13 -> CHIP | CR13: =BV13 -> Children | CS13: Expansion | CT13: Adult | CU13: Aged | CV13: Disabled | CW13: COVID New | CX13: Unknown | CZ13: =BK13 -> CHIP | DA13: Children | DB13: Expansion | DC13: Adult | DD13: Aged | DE13: Disabled | DF13: COVID New | DG13: Unknown | DI13: =INPUTS!H30 -> Non-ABD | DJ13: All Populations | DK13: =CZ13 -> CHIP | DL13: =DA13 -> Children | DM13: Expansion | DN13: Adult | DO13: Aged | DP13: Disabled | DQ13: COVID New | DR13: Unknown | DT13: Non-ABD | DU13: All Populations | DV13: =CZ13 -> CHIP | DW13: Children | DX13: Expansion | DY13: Adult | DZ13: Aged | EA13: Disabled | EB13: COVID New | EC13: Unknown | EE13: =INPUTS!H30 -> Non-ABD | EF13: All Populations | EG13: =DV13 -> CHIP | EH13: Children | EI13: Expansion | EJ13: Adult | EK13: Aged | EL13: Disabled | EM13: COVID New | EN13: Unknown | EP13: =INPUTS!H30 -> Non-ABD | EQ13: All Populations | ER13: =EG13 -> CHIP | ES13: =EH13 -> Children | ET13: Expansion | EU13: Adult | EV13: Aged | EW13: Disabled | EX13: COVID New | EY13: Unknown | FA13: Non-ABD | FB13: All Populations | FC13: =ER13 -> CHIP | FD13: =ES13 -> Children | FE13: =ET13 -> Expansion | FF13: =EU13 -> Adult | FG13: =EV13 -> Aged | FH13: =EW13 -> Disabled | FI13: =EX13 -> COVID New | FJ13: =EY13 -> Unknown | FK13: =EZ13 ->  | FL13: =FA13 -> Non-ABD | FM13: =FB13 -> All Populations | FN13: =EG13 -> CHIP | FO13: Children | FP13: Expansion | FQ13: Adult | FR13: Aged | FS13: Disabled | FT13: COVID New | FU13: Unknown | FW13: Non-ABD | FX13: All Populations | FY13: CHIP | FZ13: Children | GA13: Expansion | GB13: Adult | GC13: Aged | GD13: Disabled | GE13: COVID New | GF13: Unknown | GH13: Non-ABD | GI13: All Populations | GJ13: CHIP | GK13: Children | GL13: Expansion | GM13: Adult | GN13: Aged | GO13: Disabled | GP13: COVID New | GQ13: Unknown | GS13: Non-ABD | GT13: All Populations | GV13: Acuity | GW13: Enrollment | HF13: =GH13 -> Non-ABD | HG13: =GI13 -> All Populations
B14: =AB14 -> 2027-06-01 | M14: 13 | P14: 0.06666666667 | Q14: =IFERROR(INDEX(Renewals!$C$3:$N$29,MATCH($B$6,Renewals!$B$3:$B$29,0),M14),0) -> 0 | R14: 0 | S14: =SUMIFS(INPUTS!AA$3:AA$17,INPUTS!Z$3:Z$17,M14) -> 0.0615264308 | T14: 0.0615264308 | AB14: 2027-06-01 | AC14: =IF(OR($AB14>=$F$5,$AB14<=DATE(2020,2,1)),0,1) -> 0 | AD14: =IF(AB14<F$5,0,IF(COUNTIFS(AC14:AC$101,0)<=$G$5,1,0)) -> 0 | AE14: =IF($B14>=EDATE($F$5,$G$5),2,SUMIFS($AD:$AD,$AB:$AB,$B14))+IF(B14<DATE(2020,2,28),0,1)+IF($B14>EDATE($F$5,$G$5+23),2,IF($B14>=EDATE($F$5,$G$5+12),1,0)) -> 5 | AF14: =AD14*V$19*IF(AD14=1,INDEX($O$2:$T$16,MATCH(SUM(AD14:AD$115),$M$2:$M$16,0),MATCH(INPUTS!$G$14,$O$1:$T$1,0)),0) -> 0 | AG14: =IF($J$5<>2,MIN(2*$AF14-SUM($AF14:AF14),AG$9-SUM(AG15:AG$115)),$AF14*AG$9/SUM($AG$9:$AO$9)) -> 0 | AH14: =IF($J$5<>2,MIN(2*$AF14-SUM($AF14:AG14),AH$9-SUM(AH15:AH$115)),$AF14*AH$9/SUM($AG$9:$AO$9)) -> 0 | AI14: =IF($J$5<>2,MIN(2*$AF14-SUM($AF14:AH14),AI$9-SUM(AI15:AI$115)),$AF14*AI$9/SUM($AG$9:$AO$9)) -> 0 | AJ14: =IF($J$5<>2,MIN(2*$AF14-SUM($AF14:AI14),AJ$9-SUM(AJ15:AJ$115)),$AF14*AJ$9/SUM($AG$9:$AO$9)) -> 0 | AK14: =IF($J$5<>2,MIN(2*$AF14-SUM($AF14:AJ14),AK$9-SUM(AK15:AK$115)),$AF14*AK$9/SUM($AG$9:$AO$9)) -> 0 | AL14: =IF($J$5<>2,MIN(2*$AF14-SUM($AF14:AK14),AL$9-SUM(AL15:AL$115)),$AF14*AL$9/SUM($AG$9:$AO$9)) -> 0 | AM14: =IF($J$5<>2,MIN(2*$AF14-SUM($AF14:AL14),AM$9-SUM(AM15:AM$115)),$AF14*AM$9/SUM($AG$9:$AO$9)) -> 0 | AN14: =IF($J$5<>2,MIN(2*$AF14-SUM($AF14:AM14),AN$9-SUM(AN15:AN$115)),$AF14*AN$9/SUM($AG$9:$AO$9)) -> 0 | AO14: =IF($J$5<>2,MIN(2*$AF14-SUM($AF14:AN14),AO$9-SUM(AO15:AO$115)),$AF14*AO$9/SUM($AG$9:$AO$9)) -> 0 | AP14: =SUM(AG14:AO14) -> 0 | AQ14: =SUMIFS($AG14:$AO14,$AG$13:$AO$13,AQ$13) -> 0 | AR14: 0 | AS14: 0 | AT14: 0 | AU14: 0 | AV14: 0 | AW14: 0 | AX14: 0 | AY14: 0 | AZ14: =SUM(AQ14:AY14) -> 0 | BA14: =SUMIFS($U$22:$U$30,$I$22:$I$30,BA$13) -> 6609061.923 | BB14: =SUMIFS($U$22:$U$30,$I$22:$I$30,BB$13) -> 25768448.19 | BC14: =SUMIFS($U$22:$U$30,$I$22:$I$30,BC$13) -> 13857727.1 | BD14: 10557357.58 | BE14: 7614821.784 | BF14: 9262913.894 | BG14: 0 | BH14: 0 | BI14: 0 | BJ14: =SUM(BA14:BI14) -> 73670330.47 | BK14: =SUMIFS($V$22:$V$30,$I$22:$I$30,BK$13)-SUM(AQ14:AQ$65) -> 0 | BL14: =SUMIFS($V$22:$V$30,$I$22:$I$30,BL$13)-SUM(AR14:AR$65) -> 0 | BM14: =SUMIFS($V$22:$V$30,$I$22:$I$30,BM$13)-SUM(AS14:AS$65) -> 0 | BN14: =SUMIFS($V$22:$V$30,$I$22:$I$30,BN$13)-SUM(AT14:AT$65) -> 0 | BO14: =SUMIFS($V$22:$V$30,$I$22:$I$30,BO$13)-SUM(AU14:AU$65) -> 0 | BP14: =SUMIFS($V$22:$V$30,$I$22:$I$30,BP$13)-SUM(AV14:AV$65) -> 0 | BQ14: =SUMIFS($V$22:$V$30,$I$22:$I$30,BQ$13)-SUM(AW14:AW$65) -> 0 | BR14: =SUMIFS($V$22:$V$30,$I$22:$I$30,BR$13)-SUM(AX14:AX$65) -> 0 | BS14: =SUMIFS($V$22:$V$30,$I$22:$I$30,BS$13)-SUM(AY14:AY$65) -> 0 | BT14: =SUM(BK14:BS14) -> 0 | BU14: =SUMIFS(INDIRECT("'"&BU$11&"'!r:r"),INDIRECT("'"&BU$11&"'!b:b"),$B14,INDIRECT("'"&BU$11&"'!a:a"),"Joiners") -> 220514.5033 | BV14: =SUMIFS(INDIRECT("'"&BV$11&"'!r:r"),INDIRECT("'"&BV$11&"'!b:b"),$B14,INDIRECT("'"&BV$11&"'!a:a"),"Joiners") -> 498931.5779 | BW14: 382027.7881 | BX14: 269151.5501 | BY14: 39112.36605 | BZ14: 70546.00984 | CA14: 0 | CB14: 0 | CC14: 0 | CD14: =SUMPRODUCT(BU14:CC14,$AQ$5:$AY$5) -> 1370625.419 | CE14: =SUM(BU14:CC14) -> 1480283.795 | CF14: =SUMIFS(INDIRECT("'"&CF$11&"'!D:D"),INDIRECT("'"&CF$11&"'!b:b"),$B14,INDIRECT("'"&CF$11&"'!a:a"),"Leavers") -> 0 | CG14: =SUMIFS(INDIRECT("'"&CG$11&"'!D:D"),INDIRECT("'"&CG$11&"'!b:b"),$B14,INDIRECT("'"&CG$11&"'!a:a"),"Leavers") -> 0 | CH14: 0 | CI14: 0 | CJ14: 0 | CK14: 0 | CL14: 0 | CM14: 0 | CN14: 0 | CO14: =SUMPRODUCT(CF14:CN14,$AQ$5:$AY$5) -> 0 | CP14: =SUM(CF14:CN14) -> 0 | CQ14: =IF($AB14<EDATE($F$5,-1), IF(INPUTS!$C$30="Yes", SUMIFS(OVERRIDE!D:D,OVERRIDE!$B:$B,$AB14), SUMIFS(CohortBreakout!M:M,CohortBreakout!$B:$B,$AB14,CohortBreakout!$A:$A,$B$5)), 0) -> 0 | CR14: =IF($AB14<EDATE($F$5,-1), IF(INPUTS!$C$30="Yes", SUMIFS(OVERRIDE!E:E,OVERRIDE!$B:$B,$AB14), SUMIFS(CohortBreakout!N:N,CohortBreakout!$B:$B,$AB14,CohortBreakout!$A:$A,$B$5)), 0) -> 0 | CS14: =IF($AB14<EDATE($F$5,-1), IF(INPUTS!$C$30="Yes", SUMIFS(OVERRIDE!F:F,OVERRIDE!$B:$B,$AB14), SUMIFS(CohortBreakout!O:O,CohortBreakout!$B:$B,$AB14,CohortBreakout!$A:$A,$B$5)), 0) -> 0 | CT14: =IF($AB14<EDATE($F$5,-1), IF(INPUTS!$C$30="Yes", SUMIFS(OVERRIDE!G:G,OVERRIDE!$B:$B,$AB14), SUMIFS(CohortBreakout!P:P,CohortBreakout!$B:$B,$AB14,CohortBreakout!$A:$A,$B$5)), 0) -> 0 | CU14: =IF($AB14<EDATE($F$5,-1), IF(INPUTS!$C$30="Yes", SUMIFS(OVERRIDE!H:H,OVERRIDE!$B:$B,$AB14), SUMIFS(CohortBreakout!Q:Q,CohortBreakout!$B:$B,$AB14,CohortBreakout!$A:$A,$B$5)), 0) -> 0 | CV14: =IF($AB14<EDATE($F$5,-1), IF(INPUTS!$C$30="Yes", SUMIFS(OVERRIDE!I:I,OVERRIDE!$B:$B,$AB14), SUMIFS(CohortBreakout!R:R,CohortBreakout!$B:$B,$AB14,CohortBreakout!$A:$A,$B$5)), 0) -> 0 | CW14: =IF($AB14<EDATE($F$5,-1), IF(INPUTS!$C$30="Yes", SUMIFS(OVERRIDE!J:J,OVERRIDE!$B:$B,$AB14), SUMIFS(CohortBreakout!S:S,CohortBreakout!$B:$B,$AB14,CohortBreakout!$A:$A,$B$5)), 0) -> 0 | CX14: =IF($AB14<EDATE($F$5,-1), IF(INPUTS!$C$30="Yes", SUMIFS(OVERRIDE!K:K,OVERRIDE!$B:$B,$AB14), SUMIFS(CohortBreakout!T:T,CohortBreakout!$B:$B,$AB14,CohortBreakout!$A:$A,$B$5)), 0) -> 0 | CY14: =IF($AB14<EDATE($F$5,-1), IF(INPUTS!$C$30="Yes", SUMIFS(OVERRIDE!L:L,OVERRIDE!$B:$B,$AB14), SUMIFS(CohortBreakout!U:U,CohortBreakout!$B:$B,$AB14,CohortBreakout!$A:$A,$B$5)), 0) -> 0 | CZ14: =SUMIFS(INDIRECT("'"&CZ$1&"'!d:d"),INDIRECT("'"&CZ$1&"'!b:b"),$B14,INDIRECT("'"&CZ$1&"'!a:a"),"Total Members") -> 7183739.391 | DA14: =SUMIFS(INDIRECT("'"&DA$1&"'!d:d"),INDIRECT("'"&DA$1&"'!b:b"),$B14,INDIRECT("'"&DA$1&"'!a:a"),"Total Members") -> 30219062.34 | DB14: 16098229.03 | DC14: 11713891.87 | DD14: 8019888.196 | DE14: 9595558.888 | DF14: 0 | DG14: 0 | DH14: 0 | DI14: =SUMPRODUCT(CZ14:DH14,$AQ$5:$AY$5) -> 65214922.63 | DJ14: =SUM(CZ14:DH14) -> 82830369.71 | DK14: =SUMIFS(INDIRECT("'"&DK$1&"'!h:h"),INDIRECT("'"&DK$1&"'!B:B"),$AB14) -> 0.9963795712 | DL14: =SUMIFS(INDIRECT("'"&DL$1&"'!h:h"),INDIRECT("'"&DL$1&"'!B:B"),$AB14) -> 0.9973802837 | DM14: 0.9953971695 | DN14: 0.994261112 | DO14: 1 | DP14: 1 | DQ14: 1 | DR14: 1 | DS14: 1 | DT14: =SUMPRODUCT(DK14:DS14,$AQ$5:$AY$5,DV14:ED14,CZ14:DH14)/SUMPRODUCT($AQ$5:$AY$5,DV14:ED14,CZ14:DH14) -> 0.9959450713 | DU14: =SUMPRODUCT($CZ14:$DH14,DK14:DS14,DV14:ED14)/SUMPRODUCT($CZ14:$DH14,DV14:ED14) -> 0.9982060142 | DV14: =DV$104*DK14/AVERAGE(DK$104:DK$115) -> 13480.7499 | DW14: =DW$104*DL14/AVERAGE(DL$104:DL$115) -> 15875.63444 | DX14: =DX$104*DM14/AVERAGE(DM$104:DM$115) -> 19526.87217 | DY14: =DY$104*DN14/AVERAGE(DN$104:DN$115) -> 28307.44241 | DZ14: =DZ$104*DO14/AVERAGE(DO$104:DO$115) -> 79197.91667 | EA14: =EA$104*DP14/AVERAGE(DP$104:DP$115) -> 94375 | EB14: =EB$104*DQ14/AVERAGE(DQ$104:DQ$115) -> 36601.05008 | EC14: =EC$104*DR14/AVERAGE(DR$104:DR$115) -> 36601.05008 | ED14: =ED$104*DS14/AVERAGE(DS$104:DS$115) -> 0 | EE14: =SUMPRODUCT($AQ$5:$AY$5,DV14:ED14,CZ14:DH14)/SUMPRODUCT($AQ$5:$AY$5,CZ14:DH14) -> 18746.12913 | EF14: =SUMPRODUCT(DV14:ED14,CZ14:DH14)/DJ14 -> 33360.54973 | EG14: 0.9963795712 | EH14: 0.9973802837 | EI14: 0.9953905414 | EJ14: 0.994261112 | EK14: 1 | EL14: 1 | EM14: 1 | EN14: 1 | EO14: 1 | EP14: 0.9959379726 | EQ14: 0.9981932252 | ER14: 0.9963828558 | ES14: 0.9973729696 | ET14: 0.9953965746 | EU14: 0.9942605477 | EV14: 1 | EW14: 1 | EX14: 1 | EY14: 1 | EZ14: 1 | FA14: 0.9959371985 | FB14: 0.9982174191 | FC14: 0.9963843152 | FD14: 0.9973859739 | FE14: 0.9953883401 | FF14: 0.9942647905 | FG14: 1 | FH14: 1 | FI14: 1 | FJ14: 1 | FK14: 1 | FL14: 0.9959381558 | FM14: 0.9981984809 | FN14: 7183739.391 | FO14: 30219062.34 | FP14: 16715277.8 | FQ14: 11713891.87 | FR14: 8022852.749 | FS14: 9596048.826 | FT14: 0 | FU14: 0 | FV14: 0 | FW14: 65831971.41 | FX14: 83450872.98 | FY14: 7487702.323 | FZ14: 27443269.47 | GA14: 15427540.74 | GB14: 10696046.32 | GC14: 7598038.938 | GD14: 9084271.588 | GE14: 0 | GF14: 0 | GG14: 0 | GH14: 61054558.85 | GI14: 77736869.38 | GJ14: 6793424.473 | GK14: 31074935.11 | GL14: 17026068.14 | GM14: 12082382.34 | GN14: 8243594.306 | GO14: 9825372.49 | GP14: 0 | GQ14: 0 | GR14: 0 | GS14: 66976810.07 | GT14: 85045776.86 | GV14: =SUMIFS(DK14:DU14,DK$13:DU$13,$GW$12) -> 0.9953971695 | GW14: =SUMIFS(CZ14:DJ14,CZ$13:DJ$13,$GW$12) -> 16098229.03 | HF14: =EP14/EP38-1 -> -0.0008536831204 | HG14: =EQ14/EQ38-1 -> -0.0003793510349
B15: =AB15 -> 2027-05-01 | M15: 14 | P15: 0.06666666667 | Q15: =IFERROR(INDEX(Renewals!$C$3:$N$29,MATCH($B$6,Renewals!$B$3:$B$29,0),M15),0) -> 0 | R15: 0 | S15: =SUMIFS(INPUTS!AA$3:AA$17,INPUTS!Z$3:Z$17,M15) -> 0.04671141908 | T15: 0.04671141908 | AB15: =EDATE(AB14,-1) -> 2027-05-01 | AC15: =IF(OR($AB15>=$F$5,$AB15<=DATE(2020,2,1)),0,1) -> 0 | AD15: =IF(AB15<F$5,0,IF(COUNTIFS(AC15:AC$101,0)<=$G$5,1,0)) -> 0 | AE15: 5 | AF15: =AD15*V$19*IF(AD15=1,INDEX($O$2:$T$16,MATCH(SUM(AD15:AD$115),$M$2:$M$16,0),MATCH(INPUTS!$G$14,$O$1:$T$1,0)),0) -> 0 | AG15: =IF($J$5<>2,MIN(2*$AF15-SUM($AF15:AF15),AG$9-SUM(AG16:AG$115)),$AF15*AG$9/SUM($AG$9:$AO$9)) -> 0 | AH15: =IF($J$5<>2,MIN(2*$AF15-SUM($AF15:AG15),AH$9-SUM(AH16:AH$115)),$AF15*AH$9/SUM($AG$9:$AO$9)) -> 0 | AI15: =IF($J$5<>2,MIN(2*$AF15-SUM($AF15:AH15),AI$9-SUM(AI16:AI$115)),$AF15*AI$9/SUM($AG$9:$AO$9)) -> 0 | AJ15: =IF($J$5<>2,MIN(2*$AF15-SUM($AF15:AI15),AJ$9-SUM(AJ16:AJ$115)),$AF15*AJ$9/SUM($AG$9:$AO$9)) -> 0 | AK15: =IF($J$5<>2,MIN(2*$AF15-SUM($AF15:AJ15),AK$9-SUM(AK16:AK$115)),$AF15*AK$9/SUM($AG$9:$AO$9)) -> 0 | AL15: =IF($J$5<>2,MIN(2*$AF15-SUM($AF15:AK15),AL$9-SUM(AL16:AL$115)),$AF15*AL$9/SUM($AG$9:$AO$9)) -> 0 | AM15: =IF($J$5<>2,MIN(2*$AF15-SUM($AF15:AL15),AM$9-SUM(AM16:AM$115)),$AF15*AM$9/SUM($AG$9:$AO$9)) -> 0 | AN15: =IF($J$5<>2,MIN(2*$AF15-SUM($AF15:AM15),AN$9-SUM(AN16:AN$115)),$AF15*AN$9/SUM($AG$9:$AO$9)) -> 0 | AO15: =IF($J$5<>2,MIN(2*$AF15-SUM($AF15:AN15),AO$9-SUM(AO16:AO$115)),$AF15*AO$9/SUM($AG$9:$AO$9)) -> 0 | AP15: =SUM(AG15:AO15) -> 0 | AQ15: 0 | AR15: 0 | AS15: 0 | AT15: 0 | AU15: 0 | AV15: 0 | AW15: 0 | AX15: 0 | AY15: 0 | AZ15: 0 | BA15: 6609061.923 | BB15: 25768448.19 | BC15: 13857727.1 | BD15: 10557357.58 | BE15: 7614821.784 | BF15: 9262913.894 | BG15: 0 | BH15: 0 | BI15: 0 | BJ15: 73670330.47 | BK15: =SUMIFS($V$22:$V$30,$I$22:$I$30,BK$13)-SUM(AQ15:AQ$65) -> 0 | BL15: =SUMIFS($V$22:$V$30,$I$22:$I$30,BL$13)-SUM(AR15:AR$65) -> 0 | BM15: =SUMIFS($V$22:$V$30,$I$22:$I$30,BM$13)-SUM(AS15:AS$65) -> 0 | BN15: =SUMIFS($V$22:$V$30,$I$22:$I$30,BN$13)-SUM(AT15:AT$65) -> 0 | BO15: =SUMIFS($V$22:$V$30,$I$22:$I$30,BO$13)-SUM(AU15:AU$65) -> 0 | BP15: =SUMIFS($V$22:$V$30,$I$22:$I$30,BP$13)-SUM(AV15:AV$65) -> 0 | BQ15: =SUMIFS($V$22:$V$30,$I$22:$I$30,BQ$13)-SUM(AW15:AW$65) -> 0 | BR15: =SUMIFS($V$22:$V$30,$I$22:$I$30,BR$13)-SUM(AX15:AX$65) -> 0 | BS15: =SUMIFS($V$22:$V$30,$I$22:$I$30,BS$13)-SUM(AY15:AY$65) -> 0 | BT15: 0 | BU15: =SUMIFS(INDIRECT("'"&BU$11&"'!r:r"),INDIRECT("'"&BU$11&"'!b:b"),$B15,INDIRECT("'"&BU$11&"'!a:a"),"Joiners") -> 219962.9489 | BV15: 498142.7722 | BW15: 381839.5291 | BX15: 269242.7009 | BY15: 39081.47891 | BZ15: 70499.79639 | CA15: 0 | CB15: 0 | CC15: 0 | CD15: =SUMPRODUCT(BU15:CC15,$AQ$5:$AY$5) -> 1369187.951 | CE15: =SUM(BU15:CC15) -> 1478769.226 | CF15: =SUMIFS(INDIRECT("'"&CF$11&"'!D:D"),INDIRECT("'"&CF$11&"'!b:b"),$B15,INDIRECT("'"&CF$11&"'!a:a"),"Leavers") -> 202268.1357 | CG15: 451875.5369 | CH15: 374750.0505 | CI15: 273118.5752 | CJ15: 32022.84683 | CK15: 64205.30443 | CL15: 0 | CM15: 0 | CN15: 0 | CO15: =SUMPRODUCT(CF15:CN15,$AQ$5:$AY$5) -> 1302012.298 | CP15: =SUM(CF15:CN15) -> 1398240.449 | CQ15: =IF($AB15<EDATE($F$5,-1), IF(INPUTS!$C$30="Yes", SUMIFS(OVERRIDE!D:D,OVERRIDE!$B:$B,$AB15), SUMIFS(CohortBreakout!M:M,CohortBreakout!$B:$B,$AB15,CohortBreakout!$A:$A,$B$5)), 0) -> 0 | CR15: =IF($AB15<EDATE($F$5,-1), IF(INPUTS!$C$30="Yes", SUMIFS(OVERRIDE!E:E,OVERRIDE!$B:$B,$AB15), SUMIFS(CohortBreakout!N:N,CohortBreakout!$B:$B,$AB15,CohortBreakout!$A:$A,$B$5)), 0) -> 0 | CS15: =IF($AB15<EDATE($F$5,-1), IF(INPUTS!$C$30="Yes", SUMIFS(OVERRIDE!F:F,OVERRIDE!$B:$B,$AB15), SUMIFS(CohortBreakout!O:O,CohortBreakout!$B:$B,$AB15,CohortBreakout!$A:$A,$B$5)), 0) -> 0 | CT15: =IF($AB15<EDATE($F$5,-1), IF(INPUTS!$C$30="Yes", SUMIFS(OVERRIDE!G:G,OVERRIDE!$B:$B,$AB15), SUMIFS(CohortBreakout!P:P,CohortBreakout!$B:$B,$AB15,CohortBreakout!$A:$A,$B$5)), 0) -> 0 | CU15: =IF($AB15<EDATE($F$5,-1), IF(INPUTS!$C$30="Yes", SUMIFS(OVERRIDE!H:H,OVERRIDE!$B:$B,$AB15), SUMIFS(CohortBreakout!Q:Q,CohortBreakout!$B:$B,$AB15,CohortBreakout!$A:$A,$B$5)), 0) -> 0 | CV15: =IF($AB15<EDATE($F$5,-1), IF(INPUTS!$C$30="Yes", SUMIFS(OVERRIDE!I:I,OVERRIDE!$B:$B,$AB15), SUMIFS(CohortBreakout!R:R,CohortBreakout!$B:$B,$AB15,CohortBreakout!$A:$A,$B$5)), 0) -> 0 | CW15: =IF($AB15<EDATE($F$5,-1), IF(INPUTS!$C$30="Yes", SUMIFS(OVERRIDE!J:J,OVERRIDE!$B:$B,$AB15), SUMIFS(CohortBreakout!S:S,CohortBreakout!$B:$B,$AB15,CohortBreakout!$A:$A,$B$5)), 0) -> 0 | CX15: =IF($AB15<EDATE($F$5,-1), IF(INPUTS!$C$30="Yes", SUMIFS(OVERRIDE!K:K,OVERRIDE!$B:$B,$AB15), SUMIFS(CohortBreakout!T:T,CohortBreakout!$B:$B,$AB15,CohortBreakout!$A:$A,$B$5)), 0) -> 0 | CY15: =IF($AB15<EDATE($F$5,-1), IF(INPUTS!$C$30="Yes", SUMIFS(OVERRIDE!L:L,OVERRIDE!$B:$B,$AB15), SUMIFS(CohortBreakout!U:U,CohortBreakout!$B:$B,$AB15,CohortBreakout!$A:$A,$B$5)), 0) -> 0 | CZ15: =SUMIFS(INDIRECT("'"&CZ$1&"'!d:d"),INDIRECT("'"&CZ$1&"'!b:b"),$B15,INDIRECT("'"&CZ$1&"'!a:a"),"Total Members") -> 7165493.024 | DA15: 30172006.3 | DB15: 16090951.29 | DC15: 11717858.89 | DD15: 8012798.677 | DE15: 9589218.182 | DF15: 0 | DG15: 0 | DH15: 0 | DI15: =SUMPRODUCT(CZ15:DH15,$AQ$5:$AY$5) -> 65146309.51 | DJ15: =SUM(CZ15:DH15) -> 82748326.37 | DK15: =SUMIFS(INDIRECT("'"&DK$1&"'!h:h"),INDIRECT("'"&DK$1&"'!B:B"),$AB15) -> 0.9963794938 | DL15: 0.9973803122 | DM15: 0.9953969353 | DN15: 0.9942611082 | DO15: 1 | DP15: 1 | DQ15: 1 | DR15: 1 | DS15: 1 | DT15: 0.9959439588 | DU15: 0.998205606 | DV15: =DV$104*DK15/AVERAGE(DK$104:DK$115) -> 13480.74885 | DW15: 15875.63489 | DX15: 19526.86758 | DY15: 28307.4423 | DZ15: 79197.91667 | EA15: 94375 | EB15: 36601.05008 | EC15: 36601.05008 | ED15: =ED$104*DS15/AVERAGE(DS$104:DS$115) -> 0 | EE15: =SUMPRODUCT($AQ$5:$AY$5,DV15:ED15,CZ15:DH15)/SUMPRODUCT($AQ$5:$AY$5,CZ15:DH15) -> 18750.17121 | EF15: 33367.24749 | EG15: 0.9963794938 | EH15: 0.9973803122 | EI15: 0.9953903105 | EJ15: 0.9942611082 | EK15: 1 | EL15: 1 | EM15: 1 | EN15: 1 | EO15: 1 | EP15: 0.9959368626 | EQ15: 0.9981927981 | ER15: 0.9963828045 | ES15: 0.9973729986 | ET15: 0.9953963245 | EU15: 0.9942605477 | EV15: 1 | EW15: 1 | EX15: 1 | EY15: 1 | EZ15: 1 | FA15: 0.9959360389 | FB15: 0.9982170347 | FC15: 0.9963858955 | FD15: 0.9973861964 | FE15: 0.9953887276 | FF15: 0.994265599 | FG15: 1 | FH15: 1 | FI15: 1 | FJ15: 1 | FK15: 1 | FL15: 0.9959376615 | FM15: 0.9981982928 | FN15: 7165493.024 | FO15: 30172006.3 | FP15: 16708209.04 | FQ15: 11717858.89 | FR15: 8015661.388 | FS15: 9589691.223 | FT15: 0 | FU15: 0 | FV15: 0 | FW15: 65763567.25 | FX15: 83368919.87 | FY15: 7469115.428 | FZ15: 27397724.25 | GA15: 15420624.53 | GB15: 10699774.21 | GC15: 7591333.256 | GD15: 9078221.127 | GE15: 0 | GF15: 0 | GG15: 0 | GH15: 60987238.42 | GI15: 77656792.8 | GJ15: 6776143.583 | GK15: 31028709.5 | GL15: 17019197.79 | GM15: 12086358.91 | GN15: 8236253.519 | GO15: 9818919.349 | GP15: 0 | GQ15: 0 | GR15: 0 | GS15: 66910409.79 | GT15: 84965582.65 | GV15: 0.9953969353 | GW15: 16090951.29 | HF15: -0.000934201348 | HG15: -0.0004150533121
B16: 2027-04-01 | H16: =INPUTS!Q24 -> 0.28875 | I16: Adult | J16: =INPUTS!T24 -> 0.5244592346 | M16: 15 | P16: 0.06666666667 | Q16: =IFERROR(INDEX(Renewals!$C$3:$N$29,MATCH($B$6,Renewals!$B$3:$B$29,0),M16),0) -> 0 | R16: 0 | S16: =SUMIFS(INPUTS!AA$3:AA$17,INPUTS!Z$3:Z$17,M16) -> 0.02768963904 | T16: 0.02768963904 | AB16: 2027-04-01 | AC16: 0 | AD16: =IF(AB16<F$5,0,IF(COUNTIFS(AC16:AC$101,0)<=$G$5,1,0)) -> 0 | AE16: 5 | AF16: =AD16*V$19*IF(AD16=1,INDEX($O$2:$T$16,MATCH(SUM(AD16:AD$115),$M$2:$M$16,0),MATCH(INPUTS!$G$14,$O$1:$T$1,0)),0) -> 0 | AG16: =IF($J$5<>2,MIN(2*$AF16-SUM($AF16:AF16),AG$9-SUM(AG17:AG$115)),$AF16*AG$9/SUM($AG$9:$AO$9)) -> 0 | AH16: =IF($J$5<>2,MIN(2*$AF16-SUM($AF16:AG16),AH$9-SUM(AH17:AH$115)),$AF16*AH$9/SUM($AG$9:$AO$9)) -> 0 | AI16: =IF($J$5<>2,MIN(2*$AF16-SUM($AF16:AH16),AI$9-SUM(AI17:AI$115)),$AF16*AI$9/SUM($AG$9:$AO$9)) -> 0 | AJ16: =IF($J$5<>2,MIN(2*$AF16-SUM($AF16:AI16),AJ$9-SUM(AJ17:AJ$115)),$AF16*AJ$9/SUM($AG$9:$AO$9)) -> 0 | AK16: =IF($J$5<>2,MIN(2*$AF16-SUM($AF16:AJ16),AK$9-SUM(AK17:AK$115)),$AF16*AK$9/SUM($AG$9:$AO$9)) -> 0 | AL16: =IF($J$5<>2,MIN(2*$AF16-SUM($AF16:AK16),AL$9-SUM(AL17:AL$115)),$AF16*AL$9/SUM($AG$9:$AO$9)) -> 0 | AM16: =IF($J$5<>2,MIN(2*$AF16-SUM($AF16:AL16),AM$9-SUM(AM17:AM$115)),$AF16*AM$9/SUM($AG$9:$AO$9)) -> 0 | AN16: =IF($J$5<>2,MIN(2*$AF16-SUM($AF16:AM16),AN$9-SUM(AN17:AN$115)),$AF16*AN$9/SUM($AG$9:$AO$9)) -> 0 | AO16: =IF($J$5<>2,MIN(2*$AF16-SUM($AF16:AN16),AO$9-SUM(AO17:AO$115)),$AF16*AO$9/SUM($AG$9:$AO$9)) -> 0 | AP16: 0 | AQ16: 0 | AR16: 0 | AS16: 0 | AT16: 0 | AU16: 0 | AV16: 0 | AW16: 0 | AX16: 0 | AY16: 0 | AZ16: 0 | BA16: 6609061.923 | BB16: 25768448.19 | BC16: 13857727.1 | BD16: 10557357.58 | BE16: 7614821.784 | BF16: 9262913.894 | BG16: 0 | BH16: 0 | BI16: 0 | BJ16: 73670330.47 | BK16: =SUMIFS($V$22:$V$30,$I$22:$I$30,BK$13)-SUM(AQ16:AQ$65) -> 0 | BL16: =SUMIFS($V$22:$V$30,$I$22:$I$30,BL$13)-SUM(AR16:AR$65) -> 0 | BM16: =SUMIFS($V$22:$V$30,$I$22:$I$30,BM$13)-SUM(AS16:AS$65) -> 0 | BN16: =SUMIFS($V$22:$V$30,$I$22:$I$30,BN$13)-SUM(AT16:AT$65) -> 0 | BO16: =SUMIFS($V$22:$V$30,$I$22:$I$30,BO$13)-SUM(AU16:AU$65) -> 0 | BP16: =SUMIFS($V$22:$V$30,$I$22:$I$30,BP$13)-SUM(AV16:AV$65) -> 0 | BQ16: =SUMIFS($V$22:$V$30,$I$22:$I$30,BQ$13)-SUM(AW16:AW$65) -> 0 | BR16: =SUMIFS($V$22:$V$30,$I$22:$I$30,BR$13)-SUM(AX16:AX$65) -> 0 | BS16: =SUMIFS($V$22:$V$30,$I$22:$I$30,BS$13)-SUM(AY16:AY$65) -> 0 | BT16: 0 | BU16: 219412.5167 | BV16: 497355.4063 | BW16: 381651.7592 | BX16: 269333.8823 | BY16: 39050.60617 | BZ16: 70453.61099 | CA16: 0 | CB16: 0 | CC16: 0 | CD16: 1367753.564 | CE16: 1477257.782 | CF16: 201753.8722 | CG16: 451172.2597 | CH16: 374581.3918 | CI16: 273211.0695 | CJ16: 31994.50913 | CK16: 64162.87235 | CL16: 0 | CM16: 0 | CN16: 0 | CO16: 1300718.593 | CP16: 1396875.975 | CQ16: =IF($AB16<EDATE($F$5,-1), IF(INPUTS!$C$30="Yes", SUMIFS(OVERRIDE!D:D,OVERRIDE!$B:$B,$AB16), SUMIFS(CohortBreakout!M:M,CohortBreakout!$B:$B,$AB16,CohortBreakout!$A:$A,$B$5)), 0) -> 0 | CR16: =IF($AB16<EDATE($F$5,-1), IF(INPUTS!$C$30="Yes", SUMIFS(OVERRIDE!E:E,OVERRIDE!$B:$B,$AB16), SUMIFS(CohortBreakout!N:N,CohortBreakout!$B:$B,$AB16,CohortBreakout!$A:$A,$B$5)), 0) -> 0 | CS16: =IF($AB16<EDATE($F$5,-1), IF(INPUTS!$C$30="Yes", SUMIFS(OVERRIDE!F:F,OVERRIDE!$B:$B,$AB16), SUMIFS(CohortBreakout!O:O,CohortBreakout!$B:$B,$AB16,CohortBreakout!$A:$A,$B$5)), 0) -> 0 | CT16: =IF($AB16<EDATE($F$5,-1), IF(INPUTS!$C$30="Yes", SUMIFS(OVERRIDE!G:G,OVERRIDE!$B:$B,$AB16), SUMIFS(CohortBreakout!P:P,CohortBreakout!$B:$B,$AB16,CohortBreakout!$A:$A,$B$5)), 0) -> 0 | CU16: =IF($AB16<EDATE($F$5,-1), IF(INPUTS!$C$30="Yes", SUMIFS(OVERRIDE!H:H,OVERRIDE!$B:$B,$AB16), SUMIFS(CohortBreakout!Q:Q,CohortBreakout!$B:$B,$AB16,CohortBreakout!$A:$A,$B$5)), 0) -> 0 | CV16: =IF($AB16<EDATE($F$5,-1), IF(INPUTS!$C$30="Yes", SUMIFS(OVERRIDE!I:I,OVERRIDE!$B:$B,$AB16), SUMIFS(CohortBreakout!R:R,CohortBreakout!$B:$B,$AB16,CohortBreakout!$A:$A,$B$5)), 0) -> 0 | CW16: =IF($AB16<EDATE($F$5,-1), IF(INPUTS!$C$30="Yes", SUMIFS(OVERRIDE!J:J,OVERRIDE!$B:$B,$AB16), SUMIFS(CohortBreakout!S:S,CohortBreakout!$B:$B,$AB16,CohortBreakout!$A:$A,$B$5)), 0) -> 0 | CX16: =IF($AB16<EDATE($F$5,-1), IF(INPUTS!$C$30="Yes", SUMIFS(OVERRIDE!K:K,OVERRIDE!$B:$B,$AB16), SUMIFS(CohortBreakout!T:T,CohortBreakout!$B:$B,$AB16,CohortBreakout!$A:$A,$B$5)), 0) -> 0 | CY16: =IF($AB16<EDATE($F$5,-1), IF(INPUTS!$C$30="Yes", SUMIFS(OVERRIDE!L:L,OVERRIDE!$B:$B,$AB16), SUMIFS(CohortBreakout!U:U,CohortBreakout!$B:$B,$AB16,CohortBreakout!$A:$A,$B$5)), 0) -> 0 | CZ16: 7147283.947 | DA16: =SUMIFS(INDIRECT("'"&DA$1&"'!d:d"),INDIRECT("'"&DA$1&"'!b:b"),$B16,INDIRECT("'"&DA$1&"'!a:a"),"Total Members") -> 30125035.79 | DB16: 16083693.15 | DC16: 11721827.26 | DD16: 8005711.707 | DE16: 9582881.258 | DF16: 0 | DG16: 0 | DH16: 0 | DI16: 65077840.15 | DJ16: 82666433.12 | DK16: 0.9963794072 | DL16: 0.9973803399 | DM16: 0.9953966999 | DN16: 0.9942611032 | DO16: 1 | DP16: 1 | DQ16: 1 | DR16: 1 | DS16: 1 | DT16: 0.9959428444 | DU16: 0.9982051956 | DV16: 13480.74768 | DW16: 15875.63533 | DX16: 19526.86296 | DY16: 28307.44216 | DZ16: 79197.91667 | EA16: 94375 | EB16: 36601.05008 | EC16: 36601.05008 | ED16: 0 | EE16: 18754.21542 | EF16: 33373.93228 | EG16: 0.9963794072 | EH16: 0.9973803399 | EI16: 0.9953900783 | EJ16: 0.9942611032 | EK16: 1 | EL16: 1 | EM16: 1 | EN16: 1 | EO16: 1 | EP16: 0.9959357507 | EQ16: 0.9981923687 | ER16: 0.9963827531 | ES16: 0.9973730277 | ET16: 0.9953960746 | EU16: 0.9942605477 | EV16: 1 | EW16: 1 | EX16: 1 | EY16: 1 | EZ16: 1 | FA16: 0.995934879 | FB16: 0.9982166487 | FC16: 0.9963875809 | FD16: 0.9973864227 | FE16: 0.9953891082 | FF16: 0.9942664436 | FG16: 1 | FH16: 1 | FI16: 1 | FJ16: 1 | FK16: 1 | FL16: 0.9959371842 | FM16: 0.9981981109 | FN16: 7147283.947 | FO16: 30125035.79 | FP16: 16701159.94 | FQ16: 11721827.26 | FR16: 8008472.565 | FS16: 9583337.405 | FT16: 0 | FU16: 0 | FV16: 0 | FW16: 65695306.94 | FX16: 83287116.91 | FY16: 7450567.469 | FZ16: 27352265.61 | GA16: 15413728.35 | GB16: 10703503.39 | GC16: 7584630.022 | GD16: 9072174.309 | GE16: 0 | GF16: 0 | GG16: 0 | GH16: 60920064.82 | GI16: 77576869.15 | GJ16: 6758892.448 | GK16: 30982562.7 | GL16: 17012344.23 | GM16: 12090335.99 | GN16: 8228915.197 | GO16: 9812469.986 | GP16: 0 | GQ16: 0 | GR16: 0 | GS16: 66844135.36 | GT16: 84885520.54 | GV16: 0.9953966999 | GW16: 16083693.15 | HF16: -0.001157216198 | HG16: -0.0005139549504
B17: 2027-03-01 | D17: Dependent var (unw) | E17: =RAND() -> 0.06098521488 | H17: =H25 -> 0.28875 | I17: =I25 -> Adult | J17: =J25 -> 0.5244592346 | AB17: 2027-03-01 | AC17: 0 | AD17: =IF(AB17<F$5,0,IF(COUNTIFS(AC17:AC$101,0)<=$G$5,1,0)) -> 0 | AE17: 5 | AF17: =AD17*V$19*IF(AD17=1,INDEX($O$2:$T$16,MATCH(SUM(AD17:AD$115),$M$2:$M$16,0),MATCH(INPUTS!$G$14,$O$1:$T$1,0)),0) -> 0 | AG17: =IF($J$5<>2,MIN(2*$AF17-SUM($AF17:AF17),AG$9-SUM(AG18:AG$115)),$AF17*AG$9/SUM($AG$9:$AO$9)) -> 0 | AH17: =IF($J$5<>2,MIN(2*$AF17-SUM($AF17:AG17),AH$9-SUM(AH18:AH$115)),$AF17*AH$9/SUM($AG$9:$AO$9)) -> 0 | AI17: =IF($J$5<>2,MIN(2*$AF17-SUM($AF17:AH17),AI$9-SUM(AI18:AI$115)),$AF17*AI$9/SUM($AG$9:$AO$9)) -> 0 | AJ17: =IF($J$5<>2,MIN(2*$AF17-SUM($AF17:AI17),AJ$9-SUM(AJ18:AJ$115)),$AF17*AJ$9/SUM($AG$9:$AO$9)) -> 0 | AK17: =IF($J$5<>2,MIN(2*$AF17-SUM($AF17:AJ17),AK$9-SUM(AK18:AK$115)),$AF17*AK$9/SUM($AG$9:$AO$9)) -> 0 | AL17: =IF($J$5<>2,MIN(2*$AF17-SUM($AF17:AK17),AL$9-SUM(AL18:AL$115)),$AF17*AL$9/SUM($AG$9:$AO$9)) -> 0 | AM17: =IF($J$5<>2,MIN(2*$AF17-SUM($AF17:AL17),AM$9-SUM(AM18:AM$115)),$AF17*AM$9/SUM($AG$9:$AO$9)) -> 0 | AN17: =IF($J$5<>2,MIN(2*$AF17-SUM($AF17:AM17),AN$9-SUM(AN18:AN$115)),$AF17*AN$9/SUM($AG$9:$AO$9)) -> 0 | AO17: =IF($J$5<>2,MIN(2*$AF17-SUM($AF17:AN17),AO$9-SUM(AO18:AO$115)),$AF17*AO$9/SUM($AG$9:$AO$9)) -> 0 | AP17: 0 | AQ17: 0 | AR17: 0 | AS17: 0 | AT17: 0 | AU17: 0 | AV17: 0 | AW17: 0 | AX17: 0 | AY17: 0 | AZ17: 0 | BA17: 6609061.923 | BB17: 25768448.19 | BC17: 13857727.1 | BD17: 10557357.58 | BE17: 7614821.784 | BF17: 9262913.894 | BG17: 0 | BH17: 0 | BI17: 0 | BJ17: 73670330.47 | BK17: =SUMIFS($V$22:$V$30,$I$22:$I$30,BK$13)-SUM(AQ17:AQ$65) -> 0 | BL17: =SUMIFS($V$22:$V$30,$I$22:$I$30,BL$13)-SUM(AR17:AR$65) -> 0 | BM17: =SUMIFS($V$22:$V$30,$I$22:$I$30,BM$13)-SUM(AS17:AS$65) -> 0 | BN17: =SUMIFS($V$22:$V$30,$I$22:$I$30,BN$13)-SUM(AT17:AT$65) -> 0 | BO17: =SUMIFS($V$22:$V$30,$I$22:$I$30,BO$13)-SUM(AU17:AU$65) -> 0 | BP17: =SUMIFS($V$22:$V$30,$I$22:$I$30,BP$13)-SUM(AV17:AV$65) -> 0 | BQ17: =SUMIFS($V$22:$V$30,$I$22:$I$30,BQ$13)-SUM(AW17:AW$65) -> 0 | BR17: =SUMIFS($V$22:$V$30,$I$22:$I$30,BR$13)-SUM(AX17:AX$65) -> 0 | BS17: =SUMIFS($V$22:$V$30,$I$22:$I$30,BS$13)-SUM(AY17:AY$65) -> 0 | BT17: 0 | BU17: 218863.2016 | BV17: 496569.4763 | BW17: 381464.477 | BX17: 269425.0939 | BY17: 39019.7478 | BZ17: 70407.45362 | CA17: 0 | CB17: 0 | CC17: 0 | CD17: 1366322.249 | CE17: 1475749.45 | CF17: 201240.66 | CG17: 450470.2606 | CH17: 374413.1882 | CI17: 273303.5951 | CJ17: 31966.1816 | CK17: 64120.46558 | CL17: 0 | CM17: 0 | CN17: 0 | CO17: 1299427.704 | CP17: 1395514.351 | CQ17: =IF($AB17<EDATE($F$5,-1), IF(INPUTS!$C$30="Yes", SUMIFS(OVERRIDE!D:D,OVERRIDE!$B:$B,$AB17), SUMIFS(CohortBreakout!M:M,CohortBreakout!$B:$B,$AB17,CohortBreakout!$A:$A,$B$5)), 0) -> 0 | CR17: =IF($AB17<EDATE($F$5,-1), IF(INPUTS!$C$30="Yes", SUMIFS(OVERRIDE!E:E,OVERRIDE!$B:$B,$AB17), SUMIFS(CohortBreakout!N:N,CohortBreakout!$B:$B,$AB17,CohortBreakout!$A:$A,$B$5)), 0) -> 0 | CS17: =IF($AB17<EDATE($F$5,-1), IF(INPUTS!$C$30="Yes", SUMIFS(OVERRIDE!F:F,OVERRIDE!$B:$B,$AB17), SUMIFS(CohortBreakout!O:O,CohortBreakout!$B:$B,$AB17,CohortBreakout!$A:$A,$B$5)), 0) -> 0 | CT17: =IF($AB17<EDATE($F$5,-1), IF(INPUTS!$C$30="Yes", SUMIFS(OVERRIDE!G:G,OVERRIDE!$B:$B,$AB17), SUMIFS(CohortBreakout!P:P,CohortBreakout!$B:$B,$AB17,CohortBreakout!$A:$A,$B$5)), 0) -> 0 | CU17: =IF($AB17<EDATE($F$5,-1), IF(INPUTS!$C$30="Yes", SUMIFS(OVERRIDE!H:H,OVERRIDE!$B:$B,$AB17), SUMIFS(CohortBreakout!Q:Q,CohortBreakout!$B:$B,$AB17,CohortBreakout!$A:$A,$B$5)), 0) -> 0 | CV17: =IF($AB17<EDATE($F$5,-1), IF(INPUTS!$C$30="Yes", SUMIFS(OVERRIDE!I:I,OVERRIDE!$B:$B,$AB17), SUMIFS(CohortBreakout!R:R,CohortBreakout!$B:$B,$AB17,CohortBreakout!$A:$A,$B$5)), 0) -> 0 | CW17: =IF($AB17<EDATE($F$5,-1), IF(INPUTS!$C$30="Yes", SUMIFS(OVERRIDE!J:J,OVERRIDE!$B:$B,$AB17), SUMIFS(CohortBreakout!S:S,CohortBreakout!$B:$B,$AB17,CohortBreakout!$A:$A,$B$5)), 0) -> 0 | CX17: =IF($AB17<EDATE($F$5,-1), IF(INPUTS!$C$30="Yes", SUMIFS(OVERRIDE!K:K,OVERRIDE!$B:$B,$AB17), SUMIFS(CohortBreakout!T:T,CohortBreakout!$B:$B,$AB17,CohortBreakout!$A:$A,$B$5)), 0) -> 0 | CY17: =IF($AB17<EDATE($F$5,-1), IF(INPUTS!$C$30="Yes", SUMIFS(OVERRIDE!L:L,OVERRIDE!$B:$B,$AB17), SUMIFS(CohortBreakout!U:U,CohortBreakout!$B:$B,$AB17,CohortBreakout!$A:$A,$B$5)), 0) -> 0 | CZ17: 7129112.09 | DA17: 30078150.64 | DB17: 16076454.58 | DC17: 11725796.97 | DD17: 7998627.283 | DE17: 9576548.113 | DF17: 0 | DG17: 0 | DH17: 0 | DI17: 65009514.29 | DJ17: 82584689.69 | DK17: 0.9963793086 | DL17: 0.9973803668 | DM17: 0.9953964634 | DN17: 0.994261097 | DO17: 1 | DP17: 1 | DQ17: 1 | DR17: 1 | DS17: 1 | DT17: 0.9959417278 | DU17: 0.998204783 | DV17: 13480.74634 | DW17: 15875.63576 | DX17: 19526.85832 | DY17: 28307.44198 | DZ17: 79197.91667 | EA17: 94375 | EB17: 36601.05008 | EC17: 36601.05008 | ED17: 0 | EE17: 18758.26173 | EF17: 33380.60408 | EG17: 0.9963793086 | EH17: 0.9973803668 | EI17: 0.9953898451 | EJ17: 0.994261097 | EK17: 1 | EL17: 1 | EM17: 1 | EN17: 1 | EO17: 1 | EP17: 0.9959346367 | EQ17: 0.9981919371 | ER17: 0.9963827015 | ES17: 0.9973730568 | ET17: 0.9953958248 | EU17: 0.9942605477 | EV17: 1 | EW17: 1 | EX17: 1 | EY17: 1 | EZ17: 1 | FA17: 0.995933719 | FB17: 0.9982162613 | FC17: 0.9963856078 | FD17: 0.9973857821 | FE17: 0.9953854468 | FF17: 0.9942614083 | FG17: 1 | FH17: 1 | FI17: 1 | FJ17: 1 | FK17: 1 | FL17: 0.9959334355 | FM17: 0.9981964803 | FN17: 7129112.09 | FO17: 30078150.64 | FP17: 16694130.48 | FQ17: 11725796.97 | FR17: 8001286.274 | FS17: 9576987.371 | FT17: 0 | FU17: 0 | FV17: 0 | FW17: 65627190.19 | FX17: 83205463.83 | FY17: 7432058.366 | FZ17: 27306893.37 | GA17: 15406852.16 | GB17: 10707233.88 | GC17: 7577929.23 | GD17: 9066131.13 | GE17: 0 | GF17: 0 | GG17: 0 | GH17: 60853037.78 | GI17: 77497098.14 | GJ17: 6741670.367 | GK17: 30936494.29 | GL17: 17005507.37 | GM17: 12094313.55 | GN17: 8221579.332 | GO17: 9806024.397 | GP17: 0 | GQ17: 0 | GR17: 0 | GS17: 66777985.57 | GT17: 84805589.3 | GV17: 0.9953964634 | GW17: 16076454.58 | HF17: -0.001169648442 | HG17: -0.0005194659514
B18: 2027-02-01 | D18: Dependent var (acuity) | E18: =RAND() -> 0.7173365227 | AB18: 2027-02-01 | AC18: 0 | AD18: =IF(AB18<F$5,0,IF(COUNTIFS(AC18:AC$101,0)<=$G$5,1,0)) -> 0 | AE18: 5 | AF18: =AD18*V$19*IF(AD18=1,INDEX($O$2:$T$16,MATCH(SUM(AD18:AD$115),$M$2:$M$16,0),MATCH(INPUTS!$G$14,$O$1:$T$1,0)),0) -> 0 | AG18: =IF($J$5<>2,MIN(2*$AF18-SUM($AF18:AF18),AG$9-SUM(AG19:AG$115)),$AF18*AG$9/SUM($AG$9:$AO$9)) -> 0 | AH18: =IF($J$5<>2,MIN(2*$AF18-SUM($AF18:AG18),AH$9-SUM(AH19:AH$115)),$AF18*AH$9/SUM($AG$9:$AO$9)) -> 0 | AI18: =IF($J$5<>2,MIN(2*$AF18-SUM($AF18:AH18),AI$9-SUM(AI19:AI$115)),$AF18*AI$9/SUM($AG$9:$AO$9)) -> 0 | AJ18: =IF($J$5<>2,MIN(2*$AF18-SUM($AF18:AI18),AJ$9-SUM(AJ19:AJ$115)),$AF18*AJ$9/SUM($AG$9:$AO$9)) -> 0 | AK18: =IF($J$5<>2,MIN(2*$AF18-SUM($AF18:AJ18),AK$9-SUM(AK19:AK$115)),$AF18*AK$9/SUM($AG$9:$AO$9)) -> 0 | AL18: =IF($J$5<>2,MIN(2*$AF18-SUM($AF18:AK18),AL$9-SUM(AL19:AL$115)),$AF18*AL$9/SUM($AG$9:$AO$9)) -> 0 | AM18: =IF($J$5<>2,MIN(2*$AF18-SUM($AF18:AL18),AM$9-SUM(AM19:AM$115)),$AF18*AM$9/SUM($AG$9:$AO$9)) -> 0 | AN18: =IF($J$5<>2,MIN(2*$AF18-SUM($AF18:AM18),AN$9-SUM(AN19:AN$115)),$AF18*AN$9/SUM($AG$9:$AO$9)) -> 0 | AO18: =IF($J$5<>2,MIN(2*$AF18-SUM($AF18:AN18),AO$9-SUM(AO19:AO$115)),$AF18*AO$9/SUM($AG$9:$AO$9)) -> 0 | AP18: 0 | AQ18: 0 | AR18: 0 | AS18: 0 | AT18: 0 | AU18: 0 | AV18: 0 | AW18: 0 | AX18: 0 | AY18: 0 | AZ18: 0 | BA18: 6609061.923 | BB18: 25768448.19 | BC18: 13857727.1 | BD18: 10557357.58 | BE18: 7614821.784 | BF18: 9262913.894 | BG18: 0 | BH18: 0 | BI18: 0 | BJ18: 73670330.47 | BK18: =SUMIFS($V$22:$V$30,$I$22:$I$30,BK$13)-SUM(AQ18:AQ$65) -> 0 | BL18: =SUMIFS($V$22:$V$30,$I$22:$I$30,BL$13)-SUM(AR18:AR$65) -> 0 | BM18: =SUMIFS($V$22:$V$30,$I$22:$I$30,BM$13)-SUM(AS18:AS$65) -> 0 | BN18: =SUMIFS($V$22:$V$30,$I$22:$I$30,BN$13)-SUM(AT18:AT$65) -> 0 | BO18: =SUMIFS($V$22:$V$30,$I$22:$I$30,BO$13)-SUM(AU18:AU$65) -> 0 | BP18: =SUMIFS($V$22:$V$30,$I$22:$I$30,BP$13)-SUM(AV18:AV$65) -> 0 | BQ18: =SUMIFS($V$22:$V$30,$I$22:$I$30,BQ$13)-SUM(AW18:AW$65) -> 0 | BR18: =SUMIFS($V$22:$V$30,$I$22:$I$30,BR$13)-SUM(AX18:AX$65) -> 0 | BS18: =SUMIFS($V$22:$V$30,$I$22:$I$30,BS$13)-SUM(AY18:AY$65) -> 0 | BT18: 0 | BU18: 218314.9978 | BV18: 495784.9784 | BW18: 381277.6809 | BX18: 269516.3358 | BY18: 38988.90374 | BZ18: 70361.32425 | CA18: 0 | CB18: 0 | CC18: 0 | CD18: 1364893.993 | CE18: 1474244.221 | CF18: 200728.4975 | CG18: 449769.5372 | CH18: 374245.439 | CI18: 273396.1522 | CJ18: 31937.86421 | CK18: 64078.08408 | CL18: 0 | CM18: 0 | CN18: 0 | CO18: 1298139.626 | CP18: 1394155.574 | CQ18: =IF($AB18<EDATE($F$5,-1), IF(INPUTS!$C$30="Yes", SUMIFS(OVERRIDE!D:D,OVERRIDE!$B:$B,$AB18), SUMIFS(CohortBreakout!M:M,CohortBreakout!$B:$B,$AB18,CohortBreakout!$A:$A,$B$5)), 0) -> 0 | CR18: =IF($AB18<EDATE($F$5,-1), IF(INPUTS!$C$30="Yes", SUMIFS(OVERRIDE!E:E,OVERRIDE!$B:$B,$AB18), SUMIFS(CohortBreakout!N:N,CohortBreakout!$B:$B,$AB18,CohortBreakout!$A:$A,$B$5)), 0) -> 0 | CS18: =IF($AB18<EDATE($F$5,-1), IF(INPUTS!$C$30="Yes", SUMIFS(OVERRIDE!F:F,OVERRIDE!$B:$B,$AB18), SUMIFS(CohortBreakout!O:O,CohortBreakout!$B:$B,$AB18,CohortBreakout!$A:$A,$B$5)), 0) -> 0 | CT18: =IF($AB18<EDATE($F$5,-1), IF(INPUTS!$C$30="Yes", SUMIFS(OVERRIDE!G:G,OVERRIDE!$B:$B,$AB18), SUMIFS(CohortBreakout!P:P,CohortBreakout!$B:$B,$AB18,CohortBreakout!$A:$A,$B$5)), 0) -> 0 | CU18: =IF($AB18<EDATE($F$5,-1), IF(INPUTS!$C$30="Yes", SUMIFS(OVERRIDE!H:H,OVERRIDE!$B:$B,$AB18), SUMIFS(CohortBreakout!Q:Q,CohortBreakout!$B:$B,$AB18,CohortBreakout!$A:$A,$B$5)), 0) -> 0 | CV18: =IF($AB18<EDATE($F$5,-1), IF(INPUTS!$C$30="Yes", SUMIFS(OVERRIDE!I:I,OVERRIDE!$B:$B,$AB18), SUMIFS(CohortBreakout!R:R,CohortBreakout!$B:$B,$AB18,CohortBreakout!$A:$A,$B$5)), 0) -> 0 | CW18: =IF($AB18<EDATE($F$5,-1), IF(INPUTS!$C$30="Yes", SUMIFS(OVERRIDE!J:J,OVERRIDE!$B:$B,$AB18), SUMIFS(CohortBreakout!S:S,CohortBreakout!$B:$B,$AB18,CohortBreakout!$A:$A,$B$5)), 0) -> 0 | CX18: =IF($AB18<EDATE($F$5,-1), IF(INPUTS!$C$30="Yes", SUMIFS(OVERRIDE!K:K,OVERRIDE!$B:$B,$AB18), SUMIFS(CohortBreakout!T:T,CohortBreakout!$B:$B,$AB18,CohortBreakout!$A:$A,$B$5)), 0) -> 0 | CY18: =IF($AB18<EDATE($F$5,-1), IF(INPUTS!$C$30="Yes", SUMIFS(OVERRIDE!L:L,OVERRIDE!$B:$B,$AB18), SUMIFS(CohortBreakout!U:U,CohortBreakout!$B:$B,$AB18,CohortBreakout!$A:$A,$B$5)), 0) -> 0 | CZ18: 7110977.386 | DA18: 30031350.71 | DB18: 16069235.55 | DC18: 11729768.03 | DD18: 7991545.399 | DE18: 9570218.743 | DF18: 0 | DG18: 0 | DH18: 0 | DI18: 64941331.67 | DJ18: 82503095.81 | DK18: 0.9963792356 | DL18: 0.997380398 | DM18: 0.9953962502 | DN18: 0.9942611222 | DO18: 1 | DP18: 1 | DQ18: 1 | DR18: 1 | DS18: 1 | DT18: 0.9959406293 | DU18: 0.998204377 | DV18: 13480.74536 | DW18: 15875.63626 | DX18: 19526.85414 | DY18: 28307.4427 | DZ18: 79197.91667 | EA18: 94375 | EB18: 36601.05008 | EC18: 36601.05008 | ED18: 0 | EE18: 18762.31052 | EF18: 33387.26315 | EG18: 0.9963792356 | EH18: 0.997380398 | EI18: 0.9953896354 | EJ18: 0.9942611222 | EK18: 1 | EL18: 1 | EM18: 1 | EN18: 1 | EO18: 1 | EP18: 0.9959335409 | EQ18: 0.9981915122 | ER18: 0.9963826498 | ES18: 0.9973730859 | ET18: 0.9953955753 | EU18: 0.9942605477 | EV18: 1 | EW18: 1 | EX18: 1 | EY18: 1 | EZ18: 1 | FA18: 0.9959325587 | FB18: 0.9982158724 | FC18: 0.9963802634 | FD18: 0.9973844688 | FE18: 0.995378779 | FF18: 0.9942520104 | FG18: 1 | FH18: 1 | FI18: 1 | FJ18: 1 | FK18: 1 | FL18: 0.9959271945 | FM18: 0.9981937455 | FN18: 7110977.386 | FO18: 30031350.71 | FP18: 16687120.62 | FQ18: 11729768.03 | FR18: 7994102.512 | FS18: 9570641.116 | FT18: 0 | FU18: 0 | FV18: 0 | FW18: 65559216.75 | FX18: 83123960.38 | FY18: 7413588.041 | FZ18: 27261607.37 | GA18: 15399995.93 | GB18: 10710965.66 | GC18: 7571230.877 | GD18: 9060091.59 | GE18: 0 | GF18: 0 | GG18: 0 | GH18: 60786157.01 | GI18: 77417479.47 | GJ18: 6724486.686 | GK18: 30890511.11 | GL18: 16998693.92 | GM18: 12098295.28 | GN18: 8214246.174 | GO18: 9799582.727 | GP18: 0 | GQ18: 0 | GR18: 0 | GS18: 66711987 | GT18: 84725815.9 | GV18: 0.9953962502 | GW18: 16069235.55 | HF18: -0.001352297858 | HG18: -0.0006004915826
B19: 2027-01-01 | V19: =SUM(V22:V30) -> 19940171.67 | AB19: 2027-01-01 | AC19: 0 | AD19: =IF(AB19<F$5,0,IF(COUNTIFS(AC19:AC$101,0)<=$G$5,1,0)) -> 0 | AE19: 5 | AF19: =AD19*V$19*IF(AD19=1,INDEX($O$2:$T$16,MATCH(SUM(AD19:AD$115),$M$2:$M$16,0),MATCH(INPUTS!$G$14,$O$1:$T$1,0)),0) -> 0 | AG19: =IF($J$5<>2,MIN(2*$AF19-SUM($AF19:AF19),AG$9-SUM(AG20:AG$115)),$AF19*AG$9/SUM($AG$9:$AO$9)) -> 0 | AH19: =IF($J$5<>2,MIN(2*$AF19-SUM($AF19:AG19),AH$9-SUM(AH20:AH$115)),$AF19*AH$9/SUM($AG$9:$AO$9)) -> 0 | AI19: =IF($J$5<>2,MIN(2*$AF19-SUM($AF19:AH19),AI$9-SUM(AI20:AI$115)),$AF19*AI$9/SUM($AG$9:$AO$9)) -> 0 | AJ19: =IF($J$5<>2,MIN(2*$AF19-SUM($AF19:AI19),AJ$9-SUM(AJ20:AJ$115)),$AF19*AJ$9/SUM($AG$9:$AO$9)) -> 0 | AK19: =IF($J$5<>2,MIN(2*$AF19-SUM($AF19:AJ19),AK$9-SUM(AK20:AK$115)),$AF19*AK$9/SUM($AG$9:$AO$9)) -> 0 | AL19: =IF($J$5<>2,MIN(2*$AF19-SUM($AF19:AK19),AL$9-SUM(AL20:AL$115)),$AF19*AL$9/SUM($AG$9:$AO$9)) -> 0 | AM19: =IF($J$5<>2,MIN(2*$AF19-SUM($AF19:AL19),AM$9-SUM(AM20:AM$115)),$AF19*AM$9/SUM($AG$9:$AO$9)) -> 0 | AN19: =IF($J$5<>2,MIN(2*$AF19-SUM($AF19:AM19),AN$9-SUM(AN20:AN$115)),$AF19*AN$9/SUM($AG$9:$AO$9)) -> 0 | AO19: =IF($J$5<>2,MIN(2*$AF19-SUM($AF19:AN19),AO$9-SUM(AO20:AO$115)),$AF19*AO$9/SUM($AG$9:$AO$9)) -> 0 | AP19: 0 | AQ19: 0 | AR19: 0 | AS19: 0 | AT19: 0 | AU19: 0 | AV19: 0 | AW19: 0 | AX19: 0 | AY19: 0 | AZ19: 0 | BA19: 6609061.923 | BB19: 25768448.19 | BC19: 13857727.1 | BD19: 10557357.58 | BE19: 7614821.784 | BF19: 9262913.894 | BG19: 0 | BH19: 0 | BI19: 0 | BJ19: 73670330.47 | BK19: =SUMIFS($V$22:$V$30,$I$22:$I$30,BK$13)-SUM(AQ19:AQ$65) -> 0 | BL19: =SUMIFS($V$22:$V$30,$I$22:$I$30,BL$13)-SUM(AR19:AR$65) -> 0 | BM19: =SUMIFS($V$22:$V$30,$I$22:$I$30,BM$13)-SUM(AS19:AS$65) -> 0 | BN19: =SUMIFS($V$22:$V$30,$I$22:$I$30,BN$13)-SUM(AT19:AT$65) -> 0 | BO19: =SUMIFS($V$22:$V$30,$I$22:$I$30,BO$13)-SUM(AU19:AU$65) -> 0 | BP19: =SUMIFS($V$22:$V$30,$I$22:$I$30,BP$13)-SUM(AV19:AV$65) -> 0 | BQ19: =SUMIFS($V$22:$V$30,$I$22:$I$30,BQ$13)-SUM(AW19:AW$65) -> 0 | BR19: =SUMIFS($V$22:$V$30,$I$22:$I$30,BR$13)-SUM(AX19:AX$65) -> 0 | BS19: =SUMIFS($V$22:$V$30,$I$22:$I$30,BS$13)-SUM(AY19:AY$65) -> 0 | BT19: 0 | BU19: 217767.8989 | BV19: 495001.9083 | BW19: 381091.3695 | BX19: 269607.6076 | BY19: 38958.07397 | BZ19: 70315.22286 | CA19: 0 | CB19: 0 | CC19: 0 | CD19: 1363468.784 | CE19: 1472742.081 | CF19: 200217.383 | CG19: 449070.0872 | CH19: 374078.1434 | CI19: 273488.7406 | CJ19: 31909.55695 | CK19: 64035.72785 | CL19: 0 | CM19: 0 | CN19: 0 | CO19: 1296854.354 | CP19: 1392799.639 | CQ19: =IF($AB19<EDATE($F$5,-1), IF(INPUTS!$C$30="Yes", SUMIFS(OVERRIDE!D:D,OVERRIDE!$B:$B,$AB19), SUMIFS(CohortBreakout!M:M,CohortBreakout!$B:$B,$AB19,CohortBreakout!$A:$A,$B$5)), 0) -> 0 | CR19: =IF($AB19<EDATE($F$5,-1), IF(INPUTS!$C$30="Yes", SUMIFS(OVERRIDE!E:E,OVERRIDE!$B:$B,$AB19), SUMIFS(CohortBreakout!N:N,CohortBreakout!$B:$B,$AB19,CohortBreakout!$A:$A,$B$5)), 0) -> 0 | CS19: =IF($AB19<EDATE($F$5,-1), IF(INPUTS!$C$30="Yes", SUMIFS(OVERRIDE!F:F,OVERRIDE!$B:$B,$AB19), SUMIFS(CohortBreakout!O:O,CohortBreakout!$B:$B,$AB19,CohortBreakout!$A:$A,$B$5)), 0) -> 0 | CT19: =IF($AB19<EDATE($F$5,-1), IF(INPUTS!$C$30="Yes", SUMIFS(OVERRIDE!G:G,OVERRIDE!$B:$B,$AB19), SUMIFS(CohortBreakout!P:P,CohortBreakout!$B:$B,$AB19,CohortBreakout!$A:$A,$B$5)), 0) -> 0 | CU19: =IF($AB19<EDATE($F$5,-1), IF(INPUTS!$C$30="Yes", SUMIFS(OVERRIDE!H:H,OVERRIDE!$B:$B,$AB19), SUMIFS(CohortBreakout!Q:Q,CohortBreakout!$B:$B,$AB19,CohortBreakout!$A:$A,$B$5)), 0) -> 0 | CV19: =IF($AB19<EDATE($F$5,-1), IF(INPUTS!$C$30="Yes", SUMIFS(OVERRIDE!I:I,OVERRIDE!$B:$B,$AB19), SUMIFS(CohortBreakout!R:R,CohortBreakout!$B:$B,$AB19,CohortBreakout!$A:$A,$B$5)), 0) -> 0 | CW19: =IF($AB19<EDATE($F$5,-1), IF(INPUTS!$C$30="Yes", SUMIFS(OVERRIDE!J:J,OVERRIDE!$B:$B,$AB19), SUMIFS(CohortBreakout!S:S,CohortBreakout!$B:$B,$AB19,CohortBreakout!$A:$A,$B$5)), 0) -> 0 | CX19: =IF($AB19<EDATE($F$5,-1), IF(INPUTS!$C$30="Yes", SUMIFS(OVERRIDE!K:K,OVERRIDE!$B:$B,$AB19), SUMIFS(CohortBreakout!T:T,CohortBreakout!$B:$B,$AB19,CohortBreakout!$A:$A,$B$5)), 0) -> 0 | CY19: =IF($AB19<EDATE($F$5,-1), IF(INPUTS!$C$30="Yes", SUMIFS(OVERRIDE!L:L,OVERRIDE!$B:$B,$AB19), SUMIFS(CohortBreakout!U:U,CohortBreakout!$B:$B,$AB19,CohortBreakout!$A:$A,$B$5)), 0) -> 0 | CZ19: 7092879.771 | DA19: 29984635.81 | DB19: 16062036.01 | DC19: 11733740.44 | DD19: 7984466.052 | DE19: 9563893.147 | DF19: 0 | DG19: 0 | DH19: 0 | DI19: 64873292.03 | DJ19: 82421651.23 | DK19: 0.9963792213 | DL19: 0.9973804368 | DM19: 0.9953960724 | DN19: 0.9942611945 | DO19: 1 | DP19: 1 | DQ19: 1 | DR19: 1 | DS19: 1 | DT19: 0.9959395601 | DU19: 0.9982039826 | DV19: 13480.74516 | DW19: 15875.63687 | DX19: 19526.85065 | DY19: 28307.44476 | DZ19: 79197.91667 | EA19: 94375 | EB19: 36601.05008 | EC19: 36601.05008 | ED19: 0 | EE19: 18766.362 | EF19: 33393.90966 | EG19: 0.9963792213 | EH19: 0.9973804368 | EI19: 0.9953894624 | EJ19: 0.9942611945 | EK19: 1 | EL19: 1 | EM19: 1 | EN19: 1 | EO19: 1 | EP19: 0.9959324748 | EQ19: 0.9981910991 | ER19: 0.996382598 | ES19: 0.9973731151 | ET19: 0.9953953259 | EU19: 0.9942605477 | EV19: 1 | EW19: 1 | EX19: 1 | EY19: 1 | EZ19: 1 | FA19: 0.9959313981 | FB19: 0.9982154819 | FC19: 0.9963715753 | FD19: 0.9973825881 | FE19: 0.9953698213 | FF19: 0.9942402211 | FG19: 1 | FH19: 1 | FI19: 1 | FJ19: 1 | FK19: 1 | FL19: 0.9959192282 | FM19: 0.9981902455 | FN19: 7092879.771 | FO19: 29984635.81 | FP19: 16680130.34 | FQ19: 11733740.44 | FR19: 7986921.275 | FS19: 9564298.639 | FT19: 0 | FU19: 0 | FV19: 0 | FW19: 65491386.36 | FX19: 83042606.28 | FY19: 7395156.417 | FZ19: 27216407.44 | GA19: 15393159.61 | GB19: 10714698.75 | GC19: 7564534.959 | GD19: 9054055.684 | GE19: 0 | GF19: 0 | GG19: 0 | GH19: 60719422.22 | GI19: 77338012.86 | GJ19: 6707350.148 | GK19: 30844618.71 | GL19: 16991909.03 | GM19: 12102284.03 | GN19: 8206915.913 | GO19: 9793145.108 | GP19: 0 | GQ19: 0 | GR19: 0 | GS19: 66646161.91 | GT19: 84646222.93 | GV19: 0.9953960724 | GW19: 16062036.01 | HF19: -0.0009446397253 | HG19: -0.0004196570894
B20: 2026-12-01 | K20: CHURN BACK DISTRIBUTION FOR UNWINDING | AB20: 2026-12-01 | AC20: 0 | AD20: =IF(AB20<F$5,0,IF(COUNTIFS(AC20:AC$101,0)<=$G$5,1,0)) -> 0 | AE20: 5 | AF20: =AD20*V$19*IF(AD20=1,INDEX($O$2:$T$16,MATCH(SUM(AD20:AD$115),$M$2:$M$16,0),MATCH(INPUTS!$G$14,$O$1:$T$1,0)),0) -> 0 | AG20: =IF($J$5<>2,MIN(2*$AF20-SUM($AF20:AF20),AG$9-SUM(AG21:AG$115)),$AF20*AG$9/SUM($AG$9:$AO$9)) -> 0 | AH20: =IF($J$5<>2,MIN(2*$AF20-SUM($AF20:AG20),AH$9-SUM(AH21:AH$115)),$AF20*AH$9/SUM($AG$9:$AO$9)) -> 0 | AI20: =IF($J$5<>2,MIN(2*$AF20-SUM($AF20:AH20),AI$9-SUM(AI21:AI$115)),$AF20*AI$9/SUM($AG$9:$AO$9)) -> 0 | AJ20: =IF($J$5<>2,MIN(2*$AF20-SUM($AF20:AI20),AJ$9-SUM(AJ21:AJ$115)),$AF20*AJ$9/SUM($AG$9:$AO$9)) -> 0 | AK20: =IF($J$5<>2,MIN(2*$AF20-SUM($AF20:AJ20),AK$9-SUM(AK21:AK$115)),$AF20*AK$9/SUM($AG$9:$AO$9)) -> 0 | AL20: =IF($J$5<>2,MIN(2*$AF20-SUM($AF20:AK20),AL$9-SUM(AL21:AL$115)),$AF20*AL$9/SUM($AG$9:$AO$9)) -> 0 | AM20: =IF($J$5<>2,MIN(2*$AF20-SUM($AF20:AL20),AM$9-SUM(AM21:AM$115)),$AF20*AM$9/SUM($AG$9:$AO$9)) -> 0 | AN20: =IF($J$5<>2,MIN(2*$AF20-SUM($AF20:AM20),AN$9-SUM(AN21:AN$115)),$AF20*AN$9/SUM($AG$9:$AO$9)) -> 0 | AO20: =IF($J$5<>2,MIN(2*$AF20-SUM($AF20:AN20),AO$9-SUM(AO21:AO$115)),$AF20*AO$9/SUM($AG$9:$AO$9)) -> 0 | AP20: 0 | AQ20: 0 | AR20: 0 | AS20: 0 | AT20: 0 | AU20: 0 | AV20: 0 | AW20: 0 | AX20: 0 | AY20: 0 | AZ20: 0 | BA20: 6609061.923 | BB20: 25768448.19 | BC20: 13857727.1 | BD20: 10557357.58 | BE20: 7614821.784 | BF20: 9262913.894 | BG20: 0 | BH20: 0 | BI20: 0 | BJ20: 73670330.47 | BK20: =SUMIFS($V$22:$V$30,$I$22:$I$30,BK$13)-SUM(AQ20:AQ$65) -> 0 | BL20: =SUMIFS($V$22:$V$30,$I$22:$I$30,BL$13)-SUM(AR20:AR$65) -> 0 | BM20: =SUMIFS($V$22:$V$30,$I$22:$I$30,BM$13)-SUM(AS20:AS$65) -> 0 | BN20: =SUMIFS($V$22:$V$30,$I$22:$I$30,BN$13)-SUM(AT20:AT$65) -> 0 | BO20: =SUMIFS($V$22:$V$30,$I$22:$I$30,BO$13)-SUM(AU20:AU$65) -> 0 | BP20: =SUMIFS($V$22:$V$30,$I$22:$I$30,BP$13)-SUM(AV20:AV$65) -> 0 | BQ20: =SUMIFS($V$22:$V$30,$I$22:$I$30,BQ$13)-SUM(AW20:AW$65) -> 0 | BR20: =SUMIFS($V$22:$V$30,$I$22:$I$30,BR$13)-SUM(AX20:AX$65) -> 0 | BS20: =SUMIFS($V$22:$V$30,$I$22:$I$30,BS$13)-SUM(AY20:AY$65) -> 0 | BT20: 0 | BU20: 217221.8972 | BV20: 494220.2616 | BW20: 380905.5415 | BX20: 269698.9094 | BY20: 38927.25845 | BZ20: 70269.14942 | CA20: 0 | CB20: 0 | CC20: 0 | CD20: 1362046.61 | CE20: 1471243.018 | CF20: 199707.315 | CG20: 448371.9083 | CH20: 373911.3007 | CI20: 273581.3605 | CJ20: 31881.25981 | CK20: 63993.39686 | CL20: 0 | CM20: 0 | CN20: 0 | CO20: 1295571.884 | CP20: 1391446.541 | CQ20: =IF($AB20<EDATE($F$5,-1), IF(INPUTS!$C$30="Yes", SUMIFS(OVERRIDE!D:D,OVERRIDE!$B:$B,$AB20), SUMIFS(CohortBreakout!M:M,CohortBreakout!$B:$B,$AB20,CohortBreakout!$A:$A,$B$5)), 0) -> 0 | CR20: =IF($AB20<EDATE($F$5,-1), IF(INPUTS!$C$30="Yes", SUMIFS(OVERRIDE!E:E,OVERRIDE!$B:$B,$AB20), SUMIFS(CohortBreakout!N:N,CohortBreakout!$B:$B,$AB20,CohortBreakout!$A:$A,$B$5)), 0) -> 0 | CS20: =IF($AB20<EDATE($F$5,-1), IF(INPUTS!$C$30="Yes", SUMIFS(OVERRIDE!F:F,OVERRIDE!$B:$B,$AB20), SUMIFS(CohortBreakout!O:O,CohortBreakout!$B:$B,$AB20,CohortBreakout!$A:$A,$B$5)), 0) -> 0 | CT20: =IF($AB20<EDATE($F$5,-1), IF(INPUTS!$C$30="Yes", SUMIFS(OVERRIDE!G:G,OVERRIDE!$B:$B,$AB20), SUMIFS(CohortBreakout!P:P,CohortBreakout!$B:$B,$AB20,CohortBreakout!$A:$A,$B$5)), 0) -> 0 | CU20: =IF($AB20<EDATE($F$5,-1), IF(INPUTS!$C$30="Yes", SUMIFS(OVERRIDE!H:H,OVERRIDE!$B:$B,$AB20), SUMIFS(CohortBreakout!Q:Q,CohortBreakout!$B:$B,$AB20,CohortBreakout!$A:$A,$B$5)), 0) -> 0 | CV20: =IF($AB20<EDATE($F$5,-1), IF(INPUTS!$C$30="Yes", SUMIFS(OVERRIDE!I:I,OVERRIDE!$B:$B,$AB20), SUMIFS(CohortBreakout!R:R,CohortBreakout!$B:$B,$AB20,CohortBreakout!$A:$A,$B$5)), 0) -> 0 | CW20: =IF($AB20<EDATE($F$5,-1), IF(INPUTS!$C$30="Yes", SUMIFS(OVERRIDE!J:J,OVERRIDE!$B:$B,$AB20), SUMIFS(CohortBreakout!S:S,CohortBreakout!$B:$B,$AB20,CohortBreakout!$A:$A,$B$5)), 0) -> 0 | CX20: =IF($AB20<EDATE($F$5,-1), IF(INPUTS!$C$30="Yes", SUMIFS(OVERRIDE!K:K,OVERRIDE!$B:$B,$AB20), SUMIFS(CohortBreakout!T:T,CohortBreakout!$B:$B,$AB20,CohortBreakout!$A:$A,$B$5)), 0) -> 0 | CY20: =IF($AB20<EDATE($F$5,-1), IF(INPUTS!$C$30="Yes", SUMIFS(OVERRIDE!L:L,OVERRIDE!$B:$B,$AB20), SUMIFS(CohortBreakout!U:U,CohortBreakout!$B:$B,$AB20,CohortBreakout!$A:$A,$B$5)), 0) -> 0 | CZ20: 7074819.188 | DA20: 29938005.81 | DB20: 16054855.94 | DC20: 11737714.19 | DD20: 7977389.238 | DE20: 9557571.321 | DF20: 0 | DG20: 0 | DH20: 0 | DI20: 64805395.13 | DJ20: 82340355.69 | DK20: 0.996379298 | DL20: 0.9973804848 | DM20: 0.9953959331 | DN20: 0.9942613123 | DO20: 1 | DP20: 1 | DQ20: 1 | DR20: 1 | DS20: 1 | DT20: 0.9959385237 | DU20: 0.9982036014 | DV20: 13480.7462 | DW20: 15875.63764 | DX20: 19526.84792 | DY20: 28307.44811 | DZ20: 79197.91667 | EA20: 94375 | EB20: 36601.05008 | EC20: 36601.05008 | ED20: 0 | EE20: 18770.41621 | EF20: 33400.54361 | EG20: 0.996379298 | EH20: 0.9973804848 | EI20: 0.9953893301 | EJ20: 0.9942613123 | EK20: 1 | EL20: 1 | EM20: 1 | EN20: 1 | EO20: 1 | EP20: 0.9959314422 | EQ20: 0.9981906995 | ER20: 0.9963825461 | ES20: 0.9973731442 | ET20: 0.9953950768 | EU20: 0.9942605477 | EV20: 1 | EW20: 1 | EX20: 1 | EY20: 1 | EZ20: 1 | FA20: 0.9959302373 | FB20: 0.99821509 | FC20: 0.9963588217 | FD20: 0.9973800947 | FE20: 0.9953597968 | FF20: 0.9942277571 | FG20: 1 | FH20: 1 | FI20: 1 | FJ20: 1 | FK20: 1 | FL20: 0.9959102578 | FM20: 0.9981862993 | FN20: 7074819.188 | FO20: 29938005.81 | FP20: 16673159.6 | FQ20: 11737714.19 | FR20: 7979742.557 | FS20: 9557959.936 | FT20: 0 | FU20: 0 | FV20: 0 | FW20: 65423698.79 | FX20: 82961401.28 | FY20: 7376763.413 | FZ20: 27171293.4 | GA20: 15386343.18 | GB20: 10718433.14 | GC20: 7557841.47 | GD20: 9048023.41 | GE20: 0 | GF20: 0 | GG20: 0 | GH20: 60652833.13 | GI20: 77258698.01 | GJ20: 6690269.052 | GK20: 30798821.58 | GL20: 16985156.66 | GM20: 12106281.93 | GN20: 8199588.691 | GO20: 9786711.657 | GP20: 0 | GQ20: 0 | GR20: 0 | GS20: 66580529.21 | GT20: 84566829.56 | GV20: 0.9953959331 | GW20: 16054855.94 | HF20: -0.002097997517 | HG20: -0.0009300330057
B21: 2026-11-01 | E21: Data Source | F21: Sim as % | G21: Members Mar 23 | H21: % Lost Coverage | I21: Cohort | J21: % Churn | K21: =I22 -> CHIP | L21: =I23 -> Children | M21: =I24 -> Expansion | N21: =I25 -> Adult | O21: =I26 -> Aged | P21: =I27 -> Disabled | Q21: =I28 -> COVID New | R21: =I29 -> Unknown | S21: =I30 ->  | T21: Accounted | U21: Stayers | V21: Leavers | W21: RankingFx | X21: Custom | Y21: Rank | AB21: 2026-11-01 | AC21: 0 | AD21: =IF(AB21<F$5,0,IF(COUNTIFS(AC21:AC$101,0)<=$G$5,1,0)) -> 0 | AE21: 5 | AF21: =AD21*V$19*IF(AD21=1,INDEX($O$2:$T$16,MATCH(SUM(AD21:AD$115),$M$2:$M$16,0),MATCH(INPUTS!$G$14,$O$1:$T$1,0)),0) -> 0 | AG21: =IF($J$5<>2,MIN(2*$AF21-SUM($AF21:AF21),AG$9-SUM(AG22:AG$115)),$AF21*AG$9/SUM($AG$9:$AO$9)) -> 0 | AH21: =IF($J$5<>2,MIN(2*$AF21-SUM($AF21:AG21),AH$9-SUM(AH22:AH$115)),$AF21*AH$9/SUM($AG$9:$AO$9)) -> 0 | AI21: =IF($J$5<>2,MIN(2*$AF21-SUM($AF21:AH21),AI$9-SUM(AI22:AI$115)),$AF21*AI$9/SUM($AG$9:$AO$9)) -> 0 | AJ21: =IF($J$5<>2,MIN(2*$AF21-SUM($AF21:AI21),AJ$9-SUM(AJ22:AJ$115)),$AF21*AJ$9/SUM($AG$9:$AO$9)) -> 0 | AK21: =IF($J$5<>2,MIN(2*$AF21-SUM($AF21:AJ21),AK$9-SUM(AK22:AK$115)),$AF21*AK$9/SUM($AG$9:$AO$9)) -> 0 | AL21: =IF($J$5<>2,MIN(2*$AF21-SUM($AF21:AK21),AL$9-SUM(AL22:AL$115)),$AF21*AL$9/SUM($AG$9:$AO$9)) -> 0 | AM21: =IF($J$5<>2,MIN(2*$AF21-SUM($AF21:AL21),AM$9-SUM(AM22:AM$115)),$AF21*AM$9/SUM($AG$9:$AO$9)) -> 0 | AN21: =IF($J$5<>2,MIN(2*$AF21-SUM($AF21:AM21),AN$9-SUM(AN22:AN$115)),$AF21*AN$9/SUM($AG$9:$AO$9)) -> 0 | AO21: =IF($J$5<>2,MIN(2*$AF21-SUM($AF21:AN21),AO$9-SUM(AO22:AO$115)),$AF21*AO$9/SUM($AG$9:$AO$9)) -> 0 | AP21: 0 | AQ21: 0 | AR21: 0 | AS21: 0 | AT21: 0 | AU21: 0 | AV21: 0 | AW21: 0 | AX21: 0 | AY21: 0 | AZ21: 0 | BA21: 6609061.923 | BB21: 25768448.19 | BC21: 13857727.1 | BD21: 10557357.58 | BE21: 7614821.784 | BF21: 9262913.894 | BG21: 0 | BH21: 0 | BI21: 0 | BJ21: 73670330.47 | BK21: =SUMIFS($V$22:$V$30,$I$22:$I$30,BK$13)-SUM(AQ21:AQ$65) -> 0 | BL21: =SUMIFS($V$22:$V$30,$I$22:$I$30,BL$13)-SUM(AR21:AR$65) -> 0 | BM21: =SUMIFS($V$22:$V$30,$I$22:$I$30,BM$13)-SUM(AS21:AS$65) -> 0 | BN21: =SUMIFS($V$22:$V$30,$I$22:$I$30,BN$13)-SUM(AT21:AT$65) -> 0 | BO21: =SUMIFS($V$22:$V$30,$I$22:$I$30,BO$13)-SUM(AU21:AU$65) -> 0 | BP21: =SUMIFS($V$22:$V$30,$I$22:$I$30,BP$13)-SUM(AV21:AV$65) -> 0 | BQ21: =SUMIFS($V$22:$V$30,$I$22:$I$30,BQ$13)-SUM(AW21:AW$65) -> 0 | BR21: =SUMIFS($V$22:$V$30,$I$22:$I$30,BR$13)-SUM(AX21:AX$65) -> 0 | BS21: =SUMIFS($V$22:$V$30,$I$22:$I$30,BS$13)-SUM(AY21:AY$65) -> 0 | BT21: 0 | BU21: 216676.9866 | BV21: 493440.0346 | BW21: 380720.1959 | BX21: 269790.2412 | BY21: 38896.45717 | BZ21: 70223.10391 | CA21: 0 | CB21: 0 | CC21: 0 | CD21: 1360627.458 | CE21: 1469747.019 | CF21: 199198.292 | CG21: 447674.998 | CH21: 373744.9101 | CI21: 273674.0118 | CJ21: 31852.97276 | CK21: 63951.09109 | CL21: 0 | CM21: 0 | CN21: 0 | CO21: 1294292.212 | CP21: 1390096.276 | CQ21: =IF($AB21<EDATE($F$5,-1), IF(INPUTS!$C$30="Yes", SUMIFS(OVERRIDE!D:D,OVERRIDE!$B:$B,$AB21), SUMIFS(CohortBreakout!M:M,CohortBreakout!$B:$B,$AB21,CohortBreakout!$A:$A,$B$5)), 0) -> 0 | CR21: =IF($AB21<EDATE($F$5,-1), IF(INPUTS!$C$30="Yes", SUMIFS(OVERRIDE!E:E,OVERRIDE!$B:$B,$AB21), SUMIFS(CohortBreakout!N:N,CohortBreakout!$B:$B,$AB21,CohortBreakout!$A:$A,$B$5)), 0) -> 0 | CS21: =IF($AB21<EDATE($F$5,-1), IF(INPUTS!$C$30="Yes", SUMIFS(OVERRIDE!F:F,OVERRIDE!$B:$B,$AB21), SUMIFS(CohortBreakout!O:O,CohortBreakout!$B:$B,$AB21,CohortBreakout!$A:$A,$B$5)), 0) -> 0 | CT21: =IF($AB21<EDATE($F$5,-1), IF(INPUTS!$C$30="Yes", SUMIFS(OVERRIDE!G:G,OVERRIDE!$B:$B,$AB21), SUMIFS(CohortBreakout!P:P,CohortBreakout!$B:$B,$AB21,CohortBreakout!$A:$A,$B$5)), 0) -> 0 | CU21: =IF($AB21<EDATE($F$5,-1), IF(INPUTS!$C$30="Yes", SUMIFS(OVERRIDE!H:H,OVERRIDE!$B:$B,$AB21), SUMIFS(CohortBreakout!Q:Q,CohortBreakout!$B:$B,$AB21,CohortBreakout!$A:$A,$B$5)), 0) -> 0 | CV21: =IF($AB21<EDATE($F$5,-1), IF(INPUTS!$C$30="Yes", SUMIFS(OVERRIDE!I:I,OVERRIDE!$B:$B,$AB21), SUMIFS(CohortBreakout!R:R,CohortBreakout!$B:$B,$AB21,CohortBreakout!$A:$A,$B$5)), 0) -> 0 | CW21: =IF($AB21<EDATE($F$5,-1), IF(INPUTS!$C$30="Yes", SUMIFS(OVERRIDE!J:J,OVERRIDE!$B:$B,$AB21), SUMIFS(CohortBreakout!S:S,CohortBreakout!$B:$B,$AB21,CohortBreakout!$A:$A,$B$5)), 0) -> 0 | CX21: =IF($AB21<EDATE($F$5,-1), IF(INPUTS!$C$30="Yes", SUMIFS(OVERRIDE!K:K,OVERRIDE!$B:$B,$AB21), SUMIFS(CohortBreakout!T:T,CohortBreakout!$B:$B,$AB21,CohortBreakout!$A:$A,$B$5)), 0) -> 0 | CY21: =IF($AB21<EDATE($F$5,-1), IF(INPUTS!$C$30="Yes", SUMIFS(OVERRIDE!L:L,OVERRIDE!$B:$B,$AB21), SUMIFS(CohortBreakout!U:U,CohortBreakout!$B:$B,$AB21,CohortBreakout!$A:$A,$B$5)), 0) -> 0 | CZ21: 7056795.582 | DA21: 29891460.55 | DB21: 16047695.31 | DC21: 11741689.29 | DD21: 7970314.952 | DE21: 9551253.262 | DF21: 0 | DG21: 0 | DH21: 0 | DI21: 64737640.73 | DJ21: 82259208.95 | DK21: 0.9963795059 | DL21: 0.9973805434 | DM21: 0.995395822 | DN21: 0.9942614579 | DO21: 1 | DP21: 1 | DQ21: 1 | DR21: 1 | DS21: 1 | DT21: 0.9959375163 | DU21: 0.9982032316 | DV21: 13480.74901 | DW21: 15875.63857 | DX21: 19526.84574 | DY21: 28307.45226 | DZ21: 79197.91667 | EA21: 94375 | EB21: 36601.05008 | EC21: 36601.05008 | ED21: 0 | EE21: 18774.47309 | EF21: 33407.16493 | EG21: 0.9963795059 | EH21: 0.9973805434 | EI21: 0.99538923 | EJ21: 0.9942614579 | EK21: 1 | EL21: 1 | EM21: 1 | EN21: 1 | EO21: 1 | EP21: 0.9959304397 | EQ21: 0.9981903119 | ER21: 0.996382494 | ES21: 0.9973731734 | ET21: 0.9953948278 | EU21: 0.9942605477 | EV21: 1 | EW21: 1 | EX21: 1 | EY21: 1 | EZ21: 1 | FA21: 0.9959290763 | FB21: 0.9982146965 | FC21: 0.996338256 | FD21: 0.997376123 | FE21: 0.9953504679 | FF21: 0.9942147776 | FG21: 1 | FH21: 1 | FI21: 1 | FJ21: 1 | FK21: 1 | FL21: 0.995900187 | FM21: 0.9981818641 | FN21: 7056795.582 | FO21: 29891460.55 | FP21: 16666208.36 | FQ21: 11741689.29 | FR21: 7972566.356 | FS21: 9551625.006 | FT21: 0 | FU21: 0 | FV21: 0 | FW21: 65356153.78 | FX21: 82880345.15 | FY21: 7358408.953 | FZ21: 27126265.08 | GA21: 15379546.6 | GB21: 10722168.83 | GC21: 7551150.408 | GD21: 9041994.765 | GE21: 0 | GF21: 0 | GG21: 0 | GH21: 60586389.46 | GI21: 77179534.63 | GJ21: 6673251.146 | GK21: 30753123.04 | GL21: 16978439.31 | GM21: 12110290.32 | GN21: 8192264.596 | GO21: 9780282.477 | GP21: 0 | GQ21: 0 | GR21: 0 | GS21: 66515103.82 | GT21: 84487650.89 | GV21: 0.995395822 | GW21: 16047695.31 | HF21: -0.003319467293 | HG21: -0.001474268204
B22: 2026-10-01 | E22: =IF(INPUTS!$C$30="No","CMS",IF(INPUTS!$C$30="Yes","Override","error")) -> CMS | F22: =IFERROR(INPUTS!R21/INPUTS!Q21,0) -> 0 | G22: =$CZ$65 -> 7059078.156 | H22: =MIN(1,MAX(0,INPUTS!Q21+CHOOSE(STscen,0,1,-1)*INPUTS!R21)) -> 0.06375 | I22: =INPUTS!H21 -> CHIP | J22: =MIN(1,MAX(0,CHOOSE(STscen,1,1-F22,1+F22)*INPUTS!T21)) -> 0.5114624506 | K22: =IF(K$21="",0,(INPUTS!N33/SUM(INPUTS!$N33:$V33))) -> 0.834859272 | L22: =IF(L$21="",0,(INPUTS!O33/SUM(INPUTS!$N33:$V33))) -> 0.139143212 | M22: =IF(M$21="",0,(INPUTS!P33/SUM(INPUTS!$N33:$V33))) -> 0.02599751601 | N22: =IF(N$21="",0,(INPUTS!Q33/SUM(INPUTS!$N33:$V33))) -> 0 | O22: =IF(O$21="",0,(INPUTS!R33/SUM(INPUTS!$N33:$V33))) -> 0 | P22: =IF(P$21="",0,(INPUTS!S33/SUM(INPUTS!$N33:$V33))) -> 0 | Q22: =IF(Q$21="",0,(INPUTS!T33/SUM(INPUTS!$N33:$V33))) -> 0 | R22: =IF(R$21="",0,(INPUTS!U33/SUM(INPUTS!$N33:$V33))) -> 0 | S22: =IF(S$21="",0,(INPUTS!V33/SUM(INPUTS!$N33:$V33))) -> 0 | T22: =SUM(K22:S22) -> 1 | U22: =(1-H22)*G22 -> 6609061.923 | V22: =G22-U22 -> 450016.2324 | W22: =H22*10+V22/10000000+G22/100000000 -> 0.7530924048 | X22: =INPUTS!P21+RAND()*0.00001 -> 6.000005606 | Y22: =IF($J$5=3,RANK(X22,X$22:X$30,1),RANK(W22,W$22:W$30,0)) -> 8 | AB22: 2026-10-01 | AC22: 0 | AD22: =IF(AB22<F$5,0,IF(COUNTIFS(AC22:AC$101,0)<=$G$5,1,0)) -> 0 | AE22: 5 | AF22: =AD22*V$19*IF(AD22=1,INDEX($O$2:$T$16,MATCH(SUM(AD22:AD$115),$M$2:$M$16,0),MATCH(INPUTS!$G$14,$O$1:$T$1,0)),0) -> 0 | AG22: =IF($J$5<>2,MIN(2*$AF22-SUM($AF22:AF22),AG$9-SUM(AG23:AG$115)),$AF22*AG$9/SUM($AG$9:$AO$9)) -> 0 | AH22: =IF($J$5<>2,MIN(2*$AF22-SUM($AF22:AG22),AH$9-SUM(AH23:AH$115)),$AF22*AH$9/SUM($AG$9:$AO$9)) -> 0 | AI22: =IF($J$5<>2,MIN(2*$AF22-SUM($AF22:AH22),AI$9-SUM(AI23:AI$115)),$AF22*AI$9/SUM($AG$9:$AO$9)) -> 0 | AJ22: =IF($J$5<>2,MIN(2*$AF22-SUM($AF22:AI22),AJ$9-SUM(AJ23:AJ$115)),$AF22*AJ$9/SUM($AG$9:$AO$9)) -> 0 | AK22: =IF($J$5<>2,MIN(2*$AF22-SUM($AF22:AJ22),AK$9-SUM(AK23:AK$115)),$AF22*AK$9/SUM($AG$9:$AO$9)) -> 0 | AL22: =IF($J$5<>2,MIN(2*$AF22-SUM($AF22:AK22),AL$9-SUM(AL23:AL$115)),$AF22*AL$9/SUM($AG$9:$AO$9)) -> 0 | AM22: =IF($J$5<>2,MIN(2*$AF22-SUM($AF22:AL22),AM$9-SUM(AM23:AM$115)),$AF22*AM$9/SUM($AG$9:$AO$9)) -> 0 | AN22: =IF($J$5<>2,MIN(2*$AF22-SUM($AF22:AM22),AN$9-SUM(AN23:AN$115)),$AF22*AN$9/SUM($AG$9:$AO$9)) -> 0 | AO22: =IF($J$5<>2,MIN(2*$AF22-SUM($AF22:AN22),AO$9-SUM(AO23:AO$115)),$AF22*AO$9/SUM($AG$9:$AO$9)) -> 0 | AP22: 0 | AQ22: 0 | AR22: 0 | AS22: 0 | AT22: 0 | AU22: 0 | AV22: 0 | AW22: 0 | AX22: 0 | AY22: 0 | AZ22: 0 | BA22: 6609061.923 | BB22: 25768448.19 | BC22: 13857727.1 | BD22: 10557357.58 | BE22: 7614821.784 | BF22: 9262913.894 | BG22: 0 | BH22: 0 | BI22: 0 | BJ22: 73670330.47 | BK22: =SUMIFS($V$22:$V$30,$I$22:$I$30,BK$13)-SUM(AQ22:AQ$65) -> 0 | BL22: =SUMIFS($V$22:$V$30,$I$22:$I$30,BL$13)-SUM(AR22:AR$65) -> 0 | BM22: =SUMIFS($V$22:$V$30,$I$22:$I$30,BM$13)-SUM(AS22:AS$65) -> 0 | BN22: =SUMIFS($V$22:$V$30,$I$22:$I$30,BN$13)-SUM(AT22:AT$65) -> 0 | BO22: =SUMIFS($V$22:$V$30,$I$22:$I$30,BO$13)-SUM(AU22:AU$65) -> 0 | BP22: =SUMIFS($V$22:$V$30,$I$22:$I$30,BP$13)-SUM(AV22:AV$65) -> 0 | BQ22: =SUMIFS($V$22:$V$30,$I$22:$I$30,BQ$13)-SUM(AW22:AW$65) -> 0 | BR22: =SUMIFS($V$22:$V$30,$I$22:$I$30,BR$13)-SUM(AX22:AX$65) -> 0 | BS22: =SUMIFS($V$22:$V$30,$I$22:$I$30,BS$13)-SUM(AY22:AY$65) -> 0 | BT22: 0 | BU22: 216133.2665 | BV22: 492661.2736 | BW22: 380535.3731 | BX22: 269881.6232 | BY22: 38865.67156 | BZ22: 70177.08677 | CA22: 0 | CB22: 0 | CC22: 0 | CD22: 1359211.536 | CE22: 1468254.295 | CF22: 198690.3097 | CG22: 446979.3535 | CH22: 373578.9699 | CI22: 273766.6942 | CJ22: 31824.69579 | CK22: 63908.81053 | CL22: 0 | CM22: 0 | CN22: 0 | CO22: 1293015.327 | CP22: 1388748.834 | CQ22: =IF($AB22<EDATE($F$5,-1), IF(INPUTS!$C$30="Yes", SUMIFS(OVERRIDE!D:D,OVERRIDE!$B:$B,$AB22), SUMIFS(CohortBreakout!M:M,CohortBreakout!$B:$B,$AB22,CohortBreakout!$A:$A,$B$5)), 0) -> 0 | CR22: =IF($AB22<EDATE($F$5,-1), IF(INPUTS!$C$30="Yes", SUMIFS(OVERRIDE!E:E,OVERRIDE!$B:$B,$AB22), SUMIFS(CohortBreakout!N:N,CohortBreakout!$B:$B,$AB22,CohortBreakout!$A:$A,$B$5)), 0) -> 0 | CS22: =IF($AB22<EDATE($F$5,-1), IF(INPUTS!$C$30="Yes", SUMIFS(OVERRIDE!F:F,OVERRIDE!$B:$B,$AB22), SUMIFS(CohortBreakout!O:O,CohortBreakout!$B:$B,$AB22,CohortBreakout!$A:$A,$B$5)), 0) -> 0 | CT22: =IF($AB22<EDATE($F$5,-1), IF(INPUTS!$C$30="Yes", SUMIFS(OVERRIDE!G:G,OVERRIDE!$B:$B,$AB22), SUMIFS(CohortBreakout!P:P,CohortBreakout!$B:$B,$AB22,CohortBreakout!$A:$A,$B$5)), 0) -> 0 | CU22: =IF($AB22<EDATE($F$5,-1), IF(INPUTS!$C$30="Yes", SUMIFS(OVERRIDE!H:H,OVERRIDE!$B:$B,$AB22), SUMIFS(CohortBreakout!Q:Q,CohortBreakout!$B:$B,$AB22,CohortBreakout!$A:$A,$B$5)), 0) -> 0 | CV22: =IF($AB22<EDATE($F$5,-1), IF(INPUTS!$C$30="Yes", SUMIFS(OVERRIDE!I:I,OVERRIDE!$B:$B,$AB22), SUMIFS(CohortBreakout!R:R,CohortBreakout!$B:$B,$AB22,CohortBreakout!$A:$A,$B$5)), 0) -> 0 | CW22: =IF($AB22<EDATE($F$5,-1), IF(INPUTS!$C$30="Yes", SUMIFS(OVERRIDE!J:J,OVERRIDE!$B:$B,$AB22), SUMIFS(CohortBreakout!S:S,CohortBreakout!$B:$B,$AB22,CohortBreakout!$A:$A,$B$5)), 0) -> 0 | CX22: =IF($AB22<EDATE($F$5,-1), IF(INPUTS!$C$30="Yes", SUMIFS(OVERRIDE!K:K,OVERRIDE!$B:$B,$AB22), SUMIFS(CohortBreakout!T:T,CohortBreakout!$B:$B,$AB22,CohortBreakout!$A:$A,$B$5)), 0) -> 0 | CY22: =IF($AB22<EDATE($F$5,-1), IF(INPUTS!$C$30="Yes", SUMIFS(OVERRIDE!L:L,OVERRIDE!$B:$B,$AB22), SUMIFS(CohortBreakout!U:U,CohortBreakout!$B:$B,$AB22,CohortBreakout!$A:$A,$B$5)), 0) -> 0 | CZ22: 7038808.905 | DA22: 29844999.87 | DB22: 16040554.08 | DC22: 11745665.74 | DD22: 7963243.191 | DE22: 9544938.969 | DF22: 0 | DG22: 0 | DH22: 0 | DI22: 64670028.6 | DJ22: 82178210.76 | DK22: 0.9963799246 | DL22: 0.9973806188 | DM22: 0.9953957204 | DN22: 0.9942616169 | DO22: 1 | DP22: 1 | DQ22: 1 | DR22: 1 | DS22: 1 | DT22: 0.9959365379 | DU22: 0.9982028733 | DV22: 13480.75468 | DW22: 15875.63977 | DX22: 19526.84375 | DY22: 28307.45679 | DZ22: 79197.91667 | EA22: 94375 | EB22: 36601.05008 | EC22: 36601.05008 | ED22: 0 | EE22: 18778.53262 | EF22: 33413.77358 | EG22: 0.9963799246 | EH22: 0.9973806188 | EI22: 0.9953891443 | EJ22: 0.9942616169 | EK22: 1 | EL22: 1 | EM22: 1 | EN22: 1 | EO22: 1 | EP22: 0.9959294673 | EQ22: 0.9981899363 | ER22: 0.9963824418 | ES22: 0.9973732027 | ET22: 0.995394579 | EU22: 0.9942605477 | EV22: 1 | EW22: 1 | EX22: 1 | EY22: 1 | EZ22: 1 | FA22: 0.995927915 | FB22: 0.9982143015 | FC22: 0.9963076446 | FD22: 0.9973703197 | FE22: 0.9953406961 | FF22: 0.994201701 | FG22: 1 | FH22: 1 | FI22: 1 | FJ22: 1 | FK22: 1 | FL22: 0.9958885351 | FM22: 0.9981767269 | FN22: 7038808.905 | FO22: 29844999.87 | FP22: 16659276.6 | FQ22: 11745665.74 | FR22: 7965392.666 | FS22: 9545293.844 | FT22: 0 | FU22: 0 | FV22: 0 | FW22: 65288751.12 | FX22: 82799437.63 | FY22: 7340092.959 | FZ22: 27081322.32 | GA22: 15372769.82 | GB22: 10725905.82 | GC22: 7544461.767 | GD22: 9035969.747 | GE22: 0 | GF22: 0 | GG22: 0 | GH22: 60520090.92 | GI22: 77100522.44 | GJ22: 6656304.545 | GK22: 30707526.73 | GL22: 16971759.9 | GM22: 12114310.77 | GN22: 8184943.728 | GO22: 9773857.675 | GP22: 0 | GQ22: 0 | GR22: 0 | GS22: 66449901.94 | GT22: 84408703.35 | GV22: 0.9953957204 | GW22: 16040554.08 | HF22: -0.00529820404 | HG22: -0.002360304741
B23: 2026-09-01 | E23: =IF(INPUTS!$C$30="No","CMS",IF(INPUTS!$C$30="Yes","Override","error")) -> CMS | F23: =IFERROR(INPUTS!R22/INPUTS!Q22,0) -> 0.4255319149 | G23: =$DA$65 -> 33684246 | H23: =MIN(1,MAX(0,INPUTS!Q22+CHOOSE(STscen,0,1,-1)*INPUTS!R22)) -> 0.235 | I23: =INPUTS!H22 -> Children | J23: =MIN(1,MAX(0,CHOOSE(STscen,1,1-F23,1+F23)*INPUTS!T22)) -> 0.6372469636 | K23: =IF(K$21="",0,(INPUTS!N34/SUM(INPUTS!$N34:$V34))) -> 0.0500222321 | L23: =IF(L$21="",0,(INPUTS!O34/SUM(INPUTS!$N34:$V34))) -> 0.89439751 | M23: =IF(M$21="",0,(INPUTS!P34/SUM(INPUTS!$N34:$V34))) -> 0.05558025789 | N23: =IF(N$21="",0,(INPUTS!Q34/SUM(INPUTS!$N34:$V34))) -> 0 | O23: =IF(O$21="",0,(INPUTS!R34/SUM(INPUTS!$N34:$V34))) -> 0 | P23: =IF(P$21="",0,(INPUTS!S34/SUM(INPUTS!$N34:$V34))) -> 0 | Q23: =IF(Q$21="",0,(INPUTS!T34/SUM(INPUTS!$N34:$V34))) -> 0 | R23: =IF(R$21="",0,(INPUTS!U34/SUM(INPUTS!$N34:$V34))) -> 0 | S23: =IF(S$21="",0,(INPUTS!V34/SUM(INPUTS!$N34:$V34))) -> 0 | T23: =SUM(K23:S23) -> 1 | U23: 25768448.19 | V23: 7915797.809 | W23: 3.478422241 | X23: =INPUTS!P22+RAND()*0.00001 -> 5.000009678 | Y23: =IF($J$5=3,RANK(X23,X$22:X$30,1),RANK(W23,W$22:W$30,0)) -> 4 | AB23: 2026-09-01 | AC23: 0 | AD23: =IF(AB23<F$5,0,IF(COUNTIFS(AC23:AC$101,0)<=$G$5,1,0)) -> 0 | AE23: 5 | AF23: =AD23*V$19*IF(AD23=1,INDEX($O$2:$T$16,MATCH(SUM(AD23:AD$115),$M$2:$M$16,0),MATCH(INPUTS!$G$14,$O$1:$T$1,0)),0) -> 0 | AG23: =IF($J$5<>2,MIN(2*$AF23-SUM($AF23:AF23),AG$9-SUM(AG24:AG$115)),$AF23*AG$9/SUM($AG$9:$AO$9)) -> 0 | AH23: =IF($J$5<>2,MIN(2*$AF23-SUM($AF23:AG23),AH$9-SUM(AH24:AH$115)),$AF23*AH$9/SUM($AG$9:$AO$9)) -> 0 | AI23: =IF($J$5<>2,MIN(2*$AF23-SUM($AF23:AH23),AI$9-SUM(AI24:AI$115)),$AF23*AI$9/SUM($AG$9:$AO$9)) -> 0 | AJ23: =IF($J$5<>2,MIN(2*$AF23-SUM($AF23:AI23),AJ$9-SUM(AJ24:AJ$115)),$AF23*AJ$9/SUM($AG$9:$AO$9)) -> 0 | AK23: =IF($J$5<>2,MIN(2*$AF23-SUM($AF23:AJ23),AK$9-SUM(AK24:AK$115)),$AF23*AK$9/SUM($AG$9:$AO$9)) -> 0 | AL23: =IF($J$5<>2,MIN(2*$AF23-SUM($AF23:AK23),AL$9-SUM(AL24:AL$115)),$AF23*AL$9/SUM($AG$9:$AO$9)) -> 0 | AM23: =IF($J$5<>2,MIN(2*$AF23-SUM($AF23:AL23),AM$9-SUM(AM24:AM$115)),$AF23*AM$9/SUM($AG$9:$AO$9)) -> 0 | AN23: =IF($J$5<>2,MIN(2*$AF23-SUM($AF23:AM23),AN$9-SUM(AN24:AN$115)),$AF23*AN$9/SUM($AG$9:$AO$9)) -> 0 | AO23: =IF($J$5<>2,MIN(2*$AF23-SUM($AF23:AN23),AO$9-SUM(AO24:AO$115)),$AF23*AO$9/SUM($AG$9:$AO$9)) -> 0 | AP23: 0 | AQ23: =SUMIFS($AG23:$AO23,$AG$13:$AO$13,AQ$13) -> 0 | AR23: 0 | AS23: 0 | AT23: 0 | AU23: 0 | AV23: 0 | AW23: 0 | AX23: 0 | AY23: 0 | AZ23: 0 | BA23: 6609061.923 | BB23: 25768448.19 | BC23: 13857727.1 | BD23: 10557357.58 | BE23: 7614821.784 | BF23: 9262913.894 | BG23: 0 | BH23: 0 | BI23: 0 | BJ23: 73670330.47 | BK23: =SUMIFS($V$22:$V$30,$I$22:$I$30,BK$13)-SUM(AQ23:AQ$65) -> 0 | BL23: =SUMIFS($V$22:$V$30,$I$22:$I$30,BL$13)-SUM(AR23:AR$65) -> 0 | BM23: =SUMIFS($V$22:$V$30,$I$22:$I$30,BM$13)-SUM(AS23:AS$65) -> 0 | BN23: =SUMIFS($V$22:$V$30,$I$22:$I$30,BN$13)-SUM(AT23:AT$65) -> 0 | BO23: =SUMIFS($V$22:$V$30,$I$22:$I$30,BO$13)-SUM(AU23:AU$65) -> 0 | BP23: =SUMIFS($V$22:$V$30,$I$22:$I$30,BP$13)-SUM(AV23:AV$65) -> 0 | BQ23: =SUMIFS($V$22:$V$30,$I$22:$I$30,BQ$13)-SUM(AW23:AW$65) -> 0 | BR23: =SUMIFS($V$22:$V$30,$I$22:$I$30,BR$13)-SUM(AX23:AX$65) -> 0 | BS23: =SUMIFS($V$22:$V$30,$I$22:$I$30,BS$13)-SUM(AY23:AY$65) -> 0 | BT23: 0 | BU23: 215590.8238 | BV23: 491884.0097 | BW23: 380351.0938 | BX23: 269973.0654 | BY23: 38834.90232 | BZ23: 70131.09825 | CA23: 0 | CB23: 0 | CC23: 0 | CD23: 1357798.993 | CE23: 1466764.993 | CF23: 198183.3608 | CG23: 446284.9711 | CH23: 373413.4779 | CI23: 273859.4068 | CJ23: 31796.42887 | CK23: 63866.55515 | CL23: 0 | CM23: 0 | CN23: 0 | CO23: 1291741.217 | CP23: 1387404.201 | CQ23: =IF($AB23<EDATE($F$5,-1), IF(INPUTS!$C$30="Yes", SUMIFS(OVERRIDE!D:D,OVERRIDE!$B:$B,$AB23), SUMIFS(CohortBreakout!M:M,CohortBreakout!$B:$B,$AB23,CohortBreakout!$A:$A,$B$5)), 0) -> 0 | CR23: =IF($AB23<EDATE($F$5,-1), IF(INPUTS!$C$30="Yes", SUMIFS(OVERRIDE!E:E,OVERRIDE!$B:$B,$AB23), SUMIFS(CohortBreakout!N:N,CohortBreakout!$B:$B,$AB23,CohortBreakout!$A:$A,$B$5)), 0) -> 0 | CS23: =IF($AB23<EDATE($F$5,-1), IF(INPUTS!$C$30="Yes", SUMIFS(OVERRIDE!F:F,OVERRIDE!$B:$B,$AB23), SUMIFS(CohortBreakout!O:O,CohortBreakout!$B:$B,$AB23,CohortBreakout!$A:$A,$B$5)), 0) -> 0 | CT23: =IF($AB23<EDATE($F$5,-1), IF(INPUTS!$C$30="Yes", SUMIFS(OVERRIDE!G:G,OVERRIDE!$B:$B,$AB23), SUMIFS(CohortBreakout!P:P,CohortBreakout!$B:$B,$AB23,CohortBreakout!$A:$A,$B$5)), 0) -> 0 | CU23: =IF($AB23<EDATE($F$5,-1), IF(INPUTS!$C$30="Yes", SUMIFS(OVERRIDE!H:H,OVERRIDE!$B:$B,$AB23), SUMIFS(CohortBreakout!Q:Q,CohortBreakout!$B:$B,$AB23,CohortBreakout!$A:$A,$B$5)), 0) -> 0 | CV23: =IF($AB23<EDATE($F$5,-1), IF(INPUTS!$C$30="Yes", SUMIFS(OVERRIDE!I:I,OVERRIDE!$B:$B,$AB23), SUMIFS(CohortBreakout!R:R,CohortBreakout!$B:$B,$AB23,CohortBreakout!$A:$A,$B$5)), 0) -> 0 | CW23: =IF($AB23<EDATE($F$5,-1), IF(INPUTS!$C$30="Yes", SUMIFS(OVERRIDE!J:J,OVERRIDE!$B:$B,$AB23), SUMIFS(CohortBreakout!S:S,CohortBreakout!$B:$B,$AB23,CohortBreakout!$A:$A,$B$5)), 0) -> 0 | CX23: =IF($AB23<EDATE($F$5,-1), IF(INPUTS!$C$30="Yes", SUMIFS(OVERRIDE!K:K,OVERRIDE!$B:$B,$AB23), SUMIFS(CohortBreakout!T:T,CohortBreakout!$B:$B,$AB23,CohortBreakout!$A:$A,$B$5)), 0) -> 0 | CY23: =IF($AB23<EDATE($F$5,-1), IF(INPUTS!$C$30="Yes", SUMIFS(OVERRIDE!L:L,OVERRIDE!$B:$B,$AB23), SUMIFS(CohortBreakout!U:U,CohortBreakout!$B:$B,$AB23,CohortBreakout!$A:$A,$B$5)), 0) -> 0 | CZ23: 7020859 | DA23: 29798623.57 | DB23: 16033432.19 | DC23: 11749643.53 | DD23: 7956173.948 | DE23: 9538628.437 | DF23: 0 | DG23: 0 | DH23: 0 | DI23: 64602558.28 | DJ23: 82097360.67 | DK23: 0.9963806555 | DL23: 0.9973807182 | DM23: 0.9953956195 | DN23: 0.9942617756 | DO23: 1 | DP23: 1 | DQ23: 1 | DR23: 1 | DS23: 1 | DT23: 0.9959355931 | DU23: 0.9982025284 | DV23: 13480.76457 | DW23: 15875.64135 | DX23: 19526.84177 | DY23: 28307.4613 | DZ23: 79197.91667 | EA23: 94375 | EB23: 36601.05008 | EC23: 36601.05008 | ED23: 0 | EE23: 18782.59488 | EF23: 33420.36965 | EG23: 0.9963806555 | EH23: 0.9973807182 | EI23: 0.9953890657 | EJ23: 0.9942617756 | EK23: 1 | EL23: 1 | EM23: 1 | EN23: 1 | EO23: 1 | EP23: 0.9959285299 | EQ23: 0.9981895749 | ER23: 0.9963823894 | ES23: 0.9973732319 | ET23: 0.9953943305 | EU23: 0.9942605477 | EV23: 1 | EW23: 1 | EX23: 1 | EY23: 1 | EZ23: 1 | FA23: 0.9959267536 | FB23: 0.998213905 | FC23: 0.9962786226 | FD23: 0.9973656455 | FE23: 0.9953325843 | FF23: 0.994188894 | FG23: 1 | FH23: 1 | FI23: 1 | FJ23: 1 | FK23: 1 | FL23: 0.9958779515 | FM23: 0.9981720598 | FN23: 7020859 | FO23: 29798623.57 | FP23: 16652364.24 | FQ23: 11749643.53 | FR23: 7958221.482 | FS23: 9538966.448 | FT23: 0 | FU23: 0 | FV23: 0 | FW23: 65221490.34 | FX23: 82718678.27 | FY23: 7321815.351 | FZ23: 27036464.95 | GA23: 15366012.82 | GB23: 10729644.11 | GC23: 7537775.543 | GD23: 9029948.352 | GE23: 0 | GF23: 0 | GG23: 0 | GH23: 60453937.24 | GI23: 77021661.13 | GJ23: 6639437.527 | GK23: 30662036.28 | GL23: 16965121.31 | GM23: 12118344.83 | GN23: 8177626.189 | GO23: 9767437.36 | GP23: 0 | GQ23: 0 | GR23: 0 | GS23: 66384939.94 | GT23: 84330003.49 | GV23: 0.9953956195 | GW23: 16033432.19 | HF23: -0.005818435911 | HG23: -0.002593286343
